Workbook

Sheet NOMBRE (hidden)
A1: DATOS DEL ESTABLECIMIENTO | C1: CÓDIGOS
A2: NOMBRE DE COMUNA | I2: =IF(OR([1]NOMBRE!C2="",[1]NOMBRE!D2="",[1]NOMBRE!E2="",[1]NOMBRE!F2="",[1]NOMBRE!G2=""),"Falta Cód. Com.","") -> Falta Cód. Com. | AF2: =IF(I2>"",1,0) -> 1
A3: NOMBRE ESTABLECIMIENTO/ESTRATEGIA | I3: =IF(OR([1]NOMBRE!C3="",[1]NOMBRE!D3="",[1]NOMBRE!E3="",[1]NOMBRE!F3="",[1]NOMBRE!G3="",[1]NOMBRE!H3=""),"Falta Cód. Est.","") -> Falta Cód. Est. | AF3: =IF(I3>"",1,0) -> 1
A4: TIPO DE ESTABLECIMIENTO/ESTRATEGIA | I4: =IF(OR([1]NOMBRE!B4=""),"Falta Tipo. Est.","") -> Falta Tipo. Est. | AF4: =IF(I4>"",1,0) -> 1
A5: DEPENDENCIA | I5: =IF(OR([1]NOMBRE!B5=""),"Falta Dependencia. Est.","") -> Falta Dependencia. Est. | AF5: =IF(I5>"",1,0) -> 1
A6: MES: | I6: =IF(OR([1]NOMBRE!C6="",[1]NOMBRE!D6=""),"Falta Cód. Mes.","") -> Falta Cód. Mes. | AF6: =IF(I6>"",1,0) -> 1
A7: AÑO: | B7: 2023 | AF7: =SUM(AF2:AF6) -> 5
A9: Versión 1.4: Abril 2023
A11: Director Servicio de Salud o Director Establecimiento | Z11: ENERO | AA11: Establecimiento de Mayor Complejidad (EMAYC) | AB11: SERVICIO DE SALUD
A12: Jefe de Estadisticas | Z12: FEBRERO | AA12: Establecimiento de Mediana Complejidad (EMEDC) | AB12: MUNICIPAL
Z13: MARZO | AA13: Establecimiento de Menor Complejidad (EMENC) | AB13: OTRA INSTITUCIÓN (Delegado)
A14: MINSAL - DEIS | Z14: ABRIL | AA14: Centros de Diagnóstico Terapéutico (CDT)
Z15: MAYO | AA15: Centro de Referencia de Salud (CRS)
Z16: JUNIO | AA16: Consultorio General Urbano (CGU)
B17: SERIE BS | Z17: JULIO | AA17: Consultorio General Urbano (CGU) - CESFAM
Z18: AGOSTO | AA18: Consultorio General Urbano(CGU) con SAPU/SUR/SAR
Z19: SEPTIEMBRE | AA19: Consultorio General Urbano (CGU) - CESFAM con SAPU/SAR
Z20: OCTUBRE | AA20: Consultorio General Rural (CGR)
Z21: NOVIEMBRE | AA21: Consultorio General Rural (CGR) - CESFAM
Z22: DICIEMBRE | AA22: Consultorio General Rural (CGR) con SAPU/SUR/SAR
AA23: Consultorio General Rural (CGR) - CESFAM con SAPU/SUR/SAR
AA24: Posta de Salud Rural (PSR)
AA25: Centro Comunitario de Salud Familiar (CECOF)
AA26: Consultorio de Salud Mental (COSAM)
AA27: Programa de Reparación y Atención Integral de Salud (PRAIS)
AA28: Centro de Atención Funcionarios (CAF)
AA29: Clínica Dental Móvil (CDM)
AA30: Dirección Servicio de Salud (DSS)
AA31: Servicio de Atención Primaria de Urgencia (SAPU)
AA32: Servicio de Atención Primaria de Urgencia Alta Resolución (SAR)
AA33: Laboratorio Clínico o Dental
AA34: Servicio de Atención Primaria de Urgencia Dental (SAPUDENT)
AA35: Centro de Rehabilitación (CR)
AA36: Hospital de Campaña
AA37: Centro Oncologico

Sheet Filtro
A1: Mes | B1: (Todas)
A2: COMUNA | B2: (Todas)
A3: ESTABLECIMIENTO | B3: (Todas)
A5: Etiquetas de fila | B5: Suma de Col01 | C5: Suma de Col02 | D5: Suma de Col03 | E5: Suma de Col04 | F5: Suma de Col05 | G5: Suma de Col06 | H5: Suma de Col07 | I5: Suma de Col08 | J5: Suma de Col09 | K5: Suma de Col10 | L5: Suma de Col11 | M5: Suma de Col12 | N5: Suma de Col13 | O5: Suma de Col14 | P5: Suma de Col15 | Q5: Suma de Col16 | R5: Suma de Col17 | S5: Suma de Col18 | T5: Suma de Col19 | U5: Suma de Col20 | V5: Suma de Col21 | W5: Suma de Col22 | X5: Suma de Col23 | Y5: Suma de Col24 | Z5: Suma de Col25 | AA5: Suma de Col26 | AB5: Suma de Col27 | AC5: Suma de Col28 | AD5: Suma de Col29 | AE5: Suma de Col30 | AF5: Suma de Col31 | AG5: Suma de Col32 | AH5: Suma de Col33 | AI5: Suma de Col34 | AJ5: Suma de Col35 | AK5: Suma de Col36 | AL5: Cuenta de Col37 | AM5: Cuenta de Col38 | AN5: Cuenta de Col39 | AO5: Cuenta de Col40 | AP5: Cuenta de Col41 | AQ5: Cuenta de col42 | AR5: Cuenta de col43 | AS5: Cuenta de col44 | AT5: Cuenta de col45 | AU5: Cuenta de col46 | AV5: Cuenta de col47 | AW5: Cuenta de col48 | AX5: Cuenta de col49 | AY5: Cuenta de col50
A6: 01010014 | B6: 37384 | C6: 37384 | D6: 37384 | Z6: 0 | AA6: 37384 | AB6: 0 | AJ6: 559680 | AK6: 237762240
A7: 01010020 | B7: 1157 | C7: 1157 | D7: 1157 | E7: 0 | F7: 0 | Z7: 0 | AA7: 1157 | AB7: 0 | AJ7: 212080 | AK7: 2788370
A8: 01010021 | B8: 15924 | C8: 15924 | D8: 15924 | E8: 0 | F8: 0 | Z8: 0 | AA8: 1924 | AB8: 14000 | AJ8: 68640 | AK8: 12420720
A9: 01010022 | B9: 11718 | C9: 11696 | D9: 11696 | E9: 0 | F9: 22 | Z9: 5084 | AA9: 6258 | AB9: 376 | AJ9: 168960 | AK9: 22456320
A10: 01010025 | B10: 13299 | C10: 13239 | D10: 13239 | E10: 0 | F10: 60 | Z10: 0 | AA10: 13045 | AB10: 254 | AC10: 374
A11: 01010029 | B11: 462 | C11: 462 | D11: 462 | Z11: 0 | AA11: 462 | AB11: 0 | AJ11: 417600 | AK11: 2143680
A12: 01010031 | B12: 167 | C12: 167 | D12: 167 | Z12: 0 | AA12: 167 | AB12: 0 | AJ12: 229500 | AK12: 425850
A13: 01010032 | B13: 0 | C13: 0 | D13: 0 | AA13: 0 | AB13: 0 | AJ13: 70200 | AK13: 0
A14: 01010033 | B14: 618 | C14: 618 | D14: 618 | E14: 0 | F14: 0 | Z14: 272 | AA14: 334 | AB14: 0
A15: 01010035 | B15: 1460 | C15: 1459 | D15: 1459 | E15: 0 | F15: 1 | Z15: 2 | AA15: 1444 | AB15: 0 | AJ15: 196690 | AK15: 3224390
A16: 01010036 | B16: 5716 | C16: 5716 | D16: 5716 | E16: 0 | F16: 0 | Z16: 5190 | AA16: 526 | AB16: 0 | AJ16: 113030 | AK16: 7259320
A17: 01010037 | B17: 9832 | C17: 9831 | D17: 9831 | E17: 0 | F17: 1 | Z17: 6721 | AA17: 3111 | AB17: 0
A18: 01010038 | B18: 4443 | C18: 4443 | D18: 4443 | F18: 0 | Z18: 3690 | AA18: 695 | AB18: 58
A19: 01010042 | B19: 20416 | C19: 20412 | D19: 20412 | E19: 0 | F19: 4 | Z19: 2271 | AA19: 16016 | AB19: 2155 | AJ19: 74800 | AK19: 17350200
A20: 01010047 | B20: 1220 | C20: 1220 | D20: 1220 | Z20: 92 | AA20: 1111 | AB20: 0 | AH20: 75
A21: 01010048 | B21: 438706 | C21: 438706 | D21: 438706 | E21: 0 | F21: 0 | Z21: 42200 | AA21: 379508 | AB21: 16998
A22: 01010049 | B22: 1036 | C22: 1036 | D22: 1036 | E22: 0 | F22: 0 | Z22: 0 | AA22: 1036 | AB22: 0
A23: 01010050 | B23: 1429 | C23: 1429 | D23: 1429 | E23: 0 | F23: 0 | Z23: 595 | AA23: 834 | AB23: 0
A24: 01010051 | B24: 336 | C24: 336 | D24: 336 | E24: 0 | F24: 0 | Z24: 115 | AA24: 221 | AB24: 0
A25: 01010053 | B25: 162 | C25: 162 | D25: 162 | Z25: 116 | AA25: 46
A26: 01010054 | B26: 974 | C26: 974 | D26: 974 | Z26: 879 | AA26: 95
A27: 01010055 | B27: 9661 | C27: 9661 | D27: 9661 | E27: 0 | F27: 0 | Z27: 961 | AA27: 8402 | AB27: 190
A28: 01010056 | B28: 150 | C28: 150 | D28: 150 | Z28: 84 | AA28: 66
A29: 01010057 | B29: 121 | C29: 121 | D29: 121 | Z29: 65 | AA29: 56
A30: 01010058 | B30: 169 | C30: 169 | D30: 169 | Z30: 96 | AA30: 73
A31: 01010061 | B31: 185 | C31: 185 | D31: 185 | Z31: 12 | AA31: 173
A32: 01010062 | B32: 107 | C32: 107 | D32: 107 | Z32: 89 | AA32: 18 | AB32: 0
A33: 01010063 | B33: 471 | C33: 471 | D33: 471 | Z33: 272 | AA33: 199 | AB33: 0
A34: 01010065 | B34: 105 | C34: 105 | D34: 105 | AA34: 105
A35: 01010066 | B35: 26512 | C35: 26512 | D35: 26512 | Z35: 0 | AA35: 25664 | AB35: 848 | AE35: 495
A36: 01010068 | B36: 12064 | C36: 12064 | D36: 12064 | Z36: 2069 | AA36: 9995 | AB36: 0
A37: 01010069 | B37: 381 | C37: 381 | D37: 381 | Z37: 0 | AA37: 381 | AB37: 0
A38: 01010071 | B38: 1 | C38: 1 | D38: 1 | Z38: 1
A39: 01010080 | B39: 4 | C39: 4 | D39: 4 | E39: 0 | F39: 0 | Z39: 3 | AA39: 1 | AB39: 0
A40: 01010082 | B40: 3 | C40: 3 | D40: 3 | Z40: 3
A41: 01010108 | B41: 954 | C41: 951 | D41: 948 | E41: 3 | F41: 3 | Z41: 109 | AA41: 825 | AB41: 21 | AG41: 7 | AH41: 52 | AI41: 3 | AJ41: 396600 | AK41: 4237560
A42: 01010109 | B42: 23 | C42: 23 | D42: 23 | E42: 0 | F42: 0 | Z42: 0 | AA42: 23 | AB42: 0 | AG42: 0 | AH42: 0 | AI42: 0 | AJ42: 483690 | AK42: 127650
A43: 01010112 | B43: 0 | C43: 0 | D43: 0 | E43: 0 | F43: 0 | Z43: 0 | AA43: 0 | AB43: 0 | AG43: 0 | AH43: 0 | AI43: 0 | AJ43: 350240 | AK43: 0
A44: 01010113 | B44: 118 | C44: 105 | D44: 105 | E44: 0 | F44: 13 | Z44: 4 | AA44: 114 | AB44: 0 | AG44: 0 | AH44: 10 | AI44: 0 | AJ44: 350240 | AK44: 417900
A45: 01010114 | B45: 9 | C45: 9 | D45: 9 | E45: 0 | F45: 0 | Z45: 3 | AA45: 6 | AB45: 0 | AG45: 0 | AH45: 11 | AI45: 0 | AJ45: 342440 | AK45: 35820
A46: 01010117 | B46: 17 | C46: 17 | D46: 17 | E46: 0 | F46: 0 | Z46: 0 | AA46: 15 | AB46: 2 | AG46: 0 | AH46: 0 | AI46: 0 | AJ46: 118860 | AK46: 23460
A47: 01010119 | B47: 33 | C47: 33 | D47: 33 | E47: 0 | F47: 0 | Z47: 4 | AA47: 27 | AB47: 2 | AG47: 0 | AH47: 0 | AI47: 4 | AJ47: 47470 | AK47: 35970
A48: 01010120 | B48: 3519 | C48: 3517 | D48: 3517 | E48: 0 | F48: 2 | Z48: 2442 | AA48: 723 | AB48: 354 | AG48: 0 | AH48: 0 | AI48: 27 | AJ48: 105190 | AK48: 3833530
A49: 01010123 | B49: 0 | C49: 0 | D49: 0 | E49: 0 | F49: 0 | Z49: 0 | AA49: 0 | AB49: 0 | AG49: 0 | AH49: 0 | AI49: 0 | AJ49: 359440 | AK49: 0
A50: 01010126 | B50: 0 | C50: 0 | D50: 0 | E50: 0 | F50: 0 | Z50: 0 | AA50: 0 | AB50: 0 | AG50: 0 | AH50: 0 | AI50: 0 | AJ50: 123240 | AK50: 0
A51: 01010127 | B51: 1137 | C51: 1132 | D51: 1132 | E51: 0 | F51: 5 | Z51: 313 | AA51: 796 | AB51: 28 | AG51: 0 | AH51: 0 | AI51: 0 | AJ51: 180240 | AK51: 2241360
A52: 01010128 | B52: 0 | C52: 0 | D52: 0 | E52: 0 | F52: 0 | Z52: 0 | AA52: 0 | AB52: 0 | AG52: 0 | AH52: 0 | AI52: 0 | AJ52: 344240 | AK52: 0
A53: 01010130 | B53: 8 | C53: 8 | D53: 8 | E53: 0 | F53: 0 | Z53: 3 | AA53: 5 | AB53: 0 | AG53: 0 | AH53: 7 | AI53: 0 | AJ53: 180840 | AK53: 15840
A54: 01010131 | B54: 1 | C54: 1 | D54: 1 | E54: 0 | F54: 0 | Z54: 1 | AA54: 0 | AB54: 0 | AG54: 0 | AH54: 2 | AI54: 0 | AJ54: 370540 | AK54: 4180
A55: 01010132 | B55: 2852 | C55: 2795 | D55: 2792 | E55: 3 | F55: 57 | Z55: 346 | AA55: 2469 | AB55: 37 | AG55: 6 | AH55: 3 | AI55: 32 | AJ55: 444340 | AK55: 14183360
A56: 01010133 | B56: 1218 | C56: 1218 | D56: 1218 | E56: 0 | F56: 0 | Z56: 354 | AA56: 20 | AB56: 844 | AG56: 0 | AH56: 0 | AI56: 0 | AJ56: 361240 | AK56: 5091240
A57: 01010134 | B57: 430 | C57: 430 | D57: 430 | E57: 0 | F57: 0 | Z57: 78 | AA57: 347 | AB57: 5 | AG57: 2 | AH57: 95 | AI57: 2 | AJ57: 180840 | AK57: 855800
A58: 01010135 | B58: 216 | C58: 216 | D58: 216 | E58: 0 | F58: 0 | Z58: 64 | AA58: 152 | AB58: 0 | AG58: 99 | AH58: 91 | AI58: 1 | AJ58: 370540 | AK58: 902880
A59: 01010136 | B59: 3728 | C59: 3688 | D59: 3685 | E59: 3 | F59: 40 | Z59: 166 | AA59: 3508 | AB59: 54 | AG59: 1 | AH59: 0 | AI59: 33 | AJ59: 438580 | AK59: 18513940
A60: 01010140 | B60: 35245 | C60: 35172 | D60: 35172 | E60: 0 | F60: 73 | Z60: 16727 | AA60: 10606 | AB60: 7912 | AG60: 0 | AH60: 0 | AI60: 29 | AJ60: 203380 | AK60: 79488720
A61: 01010141 | B61: 109 | C61: 109 | D61: 109 | E61: 0 | F61: 0 | Z61: 3 | AA61: 105 | AB61: 1 | AG61: 0 | AH61: 0 | AI61: 60 | AJ61: 321460 | AK61: 80140
A62: 01010142 | B62: 24781 | C62: 24758 | D62: 24758 | E62: 0 | F62: 23 | Z62: 8202 | AA62: 12349 | AB62: 4230 | AG62: 0 | AH62: 0 | AI62: 253 | AJ62: 54560 | AK62: 15349960
A63: 01010144 | B63: 26847 | C63: 26685 | D63: 26685 | E63: 0 | F63: 162 | Z63: 8184 | AA63: 14499 | AB63: 4164 | AG63: 0 | AH63: 0 | AI63: 155 | AJ63: 65240 | AK63: 16544700
A64: 01010146 | B64: 1633 | C64: 1633 | D64: 1633 | E64: 0 | F64: 0 | Z64: 6 | AA64: 1616 | AB64: 11 | AG64: 0 | AH64: 0 | AI64: 199 | AJ64: 368320 | AK64: 6948660
A65: 01010147 | B65: 17821 | C65: 16199 | D65: 16198 | E65: 1 | F65: 1622 | Z65: 781 | AA65: 16951 | AB65: 90 | AG65: 0 | AH65: 0 | AI65: 2353 | AJ65: 371450 | AK65: 70299320
A66: 01010148 | B66: 0 | C66: 0 | D66: 0 | E66: 0 | F66: 0 | Z66: 0 | AA66: 0 | AB66: 0 | AG66: 0 | AH66: 0 | AI66: 0 | AJ66: 85660 | AK66: 0
A67: 01010150 | B67: 2333 | C67: 2333 | D67: 2333 | E67: 0 | F67: 0 | Z67: 141 | AA67: 1704 | AB67: 488 | AG67: 0 | AH67: 1 | AI67: 446 | AJ67: 388530 | AK67: 6677210
A68: 01010151 | B68: 123867 | C68: 121115 | D68: 120872 | E68: 243 | F68: 2752 | Z68: 28873 | AA68: 68165 | AB68: 26831 | AG68: 0 | AH68: 0 | AI68: 4227 | AJ68: 245650 | AK68: 345693920
A69: 01010154 | B69: 0 | C69: 0 | D69: 0 | E69: 0 | F69: 0 | Z69: 0 | AA69: 0 | AB69: 0 | AG69: 0 | AH69: 0 | AI69: 0 | AJ69: 84790 | AK69: 0
A70: 01010155 | B70: 0 | C70: 0 | D70: 0 | E70: 0 | F70: 0 | Z70: 0 | AA70: 0 | AB70: 0 | AG70: 0 | AH70: 0 | AI70: 0 | AJ70: 367840 | AK70: 0
A71: 01010157 | B71: 162 | C71: 162 | D71: 162 | E71: 0 | F71: 0 | Z71: 76 | AA71: 49 | AB71: 37 | AG71: 0 | AH71: 0 | AI71: 0 | AJ71: 358570 | AK71: 677160
A72: 01010160 | B72: 10838 | C72: 10838 | D72: 10838 | E72: 0 | F72: 0 | Z72: 3480 | AA72: 5803 | AB72: 1555 | AG72: 0 | AH72: 0 | AI72: 97 | AJ72: 96790 | AK72: 12010910
A73: 01010165 | B73: 81152 | C73: 80886 | D73: 80771 | E73: 115 | F73: 266 | Z73: 18944 | AA73: 42181 | AB73: 20040 | AG73: 0 | AH73: 0 | AI73: 469 | AJ73: 119850 | AK73: 111463980
A74: 01010166 | B74: 33061 | C74: 30626 | D74: 30399 | E74: 227 | F74: 2435 | Z74: 9461 | AA74: 14784 | AB74: 8816 | AG74: 0 | AH74: 0 | AI74: 2435 | AJ74: 74800 | AK74: 25839150
A75: 01010167 | B75: 33063 | C75: 30628 | D75: 30401 | E75: 227 | F75: 2435 | Z75: 9461 | AA75: 14785 | AB75: 8817 | AG75: 0 | AH75: 0 | AI75: 2435 | AJ75: 74110 | AK75: 25840850
A76: 01010168 | B76: 17839 | C76: 17824 | D76: 17824 | E76: 0 | F76: 15 | Z76: 4010 | AA76: 9797 | AB76: 4032 | AG76: 0 | AH76: 0 | AI76: 0 | AJ76: 54560 | AK76: 11050880
A77: 01010169 | B77: 25131 | C77: 25116 | D77: 25116 | E77: 0 | F77: 15 | Z77: 7203 | AA77: 12559 | AB77: 5369 | AG77: 0 | AH77: 0 | AI77: 0 | AJ77: 55970 | AK77: 15571920
A78: 01010170 | B78: 33017 | C78: 30581 | D78: 30354 | E78: 227 | F78: 2436 | Z78: 9417 | AA78: 14784 | AB78: 8816 | AG78: 0 | AH78: 0 | AI78: 2435 | AJ78: 95920 | AK78: 33085860
A79: 01010171 | B79: 58098 | C79: 55648 | D79: 55421 | E79: 227 | F79: 2450 | Z79: 16636 | AA79: 27290 | AB79: 14172 | AG79: 0 | AH79: 0 | AI79: 2435 | AJ79: 95200 | AK79: 60408890
A80: 01010172 | B80: 116 | C80: 116 | D80: 116 | E80: 0 | F80: 0 | Z80: 75 | AA80: 38 | AB80: 3 | AG80: 0 | AH80: 0 | AI80: 0 | AJ80: 77380 | AK80: 98600
A81: 01010173 | B81: 2900 | C81: 2899 | D81: 2899 | E81: 0 | F81: 1 | Z81: 1453 | AA81: 13 | AB81: 1434 | AG81: 0 | AH81: 0 | AI81: 0 | AJ81: 153750 | AK81: 4957290
A82: 01010174 | B82: 0 | C82: 0 | D82: 0 | E82: 0 | F82: 0 | Z82: 0 | AA82: 0 | AB82: 0 | AG82: 0 | AH82: 0 | AI82: 0 | AJ82: 242140 | AK82: 0
A83: 01010176 | B83: 55 | C83: 55 | D83: 55 | E83: 0 | F83: 0 | Z83: 14 | AA83: 32 | AB83: 9 | AG83: 0 | AH83: 0 | AI83: 0 | AJ83: 132120 | AK83: 75900
A84: 01010185 | B84: 510 | C84: 507 | D84: 507 | E84: 0 | F84: 3 | Z84: 112 | AA84: 397 | AB84: 1 | AG84: 3 | AH84: 0 | AI84: 0 | AJ84: 425030 | AK84: 2504580
A85: 01010186 | B85: 316 | C85: 316 | D85: 316 | E85: 0 | F85: 0 | Z85: 50 | AA85: 153 | AB85: 113 | AG85: 0 | AH85: 0 | AI85: 18 | AJ85: 151890 | AK85: 688880
A86: 01010188 | B86: 63904 | C86: 63663 | D86: 63539 | E86: 124 | F86: 241 | Z86: 18512 | AA86: 25938 | AB86: 19467 | AG86: 0 | AH86: 0 | AI86: 95 | AJ86: 186830 | AK86: 138369730
A87: 01010189 | B87: 23175 | C87: 21071 | D87: 21005 | E87: 66 | F87: 2104 | Z87: 2704 | AA87: 18613 | AB87: 1858 | AG87: 0 | AH87: 0 | AI87: 2143 | AJ87: 67380 | AK87: 10712550
A88: 01010192 | B88: 0 | C88: 0 | D88: 0 | E88: 0 | F88: 0 | Z88: 0 | AA88: 0 | AB88: 0 | AG88: 0 | AH88: 0 | AI88: 0 | AJ88: 704880 | AK88: 0
A89: 01010193 | B89: 0 | C89: 0 | D89: 0 | E89: 0 | F89: 0 | Z89: 0 | AA89: 0 | AB89: 0 | AG89: 0 | AH89: 0 | AI89: 0 | AJ89: 763290 | AK89: 0
A90: 01010194 | B90: 10 | C90: 10 | D90: 10 | E90: 0 | F90: 0 | Z90: 5 | AA90: 5 | AB90: 0 | AG90: 0 | AH90: 12 | AI90: 0 | AJ90: 2425590 | AK90: 274800
A91: 01010195 | B91: 11 | C91: 11 | D91: 11 | E91: 0 | F91: 0 | Z91: 5 | AA91: 6 | AB91: 0 | AG91: 0 | AH91: 11 | AI91: 0 | AJ91: 2602940 | AK91: 329230
A92: 01010196 | B92: 0 | C92: 0 | D92: 0 | E92: 0 | F92: 0 | Z92: 0 | AA92: 0 | AB92: 0 | AG92: 0 | AH92: 0 | AI92: 0 | AJ92: 1795690 | AK92: 0
A93: 01010197 | B93: 41 | C93: 41 | D93: 41 | E93: 0 | F93: 0 | Z93: 12 | AA93: 1 | AB93: 28 | AG93: 0 | AH93: 3 | AI93: 0 | AJ93: 3630230 | AK93: 381710
A94: 01010198 | B94: 5680 | C94: 5660 | D94: 5657 | E94: 3 | F94: 20 | Z94: 903 | AA94: 2069 | AB94: 2708 | AG94: 0 | AH94: 0 | AI94: 0 | AJ94: 855400 | AK94: 52666670
A95: 01010199 | B95: 897 | C95: 895 | D95: 895 | E95: 0 | F95: 2 | Z95: 74 | AA95: 587 | AB95: 236 | AG95: 0 | AH95: 0 | AI95: 0 | AJ95: 71960 | AK95: 689150
A96: 01010200 | B96: 0 | C96: 0 | D96: 0 | E96: 0 | F96: 0 | Z96: 0 | AA96: 0 | AB96: 0 | AG96: 0 | AH96: 0 | AI96: 0 | AJ96: 195070 | AK96: 0
A97: 01010201 | B97: 21376 | C97: 21369 | D97: 21298 | E97: 71 | F97: 7 | Z97: 9310 | AA97: 6509 | AB97: 5557 | AG97: 0 | AH97: 0 | AI97: 304 | AJ97: 305400 | AK97: 74111760
A98: 01010202 | B98: 20824 | C98: 20355 | D98: 20325 | E98: 30 | F98: 469 | Z98: 1813 | AA98: 18529 | AB98: 482 | AG98: 0 | AH98: 0 | AI98: 1688 | AJ98: 134130 | AK98: 30590450
A99: 01010204 | B99: 10571 | C99: 10461 | D99: 10443 | E99: 18 | F99: 110 | Z99: 1451 | AA99: 3138 | AB99: 5982 | AG99: 0 | AH99: 0 | AI99: 61 | AJ99: 203570 | AK99: 23079030
A100: 01010205 | B100: 0 | C100: 0 | D100: 0 | E100: 0 | F100: 0 | Z100: 0 | AA100: 0 | AB100: 0 | AG100: 0 | AH100: 0 | AI100: 0 | AJ100: 451340 | AK100: 0
A101: 01010206 | B101: 828 | C101: 828 | D101: 828 | E101: 0 | F101: 0 | Z101: 154 | AA101: 584 | AB101: 90 | AG101: 0 | AH101: 0 | AI101: 0 | AJ101: 186660 | AK101: 1639440
A102: 01010207 | B102: 84 | C102: 84 | D102: 84 | E102: 0 | F102: 0 | Z102: 0 | AA102: 84 | AB102: 0 | AG102: 0 | AH102: 0 | AI102: 0 | AJ102: 522060 | AK102: 514080
A103: 01010208 | B103: 1010 | C103: 1010 | D103: 1010 | E103: 0 | F103: 0 | Z103: 2 | AA103: 1008 | AB103: 0 | AG103: 0 | AH103: 0 | AI103: 3 | AJ103: 56420 | AK103: 628060
A104: 01010209 | B104: 2912 | C104: 2908 | D104: 2906 | E104: 2 | F104: 4 | Z104: 486 | AA104: 1759 | AB104: 667 | AG104: 0 | AH104: 0 | AI104: 16 | AJ104: 109540 | AK104: 3687440
A105: 01010210 | B105: 6890 | C105: 6889 | D105: 6889 | E105: 0 | F105: 1 | Z105: 1530 | AA105: 4526 | AB105: 834 | AG105: 0 | AH105: 0 | AI105: 16 | AJ105: 120570 | AK105: 9461000
A106: 01010212 | B106: 32745 | C106: 32556 | D106: 32495 | E106: 61 | F106: 189 | Z106: 13110 | AA106: 16238 | AB106: 3397 | AG106: 0 | AH106: 0 | AI106: 33 | AJ106: 98590 | AK106: 35419550
A107: 01010214 | B107: 0 | C107: 0 | D107: 0 | E107: 0 | F107: 0 | Z107: 0 | AA107: 0 | AB107: 0 | AG107: 0 | AH107: 0 | AI107: 0 | AJ107: 181710 | AK107: 0
A108: 01010215 | B108: 0 | C108: 0 | D108: 0 | E108: 0 | F108: 0 | Z108: 0 | AA108: 0 | AB108: 0 | AG108: 0 | AH108: 0 | AI108: 0 | AJ108: 389100 | AK108: 0
A109: 01010216 | B109: 7 | C109: 7 | D109: 7 | E109: 0 | F109: 0 | Z109: 4 | AA109: 3 | AB109: 0 | AG109: 0 | AH109: 2 | AI109: 0 | AJ109: 263600 | AK109: 21350
A110: 01010217 | B110: 987 | C110: 987 | D110: 987 | E110: 0 | F110: 0 | Z110: 14 | AA110: 937 | AB110: 36 | AG110: 0 | AH110: 2 | AI110: 1 | AJ110: 127120 | AK110: 1273550
A111: 01010218 | B111: 9735 | C111: 9500 | D111: 9500 | E111: 0 | F111: 235 | Z111: 465 | AA111: 8988 | AB111: 282 | AG111: 0 | AH111: 0 | AI111: 199 | AJ111: 115410 | AK111: 12751440
A112: 01010219 | B112: 10854 | C112: 10849 | D112: 10849 | E112: 0 | F112: 5 | Z112: 759 | AA112: 9579 | AB112: 525 | AG112: 0 | AH112: 0 | AI112: 30 | AJ112: 171570 | AK112: 20830080
A113: 01010220 | B113: 2083 | C113: 2083 | D113: 2083 | E113: 0 | F113: 0 | Z113: 113 | AA113: 1542 | AB113: 428 | AG113: 0 | AH113: 0 | AI113: 516 | AJ113: 240930 | AK113: 2624580
A114: 01010222 | B114: 124215 | C114: 121622 | D114: 121463 | E114: 159 | F114: 2593 | Z114: 29432 | AA114: 68315 | AB114: 26470 | AG114: 0 | AH114: 0 | AI114: 4244 | AJ114: 115470 | AK114: 153066330
A115: 01010223 | B115: 1385 | C115: 1383 | D115: 1383 | E115: 0 | F115: 2 | Z115: 123 | AA115: 1149 | AB115: 113 | AG115: 0 | AH115: 0 | AI115: 6 | AJ115: 250560 | AK115: 4060170
A116: 01010224 | B116: 8999 | C116: 8930 | D116: 8925 | E116: 5 | F116: 69 | Z116: 2225 | AA116: 2409 | AB116: 4365 | AG116: 0 | AH116: 0 | AI116: 3 | AJ116: 390180 | AK116: 39755890
A117: 01010225 | B117: 11760 | C117: 11686 | D117: 11681 | E117: 5 | F117: 74 | Z117: 2713 | AA117: 4177 | AB117: 4868 | AG117: 0 | AH117: 0 | AI117: 3 | AJ117: 317780 | AK117: 40316010
A118: 01010226 | B118: 10427 | C118: 10382 | D118: 10380 | E118: 2 | F118: 45 | Z118: 2519 | AA118: 2062 | AB118: 5848 | AG118: 5 | AH118: 0 | AI118: 2 | AJ118: 797470 | AK118: 96143440
A119: 01010229 | B119: 11806 | C119: 11788 | D119: 11757 | E119: 31 | F119: 18 | Z119: 2809 | AA119: 5399 | AB119: 3598 | AG119: 31 | AH119: 0 | AI119: 14 | AJ119: 190050 | AK119: 23984280
A120: 01010230 | B120: 1721 | C120: 1721 | D120: 1721 | E120: 0 | F120: 0 | Z120: 115 | AA120: 1217 | AB120: 389 | AG120: 0 | AH120: 0 | AI120: 324 | AJ120: 475260 | AK120: 2013570
A121: 01010231 | B121: 301919 | C121: 297855 | D121: 297353 | E121: 502 | F121: 4064 | Z121: 113669 | AA121: 113353 | AB121: 74906 | AG121: 0 | AH121: 0 | AI121: 4764 | AJ121: 116100 | AK121: 347903010
A122: 01010232 | B122: 1090 | C122: 1090 | D122: 1090 | E122: 0 | F122: 0 | Z122: 13 | AA122: 1024 | AB122: 53 | AG122: 0 | AH122: 0 | AI122: 538 | AJ122: 489480 | AK122: 6441900
A123: 01010233 | B123: 48792 | C123: 45980 | D123: 45966 | E123: 14 | F123: 2812 | Z123: 4010 | AA123: 33879 | AB123: 903 | AG123: 0 | AH123: 0 | AI123: 4885 | AJ123: 518280 | AK123: 271659060
A124: 01010234 | B124: 2396 | C124: 1893 | D124: 1893 | E124: 0 | F124: 503 | Z124: 255 | AA124: 2137 | AB124: 4 | AG124: 6 | AH124: 43 | AI124: 500 | AJ124: 457290 | AK124: 10051830
A125: 01010235 | B125: 0 | C125: 0 | D125: 0 | E125: 0 | F125: 0 | Z125: 0 | AA125: 0 | AB125: 0 | AG125: 0 | AH125: 0 | AI125: 0 | AJ125: 184500 | AK125: 0
A126: 01010238 | B126: 606 | C126: 606 | D126: 606 | E126: 0 | F126: 0 | Z126: 31 | AA126: 487 | AB126: 88 | AG126: 0 | AH126: 0 | AI126: 3 | AJ126: 462810 | AK126: 769620
A127: 01010239 | B127: 4467 | C127: 4418 | D127: 4417 | E127: 1 | F127: 49 | Z127: 400 | AA127: 3220 | AB127: 847 | AG127: 0 | AH127: 0 | AI127: 27 | AJ127: 112870 | AK127: 5646220
A128: 01010241 | B128: 26463 | C128: 26287 | D128: 26240 | E128: 47 | F128: 176 | Z128: 11732 | AA128: 12675 | AB128: 2056 | AG128: 0 | AH128: 0 | AI128: 16 | AJ128: 141260 | AK128: 43033600
A129: 01010242 | B129: 95 | C129: 95 | D129: 95 | E129: 0 | F129: 0 | Z129: 18 | AA129: 29 | AB129: 48 | AG129: 8 | AH129: 0 | AI129: 3 | AJ129: 59030 | AK129: 200450
A130: 01010244 | B130: 9604 | C130: 9602 | D130: 9602 | E130: 0 | F130: 2 | Z130: 817 | AA130: 6997 | AB130: 1790 | AG130: 15 | AH130: 0 | AI130: 9 | AJ130: 189910 | AK130: 20346230
A131: 01010245 | B131: 47973 | C131: 47837 | D131: 47768 | E131: 69 | F131: 136 | Z131: 22775 | AA131: 13651 | AB131: 11526 | AG131: 0 | AH131: 0 | AI131: 567 | AJ131: 302980 | AK131: 162434600
A132: 01010246 | B132: 79047 | C132: 75893 | D132: 75808 | E132: 85 | F132: 3154 | Z132: 9744 | AA132: 56091 | AB132: 13213 | AG132: 0 | AH132: 0 | AI132: 5157 | AJ132: 124110 | AK132: 96153120
A133: 01010247 | B133: 2475 | C133: 2268 | D133: 2267 | E133: 1 | F133: 207 | Z133: 66 | AA133: 2403 | AB133: 6 | AG133: 0 | AH133: 0 | AI133: 276 | AJ133: 494490 | AK133: 12853890
A134: 01010248 | B134: 457 | C134: 455 | D134: 455 | E134: 0 | F134: 2 | Z134: 104 | AA134: 297 | AB134: 56 | AG134: 0 | AH134: 0 | AI134: 0 | AJ134: 361240 | AK134: 1901900
A135: 01010250 | B135: 0 | C135: 0 | D135: 0 | E135: 0 | F135: 0 | Z135: 0 | AA135: 0 | AB135: 0 | AG135: 0 | AH135: 0 | AI135: 0 | AJ135: 174810 | AK135: 0
A136: 01010251 | B136: 11951 | C136: 11894 | D136: 11877 | E136: 17 | F136: 57 | Z136: 1382 | AA136: 4208 | AB136: 6361 | AG136: 8 | AH136: 0 | AI136: 9 | AJ136: 192820 | AK136: 25773090
A137: 01010254 | B137: 560 | C137: 558 | D137: 558 | E137: 0 | F137: 2 | Z137: 69 | AA137: 461 | AB137: 30 | AG137: 1 | AH137: 3 | AI137: 2 | AJ137: 245520 | AK137: 1556820
A138: 01010255 | B138: 5130 | C138: 5124 | D138: 5112 | E138: 12 | F138: 6 | Z138: 1062 | AA138: 3534 | AB138: 534 | AG138: 8 | AH138: 0 | AI138: 373 | AJ138: 240930 | AK138: 11099970
A139: 01010256 | B139: 133832 | C139: 132142 | D139: 131825 | E139: 317 | F139: 1690 | Z139: 40203 | AA139: 50453 | AB139: 34158 | AG139: 0 | AH139: 0 | AI139: 2637 | AJ139: 111900 | AK139: 166099500
A140: 01010257 | B140: 10338 | C140: 10333 | D140: 10277 | E140: 56 | F140: 5 | Z140: 5223 | AA140: 1155 | AB140: 3960 | AG140: 0 | AH140: 1 | AI140: 8 | AJ140: 160030 | AK140: 16641910
A141: 01010258 | B141: 18316 | C141: 17929 | D141: 17929 | E141: 0 | F141: 387 | Z141: 2191 | AA141: 12569 | AB141: 3556 | AG141: 0 | AH141: 0 | AI141: 421 | AJ141: 684960 | AK141: 143066810
A142: 01010261 | B142: 569 | C142: 569 | D142: 569 | E142: 0 | F142: 0 | Z142: 33 | AA142: 358 | AB142: 178 | AG142: 2 | AH142: 30 | AI142: 137 | AJ142: 523180 | AK142: 5651720
A143: 01010262 | B143: 61703 | C143: 60123 | D143: 60014 | E143: 109 | F143: 1580 | Z143: 13282 | AA143: 33389 | AB143: 15033 | AG143: 0 | AH143: 0 | AI143: 2223 | AJ143: 860560 | AK143: 591405560
A144: 01010263 | B144: 15961 | C144: 15859 | D144: 15859 | E144: 0 | F144: 102 | Z144: 1128 | AA144: 12965 | AB144: 1868 | AG144: 0 | AH144: 0 | AI144: 938 | AJ144: 159650 | AK144: 28700520
A145: 01010264 | B145: 13063 | C145: 12935 | D145: 12934 | E145: 1 | F145: 128 | Z145: 1165 | AA145: 11027 | AB145: 871 | AG145: 0 | AH145: 0 | AI145: 80 | AJ145: 149100 | AK145: 21341100
A146: 01010266 | B146: 581 | C146: 581 | D146: 581 | E146: 0 | F146: 0 | Z146: 93 | AA146: 484 | AB146: 4 | AG146: 1 | AH146: 0 | AI146: 0 | AJ146: 271000 | AK146: 1877350
A147: 01010267 | B147: 3800 | C147: 3743 | D147: 3740 | E147: 3 | F147: 57 | Z147: 424 | AA147: 3337 | AB147: 39 | AG147: 34 | AH147: 2 | AI147: 57 | AJ147: 614130 | AK147: 25251710
A148: 01010268 | B148: 5168 | C148: 5073 | D148: 5072 | E148: 1 | F148: 95 | Z148: 313 | AA148: 4832 | AB148: 23 | AG148: 52 | AH148: 441 | AI148: 98 | AJ148: 1271780 | AK148: 68269120
A149: 01010270 | B149: 3 | C149: 3 | D149: 3 | E149: 0 | F149: 0 | Z149: 3 | AA149: 0 | AB149: 0 | AG149: 0 | AH149: 3 | AI149: 0 | AJ149: 3623390 | AK149: 127680
A150: 01010271 | B150: 34083 | C150: 34075 | D150: 33915 | E150: 160 | F150: 8 | Z150: 12900 | AA150: 11500 | AB150: 9683 | AG150: 0 | AH150: 0 | AI150: 0 | AJ150: 186820 | AK150: 65455950
A151: 01010272 | B151: 0 | C151: 0 | D151: 0 | E151: 0 | F151: 0 | Z151: 0 | AA151: 0 | AB151: 0 | AG151: 0 | AH151: 0 | AI151: 0 | AJ151: 700860 | AK151: 0
A152: 01010273 | B152: 384 | C152: 384 | D152: 384 | E152: 0 | F152: 0 | Z152: 7 | AA152: 377 | AB152: 0 | AG152: 0 | AH152: 6 | AI152: 0 | AJ152: 673540 | AK152: 2952960
A153: 01010274 | B153: 1 | C153: 1 | D153: 1 | E153: 0 | F153: 0 | Z153: 0 | AA153: 1 | AB153: 0 | AG153: 0 | AH153: 7 | AI153: 0 | AJ153: 578460 | AK153: 6630
A154: 01010275 | B154: 3 | C154: 3 | D154: 3 | E154: 0 | F154: 0 | Z154: 0 | AA154: 3 | AB154: 0 | AG154: 1 | AH154: 24 | AI154: 0 | AJ154: 440540 | AK154: 14910
A155: 01010276 | B155: 0 | C155: 0 | D155: 0 | E155: 0 | F155: 0 | Z155: 0 | AA155: 0 | AB155: 0 | AG155: 0 | AH155: 0 | AI155: 0 | AJ155: 527460 | AK155: 0
A156: 01010278 | B156: 560 | C156: 556 | D156: 556 | E156: 0 | F156: 4 | Z156: 36 | AA156: 524 | AB156: 0 | AG156: 1 | AH156: 32 | AI156: 4 | AJ156: 442340 | AK156: 2763320
A157: 01010279 | B157: 0 | C157: 0 | D157: 0 | E157: 0 | F157: 0 | Z157: 0 | AA157: 0 | AB157: 0 | AG157: 0 | AH157: 3 | AI157: 0 | AJ157: 583440 | AK157: 0
A158: 01010280 | B158: 452 | C158: 452 | D158: 452 | E158: 0 | F158: 0 | Z158: 4 | AA158: 448 | AB158: 0 | AG158: 1 | AH158: 8 | AI158: 0 | AJ158: 577680 | AK158: 2996760
A159: 01010281 | B159: 0 | C159: 0 | D159: 0 | E159: 0 | F159: 0 | Z159: 0 | AA159: 0 | AB159: 0 | AG159: 0 | AH159: 7 | AI159: 0 | AJ159: 420240 | AK159: 0
A160: 01010284 | B160: 2 | C160: 2 | D160: 2 | E160: 0 | F160: 0 | Z160: 0 | AA160: 2 | AB160: 0 | AG160: 1 | AH160: 0 | AI160: 1 | AJ160: 578340 | AK160: 11560
A161: 01010286 | B161: 2484 | C161: 2478 | D161: 2477 | E161: 1 | F161: 6 | Z161: 682 | AA161: 1461 | AB161: 341 | AG161: 63 | AH161: 0 | AI161: 20 | AJ161: 433840 | AK161: 12211610
A162: 01010287 | B162: 2778 | C162: 2778 | D162: 2778 | E162: 0 | F162: 0 | Z162: 78 | AA162: 2690 | AB162: 10 | AG162: 246 | AH162: 0 | AI162: 50 | AJ162: 433840 | AK162: 13695540
A163: 01010288 | B163: 2238 | C163: 2238 | D163: 2238 | E163: 0 | F163: 0 | Z163: 68 | AA163: 2163 | AB163: 7 | AG163: 194 | AH163: 0 | AI163: 39 | AJ163: 453550 | AK163: 11033340
A164: 01010289 | B164: 82 | C164: 82 | D164: 82 | E164: 0 | F164: 0 | Z164: 2 | AA164: 80 | AB164: 0 | AG164: 0 | AH164: 5 | AI164: 0 | AJ164: 1012000 | AK164: 943000
A165: 01010290 | B165: 56 | C165: 56 | D165: 56 | E165: 0 | F165: 0 | Z165: 0 | AA165: 55 | AB165: 1 | AG165: 34 | AH165: 27 | AI165: 13 | AJ165: 992290 | AK165: 295790
A166: 01010291 | B166: 3317 | C166: 3316 | D166: 3316 | E166: 0 | F166: 1 | Z166: 155 | AA166: 3138 | AB166: 24 | AG166: 128 | AH166: 0 | AI166: 42 | AJ166: 458920 | AK166: 16506720
A167: 01010292 | B167: 1571 | C167: 1571 | D167: 1570 | E167: 1 | F167: 0 | Z167: 31 | AA167: 1538 | AB167: 2 | AG167: 53 | AH167: 0 | AI167: 11 | AJ167: 1152270 | AK167: 20853800
A168: 01010293 | B168: 882 | C168: 882 | D168: 880 | E168: 2 | F168: 0 | Z168: 46 | AA168: 836 | AB168: 0 | AG168: 60 | AH168: 52 | AI168: 0 | AJ168: 655690 | AK168: 6632590
A169: 01010294 | B169: 412 | C169: 412 | D169: 412 | E169: 0 | F169: 0 | Z169: 3 | AA169: 409 | AB169: 0 | AG169: 35 | AH169: 24 | AI169: 3 | AJ169: 433840 | AK169: 2031160
A170: 01010295 | B170: 1783 | C170: 1782 | D170: 1781 | E170: 1 | F170: 1 | Z170: 72 | AA170: 1708 | AB170: 3 | AG170: 185 | AH170: 21 | AI170: 29 | AJ170: 438940 | AK170: 8780330
A171: 01010296 | B171: 1 | C171: 1 | D171: 1 | E171: 0 | F171: 0 | Z171: 1 | AA171: 0 | AB171: 0 | AG171: 0 | AH171: 6 | AI171: 0 | AJ171: 598050 | AK171: 6630
A172: 01010297 | B172: 410 | C172: 410 | D172: 410 | E172: 0 | F172: 0 | Z172: 3 | AA172: 407 | AB172: 0 | AG172: 2 | AH172: 3 | AI172: 1 | AJ172: 992410 | AK172: 4701940
A173: 01010298 | B173: 729 | C173: 726 | D173: 726 | E173: 0 | F173: 3 | Z173: 39 | AA173: 688 | AB173: 2 | AG173: 10 | AH173: 56 | AI173: 4 | AJ173: 440540 | AK173: 3608220
A174: 01010299 | B174: 4 | C174: 4 | D174: 4 | E174: 0 | F174: 0 | Z174: 0 | AA174: 4 | AB174: 0 | AG174: 2 | AH174: 23 | AI174: 0 | AJ174: 549390 | AK174: 24120
A175: 01010300 | B175: 1228 | C175: 1228 | D175: 1228 | E175: 0 | F175: 0 | Z175: 20 | AA175: 1191 | AB175: 17 | AG175: 794 | AH175: 0 | AI175: 400 | AJ175: 1056730 | AK175: 5515840
A176: 01010301 | B176: 45279 | C176: 43382 | D176: 43380 | E176: 2 | F176: 1897 | Z176: 2419 | AA176: 42582 | AB176: 278 | AG176: 2467 | AH176: 0 | AI176: 3070 | AJ176: 386240 | AK176: 186967800
A177: 01010302 | B177: 1192 | C177: 1191 | D177: 1191 | E177: 0 | F177: 1 | Z177: 16 | AA177: 1168 | AB177: 8 | AG177: 461 | AH177: 29 | AI177: 204 | AJ177: 578340 | AK177: 6781130
A178: 01010303 | B178: 18487 | C178: 17432 | D178: 17432 | E178: 0 | F178: 1055 | Z178: 573 | AA178: 17784 | AB178: 130 | AG178: 1387 | AH178: 230 | AI178: 1631 | AJ178: 431980 | AK178: 85929840
A179: 01010304 | B179: 9758 | C179: 9583 | D179: 9581 | E179: 2 | F179: 175 | Z179: 946 | AA179: 8740 | AB179: 72 | AG179: 52 | AH179: 0 | AI179: 178 | AJ179: 379280 | AK179: 41294110
A180: 01010305 | B180: 9747 | C180: 9712 | D180: 9710 | E180: 2 | F180: 35 | Z180: 906 | AA180: 8756 | AB180: 85 | AG180: 38 | AH180: 0 | AI180: 33 | AJ180: 386240 | AK180: 41850100
A181: 01010306 | B181: 30 | C181: 30 | D181: 30 | E181: 0 | F181: 0 | Z181: 1 | AA181: 29 | AB181: 0 | AG181: 26 | AH181: 25 | AI181: 11 | AJ181: 578340 | AK181: 154700
A182: 01010307 | B182: 1852 | C182: 1852 | D182: 1852 | E182: 0 | F182: 0 | Z182: 35 | AA182: 1813 | AB182: 4 | AG182: 158 | AH182: 27 | AI182: 36 | AJ182: 506350 | AK182: 9130360
A183: 01010309 | B183: 0 | C183: 0 | D183: 0 | E183: 0 | F183: 0 | Z183: 0 | AA183: 0 | AB183: 0 | AG183: 0 | AH183: 0 | AI183: 0 | AJ183: 528810 | AK183: 0
A184: 01010311 | B184: 146 | C184: 146 | D184: 146 | E184: 0 | F184: 0 | Z184: 5 | AA184: 139 | AB184: 2 | AG184: 0 | AH184: 1 | AI184: 0 | AJ184: 475610 | AK184: 788170
A185: 01010313 | B185: 487 | C185: 487 | D185: 487 | E185: 0 | F185: 0 | Z185: 59 | AA185: 161 | AB185: 267 | AG185: 0 | AH185: 0 | AI185: 0 | AJ185: 521210 | AK185: 2420390
A186: 01010319 | B186: 0 | C186: 0 | D186: 0 | E186: 0 | F186: 0 | Z186: 0 | AA186: 0 | AB186: 0 | AG186: 0 | AH186: 3 | AI186: 0 | AJ186: 2598330 | AK186: 0
A187: 01010320 | B187: 0 | C187: 0 | D187: 0 | E187: 0 | F187: 0 | Z187: 0 | AA187: 0 | AB187: 0 | AG187: 0 | AH187: 0 | AI187: 0 | AJ187: 2885500 | AK187: 0
A188: 01010321 | B188: 2 | C188: 2 | D188: 2 | E188: 0 | F188: 0 | Z188: 2 | AA188: 0 | AB188: 0 | AG188: 0 | AH188: 1 | AI188: 0 | AJ188: 2645910 | AK188: 58200
A189: 01010322 | B189: 0 | C189: 0 | D189: 0 | E189: 0 | F189: 0 | Z189: 0 | AA189: 0 | AB189: 0 | AG189: 0 | AH189: 5 | AI189: 0 | AJ189: 3839700 | AK189: 0
A190: 01010323 | B190: 0 | C190: 0 | D190: 0 | E190: 0 | F190: 0 | Z190: 0 | AA190: 0 | AB190: 0 | AG190: 0 | AH190: 0 | AI190: 0 | AJ190: 4096400 | AK190: 0
A191: 01010324 | B191: 0 | C191: 0 | D191: 0 | E191: 0 | F191: 0 | Z191: 0 | AA191: 0 | AB191: 0 | AG191: 0 | AH191: 0 | AI191: 0 | AJ191: 4142240 | AK191: 0
A192: 01010327 | B192: 0 | C192: 0 | D192: 0 | E192: 0 | F192: 0 | Z192: 0 | AA192: 0 | AB192: 0 | AG192: 0 | AH192: 0 | AI192: 0 | AJ192: 5361450 | AK192: 0
A193: 01010328 | B193: 1 | C193: 1 | D193: 1 | E193: 0 | F193: 0 | Z193: 2 | AA193: 11 | AB193: 3 | AG193: 0 | AH193: 4 | AI193: 7 | AJ193: 436910 | AK193: 4970
A194: 01010329 | B194: 0 | C194: 0 | D194: 0 | E194: 0 | F194: 0 | Z194: 0 | AA194: 0 | AB194: 0 | AG194: 0 | AH194: 0 | AI194: 0 | AJ194: 424490 | AK194: 0
A195: 01010330 | B195: 988 | C195: 988 | D195: 985 | E195: 3 | F195: 0 | Z195: 77 | AA195: 899 | AB195: 1 | AG195: 26 | AH195: 46 | AI195: 0 | AJ195: 448660 | AK195: 4895570
A196: 01010331 | B196: 243 | C196: 243 | D196: 231 | E196: 12 | F196: 0 | Z196: 66 | AA196: 146 | AB196: 1 | AG196: 70 | AH196: 373 | AI196: 2 | AJ196: 859260 | AK196: 2224170
A197: 01010332 | B197: 421 | C197: 421 | D197: 382 | E197: 39 | F197: 0 | Z197: 96 | AA197: 284 | AB197: 1 | AG197: 184 | AH197: 577 | AI197: 9 | AJ197: 591860 | AK197: 2584840
A198: 01010334 | B198: 1846 | C198: 1842 | D198: 1832 | E198: 10 | F198: 4 | Z198: 55 | AA198: 1781 | AB198: 0 | AG198: 31 | AH198: 1140 | AI198: 5 | AJ198: 477970 | AK198: 10021040
A199: 01010335 | B199: 321 | C199: 320 | D199: 320 | E199: 0 | F199: 1 | Z199: 19 | AA199: 298 | AB199: 4 | AG199: 0 | AH199: 0 | AI199: 0 | AJ199: 388820 | AK199: 1388800
A200: 01010336 | B200: 1129 | C200: 1129 | D200: 1125 | E200: 4 | F200: 0 | Z200: 36 | AA200: 865 | AB200: 5 | AG200: 30 | AH200: 33 | AI200: 0 | AJ200: 590770 | AK200: 8056950
A201: 01010337 | B201: 6944 | C201: 6941 | D201: 6941 | E201: 0 | F201: 3 | Z201: 238 | AA201: 6679 | AB201: 36 | AG201: 622 | AH201: 0 | AI201: 290 | AJ201: 773520 | AK201: 61011390
... 2716 more rows

Sheet B
D1: TOTAL | E1: ACTIVIDADES | I1: INTERVENCIONES QUIRÚRGICAS | P1: INTERVENCIONES QUIRÚRGICAS MAYORES NO AMBULATORIAS ELECTIVAS | S1: INTERVENCIONES QUIRÚRGICAS MAYORES AMBULATORIAS ELECTIVA | V1: INTERVENCIONES QUIRÚRGICAS MAYORES AMBULATORIAS URGENCIA | Y1: INTERVENCIONES QUIRÚRGICAS MAYORES NO AMBULATORIAS URGENCIA | AB1: PROCEDENCIA | AE1: PRODUCCION INTRA HOSPITAL | AH1: OPERATIVO | AI1: COMPRAS REALIZADAS | AK1: VENTAS DE SERVICIOS | AL1: TRANSFERENCIA 2022 | AM1: TOTAL FACTURADO
B2: CODIGO | C2: GLOSA | E2: TOTAL BENEFI-CIARIOS | F2: BENEFICIARIOS | H2: NO BENEFI-CIARIOS | I2: TOTAL BENEFI- CIARIOS | J2: PRINCIPAL | M2: SECUNDARIA | S2: < 15 AÑOS | V2: < 15 AÑOS | Y2: < 15 AÑOS
F3: MAI | G3: MLE | J3: MAI | K3: MLE | L3: NO BENEFI-CIARIO | M3: MAI | N3: MLE | O3: NO BENEFI-CIARIO | P3: TOTAL | Q3: < 15 AÑOS | R3: 15 AÑOS Y MÁS | S3: TOTAL | T3: < 15 AÑOS | U3: 15 AÑOS Y MÁS | V3: TOTAL | W3: < 15 AÑOS | X3: 15 AÑOS Y MÁS | Y3: TOTAL | Z3: < 15 AÑOS | AA3: 15 AÑOS Y MÁS | AB3: ATENCION CERRADA | AC3: ATENCION ABIERTA | AD3: EMERGENCIA | AE3: POR HONO- RARIOS | AF3: POR CONVENIOS | AG3: POR CONSULTO- RES DE LLAMADA | AI3: AL SISTEMA | AJ3: EXTRA-SISTEMA
C4: CONSULTAS Y ATENCION MEDICA
C5: CONSULTAS DE ESPECIALIDADES MEDICAS
A6: 01014275 | B6: 0101201 | C6: Consulta Médica de Especialidad en Dermatología | D6: =IFERROR(VLOOKUP($A6,Filtro!$A$5:$AY$2917,2,FALSE),0) -> 2471 | E6: =IFERROR(VLOOKUP($A6,Filtro!$A$5:$AY$2917,3,FALSE),0) -> 2470 | F6: =IFERROR(VLOOKUP($A6,Filtro!$A$5:$AY$2917,4,FALSE),0) -> 2470 | G6: =IFERROR(VLOOKUP($A6,Filtro!$A$5:$AY$2917,5,FALSE),0) -> 0 | H6: =IFERROR(VLOOKUP($A6,Filtro!$A$5:$AY$2917,6,FALSE),0) -> 1 | I6: =IFERROR(VLOOKUP($A6,Filtro!$A$5:$AY$2917,7,FALSE),0) -> 0 | J6: =IFERROR(VLOOKUP($A6,Filtro!$A$5:$AY$2917,8,FALSE),0) -> 0 | K6: =IFERROR(VLOOKUP($A6,Filtro!$A$5:$AY$2917,9,FALSE),0) -> 0 | L6: =IFERROR(VLOOKUP($A6,Filtro!$A$5:$AY$2917,10,FALSE),0) -> 0 | M6: =IFERROR(VLOOKUP($A6,Filtro!$A$5:$AY$2917,11,FALSE),0) -> 0 | N6: =IFERROR(VLOOKUP($A6,Filtro!$A$5:$AY$2917,12,FALSE),0) -> 0 | O6: =IFERROR(VLOOKUP($A6,Filtro!$A$5:$AY$2917,13,FALSE),0) -> 0 | P6: =IFERROR(VLOOKUP($A6,Filtro!$A$5:$AY$2917,14,FALSE),0) -> 0 | Q6: =IFERROR(VLOOKUP($A6,Filtro!$A$5:$AY$2917,15,FALSE),0) -> 0 | R6: =IFERROR(VLOOKUP($A6,Filtro!$A$5:$AY$2917,16,FALSE),0) -> 0 | S6: =IFERROR(VLOOKUP($A6,Filtro!$A$5:$AY$2917,17,FALSE),0) -> 0 | T6: =IFERROR(VLOOKUP($A6,Filtro!$A$5:$AY$2917,18,FALSE),0) -> 0 | U6: =IFERROR(VLOOKUP($A6,Filtro!$A$5:$AY$2917,19,FALSE),0) -> 0 | V6: =IFERROR(VLOOKUP($A6,Filtro!$A$5:$AY$2917,20,FALSE),0) -> 0 | W6: =IFERROR(VLOOKUP($A6,Filtro!$A$5:$AY$2917,21,FALSE),0) -> 0 | X6: =IFERROR(VLOOKUP($A6,Filtro!$A$5:$AY$2917,22,FALSE),0) -> 0 | Y6: =IFERROR(VLOOKUP($A6,Filtro!$A$5:$AY$2917,23,FALSE),0) -> 0 | Z6: =IFERROR(VLOOKUP($A6,Filtro!$A$5:$AY$2917,24,FALSE),0) -> 0 | AA6: =IFERROR(VLOOKUP($A6,Filtro!$A$5:$AY$2917,25,FALSE),0) -> 0 | AB6: =IFERROR(VLOOKUP($A6,Filtro!$A$5:$AY$2917,26,FALSE),0) -> 0 | AC6: =IFERROR(VLOOKUP($A6,Filtro!$A$5:$AY$2917,27,FALSE),0) -> 2471 | AD6: =IFERROR(VLOOKUP($A6,Filtro!$A$5:$AY$2917,28,FALSE),0) -> 0 | AE6: =IFERROR(VLOOKUP($A6,Filtro!$A$5:$AY$2917,29,FALSE),0) -> 0 | AF6: =IFERROR(VLOOKUP($A6,Filtro!$A$5:$AY$2917,30,FALSE),0) -> 0 | AG6: =IFERROR(VLOOKUP($A6,Filtro!$A$5:$AY$2917,31,FALSE),0) -> 0 | AH6: =IFERROR(VLOOKUP($A6,Filtro!$A$5:$AY$2917,32,FALSE),0) -> 0 | AI6: =IFERROR(VLOOKUP($A6,Filtro!$A$5:$AY$2917,33,FALSE),0) -> 0 | AJ6: =IFERROR(VLOOKUP($A6,Filtro!$A$5:$AY$2917,34,FALSE),0) -> 0 | AK6: =IFERROR(VLOOKUP($A6,Filtro!$A$5:$AY$2917,35,FALSE),0) -> 0 | AL6: 9,050 | AM6: =AL6*F6 -> 22,353,500
A7: 01014276 | B7: 0101202 | C7: Consulta Médica de Especialidad en Geriatría | D7: =IFERROR(VLOOKUP($A7,Filtro!$A$5:$AY$2917,2,FALSE),0) -> 671 | E7: =IFERROR(VLOOKUP($A7,Filtro!$A$5:$AY$2917,3,FALSE),0) -> 671 | F7: =IFERROR(VLOOKUP($A7,Filtro!$A$5:$AY$2917,4,FALSE),0) -> 671 | G7: =IFERROR(VLOOKUP($A7,Filtro!$A$5:$AY$2917,5,FALSE),0) -> 0 | H7: =IFERROR(VLOOKUP($A7,Filtro!$A$5:$AY$2917,6,FALSE),0) -> 0 | I7: =IFERROR(VLOOKUP($A7,Filtro!$A$5:$AY$2917,7,FALSE),0) -> 0 | J7: =IFERROR(VLOOKUP($A7,Filtro!$A$5:$AY$2917,8,FALSE),0) -> 0 | K7: =IFERROR(VLOOKUP($A7,Filtro!$A$5:$AY$2917,9,FALSE),0) -> 0 | L7: =IFERROR(VLOOKUP($A7,Filtro!$A$5:$AY$2917,10,FALSE),0) -> 0 | M7: =IFERROR(VLOOKUP($A7,Filtro!$A$5:$AY$2917,11,FALSE),0) -> 0 | N7: =IFERROR(VLOOKUP($A7,Filtro!$A$5:$AY$2917,12,FALSE),0) -> 0 | O7: =IFERROR(VLOOKUP($A7,Filtro!$A$5:$AY$2917,13,FALSE),0) -> 0 | P7: =IFERROR(VLOOKUP($A7,Filtro!$A$5:$AY$2917,14,FALSE),0) -> 0 | Q7: =IFERROR(VLOOKUP($A7,Filtro!$A$5:$AY$2917,15,FALSE),0) -> 0 | R7: =IFERROR(VLOOKUP($A7,Filtro!$A$5:$AY$2917,16,FALSE),0) -> 0 | S7: =IFERROR(VLOOKUP($A7,Filtro!$A$5:$AY$2917,17,FALSE),0) -> 0 | T7: =IFERROR(VLOOKUP($A7,Filtro!$A$5:$AY$2917,18,FALSE),0) -> 0 | U7: =IFERROR(VLOOKUP($A7,Filtro!$A$5:$AY$2917,19,FALSE),0) -> 0 | V7: =IFERROR(VLOOKUP($A7,Filtro!$A$5:$AY$2917,20,FALSE),0) -> 0 | W7: =IFERROR(VLOOKUP($A7,Filtro!$A$5:$AY$2917,21,FALSE),0) -> 0 | X7: =IFERROR(VLOOKUP($A7,Filtro!$A$5:$AY$2917,22,FALSE),0) -> 0 | Y7: =IFERROR(VLOOKUP($A7,Filtro!$A$5:$AY$2917,23,FALSE),0) -> 0 | Z7: =IFERROR(VLOOKUP($A7,Filtro!$A$5:$AY$2917,24,FALSE),0) -> 0 | AA7: =IFERROR(VLOOKUP($A7,Filtro!$A$5:$AY$2917,25,FALSE),0) -> 0 | AB7: =IFERROR(VLOOKUP($A7,Filtro!$A$5:$AY$2917,26,FALSE),0) -> 0 | AC7: =IFERROR(VLOOKUP($A7,Filtro!$A$5:$AY$2917,27,FALSE),0) -> 671 | AD7: =IFERROR(VLOOKUP($A7,Filtro!$A$5:$AY$2917,28,FALSE),0) -> 0 | AE7: =IFERROR(VLOOKUP($A7,Filtro!$A$5:$AY$2917,29,FALSE),0) -> 0 | AF7: =IFERROR(VLOOKUP($A7,Filtro!$A$5:$AY$2917,30,FALSE),0) -> 0 | AG7: =IFERROR(VLOOKUP($A7,Filtro!$A$5:$AY$2917,31,FALSE),0) -> 0 | AH7: =IFERROR(VLOOKUP($A7,Filtro!$A$5:$AY$2917,32,FALSE),0) -> 0 | AI7: =IFERROR(VLOOKUP($A7,Filtro!$A$5:$AY$2917,33,FALSE),0) -> 0 | AJ7: =IFERROR(VLOOKUP($A7,Filtro!$A$5:$AY$2917,34,FALSE),0) -> 0 | AK7: =IFERROR(VLOOKUP($A7,Filtro!$A$5:$AY$2917,35,FALSE),0) -> 0 | AL7: 9,050 | AM7: =AL7*F7 -> 6,072,550
A8: 01014277 | B8: 0101203 | C8: Consulta Médica de Especialidad en Neurocirugía | D8: =IFERROR(VLOOKUP($A8,Filtro!$A$5:$AY$2917,2,FALSE),0) -> 3224 | E8: =IFERROR(VLOOKUP($A8,Filtro!$A$5:$AY$2917,3,FALSE),0) -> 3224 | F8: =IFERROR(VLOOKUP($A8,Filtro!$A$5:$AY$2917,4,FALSE),0) -> 3224 | G8: =IFERROR(VLOOKUP($A8,Filtro!$A$5:$AY$2917,5,FALSE),0) -> 0 | H8: =IFERROR(VLOOKUP($A8,Filtro!$A$5:$AY$2917,6,FALSE),0) -> 0 | I8: =IFERROR(VLOOKUP($A8,Filtro!$A$5:$AY$2917,7,FALSE),0) -> 0 | J8: =IFERROR(VLOOKUP($A8,Filtro!$A$5:$AY$2917,8,FALSE),0) -> 0 | K8: =IFERROR(VLOOKUP($A8,Filtro!$A$5:$AY$2917,9,FALSE),0) -> 0 | L8: =IFERROR(VLOOKUP($A8,Filtro!$A$5:$AY$2917,10,FALSE),0) -> 0 | M8: =IFERROR(VLOOKUP($A8,Filtro!$A$5:$AY$2917,11,FALSE),0) -> 0 | N8: =IFERROR(VLOOKUP($A8,Filtro!$A$5:$AY$2917,12,FALSE),0) -> 0 | O8: =IFERROR(VLOOKUP($A8,Filtro!$A$5:$AY$2917,13,FALSE),0) -> 0 | P8: =IFERROR(VLOOKUP($A8,Filtro!$A$5:$AY$2917,14,FALSE),0) -> 0 | Q8: =IFERROR(VLOOKUP($A8,Filtro!$A$5:$AY$2917,15,FALSE),0) -> 0 | R8: =IFERROR(VLOOKUP($A8,Filtro!$A$5:$AY$2917,16,FALSE),0) -> 0 | S8: =IFERROR(VLOOKUP($A8,Filtro!$A$5:$AY$2917,17,FALSE),0) -> 0 | T8: =IFERROR(VLOOKUP($A8,Filtro!$A$5:$AY$2917,18,FALSE),0) -> 0 | U8: =IFERROR(VLOOKUP($A8,Filtro!$A$5:$AY$2917,19,FALSE),0) -> 0 | V8: =IFERROR(VLOOKUP($A8,Filtro!$A$5:$AY$2917,20,FALSE),0) -> 0 | W8: =IFERROR(VLOOKUP($A8,Filtro!$A$5:$AY$2917,21,FALSE),0) -> 0 | X8: =IFERROR(VLOOKUP($A8,Filtro!$A$5:$AY$2917,22,FALSE),0) -> 0 | Y8: =IFERROR(VLOOKUP($A8,Filtro!$A$5:$AY$2917,23,FALSE),0) -> 0 | Z8: =IFERROR(VLOOKUP($A8,Filtro!$A$5:$AY$2917,24,FALSE),0) -> 0 | AA8: =IFERROR(VLOOKUP($A8,Filtro!$A$5:$AY$2917,25,FALSE),0) -> 0 | AB8: =IFERROR(VLOOKUP($A8,Filtro!$A$5:$AY$2917,26,FALSE),0) -> 0 | AC8: =IFERROR(VLOOKUP($A8,Filtro!$A$5:$AY$2917,27,FALSE),0) -> 3224 | AD8: =IFERROR(VLOOKUP($A8,Filtro!$A$5:$AY$2917,28,FALSE),0) -> 0 | AE8: =IFERROR(VLOOKUP($A8,Filtro!$A$5:$AY$2917,29,FALSE),0) -> 0 | AF8: =IFERROR(VLOOKUP($A8,Filtro!$A$5:$AY$2917,30,FALSE),0) -> 0 | AG8: =IFERROR(VLOOKUP($A8,Filtro!$A$5:$AY$2917,31,FALSE),0) -> 0 | AH8: =IFERROR(VLOOKUP($A8,Filtro!$A$5:$AY$2917,32,FALSE),0) -> 0 | AI8: =IFERROR(VLOOKUP($A8,Filtro!$A$5:$AY$2917,33,FALSE),0) -> 0 | AJ8: =IFERROR(VLOOKUP($A8,Filtro!$A$5:$AY$2917,34,FALSE),0) -> 0 | AK8: =IFERROR(VLOOKUP($A8,Filtro!$A$5:$AY$2917,35,FALSE),0) -> 0 | AL8: 9,050 | AM8: 29,177,200
A9: 01014278 | B9: 0101204 | C9: Consulta Médica de Especialidad en Oftalmología | D9: =IFERROR(VLOOKUP($A9,Filtro!$A$5:$AY$2917,2,FALSE),0) -> 11379 | E9: =IFERROR(VLOOKUP($A9,Filtro!$A$5:$AY$2917,3,FALSE),0) -> 11345 | F9: =IFERROR(VLOOKUP($A9,Filtro!$A$5:$AY$2917,4,FALSE),0) -> 11345 | G9: =IFERROR(VLOOKUP($A9,Filtro!$A$5:$AY$2917,5,FALSE),0) -> 0 | H9: =IFERROR(VLOOKUP($A9,Filtro!$A$5:$AY$2917,6,FALSE),0) -> 34 | I9: =IFERROR(VLOOKUP($A9,Filtro!$A$5:$AY$2917,7,FALSE),0) -> 0 | J9: =IFERROR(VLOOKUP($A9,Filtro!$A$5:$AY$2917,8,FALSE),0) -> 0 | K9: =IFERROR(VLOOKUP($A9,Filtro!$A$5:$AY$2917,9,FALSE),0) -> 0 | L9: =IFERROR(VLOOKUP($A9,Filtro!$A$5:$AY$2917,10,FALSE),0) -> 0 | M9: =IFERROR(VLOOKUP($A9,Filtro!$A$5:$AY$2917,11,FALSE),0) -> 0 | N9: =IFERROR(VLOOKUP($A9,Filtro!$A$5:$AY$2917,12,FALSE),0) -> 0 | O9: =IFERROR(VLOOKUP($A9,Filtro!$A$5:$AY$2917,13,FALSE),0) -> 0 | P9: =IFERROR(VLOOKUP($A9,Filtro!$A$5:$AY$2917,14,FALSE),0) -> 0 | Q9: =IFERROR(VLOOKUP($A9,Filtro!$A$5:$AY$2917,15,FALSE),0) -> 0 | R9: =IFERROR(VLOOKUP($A9,Filtro!$A$5:$AY$2917,16,FALSE),0) -> 0 | S9: =IFERROR(VLOOKUP($A9,Filtro!$A$5:$AY$2917,17,FALSE),0) -> 0 | T9: =IFERROR(VLOOKUP($A9,Filtro!$A$5:$AY$2917,18,FALSE),0) -> 0 | U9: =IFERROR(VLOOKUP($A9,Filtro!$A$5:$AY$2917,19,FALSE),0) -> 0 | V9: =IFERROR(VLOOKUP($A9,Filtro!$A$5:$AY$2917,20,FALSE),0) -> 0 | W9: =IFERROR(VLOOKUP($A9,Filtro!$A$5:$AY$2917,21,FALSE),0) -> 0 | X9: =IFERROR(VLOOKUP($A9,Filtro!$A$5:$AY$2917,22,FALSE),0) -> 0 | Y9: =IFERROR(VLOOKUP($A9,Filtro!$A$5:$AY$2917,23,FALSE),0) -> 0 | Z9: =IFERROR(VLOOKUP($A9,Filtro!$A$5:$AY$2917,24,FALSE),0) -> 0 | AA9: =IFERROR(VLOOKUP($A9,Filtro!$A$5:$AY$2917,25,FALSE),0) -> 0 | AB9: =IFERROR(VLOOKUP($A9,Filtro!$A$5:$AY$2917,26,FALSE),0) -> 0 | AC9: =IFERROR(VLOOKUP($A9,Filtro!$A$5:$AY$2917,27,FALSE),0) -> 11379 | AD9: =IFERROR(VLOOKUP($A9,Filtro!$A$5:$AY$2917,28,FALSE),0) -> 0 | AE9: =IFERROR(VLOOKUP($A9,Filtro!$A$5:$AY$2917,29,FALSE),0) -> 193 | AF9: =IFERROR(VLOOKUP($A9,Filtro!$A$5:$AY$2917,30,FALSE),0) -> 0 | AG9: =IFERROR(VLOOKUP($A9,Filtro!$A$5:$AY$2917,31,FALSE),0) -> 0 | AH9: =IFERROR(VLOOKUP($A9,Filtro!$A$5:$AY$2917,32,FALSE),0) -> 0 | AI9: =IFERROR(VLOOKUP($A9,Filtro!$A$5:$AY$2917,33,FALSE),0) -> 0 | AJ9: =IFERROR(VLOOKUP($A9,Filtro!$A$5:$AY$2917,34,FALSE),0) -> 0 | AK9: =IFERROR(VLOOKUP($A9,Filtro!$A$5:$AY$2917,35,FALSE),0) -> 0 | AL9: 9,050 | AM9: 102,672,250
A10: 01014279 | B10: 0101205 | C10: Consulta Médica de Especialidad en Otorrinolaringología | D10: =IFERROR(VLOOKUP($A10,Filtro!$A$5:$AY$2917,2,FALSE),0) -> 10266 | E10: =IFERROR(VLOOKUP($A10,Filtro!$A$5:$AY$2917,3,FALSE),0) -> 10252 | F10: =IFERROR(VLOOKUP($A10,Filtro!$A$5:$AY$2917,4,FALSE),0) -> 10252 | G10: =IFERROR(VLOOKUP($A10,Filtro!$A$5:$AY$2917,5,FALSE),0) -> 0 | H10: =IFERROR(VLOOKUP($A10,Filtro!$A$5:$AY$2917,6,FALSE),0) -> 14 | I10: =IFERROR(VLOOKUP($A10,Filtro!$A$5:$AY$2917,7,FALSE),0) -> 0 | J10: =IFERROR(VLOOKUP($A10,Filtro!$A$5:$AY$2917,8,FALSE),0) -> 0 | K10: =IFERROR(VLOOKUP($A10,Filtro!$A$5:$AY$2917,9,FALSE),0) -> 0 | L10: =IFERROR(VLOOKUP($A10,Filtro!$A$5:$AY$2917,10,FALSE),0) -> 0 | M10: =IFERROR(VLOOKUP($A10,Filtro!$A$5:$AY$2917,11,FALSE),0) -> 0 | N10: =IFERROR(VLOOKUP($A10,Filtro!$A$5:$AY$2917,12,FALSE),0) -> 0 | O10: =IFERROR(VLOOKUP($A10,Filtro!$A$5:$AY$2917,13,FALSE),0) -> 0 | P10: =IFERROR(VLOOKUP($A10,Filtro!$A$5:$AY$2917,14,FALSE),0) -> 0 | Q10: =IFERROR(VLOOKUP($A10,Filtro!$A$5:$AY$2917,15,FALSE),0) -> 0 | R10: =IFERROR(VLOOKUP($A10,Filtro!$A$5:$AY$2917,16,FALSE),0) -> 0 | S10: =IFERROR(VLOOKUP($A10,Filtro!$A$5:$AY$2917,17,FALSE),0) -> 0 | T10: =IFERROR(VLOOKUP($A10,Filtro!$A$5:$AY$2917,18,FALSE),0) -> 0 | U10: =IFERROR(VLOOKUP($A10,Filtro!$A$5:$AY$2917,19,FALSE),0) -> 0 | V10: =IFERROR(VLOOKUP($A10,Filtro!$A$5:$AY$2917,20,FALSE),0) -> 0 | W10: =IFERROR(VLOOKUP($A10,Filtro!$A$5:$AY$2917,21,FALSE),0) -> 0 | X10: =IFERROR(VLOOKUP($A10,Filtro!$A$5:$AY$2917,22,FALSE),0) -> 0 | Y10: =IFERROR(VLOOKUP($A10,Filtro!$A$5:$AY$2917,23,FALSE),0) -> 0 | Z10: =IFERROR(VLOOKUP($A10,Filtro!$A$5:$AY$2917,24,FALSE),0) -> 0 | AA10: =IFERROR(VLOOKUP($A10,Filtro!$A$5:$AY$2917,25,FALSE),0) -> 0 | AB10: =IFERROR(VLOOKUP($A10,Filtro!$A$5:$AY$2917,26,FALSE),0) -> 0 | AC10: =IFERROR(VLOOKUP($A10,Filtro!$A$5:$AY$2917,27,FALSE),0) -> 10266 | AD10: =IFERROR(VLOOKUP($A10,Filtro!$A$5:$AY$2917,28,FALSE),0) -> 0 | AE10: =IFERROR(VLOOKUP($A10,Filtro!$A$5:$AY$2917,29,FALSE),0) -> 1289 | AF10: =IFERROR(VLOOKUP($A10,Filtro!$A$5:$AY$2917,30,FALSE),0) -> 0 | AG10: =IFERROR(VLOOKUP($A10,Filtro!$A$5:$AY$2917,31,FALSE),0) -> 0 | AH10: =IFERROR(VLOOKUP($A10,Filtro!$A$5:$AY$2917,32,FALSE),0) -> 0 | AI10: =IFERROR(VLOOKUP($A10,Filtro!$A$5:$AY$2917,33,FALSE),0) -> 0 | AJ10: =IFERROR(VLOOKUP($A10,Filtro!$A$5:$AY$2917,34,FALSE),0) -> 0 | AK10: =IFERROR(VLOOKUP($A10,Filtro!$A$5:$AY$2917,35,FALSE),0) -> 0 | AL10: 9,050 | AM10: 92,780,600
A11: 01014280 | B11: 0101206 | C11: Consulta Médica de Especialidad en Reumatología | D11: =IFERROR(VLOOKUP($A11,Filtro!$A$5:$AY$2917,2,FALSE),0) -> 2504 | E11: =IFERROR(VLOOKUP($A11,Filtro!$A$5:$AY$2917,3,FALSE),0) -> 2503 | F11: =IFERROR(VLOOKUP($A11,Filtro!$A$5:$AY$2917,4,FALSE),0) -> 2503 | G11: =IFERROR(VLOOKUP($A11,Filtro!$A$5:$AY$2917,5,FALSE),0) -> 0 | H11: =IFERROR(VLOOKUP($A11,Filtro!$A$5:$AY$2917,6,FALSE),0) -> 1 | I11: =IFERROR(VLOOKUP($A11,Filtro!$A$5:$AY$2917,7,FALSE),0) -> 0 | J11: =IFERROR(VLOOKUP($A11,Filtro!$A$5:$AY$2917,8,FALSE),0) -> 0 | K11: =IFERROR(VLOOKUP($A11,Filtro!$A$5:$AY$2917,9,FALSE),0) -> 0 | L11: =IFERROR(VLOOKUP($A11,Filtro!$A$5:$AY$2917,10,FALSE),0) -> 0 | M11: =IFERROR(VLOOKUP($A11,Filtro!$A$5:$AY$2917,11,FALSE),0) -> 0 | N11: =IFERROR(VLOOKUP($A11,Filtro!$A$5:$AY$2917,12,FALSE),0) -> 0 | O11: =IFERROR(VLOOKUP($A11,Filtro!$A$5:$AY$2917,13,FALSE),0) -> 0 | P11: =IFERROR(VLOOKUP($A11,Filtro!$A$5:$AY$2917,14,FALSE),0) -> 0 | Q11: =IFERROR(VLOOKUP($A11,Filtro!$A$5:$AY$2917,15,FALSE),0) -> 0 | R11: =IFERROR(VLOOKUP($A11,Filtro!$A$5:$AY$2917,16,FALSE),0) -> 0 | S11: =IFERROR(VLOOKUP($A11,Filtro!$A$5:$AY$2917,17,FALSE),0) -> 0 | T11: =IFERROR(VLOOKUP($A11,Filtro!$A$5:$AY$2917,18,FALSE),0) -> 0 | U11: =IFERROR(VLOOKUP($A11,Filtro!$A$5:$AY$2917,19,FALSE),0) -> 0 | V11: =IFERROR(VLOOKUP($A11,Filtro!$A$5:$AY$2917,20,FALSE),0) -> 0 | W11: =IFERROR(VLOOKUP($A11,Filtro!$A$5:$AY$2917,21,FALSE),0) -> 0 | X11: =IFERROR(VLOOKUP($A11,Filtro!$A$5:$AY$2917,22,FALSE),0) -> 0 | Y11: =IFERROR(VLOOKUP($A11,Filtro!$A$5:$AY$2917,23,FALSE),0) -> 0 | Z11: =IFERROR(VLOOKUP($A11,Filtro!$A$5:$AY$2917,24,FALSE),0) -> 0 | AA11: =IFERROR(VLOOKUP($A11,Filtro!$A$5:$AY$2917,25,FALSE),0) -> 0 | AB11: =IFERROR(VLOOKUP($A11,Filtro!$A$5:$AY$2917,26,FALSE),0) -> 0 | AC11: =IFERROR(VLOOKUP($A11,Filtro!$A$5:$AY$2917,27,FALSE),0) -> 2504 | AD11: =IFERROR(VLOOKUP($A11,Filtro!$A$5:$AY$2917,28,FALSE),0) -> 0 | AE11: =IFERROR(VLOOKUP($A11,Filtro!$A$5:$AY$2917,29,FALSE),0) -> 0 | AF11: =IFERROR(VLOOKUP($A11,Filtro!$A$5:$AY$2917,30,FALSE),0) -> 0 | AG11: =IFERROR(VLOOKUP($A11,Filtro!$A$5:$AY$2917,31,FALSE),0) -> 0 | AH11: =IFERROR(VLOOKUP($A11,Filtro!$A$5:$AY$2917,32,FALSE),0) -> 0 | AI11: =IFERROR(VLOOKUP($A11,Filtro!$A$5:$AY$2917,33,FALSE),0) -> 0 | AJ11: =IFERROR(VLOOKUP($A11,Filtro!$A$5:$AY$2917,34,FALSE),0) -> 0 | AK11: =IFERROR(VLOOKUP($A11,Filtro!$A$5:$AY$2917,35,FALSE),0) -> 0 | AL11: 9,050 | AM11: 22,652,150
A12: 01014281 | B12: 0101207 | C12: Consulta Médica de Especialidad en Endocrinología Adulto | D12: =IFERROR(VLOOKUP($A12,Filtro!$A$5:$AY$2917,2,FALSE),0) -> 2757 | E12: =IFERROR(VLOOKUP($A12,Filtro!$A$5:$AY$2917,3,FALSE),0) -> 2757 | F12: =IFERROR(VLOOKUP($A12,Filtro!$A$5:$AY$2917,4,FALSE),0) -> 2754 | G12: =IFERROR(VLOOKUP($A12,Filtro!$A$5:$AY$2917,5,FALSE),0) -> 3 | H12: =IFERROR(VLOOKUP($A12,Filtro!$A$5:$AY$2917,6,FALSE),0) -> 0 | I12: =IFERROR(VLOOKUP($A12,Filtro!$A$5:$AY$2917,7,FALSE),0) -> 0 | J12: =IFERROR(VLOOKUP($A12,Filtro!$A$5:$AY$2917,8,FALSE),0) -> 0 | K12: =IFERROR(VLOOKUP($A12,Filtro!$A$5:$AY$2917,9,FALSE),0) -> 0 | L12: =IFERROR(VLOOKUP($A12,Filtro!$A$5:$AY$2917,10,FALSE),0) -> 0 | M12: =IFERROR(VLOOKUP($A12,Filtro!$A$5:$AY$2917,11,FALSE),0) -> 0 | N12: =IFERROR(VLOOKUP($A12,Filtro!$A$5:$AY$2917,12,FALSE),0) -> 0 | O12: =IFERROR(VLOOKUP($A12,Filtro!$A$5:$AY$2917,13,FALSE),0) -> 0 | P12: =IFERROR(VLOOKUP($A12,Filtro!$A$5:$AY$2917,14,FALSE),0) -> 0 | Q12: =IFERROR(VLOOKUP($A12,Filtro!$A$5:$AY$2917,15,FALSE),0) -> 0 | R12: =IFERROR(VLOOKUP($A12,Filtro!$A$5:$AY$2917,16,FALSE),0) -> 0 | S12: =IFERROR(VLOOKUP($A12,Filtro!$A$5:$AY$2917,17,FALSE),0) -> 0 | T12: =IFERROR(VLOOKUP($A12,Filtro!$A$5:$AY$2917,18,FALSE),0) -> 0 | U12: =IFERROR(VLOOKUP($A12,Filtro!$A$5:$AY$2917,19,FALSE),0) -> 0 | V12: =IFERROR(VLOOKUP($A12,Filtro!$A$5:$AY$2917,20,FALSE),0) -> 0 | W12: =IFERROR(VLOOKUP($A12,Filtro!$A$5:$AY$2917,21,FALSE),0) -> 0 | X12: =IFERROR(VLOOKUP($A12,Filtro!$A$5:$AY$2917,22,FALSE),0) -> 0 | Y12: =IFERROR(VLOOKUP($A12,Filtro!$A$5:$AY$2917,23,FALSE),0) -> 0 | Z12: =IFERROR(VLOOKUP($A12,Filtro!$A$5:$AY$2917,24,FALSE),0) -> 0 | AA12: =IFERROR(VLOOKUP($A12,Filtro!$A$5:$AY$2917,25,FALSE),0) -> 0 | AB12: =IFERROR(VLOOKUP($A12,Filtro!$A$5:$AY$2917,26,FALSE),0) -> 0 | AC12: =IFERROR(VLOOKUP($A12,Filtro!$A$5:$AY$2917,27,FALSE),0) -> 2757 | AD12: =IFERROR(VLOOKUP($A12,Filtro!$A$5:$AY$2917,28,FALSE),0) -> 0 | AE12: =IFERROR(VLOOKUP($A12,Filtro!$A$5:$AY$2917,29,FALSE),0) -> 0 | AF12: =IFERROR(VLOOKUP($A12,Filtro!$A$5:$AY$2917,30,FALSE),0) -> 0 | AG12: =IFERROR(VLOOKUP($A12,Filtro!$A$5:$AY$2917,31,FALSE),0) -> 0 | AH12: =IFERROR(VLOOKUP($A12,Filtro!$A$5:$AY$2917,32,FALSE),0) -> 0 | AI12: =IFERROR(VLOOKUP($A12,Filtro!$A$5:$AY$2917,33,FALSE),0) -> 0 | AJ12: =IFERROR(VLOOKUP($A12,Filtro!$A$5:$AY$2917,34,FALSE),0) -> 0 | AK12: =IFERROR(VLOOKUP($A12,Filtro!$A$5:$AY$2917,35,FALSE),0) -> 0 | AL12: 9,050 | AM12: 24,923,700
A13: 01014282 | B13: 0101208 | C13: Consulta Médica de Especialidad en Endocrinología Pediátrica | D13: =IFERROR(VLOOKUP($A13,Filtro!$A$5:$AY$2917,2,FALSE),0) -> 2411 | E13: =IFERROR(VLOOKUP($A13,Filtro!$A$5:$AY$2917,3,FALSE),0) -> 2411 | F13: =IFERROR(VLOOKUP($A13,Filtro!$A$5:$AY$2917,4,FALSE),0) -> 2411 | G13: =IFERROR(VLOOKUP($A13,Filtro!$A$5:$AY$2917,5,FALSE),0) -> 0 | H13: =IFERROR(VLOOKUP($A13,Filtro!$A$5:$AY$2917,6,FALSE),0) -> 0 | I13: =IFERROR(VLOOKUP($A13,Filtro!$A$5:$AY$2917,7,FALSE),0) -> 0 | J13: =IFERROR(VLOOKUP($A13,Filtro!$A$5:$AY$2917,8,FALSE),0) -> 0 | K13: =IFERROR(VLOOKUP($A13,Filtro!$A$5:$AY$2917,9,FALSE),0) -> 0 | L13: =IFERROR(VLOOKUP($A13,Filtro!$A$5:$AY$2917,10,FALSE),0) -> 0 | M13: =IFERROR(VLOOKUP($A13,Filtro!$A$5:$AY$2917,11,FALSE),0) -> 0 | N13: =IFERROR(VLOOKUP($A13,Filtro!$A$5:$AY$2917,12,FALSE),0) -> 0 | O13: =IFERROR(VLOOKUP($A13,Filtro!$A$5:$AY$2917,13,FALSE),0) -> 0 | P13: =IFERROR(VLOOKUP($A13,Filtro!$A$5:$AY$2917,14,FALSE),0) -> 0 | Q13: =IFERROR(VLOOKUP($A13,Filtro!$A$5:$AY$2917,15,FALSE),0) -> 0 | R13: =IFERROR(VLOOKUP($A13,Filtro!$A$5:$AY$2917,16,FALSE),0) -> 0 | S13: =IFERROR(VLOOKUP($A13,Filtro!$A$5:$AY$2917,17,FALSE),0) -> 0 | T13: =IFERROR(VLOOKUP($A13,Filtro!$A$5:$AY$2917,18,FALSE),0) -> 0 | U13: =IFERROR(VLOOKUP($A13,Filtro!$A$5:$AY$2917,19,FALSE),0) -> 0 | V13: =IFERROR(VLOOKUP($A13,Filtro!$A$5:$AY$2917,20,FALSE),0) -> 0 | W13: =IFERROR(VLOOKUP($A13,Filtro!$A$5:$AY$2917,21,FALSE),0) -> 0 | X13: =IFERROR(VLOOKUP($A13,Filtro!$A$5:$AY$2917,22,FALSE),0) -> 0 | Y13: =IFERROR(VLOOKUP($A13,Filtro!$A$5:$AY$2917,23,FALSE),0) -> 0 | Z13: =IFERROR(VLOOKUP($A13,Filtro!$A$5:$AY$2917,24,FALSE),0) -> 0 | AA13: =IFERROR(VLOOKUP($A13,Filtro!$A$5:$AY$2917,25,FALSE),0) -> 0 | AB13: =IFERROR(VLOOKUP($A13,Filtro!$A$5:$AY$2917,26,FALSE),0) -> 0 | AC13: =IFERROR(VLOOKUP($A13,Filtro!$A$5:$AY$2917,27,FALSE),0) -> 2411 | AD13: =IFERROR(VLOOKUP($A13,Filtro!$A$5:$AY$2917,28,FALSE),0) -> 0 | AE13: =IFERROR(VLOOKUP($A13,Filtro!$A$5:$AY$2917,29,FALSE),0) -> 0 | AF13: =IFERROR(VLOOKUP($A13,Filtro!$A$5:$AY$2917,30,FALSE),0) -> 0 | AG13: =IFERROR(VLOOKUP($A13,Filtro!$A$5:$AY$2917,31,FALSE),0) -> 0 | AH13: =IFERROR(VLOOKUP($A13,Filtro!$A$5:$AY$2917,32,FALSE),0) -> 0 | AI13: =IFERROR(VLOOKUP($A13,Filtro!$A$5:$AY$2917,33,FALSE),0) -> 0 | AJ13: =IFERROR(VLOOKUP($A13,Filtro!$A$5:$AY$2917,34,FALSE),0) -> 0 | AK13: =IFERROR(VLOOKUP($A13,Filtro!$A$5:$AY$2917,35,FALSE),0) -> 0 | AL13: 9,050 | AM13: 21,819,550
A14: 01014283 | B14: 0101209 | C14: Consulta Médica de Especialidad en Neurología Adultos | D14: =IFERROR(VLOOKUP($A14,Filtro!$A$5:$AY$2917,2,FALSE),0) -> 5237 | E14: =IFERROR(VLOOKUP($A14,Filtro!$A$5:$AY$2917,3,FALSE),0) -> 5234 | F14: =IFERROR(VLOOKUP($A14,Filtro!$A$5:$AY$2917,4,FALSE),0) -> 5234 | G14: =IFERROR(VLOOKUP($A14,Filtro!$A$5:$AY$2917,5,FALSE),0) -> 0 | H14: =IFERROR(VLOOKUP($A14,Filtro!$A$5:$AY$2917,6,FALSE),0) -> 3 | I14: =IFERROR(VLOOKUP($A14,Filtro!$A$5:$AY$2917,7,FALSE),0) -> 0 | J14: =IFERROR(VLOOKUP($A14,Filtro!$A$5:$AY$2917,8,FALSE),0) -> 0 | K14: =IFERROR(VLOOKUP($A14,Filtro!$A$5:$AY$2917,9,FALSE),0) -> 0 | L14: =IFERROR(VLOOKUP($A14,Filtro!$A$5:$AY$2917,10,FALSE),0) -> 0 | M14: =IFERROR(VLOOKUP($A14,Filtro!$A$5:$AY$2917,11,FALSE),0) -> 0 | N14: =IFERROR(VLOOKUP($A14,Filtro!$A$5:$AY$2917,12,FALSE),0) -> 0 | O14: =IFERROR(VLOOKUP($A14,Filtro!$A$5:$AY$2917,13,FALSE),0) -> 0 | P14: =IFERROR(VLOOKUP($A14,Filtro!$A$5:$AY$2917,14,FALSE),0) -> 0 | Q14: =IFERROR(VLOOKUP($A14,Filtro!$A$5:$AY$2917,15,FALSE),0) -> 0 | R14: =IFERROR(VLOOKUP($A14,Filtro!$A$5:$AY$2917,16,FALSE),0) -> 0 | S14: =IFERROR(VLOOKUP($A14,Filtro!$A$5:$AY$2917,17,FALSE),0) -> 0 | T14: =IFERROR(VLOOKUP($A14,Filtro!$A$5:$AY$2917,18,FALSE),0) -> 0 | U14: =IFERROR(VLOOKUP($A14,Filtro!$A$5:$AY$2917,19,FALSE),0) -> 0 | V14: =IFERROR(VLOOKUP($A14,Filtro!$A$5:$AY$2917,20,FALSE),0) -> 0 | W14: =IFERROR(VLOOKUP($A14,Filtro!$A$5:$AY$2917,21,FALSE),0) -> 0 | X14: =IFERROR(VLOOKUP($A14,Filtro!$A$5:$AY$2917,22,FALSE),0) -> 0 | Y14: =IFERROR(VLOOKUP($A14,Filtro!$A$5:$AY$2917,23,FALSE),0) -> 0 | Z14: =IFERROR(VLOOKUP($A14,Filtro!$A$5:$AY$2917,24,FALSE),0) -> 0 | AA14: =IFERROR(VLOOKUP($A14,Filtro!$A$5:$AY$2917,25,FALSE),0) -> 0 | AB14: =IFERROR(VLOOKUP($A14,Filtro!$A$5:$AY$2917,26,FALSE),0) -> 0 | AC14: =IFERROR(VLOOKUP($A14,Filtro!$A$5:$AY$2917,27,FALSE),0) -> 5237 | AD14: =IFERROR(VLOOKUP($A14,Filtro!$A$5:$AY$2917,28,FALSE),0) -> 0 | AE14: =IFERROR(VLOOKUP($A14,Filtro!$A$5:$AY$2917,29,FALSE),0) -> 226 | AF14: =IFERROR(VLOOKUP($A14,Filtro!$A$5:$AY$2917,30,FALSE),0) -> 0 | AG14: =IFERROR(VLOOKUP($A14,Filtro!$A$5:$AY$2917,31,FALSE),0) -> 0 | AH14: =IFERROR(VLOOKUP($A14,Filtro!$A$5:$AY$2917,32,FALSE),0) -> 0 | AI14: =IFERROR(VLOOKUP($A14,Filtro!$A$5:$AY$2917,33,FALSE),0) -> 0 | AJ14: =IFERROR(VLOOKUP($A14,Filtro!$A$5:$AY$2917,34,FALSE),0) -> 0 | AK14: =IFERROR(VLOOKUP($A14,Filtro!$A$5:$AY$2917,35,FALSE),0) -> 0 | AL14: 9,050 | AM14: 47,367,700
A15: 01014284 | B15: 0101210 | C15: Consulta Médica de Especialidad en Neurología Pediátrica | D15: =IFERROR(VLOOKUP($A15,Filtro!$A$5:$AY$2917,2,FALSE),0) -> 3716 | E15: =IFERROR(VLOOKUP($A15,Filtro!$A$5:$AY$2917,3,FALSE),0) -> 3712 | F15: =IFERROR(VLOOKUP($A15,Filtro!$A$5:$AY$2917,4,FALSE),0) -> 3712 | G15: =IFERROR(VLOOKUP($A15,Filtro!$A$5:$AY$2917,5,FALSE),0) -> 0 | H15: =IFERROR(VLOOKUP($A15,Filtro!$A$5:$AY$2917,6,FALSE),0) -> 4 | I15: =IFERROR(VLOOKUP($A15,Filtro!$A$5:$AY$2917,7,FALSE),0) -> 0 | J15: =IFERROR(VLOOKUP($A15,Filtro!$A$5:$AY$2917,8,FALSE),0) -> 0 | K15: =IFERROR(VLOOKUP($A15,Filtro!$A$5:$AY$2917,9,FALSE),0) -> 0 | L15: =IFERROR(VLOOKUP($A15,Filtro!$A$5:$AY$2917,10,FALSE),0) -> 0 | M15: =IFERROR(VLOOKUP($A15,Filtro!$A$5:$AY$2917,11,FALSE),0) -> 0 | N15: =IFERROR(VLOOKUP($A15,Filtro!$A$5:$AY$2917,12,FALSE),0) -> 0 | O15: =IFERROR(VLOOKUP($A15,Filtro!$A$5:$AY$2917,13,FALSE),0) -> 0 | P15: =IFERROR(VLOOKUP($A15,Filtro!$A$5:$AY$2917,14,FALSE),0) -> 0 | Q15: =IFERROR(VLOOKUP($A15,Filtro!$A$5:$AY$2917,15,FALSE),0) -> 0 | R15: =IFERROR(VLOOKUP($A15,Filtro!$A$5:$AY$2917,16,FALSE),0) -> 0 | S15: =IFERROR(VLOOKUP($A15,Filtro!$A$5:$AY$2917,17,FALSE),0) -> 0 | T15: =IFERROR(VLOOKUP($A15,Filtro!$A$5:$AY$2917,18,FALSE),0) -> 0 | U15: =IFERROR(VLOOKUP($A15,Filtro!$A$5:$AY$2917,19,FALSE),0) -> 0 | V15: =IFERROR(VLOOKUP($A15,Filtro!$A$5:$AY$2917,20,FALSE),0) -> 0 | W15: =IFERROR(VLOOKUP($A15,Filtro!$A$5:$AY$2917,21,FALSE),0) -> 0 | X15: =IFERROR(VLOOKUP($A15,Filtro!$A$5:$AY$2917,22,FALSE),0) -> 0 | Y15: =IFERROR(VLOOKUP($A15,Filtro!$A$5:$AY$2917,23,FALSE),0) -> 0 | Z15: =IFERROR(VLOOKUP($A15,Filtro!$A$5:$AY$2917,24,FALSE),0) -> 0 | AA15: =IFERROR(VLOOKUP($A15,Filtro!$A$5:$AY$2917,25,FALSE),0) -> 0 | AB15: =IFERROR(VLOOKUP($A15,Filtro!$A$5:$AY$2917,26,FALSE),0) -> 0 | AC15: =IFERROR(VLOOKUP($A15,Filtro!$A$5:$AY$2917,27,FALSE),0) -> 3716 | AD15: =IFERROR(VLOOKUP($A15,Filtro!$A$5:$AY$2917,28,FALSE),0) -> 0 | AE15: =IFERROR(VLOOKUP($A15,Filtro!$A$5:$AY$2917,29,FALSE),0) -> 0 | AF15: =IFERROR(VLOOKUP($A15,Filtro!$A$5:$AY$2917,30,FALSE),0) -> 0 | AG15: =IFERROR(VLOOKUP($A15,Filtro!$A$5:$AY$2917,31,FALSE),0) -> 0 | AH15: =IFERROR(VLOOKUP($A15,Filtro!$A$5:$AY$2917,32,FALSE),0) -> 0 | AI15: =IFERROR(VLOOKUP($A15,Filtro!$A$5:$AY$2917,33,FALSE),0) -> 0 | AJ15: =IFERROR(VLOOKUP($A15,Filtro!$A$5:$AY$2917,34,FALSE),0) -> 0 | AK15: =IFERROR(VLOOKUP($A15,Filtro!$A$5:$AY$2917,35,FALSE),0) -> 0 | AL15: 9,050 | AM15: 33,593,600
A16: 01014285 | B16: 0101211 | C16: Consulta Médica de Especialidad en Oncología Médica | D16: =IFERROR(VLOOKUP($A16,Filtro!$A$5:$AY$2917,2,FALSE),0) -> 4761 | E16: =IFERROR(VLOOKUP($A16,Filtro!$A$5:$AY$2917,3,FALSE),0) -> 4758 | F16: =IFERROR(VLOOKUP($A16,Filtro!$A$5:$AY$2917,4,FALSE),0) -> 4758 | G16: =IFERROR(VLOOKUP($A16,Filtro!$A$5:$AY$2917,5,FALSE),0) -> 0 | H16: =IFERROR(VLOOKUP($A16,Filtro!$A$5:$AY$2917,6,FALSE),0) -> 3 | I16: =IFERROR(VLOOKUP($A16,Filtro!$A$5:$AY$2917,7,FALSE),0) -> 0 | J16: =IFERROR(VLOOKUP($A16,Filtro!$A$5:$AY$2917,8,FALSE),0) -> 0 | K16: =IFERROR(VLOOKUP($A16,Filtro!$A$5:$AY$2917,9,FALSE),0) -> 0 | L16: =IFERROR(VLOOKUP($A16,Filtro!$A$5:$AY$2917,10,FALSE),0) -> 0 | M16: =IFERROR(VLOOKUP($A16,Filtro!$A$5:$AY$2917,11,FALSE),0) -> 0 | N16: =IFERROR(VLOOKUP($A16,Filtro!$A$5:$AY$2917,12,FALSE),0) -> 0 | O16: =IFERROR(VLOOKUP($A16,Filtro!$A$5:$AY$2917,13,FALSE),0) -> 0 | P16: =IFERROR(VLOOKUP($A16,Filtro!$A$5:$AY$2917,14,FALSE),0) -> 0 | Q16: =IFERROR(VLOOKUP($A16,Filtro!$A$5:$AY$2917,15,FALSE),0) -> 0 | R16: =IFERROR(VLOOKUP($A16,Filtro!$A$5:$AY$2917,16,FALSE),0) -> 0 | S16: =IFERROR(VLOOKUP($A16,Filtro!$A$5:$AY$2917,17,FALSE),0) -> 0 | T16: =IFERROR(VLOOKUP($A16,Filtro!$A$5:$AY$2917,18,FALSE),0) -> 0 | U16: =IFERROR(VLOOKUP($A16,Filtro!$A$5:$AY$2917,19,FALSE),0) -> 0 | V16: =IFERROR(VLOOKUP($A16,Filtro!$A$5:$AY$2917,20,FALSE),0) -> 0 | W16: =IFERROR(VLOOKUP($A16,Filtro!$A$5:$AY$2917,21,FALSE),0) -> 0 | X16: =IFERROR(VLOOKUP($A16,Filtro!$A$5:$AY$2917,22,FALSE),0) -> 0 | Y16: =IFERROR(VLOOKUP($A16,Filtro!$A$5:$AY$2917,23,FALSE),0) -> 0 | Z16: =IFERROR(VLOOKUP($A16,Filtro!$A$5:$AY$2917,24,FALSE),0) -> 0 | AA16: =IFERROR(VLOOKUP($A16,Filtro!$A$5:$AY$2917,25,FALSE),0) -> 0 | AB16: =IFERROR(VLOOKUP($A16,Filtro!$A$5:$AY$2917,26,FALSE),0) -> 0 | AC16: =IFERROR(VLOOKUP($A16,Filtro!$A$5:$AY$2917,27,FALSE),0) -> 4761 | AD16: =IFERROR(VLOOKUP($A16,Filtro!$A$5:$AY$2917,28,FALSE),0) -> 0 | AE16: =IFERROR(VLOOKUP($A16,Filtro!$A$5:$AY$2917,29,FALSE),0) -> 0 | AF16: =IFERROR(VLOOKUP($A16,Filtro!$A$5:$AY$2917,30,FALSE),0) -> 0 | AG16: =IFERROR(VLOOKUP($A16,Filtro!$A$5:$AY$2917,31,FALSE),0) -> 0 | AH16: =IFERROR(VLOOKUP($A16,Filtro!$A$5:$AY$2917,32,FALSE),0) -> 0 | AI16: =IFERROR(VLOOKUP($A16,Filtro!$A$5:$AY$2917,33,FALSE),0) -> 0 | AJ16: =IFERROR(VLOOKUP($A16,Filtro!$A$5:$AY$2917,34,FALSE),0) -> 0 | AK16: =IFERROR(VLOOKUP($A16,Filtro!$A$5:$AY$2917,35,FALSE),0) -> 0 | AL16: 9,050 | AM16: 43,059,900
A17: 01014286 | B17: 0101212 | C17: Consulta Médica de Especialidad en Psiquiatría adultos | D17: =IFERROR(VLOOKUP($A17,Filtro!$A$5:$AY$2917,2,FALSE),0) -> 9084 | E17: =IFERROR(VLOOKUP($A17,Filtro!$A$5:$AY$2917,3,FALSE),0) -> 9052 | F17: =IFERROR(VLOOKUP($A17,Filtro!$A$5:$AY$2917,4,FALSE),0) -> 9052 | G17: =IFERROR(VLOOKUP($A17,Filtro!$A$5:$AY$2917,5,FALSE),0) -> 0 | H17: =IFERROR(VLOOKUP($A17,Filtro!$A$5:$AY$2917,6,FALSE),0) -> 32 | I17: =IFERROR(VLOOKUP($A17,Filtro!$A$5:$AY$2917,7,FALSE),0) -> 0 | J17: =IFERROR(VLOOKUP($A17,Filtro!$A$5:$AY$2917,8,FALSE),0) -> 0 | K17: =IFERROR(VLOOKUP($A17,Filtro!$A$5:$AY$2917,9,FALSE),0) -> 0 | L17: =IFERROR(VLOOKUP($A17,Filtro!$A$5:$AY$2917,10,FALSE),0) -> 0 | M17: =IFERROR(VLOOKUP($A17,Filtro!$A$5:$AY$2917,11,FALSE),0) -> 0 | N17: =IFERROR(VLOOKUP($A17,Filtro!$A$5:$AY$2917,12,FALSE),0) -> 0 | O17: =IFERROR(VLOOKUP($A17,Filtro!$A$5:$AY$2917,13,FALSE),0) -> 0 | P17: =IFERROR(VLOOKUP($A17,Filtro!$A$5:$AY$2917,14,FALSE),0) -> 0 | Q17: =IFERROR(VLOOKUP($A17,Filtro!$A$5:$AY$2917,15,FALSE),0) -> 0 | R17: =IFERROR(VLOOKUP($A17,Filtro!$A$5:$AY$2917,16,FALSE),0) -> 0 | S17: =IFERROR(VLOOKUP($A17,Filtro!$A$5:$AY$2917,17,FALSE),0) -> 0 | T17: =IFERROR(VLOOKUP($A17,Filtro!$A$5:$AY$2917,18,FALSE),0) -> 0 | U17: =IFERROR(VLOOKUP($A17,Filtro!$A$5:$AY$2917,19,FALSE),0) -> 0 | V17: =IFERROR(VLOOKUP($A17,Filtro!$A$5:$AY$2917,20,FALSE),0) -> 0 | W17: =IFERROR(VLOOKUP($A17,Filtro!$A$5:$AY$2917,21,FALSE),0) -> 0 | X17: =IFERROR(VLOOKUP($A17,Filtro!$A$5:$AY$2917,22,FALSE),0) -> 0 | Y17: =IFERROR(VLOOKUP($A17,Filtro!$A$5:$AY$2917,23,FALSE),0) -> 0 | Z17: =IFERROR(VLOOKUP($A17,Filtro!$A$5:$AY$2917,24,FALSE),0) -> 0 | AA17: =IFERROR(VLOOKUP($A17,Filtro!$A$5:$AY$2917,25,FALSE),0) -> 0 | AB17: =IFERROR(VLOOKUP($A17,Filtro!$A$5:$AY$2917,26,FALSE),0) -> 0 | AC17: =IFERROR(VLOOKUP($A17,Filtro!$A$5:$AY$2917,27,FALSE),0) -> 9084 | AD17: =IFERROR(VLOOKUP($A17,Filtro!$A$5:$AY$2917,28,FALSE),0) -> 0 | AE17: =IFERROR(VLOOKUP($A17,Filtro!$A$5:$AY$2917,29,FALSE),0) -> 0 | AF17: =IFERROR(VLOOKUP($A17,Filtro!$A$5:$AY$2917,30,FALSE),0) -> 0 | AG17: =IFERROR(VLOOKUP($A17,Filtro!$A$5:$AY$2917,31,FALSE),0) -> 0 | AH17: =IFERROR(VLOOKUP($A17,Filtro!$A$5:$AY$2917,32,FALSE),0) -> 0 | AI17: =IFERROR(VLOOKUP($A17,Filtro!$A$5:$AY$2917,33,FALSE),0) -> 0 | AJ17: =IFERROR(VLOOKUP($A17,Filtro!$A$5:$AY$2917,34,FALSE),0) -> 0 | AK17: =IFERROR(VLOOKUP($A17,Filtro!$A$5:$AY$2917,35,FALSE),0) -> 0 | AL17: 9,050 | AM17: 81,920,600
A18: 01014287 | B18: 0101213 | C18: Consulta Médica de Especialidad en Psiquiatría pediátrica y de la adolescencia | D18: =IFERROR(VLOOKUP($A18,Filtro!$A$5:$AY$2917,2,FALSE),0) -> 2482 | E18: =IFERROR(VLOOKUP($A18,Filtro!$A$5:$AY$2917,3,FALSE),0) -> 2478 | F18: =IFERROR(VLOOKUP($A18,Filtro!$A$5:$AY$2917,4,FALSE),0) -> 2478 | G18: =IFERROR(VLOOKUP($A18,Filtro!$A$5:$AY$2917,5,FALSE),0) -> 0 | H18: =IFERROR(VLOOKUP($A18,Filtro!$A$5:$AY$2917,6,FALSE),0) -> 4 | I18: =IFERROR(VLOOKUP($A18,Filtro!$A$5:$AY$2917,7,FALSE),0) -> 0 | J18: =IFERROR(VLOOKUP($A18,Filtro!$A$5:$AY$2917,8,FALSE),0) -> 0 | K18: =IFERROR(VLOOKUP($A18,Filtro!$A$5:$AY$2917,9,FALSE),0) -> 0 | L18: =IFERROR(VLOOKUP($A18,Filtro!$A$5:$AY$2917,10,FALSE),0) -> 0 | M18: =IFERROR(VLOOKUP($A18,Filtro!$A$5:$AY$2917,11,FALSE),0) -> 0 | N18: =IFERROR(VLOOKUP($A18,Filtro!$A$5:$AY$2917,12,FALSE),0) -> 0 | O18: =IFERROR(VLOOKUP($A18,Filtro!$A$5:$AY$2917,13,FALSE),0) -> 0 | P18: =IFERROR(VLOOKUP($A18,Filtro!$A$5:$AY$2917,14,FALSE),0) -> 0 | Q18: =IFERROR(VLOOKUP($A18,Filtro!$A$5:$AY$2917,15,FALSE),0) -> 0 | R18: =IFERROR(VLOOKUP($A18,Filtro!$A$5:$AY$2917,16,FALSE),0) -> 0 | S18: =IFERROR(VLOOKUP($A18,Filtro!$A$5:$AY$2917,17,FALSE),0) -> 0 | T18: =IFERROR(VLOOKUP($A18,Filtro!$A$5:$AY$2917,18,FALSE),0) -> 0 | U18: =IFERROR(VLOOKUP($A18,Filtro!$A$5:$AY$2917,19,FALSE),0) -> 0 | V18: =IFERROR(VLOOKUP($A18,Filtro!$A$5:$AY$2917,20,FALSE),0) -> 0 | W18: =IFERROR(VLOOKUP($A18,Filtro!$A$5:$AY$2917,21,FALSE),0) -> 0 | X18: =IFERROR(VLOOKUP($A18,Filtro!$A$5:$AY$2917,22,FALSE),0) -> 0 | Y18: =IFERROR(VLOOKUP($A18,Filtro!$A$5:$AY$2917,23,FALSE),0) -> 0 | Z18: =IFERROR(VLOOKUP($A18,Filtro!$A$5:$AY$2917,24,FALSE),0) -> 0 | AA18: =IFERROR(VLOOKUP($A18,Filtro!$A$5:$AY$2917,25,FALSE),0) -> 0 | AB18: =IFERROR(VLOOKUP($A18,Filtro!$A$5:$AY$2917,26,FALSE),0) -> 0 | AC18: =IFERROR(VLOOKUP($A18,Filtro!$A$5:$AY$2917,27,FALSE),0) -> 2482 | AD18: =IFERROR(VLOOKUP($A18,Filtro!$A$5:$AY$2917,28,FALSE),0) -> 0 | AE18: =IFERROR(VLOOKUP($A18,Filtro!$A$5:$AY$2917,29,FALSE),0) -> 0 | AF18: =IFERROR(VLOOKUP($A18,Filtro!$A$5:$AY$2917,30,FALSE),0) -> 0 | AG18: =IFERROR(VLOOKUP($A18,Filtro!$A$5:$AY$2917,31,FALSE),0) -> 0 | AH18: =IFERROR(VLOOKUP($A18,Filtro!$A$5:$AY$2917,32,FALSE),0) -> 0 | AI18: =IFERROR(VLOOKUP($A18,Filtro!$A$5:$AY$2917,33,FALSE),0) -> 0 | AJ18: =IFERROR(VLOOKUP($A18,Filtro!$A$5:$AY$2917,34,FALSE),0) -> 0 | AK18: =IFERROR(VLOOKUP($A18,Filtro!$A$5:$AY$2917,35,FALSE),0) -> 0 | AL18: 9,050 | AM18: 22,425,900
A19: 01014288 | B19: 0101300 | C19: Consulta Médica otras Especialidades | D19: =IFERROR(VLOOKUP($A19,Filtro!$A$5:$AY$2917,2,FALSE),0) -> 5701 | E19: =IFERROR(VLOOKUP($A19,Filtro!$A$5:$AY$2917,3,FALSE),0) -> 5701 | F19: =IFERROR(VLOOKUP($A19,Filtro!$A$5:$AY$2917,4,FALSE),0) -> 5701 | G19: =IFERROR(VLOOKUP($A19,Filtro!$A$5:$AY$2917,5,FALSE),0) -> 0 | H19: =IFERROR(VLOOKUP($A19,Filtro!$A$5:$AY$2917,6,FALSE),0) -> 0 | I19: =IFERROR(VLOOKUP($A19,Filtro!$A$5:$AY$2917,7,FALSE),0) -> 0 | J19: =IFERROR(VLOOKUP($A19,Filtro!$A$5:$AY$2917,8,FALSE),0) -> 0 | K19: =IFERROR(VLOOKUP($A19,Filtro!$A$5:$AY$2917,9,FALSE),0) -> 0 | L19: =IFERROR(VLOOKUP($A19,Filtro!$A$5:$AY$2917,10,FALSE),0) -> 0 | M19: =IFERROR(VLOOKUP($A19,Filtro!$A$5:$AY$2917,11,FALSE),0) -> 0 | N19: =IFERROR(VLOOKUP($A19,Filtro!$A$5:$AY$2917,12,FALSE),0) -> 0 | O19: =IFERROR(VLOOKUP($A19,Filtro!$A$5:$AY$2917,13,FALSE),0) -> 0 | P19: =IFERROR(VLOOKUP($A19,Filtro!$A$5:$AY$2917,14,FALSE),0) -> 0 | Q19: =IFERROR(VLOOKUP($A19,Filtro!$A$5:$AY$2917,15,FALSE),0) -> 0 | R19: =IFERROR(VLOOKUP($A19,Filtro!$A$5:$AY$2917,16,FALSE),0) -> 0 | S19: =IFERROR(VLOOKUP($A19,Filtro!$A$5:$AY$2917,17,FALSE),0) -> 0 | T19: =IFERROR(VLOOKUP($A19,Filtro!$A$5:$AY$2917,18,FALSE),0) -> 0 | U19: =IFERROR(VLOOKUP($A19,Filtro!$A$5:$AY$2917,19,FALSE),0) -> 0 | V19: =IFERROR(VLOOKUP($A19,Filtro!$A$5:$AY$2917,20,FALSE),0) -> 0 | W19: =IFERROR(VLOOKUP($A19,Filtro!$A$5:$AY$2917,21,FALSE),0) -> 0 | X19: =IFERROR(VLOOKUP($A19,Filtro!$A$5:$AY$2917,22,FALSE),0) -> 0 | Y19: =IFERROR(VLOOKUP($A19,Filtro!$A$5:$AY$2917,23,FALSE),0) -> 0 | Z19: =IFERROR(VLOOKUP($A19,Filtro!$A$5:$AY$2917,24,FALSE),0) -> 0 | AA19: =IFERROR(VLOOKUP($A19,Filtro!$A$5:$AY$2917,25,FALSE),0) -> 0 | AB19: =IFERROR(VLOOKUP($A19,Filtro!$A$5:$AY$2917,26,FALSE),0) -> 0 | AC19: =IFERROR(VLOOKUP($A19,Filtro!$A$5:$AY$2917,27,FALSE),0) -> 5701 | AD19: =IFERROR(VLOOKUP($A19,Filtro!$A$5:$AY$2917,28,FALSE),0) -> 0 | AE19: =IFERROR(VLOOKUP($A19,Filtro!$A$5:$AY$2917,29,FALSE),0) -> 0 | AF19: =IFERROR(VLOOKUP($A19,Filtro!$A$5:$AY$2917,30,FALSE),0) -> 0 | AG19: =IFERROR(VLOOKUP($A19,Filtro!$A$5:$AY$2917,31,FALSE),0) -> 0 | AH19: =IFERROR(VLOOKUP($A19,Filtro!$A$5:$AY$2917,32,FALSE),0) -> 0 | AI19: =IFERROR(VLOOKUP($A19,Filtro!$A$5:$AY$2917,33,FALSE),0) -> 0 | AJ19: =IFERROR(VLOOKUP($A19,Filtro!$A$5:$AY$2917,34,FALSE),0) -> 0 | AK19: =IFERROR(VLOOKUP($A19,Filtro!$A$5:$AY$2917,35,FALSE),0) -> 0 | AL19: 9,050 | AM19: 51,594,050
A20: 01014289 | B20: 0101301 | C20: Consulta Médica de Especialidad en Cardiología | D20: =IFERROR(VLOOKUP($A20,Filtro!$A$5:$AY$2917,2,FALSE),0) -> 7097 | E20: =IFERROR(VLOOKUP($A20,Filtro!$A$5:$AY$2917,3,FALSE),0) -> 7091 | F20: =IFERROR(VLOOKUP($A20,Filtro!$A$5:$AY$2917,4,FALSE),0) -> 7091 | G20: =IFERROR(VLOOKUP($A20,Filtro!$A$5:$AY$2917,5,FALSE),0) -> 0 | H20: =IFERROR(VLOOKUP($A20,Filtro!$A$5:$AY$2917,6,FALSE),0) -> 6 | I20: =IFERROR(VLOOKUP($A20,Filtro!$A$5:$AY$2917,7,FALSE),0) -> 0 | J20: =IFERROR(VLOOKUP($A20,Filtro!$A$5:$AY$2917,8,FALSE),0) -> 0 | K20: =IFERROR(VLOOKUP($A20,Filtro!$A$5:$AY$2917,9,FALSE),0) -> 0 | L20: =IFERROR(VLOOKUP($A20,Filtro!$A$5:$AY$2917,10,FALSE),0) -> 0 | M20: =IFERROR(VLOOKUP($A20,Filtro!$A$5:$AY$2917,11,FALSE),0) -> 0 | N20: =IFERROR(VLOOKUP($A20,Filtro!$A$5:$AY$2917,12,FALSE),0) -> 0 | O20: =IFERROR(VLOOKUP($A20,Filtro!$A$5:$AY$2917,13,FALSE),0) -> 0 | P20: =IFERROR(VLOOKUP($A20,Filtro!$A$5:$AY$2917,14,FALSE),0) -> 0 | Q20: =IFERROR(VLOOKUP($A20,Filtro!$A$5:$AY$2917,15,FALSE),0) -> 0 | R20: =IFERROR(VLOOKUP($A20,Filtro!$A$5:$AY$2917,16,FALSE),0) -> 0 | S20: =IFERROR(VLOOKUP($A20,Filtro!$A$5:$AY$2917,17,FALSE),0) -> 0 | T20: =IFERROR(VLOOKUP($A20,Filtro!$A$5:$AY$2917,18,FALSE),0) -> 0 | U20: =IFERROR(VLOOKUP($A20,Filtro!$A$5:$AY$2917,19,FALSE),0) -> 0 | V20: =IFERROR(VLOOKUP($A20,Filtro!$A$5:$AY$2917,20,FALSE),0) -> 0 | W20: =IFERROR(VLOOKUP($A20,Filtro!$A$5:$AY$2917,21,FALSE),0) -> 0 | X20: =IFERROR(VLOOKUP($A20,Filtro!$A$5:$AY$2917,22,FALSE),0) -> 0 | Y20: =IFERROR(VLOOKUP($A20,Filtro!$A$5:$AY$2917,23,FALSE),0) -> 0 | Z20: =IFERROR(VLOOKUP($A20,Filtro!$A$5:$AY$2917,24,FALSE),0) -> 0 | AA20: =IFERROR(VLOOKUP($A20,Filtro!$A$5:$AY$2917,25,FALSE),0) -> 0 | AB20: =IFERROR(VLOOKUP($A20,Filtro!$A$5:$AY$2917,26,FALSE),0) -> 0 | AC20: =IFERROR(VLOOKUP($A20,Filtro!$A$5:$AY$2917,27,FALSE),0) -> 7097 | AD20: =IFERROR(VLOOKUP($A20,Filtro!$A$5:$AY$2917,28,FALSE),0) -> 0 | AE20: =IFERROR(VLOOKUP($A20,Filtro!$A$5:$AY$2917,29,FALSE),0) -> 8 | AF20: =IFERROR(VLOOKUP($A20,Filtro!$A$5:$AY$2917,30,FALSE),0) -> 0 | AG20: =IFERROR(VLOOKUP($A20,Filtro!$A$5:$AY$2917,31,FALSE),0) -> 0 | AH20: =IFERROR(VLOOKUP($A20,Filtro!$A$5:$AY$2917,32,FALSE),0) -> 0 | AI20: =IFERROR(VLOOKUP($A20,Filtro!$A$5:$AY$2917,33,FALSE),0) -> 0 | AJ20: =IFERROR(VLOOKUP($A20,Filtro!$A$5:$AY$2917,34,FALSE),0) -> 0 | AK20: =IFERROR(VLOOKUP($A20,Filtro!$A$5:$AY$2917,35,FALSE),0) -> 0 | AL20: 9,050 | AM20: 64,173,550
A21: 01014290 | B21: 0101302 | C21: Consulta Médica de Especialidad en Hematología | D21: =IFERROR(VLOOKUP($A21,Filtro!$A$5:$AY$2917,2,FALSE),0) -> 3762 | E21: =IFERROR(VLOOKUP($A21,Filtro!$A$5:$AY$2917,3,FALSE),0) -> 3759 | F21: =IFERROR(VLOOKUP($A21,Filtro!$A$5:$AY$2917,4,FALSE),0) -> 3759 | G21: =IFERROR(VLOOKUP($A21,Filtro!$A$5:$AY$2917,5,FALSE),0) -> 0 | H21: =IFERROR(VLOOKUP($A21,Filtro!$A$5:$AY$2917,6,FALSE),0) -> 3 | I21: =IFERROR(VLOOKUP($A21,Filtro!$A$5:$AY$2917,7,FALSE),0) -> 0 | J21: =IFERROR(VLOOKUP($A21,Filtro!$A$5:$AY$2917,8,FALSE),0) -> 0 | K21: =IFERROR(VLOOKUP($A21,Filtro!$A$5:$AY$2917,9,FALSE),0) -> 0 | L21: =IFERROR(VLOOKUP($A21,Filtro!$A$5:$AY$2917,10,FALSE),0) -> 0 | M21: =IFERROR(VLOOKUP($A21,Filtro!$A$5:$AY$2917,11,FALSE),0) -> 0 | N21: =IFERROR(VLOOKUP($A21,Filtro!$A$5:$AY$2917,12,FALSE),0) -> 0 | O21: =IFERROR(VLOOKUP($A21,Filtro!$A$5:$AY$2917,13,FALSE),0) -> 0 | P21: =IFERROR(VLOOKUP($A21,Filtro!$A$5:$AY$2917,14,FALSE),0) -> 0 | Q21: =IFERROR(VLOOKUP($A21,Filtro!$A$5:$AY$2917,15,FALSE),0) -> 0 | R21: =IFERROR(VLOOKUP($A21,Filtro!$A$5:$AY$2917,16,FALSE),0) -> 0 | S21: =IFERROR(VLOOKUP($A21,Filtro!$A$5:$AY$2917,17,FALSE),0) -> 0 | T21: =IFERROR(VLOOKUP($A21,Filtro!$A$5:$AY$2917,18,FALSE),0) -> 0 | U21: =IFERROR(VLOOKUP($A21,Filtro!$A$5:$AY$2917,19,FALSE),0) -> 0 | V21: =IFERROR(VLOOKUP($A21,Filtro!$A$5:$AY$2917,20,FALSE),0) -> 0 | W21: =IFERROR(VLOOKUP($A21,Filtro!$A$5:$AY$2917,21,FALSE),0) -> 0 | X21: =IFERROR(VLOOKUP($A21,Filtro!$A$5:$AY$2917,22,FALSE),0) -> 0 | Y21: =IFERROR(VLOOKUP($A21,Filtro!$A$5:$AY$2917,23,FALSE),0) -> 0 | Z21: =IFERROR(VLOOKUP($A21,Filtro!$A$5:$AY$2917,24,FALSE),0) -> 0 | AA21: =IFERROR(VLOOKUP($A21,Filtro!$A$5:$AY$2917,25,FALSE),0) -> 0 | AB21: =IFERROR(VLOOKUP($A21,Filtro!$A$5:$AY$2917,26,FALSE),0) -> 0 | AC21: =IFERROR(VLOOKUP($A21,Filtro!$A$5:$AY$2917,27,FALSE),0) -> 3762 | AD21: =IFERROR(VLOOKUP($A21,Filtro!$A$5:$AY$2917,28,FALSE),0) -> 0 | AE21: =IFERROR(VLOOKUP($A21,Filtro!$A$5:$AY$2917,29,FALSE),0) -> 0 | AF21: =IFERROR(VLOOKUP($A21,Filtro!$A$5:$AY$2917,30,FALSE),0) -> 0 | AG21: =IFERROR(VLOOKUP($A21,Filtro!$A$5:$AY$2917,31,FALSE),0) -> 0 | AH21: =IFERROR(VLOOKUP($A21,Filtro!$A$5:$AY$2917,32,FALSE),0) -> 0 | AI21: =IFERROR(VLOOKUP($A21,Filtro!$A$5:$AY$2917,33,FALSE),0) -> 0 | AJ21: =IFERROR(VLOOKUP($A21,Filtro!$A$5:$AY$2917,34,FALSE),0) -> 0 | AK21: =IFERROR(VLOOKUP($A21,Filtro!$A$5:$AY$2917,35,FALSE),0) -> 0 | AL21: 9,050 | AM21: 34,018,950
A22: 01014291 | B22: 0101303 | C22: Consulta Médica de Especialidad en Infectología | D22: =IFERROR(VLOOKUP($A22,Filtro!$A$5:$AY$2917,2,FALSE),0) -> 2680 | E22: =IFERROR(VLOOKUP($A22,Filtro!$A$5:$AY$2917,3,FALSE),0) -> 2678 | F22: =IFERROR(VLOOKUP($A22,Filtro!$A$5:$AY$2917,4,FALSE),0) -> 2678 | G22: =IFERROR(VLOOKUP($A22,Filtro!$A$5:$AY$2917,5,FALSE),0) -> 0 | H22: =IFERROR(VLOOKUP($A22,Filtro!$A$5:$AY$2917,6,FALSE),0) -> 2 | I22: =IFERROR(VLOOKUP($A22,Filtro!$A$5:$AY$2917,7,FALSE),0) -> 0 | J22: =IFERROR(VLOOKUP($A22,Filtro!$A$5:$AY$2917,8,FALSE),0) -> 0 | K22: =IFERROR(VLOOKUP($A22,Filtro!$A$5:$AY$2917,9,FALSE),0) -> 0 | L22: =IFERROR(VLOOKUP($A22,Filtro!$A$5:$AY$2917,10,FALSE),0) -> 0 | M22: =IFERROR(VLOOKUP($A22,Filtro!$A$5:$AY$2917,11,FALSE),0) -> 0 | N22: =IFERROR(VLOOKUP($A22,Filtro!$A$5:$AY$2917,12,FALSE),0) -> 0 | O22: =IFERROR(VLOOKUP($A22,Filtro!$A$5:$AY$2917,13,FALSE),0) -> 0 | P22: =IFERROR(VLOOKUP($A22,Filtro!$A$5:$AY$2917,14,FALSE),0) -> 0 | Q22: =IFERROR(VLOOKUP($A22,Filtro!$A$5:$AY$2917,15,FALSE),0) -> 0 | R22: =IFERROR(VLOOKUP($A22,Filtro!$A$5:$AY$2917,16,FALSE),0) -> 0 | S22: =IFERROR(VLOOKUP($A22,Filtro!$A$5:$AY$2917,17,FALSE),0) -> 0 | T22: =IFERROR(VLOOKUP($A22,Filtro!$A$5:$AY$2917,18,FALSE),0) -> 0 | U22: =IFERROR(VLOOKUP($A22,Filtro!$A$5:$AY$2917,19,FALSE),0) -> 0 | V22: =IFERROR(VLOOKUP($A22,Filtro!$A$5:$AY$2917,20,FALSE),0) -> 0 | W22: =IFERROR(VLOOKUP($A22,Filtro!$A$5:$AY$2917,21,FALSE),0) -> 0 | X22: =IFERROR(VLOOKUP($A22,Filtro!$A$5:$AY$2917,22,FALSE),0) -> 0 | Y22: =IFERROR(VLOOKUP($A22,Filtro!$A$5:$AY$2917,23,FALSE),0) -> 0 | Z22: =IFERROR(VLOOKUP($A22,Filtro!$A$5:$AY$2917,24,FALSE),0) -> 0 | AA22: =IFERROR(VLOOKUP($A22,Filtro!$A$5:$AY$2917,25,FALSE),0) -> 0 | AB22: =IFERROR(VLOOKUP($A22,Filtro!$A$5:$AY$2917,26,FALSE),0) -> 0 | AC22: =IFERROR(VLOOKUP($A22,Filtro!$A$5:$AY$2917,27,FALSE),0) -> 2680 | AD22: =IFERROR(VLOOKUP($A22,Filtro!$A$5:$AY$2917,28,FALSE),0) -> 0 | AE22: =IFERROR(VLOOKUP($A22,Filtro!$A$5:$AY$2917,29,FALSE),0) -> 0 | AF22: =IFERROR(VLOOKUP($A22,Filtro!$A$5:$AY$2917,30,FALSE),0) -> 0 | AG22: =IFERROR(VLOOKUP($A22,Filtro!$A$5:$AY$2917,31,FALSE),0) -> 0 | AH22: =IFERROR(VLOOKUP($A22,Filtro!$A$5:$AY$2917,32,FALSE),0) -> 0 | AI22: =IFERROR(VLOOKUP($A22,Filtro!$A$5:$AY$2917,33,FALSE),0) -> 0 | AJ22: =IFERROR(VLOOKUP($A22,Filtro!$A$5:$AY$2917,34,FALSE),0) -> 0 | AK22: =IFERROR(VLOOKUP($A22,Filtro!$A$5:$AY$2917,35,FALSE),0) -> 0 | AL22: 9,050 | AM22: 24,235,900
A23: 01014292 | B23: 0101304 | C23: Consulta Médica de Especialidad en Inmunología | D23: =IFERROR(VLOOKUP($A23,Filtro!$A$5:$AY$2917,2,FALSE),0) -> 904 | E23: =IFERROR(VLOOKUP($A23,Filtro!$A$5:$AY$2917,3,FALSE),0) -> 904 | F23: =IFERROR(VLOOKUP($A23,Filtro!$A$5:$AY$2917,4,FALSE),0) -> 904 | G23: =IFERROR(VLOOKUP($A23,Filtro!$A$5:$AY$2917,5,FALSE),0) -> 0 | H23: =IFERROR(VLOOKUP($A23,Filtro!$A$5:$AY$2917,6,FALSE),0) -> 0 | I23: =IFERROR(VLOOKUP($A23,Filtro!$A$5:$AY$2917,7,FALSE),0) -> 0 | J23: =IFERROR(VLOOKUP($A23,Filtro!$A$5:$AY$2917,8,FALSE),0) -> 0 | K23: =IFERROR(VLOOKUP($A23,Filtro!$A$5:$AY$2917,9,FALSE),0) -> 0 | L23: =IFERROR(VLOOKUP($A23,Filtro!$A$5:$AY$2917,10,FALSE),0) -> 0 | M23: =IFERROR(VLOOKUP($A23,Filtro!$A$5:$AY$2917,11,FALSE),0) -> 0 | N23: =IFERROR(VLOOKUP($A23,Filtro!$A$5:$AY$2917,12,FALSE),0) -> 0 | O23: =IFERROR(VLOOKUP($A23,Filtro!$A$5:$AY$2917,13,FALSE),0) -> 0 | P23: =IFERROR(VLOOKUP($A23,Filtro!$A$5:$AY$2917,14,FALSE),0) -> 0 | Q23: =IFERROR(VLOOKUP($A23,Filtro!$A$5:$AY$2917,15,FALSE),0) -> 0 | R23: =IFERROR(VLOOKUP($A23,Filtro!$A$5:$AY$2917,16,FALSE),0) -> 0 | S23: =IFERROR(VLOOKUP($A23,Filtro!$A$5:$AY$2917,17,FALSE),0) -> 0 | T23: =IFERROR(VLOOKUP($A23,Filtro!$A$5:$AY$2917,18,FALSE),0) -> 0 | U23: =IFERROR(VLOOKUP($A23,Filtro!$A$5:$AY$2917,19,FALSE),0) -> 0 | V23: =IFERROR(VLOOKUP($A23,Filtro!$A$5:$AY$2917,20,FALSE),0) -> 0 | W23: =IFERROR(VLOOKUP($A23,Filtro!$A$5:$AY$2917,21,FALSE),0) -> 0 | X23: =IFERROR(VLOOKUP($A23,Filtro!$A$5:$AY$2917,22,FALSE),0) -> 0 | Y23: =IFERROR(VLOOKUP($A23,Filtro!$A$5:$AY$2917,23,FALSE),0) -> 0 | Z23: =IFERROR(VLOOKUP($A23,Filtro!$A$5:$AY$2917,24,FALSE),0) -> 0 | AA23: =IFERROR(VLOOKUP($A23,Filtro!$A$5:$AY$2917,25,FALSE),0) -> 0 | AB23: =IFERROR(VLOOKUP($A23,Filtro!$A$5:$AY$2917,26,FALSE),0) -> 0 | AC23: =IFERROR(VLOOKUP($A23,Filtro!$A$5:$AY$2917,27,FALSE),0) -> 904 | AD23: =IFERROR(VLOOKUP($A23,Filtro!$A$5:$AY$2917,28,FALSE),0) -> 0 | AE23: =IFERROR(VLOOKUP($A23,Filtro!$A$5:$AY$2917,29,FALSE),0) -> 0 | AF23: =IFERROR(VLOOKUP($A23,Filtro!$A$5:$AY$2917,30,FALSE),0) -> 0 | AG23: =IFERROR(VLOOKUP($A23,Filtro!$A$5:$AY$2917,31,FALSE),0) -> 0 | AH23: =IFERROR(VLOOKUP($A23,Filtro!$A$5:$AY$2917,32,FALSE),0) -> 0 | AI23: =IFERROR(VLOOKUP($A23,Filtro!$A$5:$AY$2917,33,FALSE),0) -> 0 | AJ23: =IFERROR(VLOOKUP($A23,Filtro!$A$5:$AY$2917,34,FALSE),0) -> 0 | AK23: =IFERROR(VLOOKUP($A23,Filtro!$A$5:$AY$2917,35,FALSE),0) -> 0 | AL23: 9,050 | AM23: 8,181,200
A24: 01014293 | B24: 0101305 | C24: Consulta Médica de Especialidad en Medicina Familiar | D24: =IFERROR(VLOOKUP($A24,Filtro!$A$5:$AY$2917,2,FALSE),0) -> 0 | E24: =IFERROR(VLOOKUP($A24,Filtro!$A$5:$AY$2917,3,FALSE),0) -> 0 | F24: =IFERROR(VLOOKUP($A24,Filtro!$A$5:$AY$2917,4,FALSE),0) -> 0 | G24: =IFERROR(VLOOKUP($A24,Filtro!$A$5:$AY$2917,5,FALSE),0) -> 0 | H24: =IFERROR(VLOOKUP($A24,Filtro!$A$5:$AY$2917,6,FALSE),0) -> 0 | I24: =IFERROR(VLOOKUP($A24,Filtro!$A$5:$AY$2917,7,FALSE),0) -> 0 | J24: =IFERROR(VLOOKUP($A24,Filtro!$A$5:$AY$2917,8,FALSE),0) -> 0 | K24: =IFERROR(VLOOKUP($A24,Filtro!$A$5:$AY$2917,9,FALSE),0) -> 0 | L24: =IFERROR(VLOOKUP($A24,Filtro!$A$5:$AY$2917,10,FALSE),0) -> 0 | M24: =IFERROR(VLOOKUP($A24,Filtro!$A$5:$AY$2917,11,FALSE),0) -> 0 | N24: =IFERROR(VLOOKUP($A24,Filtro!$A$5:$AY$2917,12,FALSE),0) -> 0 | O24: =IFERROR(VLOOKUP($A24,Filtro!$A$5:$AY$2917,13,FALSE),0) -> 0 | P24: =IFERROR(VLOOKUP($A24,Filtro!$A$5:$AY$2917,14,FALSE),0) -> 0 | Q24: =IFERROR(VLOOKUP($A24,Filtro!$A$5:$AY$2917,15,FALSE),0) -> 0 | R24: =IFERROR(VLOOKUP($A24,Filtro!$A$5:$AY$2917,16,FALSE),0) -> 0 | S24: =IFERROR(VLOOKUP($A24,Filtro!$A$5:$AY$2917,17,FALSE),0) -> 0 | T24: =IFERROR(VLOOKUP($A24,Filtro!$A$5:$AY$2917,18,FALSE),0) -> 0 | U24: =IFERROR(VLOOKUP($A24,Filtro!$A$5:$AY$2917,19,FALSE),0) -> 0 | V24: =IFERROR(VLOOKUP($A24,Filtro!$A$5:$AY$2917,20,FALSE),0) -> 0 | W24: =IFERROR(VLOOKUP($A24,Filtro!$A$5:$AY$2917,21,FALSE),0) -> 0 | X24: =IFERROR(VLOOKUP($A24,Filtro!$A$5:$AY$2917,22,FALSE),0) -> 0 | Y24: =IFERROR(VLOOKUP($A24,Filtro!$A$5:$AY$2917,23,FALSE),0) -> 0 | Z24: =IFERROR(VLOOKUP($A24,Filtro!$A$5:$AY$2917,24,FALSE),0) -> 0 | AA24: =IFERROR(VLOOKUP($A24,Filtro!$A$5:$AY$2917,25,FALSE),0) -> 0 | AB24: =IFERROR(VLOOKUP($A24,Filtro!$A$5:$AY$2917,26,FALSE),0) -> 0 | AC24: =IFERROR(VLOOKUP($A24,Filtro!$A$5:$AY$2917,27,FALSE),0) -> 0 | AD24: =IFERROR(VLOOKUP($A24,Filtro!$A$5:$AY$2917,28,FALSE),0) -> 0 | AE24: =IFERROR(VLOOKUP($A24,Filtro!$A$5:$AY$2917,29,FALSE),0) -> 0 | AF24: =IFERROR(VLOOKUP($A24,Filtro!$A$5:$AY$2917,30,FALSE),0) -> 0 | AG24: =IFERROR(VLOOKUP($A24,Filtro!$A$5:$AY$2917,31,FALSE),0) -> 0 | AH24: =IFERROR(VLOOKUP($A24,Filtro!$A$5:$AY$2917,32,FALSE),0) -> 0 | AI24: =IFERROR(VLOOKUP($A24,Filtro!$A$5:$AY$2917,33,FALSE),0) -> 0 | AJ24: =IFERROR(VLOOKUP($A24,Filtro!$A$5:$AY$2917,34,FALSE),0) -> 0 | AK24: =IFERROR(VLOOKUP($A24,Filtro!$A$5:$AY$2917,35,FALSE),0) -> 0 | AL24: 9,050 | AM24: 0
A25: 01014294 | B25: 0101306 | C25: Consulta Médica de Especialidad en Medicina Física y Rehabilitación | D25: =IFERROR(VLOOKUP($A25,Filtro!$A$5:$AY$2917,2,FALSE),0) -> 3073 | E25: =IFERROR(VLOOKUP($A25,Filtro!$A$5:$AY$2917,3,FALSE),0) -> 3072 | F25: =IFERROR(VLOOKUP($A25,Filtro!$A$5:$AY$2917,4,FALSE),0) -> 3072 | G25: =IFERROR(VLOOKUP($A25,Filtro!$A$5:$AY$2917,5,FALSE),0) -> 0 | H25: =IFERROR(VLOOKUP($A25,Filtro!$A$5:$AY$2917,6,FALSE),0) -> 1 | I25: =IFERROR(VLOOKUP($A25,Filtro!$A$5:$AY$2917,7,FALSE),0) -> 0 | J25: =IFERROR(VLOOKUP($A25,Filtro!$A$5:$AY$2917,8,FALSE),0) -> 0 | K25: =IFERROR(VLOOKUP($A25,Filtro!$A$5:$AY$2917,9,FALSE),0) -> 0 | L25: =IFERROR(VLOOKUP($A25,Filtro!$A$5:$AY$2917,10,FALSE),0) -> 0 | M25: =IFERROR(VLOOKUP($A25,Filtro!$A$5:$AY$2917,11,FALSE),0) -> 0 | N25: =IFERROR(VLOOKUP($A25,Filtro!$A$5:$AY$2917,12,FALSE),0) -> 0 | O25: =IFERROR(VLOOKUP($A25,Filtro!$A$5:$AY$2917,13,FALSE),0) -> 0 | P25: =IFERROR(VLOOKUP($A25,Filtro!$A$5:$AY$2917,14,FALSE),0) -> 0 | Q25: =IFERROR(VLOOKUP($A25,Filtro!$A$5:$AY$2917,15,FALSE),0) -> 0 | R25: =IFERROR(VLOOKUP($A25,Filtro!$A$5:$AY$2917,16,FALSE),0) -> 0 | S25: =IFERROR(VLOOKUP($A25,Filtro!$A$5:$AY$2917,17,FALSE),0) -> 0 | T25: =IFERROR(VLOOKUP($A25,Filtro!$A$5:$AY$2917,18,FALSE),0) -> 0 | U25: =IFERROR(VLOOKUP($A25,Filtro!$A$5:$AY$2917,19,FALSE),0) -> 0 | V25: =IFERROR(VLOOKUP($A25,Filtro!$A$5:$AY$2917,20,FALSE),0) -> 0 | W25: =IFERROR(VLOOKUP($A25,Filtro!$A$5:$AY$2917,21,FALSE),0) -> 0 | X25: =IFERROR(VLOOKUP($A25,Filtro!$A$5:$AY$2917,22,FALSE),0) -> 0 | Y25: =IFERROR(VLOOKUP($A25,Filtro!$A$5:$AY$2917,23,FALSE),0) -> 0 | Z25: =IFERROR(VLOOKUP($A25,Filtro!$A$5:$AY$2917,24,FALSE),0) -> 0 | AA25: =IFERROR(VLOOKUP($A25,Filtro!$A$5:$AY$2917,25,FALSE),0) -> 0 | AB25: =IFERROR(VLOOKUP($A25,Filtro!$A$5:$AY$2917,26,FALSE),0) -> 0 | AC25: =IFERROR(VLOOKUP($A25,Filtro!$A$5:$AY$2917,27,FALSE),0) -> 3203 | AD25: =IFERROR(VLOOKUP($A25,Filtro!$A$5:$AY$2917,28,FALSE),0) -> 0 | AE25: =IFERROR(VLOOKUP($A25,Filtro!$A$5:$AY$2917,29,FALSE),0) -> 0 | AF25: =IFERROR(VLOOKUP($A25,Filtro!$A$5:$AY$2917,30,FALSE),0) -> 0 | AG25: =IFERROR(VLOOKUP($A25,Filtro!$A$5:$AY$2917,31,FALSE),0) -> 0 | AH25: =IFERROR(VLOOKUP($A25,Filtro!$A$5:$AY$2917,32,FALSE),0) -> 0 | AI25: =IFERROR(VLOOKUP($A25,Filtro!$A$5:$AY$2917,33,FALSE),0) -> 0 | AJ25: =IFERROR(VLOOKUP($A25,Filtro!$A$5:$AY$2917,34,FALSE),0) -> 0 | AK25: =IFERROR(VLOOKUP($A25,Filtro!$A$5:$AY$2917,35,FALSE),0) -> 0 | AL25: 9,050 | AM25: 27,801,600
A26: 01014295 | B26: 0101307 | C26: Consulta Médica de Especialidad en Medicina Interna | D26: =IFERROR(VLOOKUP($A26,Filtro!$A$5:$AY$2917,2,FALSE),0) -> 18091 | E26: =IFERROR(VLOOKUP($A26,Filtro!$A$5:$AY$2917,3,FALSE),0) -> 18051 | F26: =IFERROR(VLOOKUP($A26,Filtro!$A$5:$AY$2917,4,FALSE),0) -> 18051 | G26: =IFERROR(VLOOKUP($A26,Filtro!$A$5:$AY$2917,5,FALSE),0) -> 0 | H26: =IFERROR(VLOOKUP($A26,Filtro!$A$5:$AY$2917,6,FALSE),0) -> 40 | I26: =IFERROR(VLOOKUP($A26,Filtro!$A$5:$AY$2917,7,FALSE),0) -> 0 | J26: =IFERROR(VLOOKUP($A26,Filtro!$A$5:$AY$2917,8,FALSE),0) -> 0 | K26: =IFERROR(VLOOKUP($A26,Filtro!$A$5:$AY$2917,9,FALSE),0) -> 0 | L26: =IFERROR(VLOOKUP($A26,Filtro!$A$5:$AY$2917,10,FALSE),0) -> 0 | M26: =IFERROR(VLOOKUP($A26,Filtro!$A$5:$AY$2917,11,FALSE),0) -> 0 | N26: =IFERROR(VLOOKUP($A26,Filtro!$A$5:$AY$2917,12,FALSE),0) -> 0 | O26: =IFERROR(VLOOKUP($A26,Filtro!$A$5:$AY$2917,13,FALSE),0) -> 0 | P26: =IFERROR(VLOOKUP($A26,Filtro!$A$5:$AY$2917,14,FALSE),0) -> 0 | Q26: =IFERROR(VLOOKUP($A26,Filtro!$A$5:$AY$2917,15,FALSE),0) -> 0 | R26: =IFERROR(VLOOKUP($A26,Filtro!$A$5:$AY$2917,16,FALSE),0) -> 0 | S26: =IFERROR(VLOOKUP($A26,Filtro!$A$5:$AY$2917,17,FALSE),0) -> 0 | T26: =IFERROR(VLOOKUP($A26,Filtro!$A$5:$AY$2917,18,FALSE),0) -> 0 | U26: =IFERROR(VLOOKUP($A26,Filtro!$A$5:$AY$2917,19,FALSE),0) -> 0 | V26: =IFERROR(VLOOKUP($A26,Filtro!$A$5:$AY$2917,20,FALSE),0) -> 0 | W26: =IFERROR(VLOOKUP($A26,Filtro!$A$5:$AY$2917,21,FALSE),0) -> 0 | X26: =IFERROR(VLOOKUP($A26,Filtro!$A$5:$AY$2917,22,FALSE),0) -> 0 | Y26: =IFERROR(VLOOKUP($A26,Filtro!$A$5:$AY$2917,23,FALSE),0) -> 0 | Z26: =IFERROR(VLOOKUP($A26,Filtro!$A$5:$AY$2917,24,FALSE),0) -> 0 | AA26: =IFERROR(VLOOKUP($A26,Filtro!$A$5:$AY$2917,25,FALSE),0) -> 0 | AB26: =IFERROR(VLOOKUP($A26,Filtro!$A$5:$AY$2917,26,FALSE),0) -> 0 | AC26: =IFERROR(VLOOKUP($A26,Filtro!$A$5:$AY$2917,27,FALSE),0) -> 18208 | AD26: =IFERROR(VLOOKUP($A26,Filtro!$A$5:$AY$2917,28,FALSE),0) -> 3 | AE26: =IFERROR(VLOOKUP($A26,Filtro!$A$5:$AY$2917,29,FALSE),0) -> 172 | AF26: =IFERROR(VLOOKUP($A26,Filtro!$A$5:$AY$2917,30,FALSE),0) -> 0 | AG26: =IFERROR(VLOOKUP($A26,Filtro!$A$5:$AY$2917,31,FALSE),0) -> 0 | AH26: =IFERROR(VLOOKUP($A26,Filtro!$A$5:$AY$2917,32,FALSE),0) -> 0 | AI26: =IFERROR(VLOOKUP($A26,Filtro!$A$5:$AY$2917,33,FALSE),0) -> 0 | AJ26: =IFERROR(VLOOKUP($A26,Filtro!$A$5:$AY$2917,34,FALSE),0) -> 0 | AK26: =IFERROR(VLOOKUP($A26,Filtro!$A$5:$AY$2917,35,FALSE),0) -> 0 | AL26: 9,050 | AM26: 163,361,550
A27: 01012816 | B27: 0101308 | C27: Consulta Médica de Especialidad en Obstetricia y Ginecología | D27: =IFERROR(VLOOKUP($A27,Filtro!$A$5:$AY$2917,2,FALSE),0) -> 22664 | E27: =IFERROR(VLOOKUP($A27,Filtro!$A$5:$AY$2917,3,FALSE),0) -> 22645 | F27: =IFERROR(VLOOKUP($A27,Filtro!$A$5:$AY$2917,4,FALSE),0) -> 22645 | G27: =IFERROR(VLOOKUP($A27,Filtro!$A$5:$AY$2917,5,FALSE),0) -> 0 | H27: =IFERROR(VLOOKUP($A27,Filtro!$A$5:$AY$2917,6,FALSE),0) -> 19 | I27: =IFERROR(VLOOKUP($A27,Filtro!$A$5:$AY$2917,7,FALSE),0) -> 0 | J27: =IFERROR(VLOOKUP($A27,Filtro!$A$5:$AY$2917,8,FALSE),0) -> 0 | K27: =IFERROR(VLOOKUP($A27,Filtro!$A$5:$AY$2917,9,FALSE),0) -> 0 | L27: =IFERROR(VLOOKUP($A27,Filtro!$A$5:$AY$2917,10,FALSE),0) -> 0 | M27: =IFERROR(VLOOKUP($A27,Filtro!$A$5:$AY$2917,11,FALSE),0) -> 0 | N27: =IFERROR(VLOOKUP($A27,Filtro!$A$5:$AY$2917,12,FALSE),0) -> 0 | O27: =IFERROR(VLOOKUP($A27,Filtro!$A$5:$AY$2917,13,FALSE),0) -> 0 | P27: =IFERROR(VLOOKUP($A27,Filtro!$A$5:$AY$2917,14,FALSE),0) -> 0 | Q27: =IFERROR(VLOOKUP($A27,Filtro!$A$5:$AY$2917,15,FALSE),0) -> 0 | R27: =IFERROR(VLOOKUP($A27,Filtro!$A$5:$AY$2917,16,FALSE),0) -> 0 | S27: =IFERROR(VLOOKUP($A27,Filtro!$A$5:$AY$2917,17,FALSE),0) -> 0 | T27: =IFERROR(VLOOKUP($A27,Filtro!$A$5:$AY$2917,18,FALSE),0) -> 0 | U27: =IFERROR(VLOOKUP($A27,Filtro!$A$5:$AY$2917,19,FALSE),0) -> 0 | V27: =IFERROR(VLOOKUP($A27,Filtro!$A$5:$AY$2917,20,FALSE),0) -> 0 | W27: =IFERROR(VLOOKUP($A27,Filtro!$A$5:$AY$2917,21,FALSE),0) -> 0 | X27: =IFERROR(VLOOKUP($A27,Filtro!$A$5:$AY$2917,22,FALSE),0) -> 0 | Y27: =IFERROR(VLOOKUP($A27,Filtro!$A$5:$AY$2917,23,FALSE),0) -> 0 | Z27: =IFERROR(VLOOKUP($A27,Filtro!$A$5:$AY$2917,24,FALSE),0) -> 0 | AA27: =IFERROR(VLOOKUP($A27,Filtro!$A$5:$AY$2917,25,FALSE),0) -> 0 | AB27: =IFERROR(VLOOKUP($A27,Filtro!$A$5:$AY$2917,26,FALSE),0) -> 208 | AC27: =IFERROR(VLOOKUP($A27,Filtro!$A$5:$AY$2917,27,FALSE),0) -> 21452 | AD27: =IFERROR(VLOOKUP($A27,Filtro!$A$5:$AY$2917,28,FALSE),0) -> 885 | AE27: =IFERROR(VLOOKUP($A27,Filtro!$A$5:$AY$2917,29,FALSE),0) -> 0 | AF27: =IFERROR(VLOOKUP($A27,Filtro!$A$5:$AY$2917,30,FALSE),0) -> 0 | AG27: =IFERROR(VLOOKUP($A27,Filtro!$A$5:$AY$2917,31,FALSE),0) -> 0 | AH27: =IFERROR(VLOOKUP($A27,Filtro!$A$5:$AY$2917,32,FALSE),0) -> 0 | AI27: =IFERROR(VLOOKUP($A27,Filtro!$A$5:$AY$2917,33,FALSE),0) -> 0 | AJ27: =IFERROR(VLOOKUP($A27,Filtro!$A$5:$AY$2917,34,FALSE),0) -> 0 | AK27: =IFERROR(VLOOKUP($A27,Filtro!$A$5:$AY$2917,35,FALSE),0) -> 0 | AL27: 9,050 | AM27: 204,937,250
A28: 01014296 | B28: 0101309 | C28: Consulta Médica de Especialidad en Pediatría | D28: =IFERROR(VLOOKUP($A28,Filtro!$A$5:$AY$2917,2,FALSE),0) -> 7090 | E28: =IFERROR(VLOOKUP($A28,Filtro!$A$5:$AY$2917,3,FALSE),0) -> 7083 | F28: =IFERROR(VLOOKUP($A28,Filtro!$A$5:$AY$2917,4,FALSE),0) -> 7083 | G28: =IFERROR(VLOOKUP($A28,Filtro!$A$5:$AY$2917,5,FALSE),0) -> 0 | H28: =IFERROR(VLOOKUP($A28,Filtro!$A$5:$AY$2917,6,FALSE),0) -> 7 | I28: =IFERROR(VLOOKUP($A28,Filtro!$A$5:$AY$2917,7,FALSE),0) -> 0 | J28: =IFERROR(VLOOKUP($A28,Filtro!$A$5:$AY$2917,8,FALSE),0) -> 0 | K28: =IFERROR(VLOOKUP($A28,Filtro!$A$5:$AY$2917,9,FALSE),0) -> 0 | L28: =IFERROR(VLOOKUP($A28,Filtro!$A$5:$AY$2917,10,FALSE),0) -> 0 | M28: =IFERROR(VLOOKUP($A28,Filtro!$A$5:$AY$2917,11,FALSE),0) -> 0 | N28: =IFERROR(VLOOKUP($A28,Filtro!$A$5:$AY$2917,12,FALSE),0) -> 0 | O28: =IFERROR(VLOOKUP($A28,Filtro!$A$5:$AY$2917,13,FALSE),0) -> 0 | P28: =IFERROR(VLOOKUP($A28,Filtro!$A$5:$AY$2917,14,FALSE),0) -> 0 | Q28: =IFERROR(VLOOKUP($A28,Filtro!$A$5:$AY$2917,15,FALSE),0) -> 0 | R28: =IFERROR(VLOOKUP($A28,Filtro!$A$5:$AY$2917,16,FALSE),0) -> 0 | S28: =IFERROR(VLOOKUP($A28,Filtro!$A$5:$AY$2917,17,FALSE),0) -> 0 | T28: =IFERROR(VLOOKUP($A28,Filtro!$A$5:$AY$2917,18,FALSE),0) -> 0 | U28: =IFERROR(VLOOKUP($A28,Filtro!$A$5:$AY$2917,19,FALSE),0) -> 0 | V28: =IFERROR(VLOOKUP($A28,Filtro!$A$5:$AY$2917,20,FALSE),0) -> 0 | W28: =IFERROR(VLOOKUP($A28,Filtro!$A$5:$AY$2917,21,FALSE),0) -> 0 | X28: =IFERROR(VLOOKUP($A28,Filtro!$A$5:$AY$2917,22,FALSE),0) -> 0 | Y28: =IFERROR(VLOOKUP($A28,Filtro!$A$5:$AY$2917,23,FALSE),0) -> 0 | Z28: =IFERROR(VLOOKUP($A28,Filtro!$A$5:$AY$2917,24,FALSE),0) -> 0 | AA28: =IFERROR(VLOOKUP($A28,Filtro!$A$5:$AY$2917,25,FALSE),0) -> 0 | AB28: =IFERROR(VLOOKUP($A28,Filtro!$A$5:$AY$2917,26,FALSE),0) -> 0 | AC28: =IFERROR(VLOOKUP($A28,Filtro!$A$5:$AY$2917,27,FALSE),0) -> 6959 | AD28: =IFERROR(VLOOKUP($A28,Filtro!$A$5:$AY$2917,28,FALSE),0) -> 0 | AE28: =IFERROR(VLOOKUP($A28,Filtro!$A$5:$AY$2917,29,FALSE),0) -> 0 | AF28: =IFERROR(VLOOKUP($A28,Filtro!$A$5:$AY$2917,30,FALSE),0) -> 0 | AG28: =IFERROR(VLOOKUP($A28,Filtro!$A$5:$AY$2917,31,FALSE),0) -> 0 | AH28: =IFERROR(VLOOKUP($A28,Filtro!$A$5:$AY$2917,32,FALSE),0) -> 0 | AI28: =IFERROR(VLOOKUP($A28,Filtro!$A$5:$AY$2917,33,FALSE),0) -> 0 | AJ28: =IFERROR(VLOOKUP($A28,Filtro!$A$5:$AY$2917,34,FALSE),0) -> 0 | AK28: =IFERROR(VLOOKUP($A28,Filtro!$A$5:$AY$2917,35,FALSE),0) -> 0 | AL28: 9,050 | AM28: 64,101,150
A29: 01014297 | B29: 0101310 | C29: Consulta Médica de Especialidad en Traumatología y Ortopedia | D29: =IFERROR(VLOOKUP($A29,Filtro!$A$5:$AY$2917,2,FALSE),0) -> 17662 | E29: =IFERROR(VLOOKUP($A29,Filtro!$A$5:$AY$2917,3,FALSE),0) -> 17527 | F29: =IFERROR(VLOOKUP($A29,Filtro!$A$5:$AY$2917,4,FALSE),0) -> 17527 | G29: =IFERROR(VLOOKUP($A29,Filtro!$A$5:$AY$2917,5,FALSE),0) -> 0 | H29: =IFERROR(VLOOKUP($A29,Filtro!$A$5:$AY$2917,6,FALSE),0) -> 135 | I29: =IFERROR(VLOOKUP($A29,Filtro!$A$5:$AY$2917,7,FALSE),0) -> 0 | J29: =IFERROR(VLOOKUP($A29,Filtro!$A$5:$AY$2917,8,FALSE),0) -> 0 | K29: =IFERROR(VLOOKUP($A29,Filtro!$A$5:$AY$2917,9,FALSE),0) -> 0 | L29: =IFERROR(VLOOKUP($A29,Filtro!$A$5:$AY$2917,10,FALSE),0) -> 0 | M29: =IFERROR(VLOOKUP($A29,Filtro!$A$5:$AY$2917,11,FALSE),0) -> 0 | N29: =IFERROR(VLOOKUP($A29,Filtro!$A$5:$AY$2917,12,FALSE),0) -> 0 | O29: =IFERROR(VLOOKUP($A29,Filtro!$A$5:$AY$2917,13,FALSE),0) -> 0 | P29: =IFERROR(VLOOKUP($A29,Filtro!$A$5:$AY$2917,14,FALSE),0) -> 0 | Q29: =IFERROR(VLOOKUP($A29,Filtro!$A$5:$AY$2917,15,FALSE),0) -> 0 | R29: =IFERROR(VLOOKUP($A29,Filtro!$A$5:$AY$2917,16,FALSE),0) -> 0 | S29: =IFERROR(VLOOKUP($A29,Filtro!$A$5:$AY$2917,17,FALSE),0) -> 0 | T29: =IFERROR(VLOOKUP($A29,Filtro!$A$5:$AY$2917,18,FALSE),0) -> 0 | U29: =IFERROR(VLOOKUP($A29,Filtro!$A$5:$AY$2917,19,FALSE),0) -> 0 | V29: =IFERROR(VLOOKUP($A29,Filtro!$A$5:$AY$2917,20,FALSE),0) -> 0 | W29: =IFERROR(VLOOKUP($A29,Filtro!$A$5:$AY$2917,21,FALSE),0) -> 0 | X29: =IFERROR(VLOOKUP($A29,Filtro!$A$5:$AY$2917,22,FALSE),0) -> 0 | Y29: =IFERROR(VLOOKUP($A29,Filtro!$A$5:$AY$2917,23,FALSE),0) -> 0 | Z29: =IFERROR(VLOOKUP($A29,Filtro!$A$5:$AY$2917,24,FALSE),0) -> 0 | AA29: =IFERROR(VLOOKUP($A29,Filtro!$A$5:$AY$2917,25,FALSE),0) -> 0 | AB29: =IFERROR(VLOOKUP($A29,Filtro!$A$5:$AY$2917,26,FALSE),0) -> 0 | AC29: =IFERROR(VLOOKUP($A29,Filtro!$A$5:$AY$2917,27,FALSE),0) -> 17662 | AD29: =IFERROR(VLOOKUP($A29,Filtro!$A$5:$AY$2917,28,FALSE),0) -> 0 | AE29: =IFERROR(VLOOKUP($A29,Filtro!$A$5:$AY$2917,29,FALSE),0) -> 332 | AF29: =IFERROR(VLOOKUP($A29,Filtro!$A$5:$AY$2917,30,FALSE),0) -> 0 | AG29: =IFERROR(VLOOKUP($A29,Filtro!$A$5:$AY$2917,31,FALSE),0) -> 0 | AH29: =IFERROR(VLOOKUP($A29,Filtro!$A$5:$AY$2917,32,FALSE),0) -> 0 | AI29: =IFERROR(VLOOKUP($A29,Filtro!$A$5:$AY$2917,33,FALSE),0) -> 0 | AJ29: =IFERROR(VLOOKUP($A29,Filtro!$A$5:$AY$2917,34,FALSE),0) -> 0 | AK29: =IFERROR(VLOOKUP($A29,Filtro!$A$5:$AY$2917,35,FALSE),0) -> 0 | AL29: 9,050 | AM29: 158,619,350
A30: 01014298 | B30: 0101311 | C30: Consulta Médica de Especialidad en Urología | D30: =IFERROR(VLOOKUP($A30,Filtro!$A$5:$AY$2917,2,FALSE),0) -> 9541 | E30: =IFERROR(VLOOKUP($A30,Filtro!$A$5:$AY$2917,3,FALSE),0) -> 9538 | F30: =IFERROR(VLOOKUP($A30,Filtro!$A$5:$AY$2917,4,FALSE),0) -> 9538 | G30: =IFERROR(VLOOKUP($A30,Filtro!$A$5:$AY$2917,5,FALSE),0) -> 0 | H30: =IFERROR(VLOOKUP($A30,Filtro!$A$5:$AY$2917,6,FALSE),0) -> 3 | I30: =IFERROR(VLOOKUP($A30,Filtro!$A$5:$AY$2917,7,FALSE),0) -> 0 | J30: =IFERROR(VLOOKUP($A30,Filtro!$A$5:$AY$2917,8,FALSE),0) -> 0 | K30: =IFERROR(VLOOKUP($A30,Filtro!$A$5:$AY$2917,9,FALSE),0) -> 0 | L30: =IFERROR(VLOOKUP($A30,Filtro!$A$5:$AY$2917,10,FALSE),0) -> 0 | M30: =IFERROR(VLOOKUP($A30,Filtro!$A$5:$AY$2917,11,FALSE),0) -> 0 | N30: =IFERROR(VLOOKUP($A30,Filtro!$A$5:$AY$2917,12,FALSE),0) -> 0 | O30: =IFERROR(VLOOKUP($A30,Filtro!$A$5:$AY$2917,13,FALSE),0) -> 0 | P30: =IFERROR(VLOOKUP($A30,Filtro!$A$5:$AY$2917,14,FALSE),0) -> 0 | Q30: =IFERROR(VLOOKUP($A30,Filtro!$A$5:$AY$2917,15,FALSE),0) -> 0 | R30: =IFERROR(VLOOKUP($A30,Filtro!$A$5:$AY$2917,16,FALSE),0) -> 0 | S30: =IFERROR(VLOOKUP($A30,Filtro!$A$5:$AY$2917,17,FALSE),0) -> 0 | T30: =IFERROR(VLOOKUP($A30,Filtro!$A$5:$AY$2917,18,FALSE),0) -> 0 | U30: =IFERROR(VLOOKUP($A30,Filtro!$A$5:$AY$2917,19,FALSE),0) -> 0 | V30: =IFERROR(VLOOKUP($A30,Filtro!$A$5:$AY$2917,20,FALSE),0) -> 0 | W30: =IFERROR(VLOOKUP($A30,Filtro!$A$5:$AY$2917,21,FALSE),0) -> 0 | X30: =IFERROR(VLOOKUP($A30,Filtro!$A$5:$AY$2917,22,FALSE),0) -> 0 | Y30: =IFERROR(VLOOKUP($A30,Filtro!$A$5:$AY$2917,23,FALSE),0) -> 0 | Z30: =IFERROR(VLOOKUP($A30,Filtro!$A$5:$AY$2917,24,FALSE),0) -> 0 | AA30: =IFERROR(VLOOKUP($A30,Filtro!$A$5:$AY$2917,25,FALSE),0) -> 0 | AB30: =IFERROR(VLOOKUP($A30,Filtro!$A$5:$AY$2917,26,FALSE),0) -> 0 | AC30: =IFERROR(VLOOKUP($A30,Filtro!$A$5:$AY$2917,27,FALSE),0) -> 9541 | AD30: =IFERROR(VLOOKUP($A30,Filtro!$A$5:$AY$2917,28,FALSE),0) -> 0 | AE30: =IFERROR(VLOOKUP($A30,Filtro!$A$5:$AY$2917,29,FALSE),0) -> 1428 | AF30: =IFERROR(VLOOKUP($A30,Filtro!$A$5:$AY$2917,30,FALSE),0) -> 0 | AG30: =IFERROR(VLOOKUP($A30,Filtro!$A$5:$AY$2917,31,FALSE),0) -> 0 | AH30: =IFERROR(VLOOKUP($A30,Filtro!$A$5:$AY$2917,32,FALSE),0) -> 0 | AI30: =IFERROR(VLOOKUP($A30,Filtro!$A$5:$AY$2917,33,FALSE),0) -> 0 | AJ30: =IFERROR(VLOOKUP($A30,Filtro!$A$5:$AY$2917,34,FALSE),0) -> 0 | AK30: =IFERROR(VLOOKUP($A30,Filtro!$A$5:$AY$2917,35,FALSE),0) -> 0 | AL30: 9,050 | AM30: 86,318,900
A31: 01014299 | B31: 0101312 | C31: Consulta Médica de Especialidad en Cirugía General | D31: =IFERROR(VLOOKUP($A31,Filtro!$A$5:$AY$2917,2,FALSE),0) -> 12552 | E31: =IFERROR(VLOOKUP($A31,Filtro!$A$5:$AY$2917,3,FALSE),0) -> 12550 | F31: =IFERROR(VLOOKUP($A31,Filtro!$A$5:$AY$2917,4,FALSE),0) -> 12550 | G31: =IFERROR(VLOOKUP($A31,Filtro!$A$5:$AY$2917,5,FALSE),0) -> 0 | H31: =IFERROR(VLOOKUP($A31,Filtro!$A$5:$AY$2917,6,FALSE),0) -> 2 | I31: =IFERROR(VLOOKUP($A31,Filtro!$A$5:$AY$2917,7,FALSE),0) -> 0 | J31: =IFERROR(VLOOKUP($A31,Filtro!$A$5:$AY$2917,8,FALSE),0) -> 0 | K31: =IFERROR(VLOOKUP($A31,Filtro!$A$5:$AY$2917,9,FALSE),0) -> 0 | L31: =IFERROR(VLOOKUP($A31,Filtro!$A$5:$AY$2917,10,FALSE),0) -> 0 | M31: =IFERROR(VLOOKUP($A31,Filtro!$A$5:$AY$2917,11,FALSE),0) -> 0 | N31: =IFERROR(VLOOKUP($A31,Filtro!$A$5:$AY$2917,12,FALSE),0) -> 0 | O31: =IFERROR(VLOOKUP($A31,Filtro!$A$5:$AY$2917,13,FALSE),0) -> 0 | P31: =IFERROR(VLOOKUP($A31,Filtro!$A$5:$AY$2917,14,FALSE),0) -> 0 | Q31: =IFERROR(VLOOKUP($A31,Filtro!$A$5:$AY$2917,15,FALSE),0) -> 0 | R31: =IFERROR(VLOOKUP($A31,Filtro!$A$5:$AY$2917,16,FALSE),0) -> 0 | S31: =IFERROR(VLOOKUP($A31,Filtro!$A$5:$AY$2917,17,FALSE),0) -> 0 | T31: =IFERROR(VLOOKUP($A31,Filtro!$A$5:$AY$2917,18,FALSE),0) -> 0 | U31: =IFERROR(VLOOKUP($A31,Filtro!$A$5:$AY$2917,19,FALSE),0) -> 0 | V31: =IFERROR(VLOOKUP($A31,Filtro!$A$5:$AY$2917,20,FALSE),0) -> 0 | W31: =IFERROR(VLOOKUP($A31,Filtro!$A$5:$AY$2917,21,FALSE),0) -> 0 | X31: =IFERROR(VLOOKUP($A31,Filtro!$A$5:$AY$2917,22,FALSE),0) -> 0 | Y31: =IFERROR(VLOOKUP($A31,Filtro!$A$5:$AY$2917,23,FALSE),0) -> 0 | Z31: =IFERROR(VLOOKUP($A31,Filtro!$A$5:$AY$2917,24,FALSE),0) -> 0 | AA31: =IFERROR(VLOOKUP($A31,Filtro!$A$5:$AY$2917,25,FALSE),0) -> 0 | AB31: =IFERROR(VLOOKUP($A31,Filtro!$A$5:$AY$2917,26,FALSE),0) -> 0 | AC31: =IFERROR(VLOOKUP($A31,Filtro!$A$5:$AY$2917,27,FALSE),0) -> 12552 | AD31: =IFERROR(VLOOKUP($A31,Filtro!$A$5:$AY$2917,28,FALSE),0) -> 0 | AE31: =IFERROR(VLOOKUP($A31,Filtro!$A$5:$AY$2917,29,FALSE),0) -> 1646 | AF31: =IFERROR(VLOOKUP($A31,Filtro!$A$5:$AY$2917,30,FALSE),0) -> 0 | AG31: =IFERROR(VLOOKUP($A31,Filtro!$A$5:$AY$2917,31,FALSE),0) -> 0 | AH31: =IFERROR(VLOOKUP($A31,Filtro!$A$5:$AY$2917,32,FALSE),0) -> 0 | AI31: =IFERROR(VLOOKUP($A31,Filtro!$A$5:$AY$2917,33,FALSE),0) -> 0 | AJ31: =IFERROR(VLOOKUP($A31,Filtro!$A$5:$AY$2917,34,FALSE),0) -> 0 | AK31: =IFERROR(VLOOKUP($A31,Filtro!$A$5:$AY$2917,35,FALSE),0) -> 0 | AL31: 9,050 | AM31: 113,577,500
A32: 01014300 | B32: 0101313 | C32: Consulta Médica de Especialidad en Cirugía de Cabeza, Cuello y Maxilofacial | D32: =IFERROR(VLOOKUP($A32,Filtro!$A$5:$AY$2917,2,FALSE),0) -> 514 | E32: =IFERROR(VLOOKUP($A32,Filtro!$A$5:$AY$2917,3,FALSE),0) -> 512 | F32: =IFERROR(VLOOKUP($A32,Filtro!$A$5:$AY$2917,4,FALSE),0) -> 512 | G32: =IFERROR(VLOOKUP($A32,Filtro!$A$5:$AY$2917,5,FALSE),0) -> 0 | H32: =IFERROR(VLOOKUP($A32,Filtro!$A$5:$AY$2917,6,FALSE),0) -> 2 | I32: =IFERROR(VLOOKUP($A32,Filtro!$A$5:$AY$2917,7,FALSE),0) -> 0 | J32: =IFERROR(VLOOKUP($A32,Filtro!$A$5:$AY$2917,8,FALSE),0) -> 0 | K32: =IFERROR(VLOOKUP($A32,Filtro!$A$5:$AY$2917,9,FALSE),0) -> 0 | L32: =IFERROR(VLOOKUP($A32,Filtro!$A$5:$AY$2917,10,FALSE),0) -> 0 | M32: =IFERROR(VLOOKUP($A32,Filtro!$A$5:$AY$2917,11,FALSE),0) -> 0 | N32: =IFERROR(VLOOKUP($A32,Filtro!$A$5:$AY$2917,12,FALSE),0) -> 0 | O32: =IFERROR(VLOOKUP($A32,Filtro!$A$5:$AY$2917,13,FALSE),0) -> 0 | P32: =IFERROR(VLOOKUP($A32,Filtro!$A$5:$AY$2917,14,FALSE),0) -> 0 | Q32: =IFERROR(VLOOKUP($A32,Filtro!$A$5:$AY$2917,15,FALSE),0) -> 0 | R32: =IFERROR(VLOOKUP($A32,Filtro!$A$5:$AY$2917,16,FALSE),0) -> 0 | S32: =IFERROR(VLOOKUP($A32,Filtro!$A$5:$AY$2917,17,FALSE),0) -> 0 | T32: =IFERROR(VLOOKUP($A32,Filtro!$A$5:$AY$2917,18,FALSE),0) -> 0 | U32: =IFERROR(VLOOKUP($A32,Filtro!$A$5:$AY$2917,19,FALSE),0) -> 0 | V32: =IFERROR(VLOOKUP($A32,Filtro!$A$5:$AY$2917,20,FALSE),0) -> 0 | W32: =IFERROR(VLOOKUP($A32,Filtro!$A$5:$AY$2917,21,FALSE),0) -> 0 | X32: =IFERROR(VLOOKUP($A32,Filtro!$A$5:$AY$2917,22,FALSE),0) -> 0 | Y32: =IFERROR(VLOOKUP($A32,Filtro!$A$5:$AY$2917,23,FALSE),0) -> 0 | Z32: =IFERROR(VLOOKUP($A32,Filtro!$A$5:$AY$2917,24,FALSE),0) -> 0 | AA32: =IFERROR(VLOOKUP($A32,Filtro!$A$5:$AY$2917,25,FALSE),0) -> 0 | AB32: =IFERROR(VLOOKUP($A32,Filtro!$A$5:$AY$2917,26,FALSE),0) -> 0 | AC32: =IFERROR(VLOOKUP($A32,Filtro!$A$5:$AY$2917,27,FALSE),0) -> 514 | AD32: =IFERROR(VLOOKUP($A32,Filtro!$A$5:$AY$2917,28,FALSE),0) -> 0 | AE32: =IFERROR(VLOOKUP($A32,Filtro!$A$5:$AY$2917,29,FALSE),0) -> 0 | AF32: =IFERROR(VLOOKUP($A32,Filtro!$A$5:$AY$2917,30,FALSE),0) -> 0 | AG32: =IFERROR(VLOOKUP($A32,Filtro!$A$5:$AY$2917,31,FALSE),0) -> 0 | AH32: =IFERROR(VLOOKUP($A32,Filtro!$A$5:$AY$2917,32,FALSE),0) -> 0 | AI32: =IFERROR(VLOOKUP($A32,Filtro!$A$5:$AY$2917,33,FALSE),0) -> 0 | AJ32: =IFERROR(VLOOKUP($A32,Filtro!$A$5:$AY$2917,34,FALSE),0) -> 0 | AK32: =IFERROR(VLOOKUP($A32,Filtro!$A$5:$AY$2917,35,FALSE),0) -> 0 | AL32: 9,050 | AM32: 4,633,600
A33: 01014301 | B33: 0101314 | C33: Consulta Médica de Especialidad en Cirugía Cardiovascular | D33: =IFERROR(VLOOKUP($A33,Filtro!$A$5:$AY$2917,2,FALSE),0) -> 0 | E33: =IFERROR(VLOOKUP($A33,Filtro!$A$5:$AY$2917,3,FALSE),0) -> 0 | F33: =IFERROR(VLOOKUP($A33,Filtro!$A$5:$AY$2917,4,FALSE),0) -> 0 | G33: =IFERROR(VLOOKUP($A33,Filtro!$A$5:$AY$2917,5,FALSE),0) -> 0 | H33: =IFERROR(VLOOKUP($A33,Filtro!$A$5:$AY$2917,6,FALSE),0) -> 0 | I33: =IFERROR(VLOOKUP($A33,Filtro!$A$5:$AY$2917,7,FALSE),0) -> 0 | J33: =IFERROR(VLOOKUP($A33,Filtro!$A$5:$AY$2917,8,FALSE),0) -> 0 | K33: =IFERROR(VLOOKUP($A33,Filtro!$A$5:$AY$2917,9,FALSE),0) -> 0 | L33: =IFERROR(VLOOKUP($A33,Filtro!$A$5:$AY$2917,10,FALSE),0) -> 0 | M33: =IFERROR(VLOOKUP($A33,Filtro!$A$5:$AY$2917,11,FALSE),0) -> 0 | N33: =IFERROR(VLOOKUP($A33,Filtro!$A$5:$AY$2917,12,FALSE),0) -> 0 | O33: =IFERROR(VLOOKUP($A33,Filtro!$A$5:$AY$2917,13,FALSE),0) -> 0 | P33: =IFERROR(VLOOKUP($A33,Filtro!$A$5:$AY$2917,14,FALSE),0) -> 0 | Q33: =IFERROR(VLOOKUP($A33,Filtro!$A$5:$AY$2917,15,FALSE),0) -> 0 | R33: =IFERROR(VLOOKUP($A33,Filtro!$A$5:$AY$2917,16,FALSE),0) -> 0 | S33: =IFERROR(VLOOKUP($A33,Filtro!$A$5:$AY$2917,17,FALSE),0) -> 0 | T33: =IFERROR(VLOOKUP($A33,Filtro!$A$5:$AY$2917,18,FALSE),0) -> 0 | U33: =IFERROR(VLOOKUP($A33,Filtro!$A$5:$AY$2917,19,FALSE),0) -> 0 | V33: =IFERROR(VLOOKUP($A33,Filtro!$A$5:$AY$2917,20,FALSE),0) -> 0 | W33: =IFERROR(VLOOKUP($A33,Filtro!$A$5:$AY$2917,21,FALSE),0) -> 0 | X33: =IFERROR(VLOOKUP($A33,Filtro!$A$5:$AY$2917,22,FALSE),0) -> 0 | Y33: =IFERROR(VLOOKUP($A33,Filtro!$A$5:$AY$2917,23,FALSE),0) -> 0 | Z33: =IFERROR(VLOOKUP($A33,Filtro!$A$5:$AY$2917,24,FALSE),0) -> 0 | AA33: =IFERROR(VLOOKUP($A33,Filtro!$A$5:$AY$2917,25,FALSE),0) -> 0 | AB33: =IFERROR(VLOOKUP($A33,Filtro!$A$5:$AY$2917,26,FALSE),0) -> 0 | AC33: =IFERROR(VLOOKUP($A33,Filtro!$A$5:$AY$2917,27,FALSE),0) -> 0 | AD33: =IFERROR(VLOOKUP($A33,Filtro!$A$5:$AY$2917,28,FALSE),0) -> 0 | AE33: =IFERROR(VLOOKUP($A33,Filtro!$A$5:$AY$2917,29,FALSE),0) -> 0 | AF33: =IFERROR(VLOOKUP($A33,Filtro!$A$5:$AY$2917,30,FALSE),0) -> 0 | AG33: =IFERROR(VLOOKUP($A33,Filtro!$A$5:$AY$2917,31,FALSE),0) -> 0 | AH33: =IFERROR(VLOOKUP($A33,Filtro!$A$5:$AY$2917,32,FALSE),0) -> 0 | AI33: =IFERROR(VLOOKUP($A33,Filtro!$A$5:$AY$2917,33,FALSE),0) -> 0 | AJ33: =IFERROR(VLOOKUP($A33,Filtro!$A$5:$AY$2917,34,FALSE),0) -> 0 | AK33: =IFERROR(VLOOKUP($A33,Filtro!$A$5:$AY$2917,35,FALSE),0) -> 0 | AL33: 9,050 | AM33: 0
A34: 01014302 | B34: 0101315 | C34: Consulta Médica de Especialidad en Cirugía de Tórax | D34: =IFERROR(VLOOKUP($A34,Filtro!$A$5:$AY$2917,2,FALSE),0) -> 483 | E34: =IFERROR(VLOOKUP($A34,Filtro!$A$5:$AY$2917,3,FALSE),0) -> 483 | F34: =IFERROR(VLOOKUP($A34,Filtro!$A$5:$AY$2917,4,FALSE),0) -> 483 | G34: =IFERROR(VLOOKUP($A34,Filtro!$A$5:$AY$2917,5,FALSE),0) -> 0 | H34: =IFERROR(VLOOKUP($A34,Filtro!$A$5:$AY$2917,6,FALSE),0) -> 0 | I34: =IFERROR(VLOOKUP($A34,Filtro!$A$5:$AY$2917,7,FALSE),0) -> 0 | J34: =IFERROR(VLOOKUP($A34,Filtro!$A$5:$AY$2917,8,FALSE),0) -> 0 | K34: =IFERROR(VLOOKUP($A34,Filtro!$A$5:$AY$2917,9,FALSE),0) -> 0 | L34: =IFERROR(VLOOKUP($A34,Filtro!$A$5:$AY$2917,10,FALSE),0) -> 0 | M34: =IFERROR(VLOOKUP($A34,Filtro!$A$5:$AY$2917,11,FALSE),0) -> 0 | N34: =IFERROR(VLOOKUP($A34,Filtro!$A$5:$AY$2917,12,FALSE),0) -> 0 | O34: =IFERROR(VLOOKUP($A34,Filtro!$A$5:$AY$2917,13,FALSE),0) -> 0 | P34: =IFERROR(VLOOKUP($A34,Filtro!$A$5:$AY$2917,14,FALSE),0) -> 0 | Q34: =IFERROR(VLOOKUP($A34,Filtro!$A$5:$AY$2917,15,FALSE),0) -> 0 | R34: =IFERROR(VLOOKUP($A34,Filtro!$A$5:$AY$2917,16,FALSE),0) -> 0 | S34: =IFERROR(VLOOKUP($A34,Filtro!$A$5:$AY$2917,17,FALSE),0) -> 0 | T34: =IFERROR(VLOOKUP($A34,Filtro!$A$5:$AY$2917,18,FALSE),0) -> 0 | U34: =IFERROR(VLOOKUP($A34,Filtro!$A$5:$AY$2917,19,FALSE),0) -> 0 | V34: =IFERROR(VLOOKUP($A34,Filtro!$A$5:$AY$2917,20,FALSE),0) -> 0 | W34: =IFERROR(VLOOKUP($A34,Filtro!$A$5:$AY$2917,21,FALSE),0) -> 0 | X34: =IFERROR(VLOOKUP($A34,Filtro!$A$5:$AY$2917,22,FALSE),0) -> 0 | Y34: =IFERROR(VLOOKUP($A34,Filtro!$A$5:$AY$2917,23,FALSE),0) -> 0 | Z34: =IFERROR(VLOOKUP($A34,Filtro!$A$5:$AY$2917,24,FALSE),0) -> 0 | AA34: =IFERROR(VLOOKUP($A34,Filtro!$A$5:$AY$2917,25,FALSE),0) -> 0 | AB34: =IFERROR(VLOOKUP($A34,Filtro!$A$5:$AY$2917,26,FALSE),0) -> 0 | AC34: =IFERROR(VLOOKUP($A34,Filtro!$A$5:$AY$2917,27,FALSE),0) -> 483 | AD34: =IFERROR(VLOOKUP($A34,Filtro!$A$5:$AY$2917,28,FALSE),0) -> 0 | AE34: =IFERROR(VLOOKUP($A34,Filtro!$A$5:$AY$2917,29,FALSE),0) -> 0 | AF34: =IFERROR(VLOOKUP($A34,Filtro!$A$5:$AY$2917,30,FALSE),0) -> 0 | AG34: =IFERROR(VLOOKUP($A34,Filtro!$A$5:$AY$2917,31,FALSE),0) -> 0 | AH34: =IFERROR(VLOOKUP($A34,Filtro!$A$5:$AY$2917,32,FALSE),0) -> 0 | AI34: =IFERROR(VLOOKUP($A34,Filtro!$A$5:$AY$2917,33,FALSE),0) -> 0 | AJ34: =IFERROR(VLOOKUP($A34,Filtro!$A$5:$AY$2917,34,FALSE),0) -> 0 | AK34: =IFERROR(VLOOKUP($A34,Filtro!$A$5:$AY$2917,35,FALSE),0) -> 0 | AL34: 9,050 | AM34: 4,371,150
A35: 01014303 | B35: 0101316 | C35: Consulta Médica de Especialidad en Cirugía Plástica y Reparadora | D35: =IFERROR(VLOOKUP($A35,Filtro!$A$5:$AY$2917,2,FALSE),0) -> 161 | E35: =IFERROR(VLOOKUP($A35,Filtro!$A$5:$AY$2917,3,FALSE),0) -> 161 | F35: =IFERROR(VLOOKUP($A35,Filtro!$A$5:$AY$2917,4,FALSE),0) -> 161 | G35: =IFERROR(VLOOKUP($A35,Filtro!$A$5:$AY$2917,5,FALSE),0) -> 0 | H35: =IFERROR(VLOOKUP($A35,Filtro!$A$5:$AY$2917,6,FALSE),0) -> 0 | I35: =IFERROR(VLOOKUP($A35,Filtro!$A$5:$AY$2917,7,FALSE),0) -> 0 | J35: =IFERROR(VLOOKUP($A35,Filtro!$A$5:$AY$2917,8,FALSE),0) -> 0 | K35: =IFERROR(VLOOKUP($A35,Filtro!$A$5:$AY$2917,9,FALSE),0) -> 0 | L35: =IFERROR(VLOOKUP($A35,Filtro!$A$5:$AY$2917,10,FALSE),0) -> 0 | M35: =IFERROR(VLOOKUP($A35,Filtro!$A$5:$AY$2917,11,FALSE),0) -> 0 | N35: =IFERROR(VLOOKUP($A35,Filtro!$A$5:$AY$2917,12,FALSE),0) -> 0 | O35: =IFERROR(VLOOKUP($A35,Filtro!$A$5:$AY$2917,13,FALSE),0) -> 0 | P35: =IFERROR(VLOOKUP($A35,Filtro!$A$5:$AY$2917,14,FALSE),0) -> 0 | Q35: =IFERROR(VLOOKUP($A35,Filtro!$A$5:$AY$2917,15,FALSE),0) -> 0 | R35: =IFERROR(VLOOKUP($A35,Filtro!$A$5:$AY$2917,16,FALSE),0) -> 0 | S35: =IFERROR(VLOOKUP($A35,Filtro!$A$5:$AY$2917,17,FALSE),0) -> 0 | T35: =IFERROR(VLOOKUP($A35,Filtro!$A$5:$AY$2917,18,FALSE),0) -> 0 | U35: =IFERROR(VLOOKUP($A35,Filtro!$A$5:$AY$2917,19,FALSE),0) -> 0 | V35: =IFERROR(VLOOKUP($A35,Filtro!$A$5:$AY$2917,20,FALSE),0) -> 0 | W35: =IFERROR(VLOOKUP($A35,Filtro!$A$5:$AY$2917,21,FALSE),0) -> 0 | X35: =IFERROR(VLOOKUP($A35,Filtro!$A$5:$AY$2917,22,FALSE),0) -> 0 | Y35: =IFERROR(VLOOKUP($A35,Filtro!$A$5:$AY$2917,23,FALSE),0) -> 0 | Z35: =IFERROR(VLOOKUP($A35,Filtro!$A$5:$AY$2917,24,FALSE),0) -> 0 | AA35: =IFERROR(VLOOKUP($A35,Filtro!$A$5:$AY$2917,25,FALSE),0) -> 0 | AB35: =IFERROR(VLOOKUP($A35,Filtro!$A$5:$AY$2917,26,FALSE),0) -> 0 | AC35: =IFERROR(VLOOKUP($A35,Filtro!$A$5:$AY$2917,27,FALSE),0) -> 161 | AD35: =IFERROR(VLOOKUP($A35,Filtro!$A$5:$AY$2917,28,FALSE),0) -> 0 | AE35: =IFERROR(VLOOKUP($A35,Filtro!$A$5:$AY$2917,29,FALSE),0) -> 0 | AF35: =IFERROR(VLOOKUP($A35,Filtro!$A$5:$AY$2917,30,FALSE),0) -> 0 | AG35: =IFERROR(VLOOKUP($A35,Filtro!$A$5:$AY$2917,31,FALSE),0) -> 0 | AH35: =IFERROR(VLOOKUP($A35,Filtro!$A$5:$AY$2917,32,FALSE),0) -> 0 | AI35: =IFERROR(VLOOKUP($A35,Filtro!$A$5:$AY$2917,33,FALSE),0) -> 0 | AJ35: =IFERROR(VLOOKUP($A35,Filtro!$A$5:$AY$2917,34,FALSE),0) -> 0 | AK35: =IFERROR(VLOOKUP($A35,Filtro!$A$5:$AY$2917,35,FALSE),0) -> 0 | AL35: 9,050 | AM35: 1,457,050
A36: 01014304 | B36: 0101317 | C36: Consulta Médica de Especialidad en Cirugía Pediátrica | D36: =IFERROR(VLOOKUP($A36,Filtro!$A$5:$AY$2917,2,FALSE),0) -> 5160 | E36: =IFERROR(VLOOKUP($A36,Filtro!$A$5:$AY$2917,3,FALSE),0) -> 5154 | F36: =IFERROR(VLOOKUP($A36,Filtro!$A$5:$AY$2917,4,FALSE),0) -> 5154 | G36: =IFERROR(VLOOKUP($A36,Filtro!$A$5:$AY$2917,5,FALSE),0) -> 0 | H36: =IFERROR(VLOOKUP($A36,Filtro!$A$5:$AY$2917,6,FALSE),0) -> 6 | I36: =IFERROR(VLOOKUP($A36,Filtro!$A$5:$AY$2917,7,FALSE),0) -> 0 | J36: =IFERROR(VLOOKUP($A36,Filtro!$A$5:$AY$2917,8,FALSE),0) -> 0 | K36: =IFERROR(VLOOKUP($A36,Filtro!$A$5:$AY$2917,9,FALSE),0) -> 0 | L36: =IFERROR(VLOOKUP($A36,Filtro!$A$5:$AY$2917,10,FALSE),0) -> 0 | M36: =IFERROR(VLOOKUP($A36,Filtro!$A$5:$AY$2917,11,FALSE),0) -> 0 | N36: =IFERROR(VLOOKUP($A36,Filtro!$A$5:$AY$2917,12,FALSE),0) -> 0 | O36: =IFERROR(VLOOKUP($A36,Filtro!$A$5:$AY$2917,13,FALSE),0) -> 0 | P36: =IFERROR(VLOOKUP($A36,Filtro!$A$5:$AY$2917,14,FALSE),0) -> 0 | Q36: =IFERROR(VLOOKUP($A36,Filtro!$A$5:$AY$2917,15,FALSE),0) -> 0 | R36: =IFERROR(VLOOKUP($A36,Filtro!$A$5:$AY$2917,16,FALSE),0) -> 0 | S36: =IFERROR(VLOOKUP($A36,Filtro!$A$5:$AY$2917,17,FALSE),0) -> 0 | T36: =IFERROR(VLOOKUP($A36,Filtro!$A$5:$AY$2917,18,FALSE),0) -> 0 | U36: =IFERROR(VLOOKUP($A36,Filtro!$A$5:$AY$2917,19,FALSE),0) -> 0 | V36: =IFERROR(VLOOKUP($A36,Filtro!$A$5:$AY$2917,20,FALSE),0) -> 0 | W36: =IFERROR(VLOOKUP($A36,Filtro!$A$5:$AY$2917,21,FALSE),0) -> 0 | X36: =IFERROR(VLOOKUP($A36,Filtro!$A$5:$AY$2917,22,FALSE),0) -> 0 | Y36: =IFERROR(VLOOKUP($A36,Filtro!$A$5:$AY$2917,23,FALSE),0) -> 0 | Z36: =IFERROR(VLOOKUP($A36,Filtro!$A$5:$AY$2917,24,FALSE),0) -> 0 | AA36: =IFERROR(VLOOKUP($A36,Filtro!$A$5:$AY$2917,25,FALSE),0) -> 0 | AB36: =IFERROR(VLOOKUP($A36,Filtro!$A$5:$AY$2917,26,FALSE),0) -> 0 | AC36: =IFERROR(VLOOKUP($A36,Filtro!$A$5:$AY$2917,27,FALSE),0) -> 5160 | AD36: =IFERROR(VLOOKUP($A36,Filtro!$A$5:$AY$2917,28,FALSE),0) -> 0 | AE36: =IFERROR(VLOOKUP($A36,Filtro!$A$5:$AY$2917,29,FALSE),0) -> 0 | AF36: =IFERROR(VLOOKUP($A36,Filtro!$A$5:$AY$2917,30,FALSE),0) -> 0 | AG36: =IFERROR(VLOOKUP($A36,Filtro!$A$5:$AY$2917,31,FALSE),0) -> 0 | AH36: =IFERROR(VLOOKUP($A36,Filtro!$A$5:$AY$2917,32,FALSE),0) -> 0 | AI36: =IFERROR(VLOOKUP($A36,Filtro!$A$5:$AY$2917,33,FALSE),0) -> 0 | AJ36: =IFERROR(VLOOKUP($A36,Filtro!$A$5:$AY$2917,34,FALSE),0) -> 0 | AK36: =IFERROR(VLOOKUP($A36,Filtro!$A$5:$AY$2917,35,FALSE),0) -> 0 | AL36: 9,050 | AM36: 46,643,700
A37: 01014305 | B37: 0101318 | C37: Consulta Médica de Especialidad en Cirugía Vascular Periférica | D37: =IFERROR(VLOOKUP($A37,Filtro!$A$5:$AY$2917,2,FALSE),0) -> 1377 | E37: =IFERROR(VLOOKUP($A37,Filtro!$A$5:$AY$2917,3,FALSE),0) -> 1377 | F37: =IFERROR(VLOOKUP($A37,Filtro!$A$5:$AY$2917,4,FALSE),0) -> 1377 | G37: =IFERROR(VLOOKUP($A37,Filtro!$A$5:$AY$2917,5,FALSE),0) -> 0 | H37: =IFERROR(VLOOKUP($A37,Filtro!$A$5:$AY$2917,6,FALSE),0) -> 0 | I37: =IFERROR(VLOOKUP($A37,Filtro!$A$5:$AY$2917,7,FALSE),0) -> 0 | J37: =IFERROR(VLOOKUP($A37,Filtro!$A$5:$AY$2917,8,FALSE),0) -> 0 | K37: =IFERROR(VLOOKUP($A37,Filtro!$A$5:$AY$2917,9,FALSE),0) -> 0 | L37: =IFERROR(VLOOKUP($A37,Filtro!$A$5:$AY$2917,10,FALSE),0) -> 0 | M37: =IFERROR(VLOOKUP($A37,Filtro!$A$5:$AY$2917,11,FALSE),0) -> 0 | N37: =IFERROR(VLOOKUP($A37,Filtro!$A$5:$AY$2917,12,FALSE),0) -> 0 | O37: =IFERROR(VLOOKUP($A37,Filtro!$A$5:$AY$2917,13,FALSE),0) -> 0 | P37: =IFERROR(VLOOKUP($A37,Filtro!$A$5:$AY$2917,14,FALSE),0) -> 0 | Q37: =IFERROR(VLOOKUP($A37,Filtro!$A$5:$AY$2917,15,FALSE),0) -> 0 | R37: =IFERROR(VLOOKUP($A37,Filtro!$A$5:$AY$2917,16,FALSE),0) -> 0 | S37: =IFERROR(VLOOKUP($A37,Filtro!$A$5:$AY$2917,17,FALSE),0) -> 0 | T37: =IFERROR(VLOOKUP($A37,Filtro!$A$5:$AY$2917,18,FALSE),0) -> 0 | U37: =IFERROR(VLOOKUP($A37,Filtro!$A$5:$AY$2917,19,FALSE),0) -> 0 | V37: =IFERROR(VLOOKUP($A37,Filtro!$A$5:$AY$2917,20,FALSE),0) -> 0 | W37: =IFERROR(VLOOKUP($A37,Filtro!$A$5:$AY$2917,21,FALSE),0) -> 0 | X37: =IFERROR(VLOOKUP($A37,Filtro!$A$5:$AY$2917,22,FALSE),0) -> 0 | Y37: =IFERROR(VLOOKUP($A37,Filtro!$A$5:$AY$2917,23,FALSE),0) -> 0 | Z37: =IFERROR(VLOOKUP($A37,Filtro!$A$5:$AY$2917,24,FALSE),0) -> 0 | AA37: =IFERROR(VLOOKUP($A37,Filtro!$A$5:$AY$2917,25,FALSE),0) -> 0 | AB37: =IFERROR(VLOOKUP($A37,Filtro!$A$5:$AY$2917,26,FALSE),0) -> 0 | AC37: =IFERROR(VLOOKUP($A37,Filtro!$A$5:$AY$2917,27,FALSE),0) -> 1377 | AD37: =IFERROR(VLOOKUP($A37,Filtro!$A$5:$AY$2917,28,FALSE),0) -> 0 | AE37: =IFERROR(VLOOKUP($A37,Filtro!$A$5:$AY$2917,29,FALSE),0) -> 0 | AF37: =IFERROR(VLOOKUP($A37,Filtro!$A$5:$AY$2917,30,FALSE),0) -> 0 | AG37: =IFERROR(VLOOKUP($A37,Filtro!$A$5:$AY$2917,31,FALSE),0) -> 0 | AH37: =IFERROR(VLOOKUP($A37,Filtro!$A$5:$AY$2917,32,FALSE),0) -> 0 | AI37: =IFERROR(VLOOKUP($A37,Filtro!$A$5:$AY$2917,33,FALSE),0) -> 0 | AJ37: =IFERROR(VLOOKUP($A37,Filtro!$A$5:$AY$2917,34,FALSE),0) -> 0 | AK37: =IFERROR(VLOOKUP($A37,Filtro!$A$5:$AY$2917,35,FALSE),0) -> 0 | AL37: 9,050 | AM37: 12,461,850
A38: 01014306 | B38: 0101319 | C38: Consulta Médica de Especialidad en Coloproctología | D38: =IFERROR(VLOOKUP($A38,Filtro!$A$5:$AY$2917,2,FALSE),0) -> 1433 | E38: =IFERROR(VLOOKUP($A38,Filtro!$A$5:$AY$2917,3,FALSE),0) -> 1433 | F38: =IFERROR(VLOOKUP($A38,Filtro!$A$5:$AY$2917,4,FALSE),0) -> 1433 | G38: =IFERROR(VLOOKUP($A38,Filtro!$A$5:$AY$2917,5,FALSE),0) -> 0 | H38: =IFERROR(VLOOKUP($A38,Filtro!$A$5:$AY$2917,6,FALSE),0) -> 0 | I38: =IFERROR(VLOOKUP($A38,Filtro!$A$5:$AY$2917,7,FALSE),0) -> 0 | J38: =IFERROR(VLOOKUP($A38,Filtro!$A$5:$AY$2917,8,FALSE),0) -> 0 | K38: =IFERROR(VLOOKUP($A38,Filtro!$A$5:$AY$2917,9,FALSE),0) -> 0 | L38: =IFERROR(VLOOKUP($A38,Filtro!$A$5:$AY$2917,10,FALSE),0) -> 0 | M38: =IFERROR(VLOOKUP($A38,Filtro!$A$5:$AY$2917,11,FALSE),0) -> 0 | N38: =IFERROR(VLOOKUP($A38,Filtro!$A$5:$AY$2917,12,FALSE),0) -> 0 | O38: =IFERROR(VLOOKUP($A38,Filtro!$A$5:$AY$2917,13,FALSE),0) -> 0 | P38: =IFERROR(VLOOKUP($A38,Filtro!$A$5:$AY$2917,14,FALSE),0) -> 0 | Q38: =IFERROR(VLOOKUP($A38,Filtro!$A$5:$AY$2917,15,FALSE),0) -> 0 | R38: =IFERROR(VLOOKUP($A38,Filtro!$A$5:$AY$2917,16,FALSE),0) -> 0 | S38: =IFERROR(VLOOKUP($A38,Filtro!$A$5:$AY$2917,17,FALSE),0) -> 0 | T38: =IFERROR(VLOOKUP($A38,Filtro!$A$5:$AY$2917,18,FALSE),0) -> 0 | U38: =IFERROR(VLOOKUP($A38,Filtro!$A$5:$AY$2917,19,FALSE),0) -> 0 | V38: =IFERROR(VLOOKUP($A38,Filtro!$A$5:$AY$2917,20,FALSE),0) -> 0 | W38: =IFERROR(VLOOKUP($A38,Filtro!$A$5:$AY$2917,21,FALSE),0) -> 0 | X38: =IFERROR(VLOOKUP($A38,Filtro!$A$5:$AY$2917,22,FALSE),0) -> 0 | Y38: =IFERROR(VLOOKUP($A38,Filtro!$A$5:$AY$2917,23,FALSE),0) -> 0 | Z38: =IFERROR(VLOOKUP($A38,Filtro!$A$5:$AY$2917,24,FALSE),0) -> 0 | AA38: =IFERROR(VLOOKUP($A38,Filtro!$A$5:$AY$2917,25,FALSE),0) -> 0 | AB38: =IFERROR(VLOOKUP($A38,Filtro!$A$5:$AY$2917,26,FALSE),0) -> 0 | AC38: =IFERROR(VLOOKUP($A38,Filtro!$A$5:$AY$2917,27,FALSE),0) -> 1433 | AD38: =IFERROR(VLOOKUP($A38,Filtro!$A$5:$AY$2917,28,FALSE),0) -> 0 | AE38: =IFERROR(VLOOKUP($A38,Filtro!$A$5:$AY$2917,29,FALSE),0) -> 0 | AF38: =IFERROR(VLOOKUP($A38,Filtro!$A$5:$AY$2917,30,FALSE),0) -> 0 | AG38: =IFERROR(VLOOKUP($A38,Filtro!$A$5:$AY$2917,31,FALSE),0) -> 0 | AH38: =IFERROR(VLOOKUP($A38,Filtro!$A$5:$AY$2917,32,FALSE),0) -> 0 | AI38: =IFERROR(VLOOKUP($A38,Filtro!$A$5:$AY$2917,33,FALSE),0) -> 0 | AJ38: =IFERROR(VLOOKUP($A38,Filtro!$A$5:$AY$2917,34,FALSE),0) -> 0 | AK38: =IFERROR(VLOOKUP($A38,Filtro!$A$5:$AY$2917,35,FALSE),0) -> 0 | AL38: 9,050 | AM38: 12,968,650
A39: 01014307 | B39: 0101320 | C39: Consulta Médica de Especialidad en Diabetología | D39: =IFERROR(VLOOKUP($A39,Filtro!$A$5:$AY$2917,2,FALSE),0) -> 372 | E39: =IFERROR(VLOOKUP($A39,Filtro!$A$5:$AY$2917,3,FALSE),0) -> 372 | F39: =IFERROR(VLOOKUP($A39,Filtro!$A$5:$AY$2917,4,FALSE),0) -> 372 | G39: =IFERROR(VLOOKUP($A39,Filtro!$A$5:$AY$2917,5,FALSE),0) -> 0 | H39: =IFERROR(VLOOKUP($A39,Filtro!$A$5:$AY$2917,6,FALSE),0) -> 0 | I39: =IFERROR(VLOOKUP($A39,Filtro!$A$5:$AY$2917,7,FALSE),0) -> 0 | J39: =IFERROR(VLOOKUP($A39,Filtro!$A$5:$AY$2917,8,FALSE),0) -> 0 | K39: =IFERROR(VLOOKUP($A39,Filtro!$A$5:$AY$2917,9,FALSE),0) -> 0 | L39: =IFERROR(VLOOKUP($A39,Filtro!$A$5:$AY$2917,10,FALSE),0) -> 0 | M39: =IFERROR(VLOOKUP($A39,Filtro!$A$5:$AY$2917,11,FALSE),0) -> 0 | N39: =IFERROR(VLOOKUP($A39,Filtro!$A$5:$AY$2917,12,FALSE),0) -> 0 | O39: =IFERROR(VLOOKUP($A39,Filtro!$A$5:$AY$2917,13,FALSE),0) -> 0 | P39: =IFERROR(VLOOKUP($A39,Filtro!$A$5:$AY$2917,14,FALSE),0) -> 0 | Q39: =IFERROR(VLOOKUP($A39,Filtro!$A$5:$AY$2917,15,FALSE),0) -> 0 | R39: =IFERROR(VLOOKUP($A39,Filtro!$A$5:$AY$2917,16,FALSE),0) -> 0 | S39: =IFERROR(VLOOKUP($A39,Filtro!$A$5:$AY$2917,17,FALSE),0) -> 0 | T39: =IFERROR(VLOOKUP($A39,Filtro!$A$5:$AY$2917,18,FALSE),0) -> 0 | U39: =IFERROR(VLOOKUP($A39,Filtro!$A$5:$AY$2917,19,FALSE),0) -> 0 | V39: =IFERROR(VLOOKUP($A39,Filtro!$A$5:$AY$2917,20,FALSE),0) -> 0 | W39: =IFERROR(VLOOKUP($A39,Filtro!$A$5:$AY$2917,21,FALSE),0) -> 0 | X39: =IFERROR(VLOOKUP($A39,Filtro!$A$5:$AY$2917,22,FALSE),0) -> 0 | Y39: =IFERROR(VLOOKUP($A39,Filtro!$A$5:$AY$2917,23,FALSE),0) -> 0 | Z39: =IFERROR(VLOOKUP($A39,Filtro!$A$5:$AY$2917,24,FALSE),0) -> 0 | AA39: =IFERROR(VLOOKUP($A39,Filtro!$A$5:$AY$2917,25,FALSE),0) -> 0 | AB39: =IFERROR(VLOOKUP($A39,Filtro!$A$5:$AY$2917,26,FALSE),0) -> 0 | AC39: =IFERROR(VLOOKUP($A39,Filtro!$A$5:$AY$2917,27,FALSE),0) -> 372 | AD39: =IFERROR(VLOOKUP($A39,Filtro!$A$5:$AY$2917,28,FALSE),0) -> 0 | AE39: =IFERROR(VLOOKUP($A39,Filtro!$A$5:$AY$2917,29,FALSE),0) -> 0 | AF39: =IFERROR(VLOOKUP($A39,Filtro!$A$5:$AY$2917,30,FALSE),0) -> 0 | AG39: =IFERROR(VLOOKUP($A39,Filtro!$A$5:$AY$2917,31,FALSE),0) -> 0 | AH39: =IFERROR(VLOOKUP($A39,Filtro!$A$5:$AY$2917,32,FALSE),0) -> 0 | AI39: =IFERROR(VLOOKUP($A39,Filtro!$A$5:$AY$2917,33,FALSE),0) -> 0 | AJ39: =IFERROR(VLOOKUP($A39,Filtro!$A$5:$AY$2917,34,FALSE),0) -> 0 | AK39: =IFERROR(VLOOKUP($A39,Filtro!$A$5:$AY$2917,35,FALSE),0) -> 0 | AL39: 9,050 | AM39: 3,366,600
A40: 01014308 | B40: 0101321 | C40: Consulta Médica de Especialidad en Enfermedades Respiratorias Adulto | D40: =IFERROR(VLOOKUP($A40,Filtro!$A$5:$AY$2917,2,FALSE),0) -> 2465 | E40: =IFERROR(VLOOKUP($A40,Filtro!$A$5:$AY$2917,3,FALSE),0) -> 2465 | F40: =IFERROR(VLOOKUP($A40,Filtro!$A$5:$AY$2917,4,FALSE),0) -> 2465 | G40: =IFERROR(VLOOKUP($A40,Filtro!$A$5:$AY$2917,5,FALSE),0) -> 0 | H40: =IFERROR(VLOOKUP($A40,Filtro!$A$5:$AY$2917,6,FALSE),0) -> 0 | I40: =IFERROR(VLOOKUP($A40,Filtro!$A$5:$AY$2917,7,FALSE),0) -> 0 | J40: =IFERROR(VLOOKUP($A40,Filtro!$A$5:$AY$2917,8,FALSE),0) -> 0 | K40: =IFERROR(VLOOKUP($A40,Filtro!$A$5:$AY$2917,9,FALSE),0) -> 0 | L40: =IFERROR(VLOOKUP($A40,Filtro!$A$5:$AY$2917,10,FALSE),0) -> 0 | M40: =IFERROR(VLOOKUP($A40,Filtro!$A$5:$AY$2917,11,FALSE),0) -> 0 | N40: =IFERROR(VLOOKUP($A40,Filtro!$A$5:$AY$2917,12,FALSE),0) -> 0 | O40: =IFERROR(VLOOKUP($A40,Filtro!$A$5:$AY$2917,13,FALSE),0) -> 0 | P40: =IFERROR(VLOOKUP($A40,Filtro!$A$5:$AY$2917,14,FALSE),0) -> 0 | Q40: =IFERROR(VLOOKUP($A40,Filtro!$A$5:$AY$2917,15,FALSE),0) -> 0 | R40: =IFERROR(VLOOKUP($A40,Filtro!$A$5:$AY$2917,16,FALSE),0) -> 0 | S40: =IFERROR(VLOOKUP($A40,Filtro!$A$5:$AY$2917,17,FALSE),0) -> 0 | T40: =IFERROR(VLOOKUP($A40,Filtro!$A$5:$AY$2917,18,FALSE),0) -> 0 | U40: =IFERROR(VLOOKUP($A40,Filtro!$A$5:$AY$2917,19,FALSE),0) -> 0 | V40: =IFERROR(VLOOKUP($A40,Filtro!$A$5:$AY$2917,20,FALSE),0) -> 0 | W40: =IFERROR(VLOOKUP($A40,Filtro!$A$5:$AY$2917,21,FALSE),0) -> 0 | X40: =IFERROR(VLOOKUP($A40,Filtro!$A$5:$AY$2917,22,FALSE),0) -> 0 | Y40: =IFERROR(VLOOKUP($A40,Filtro!$A$5:$AY$2917,23,FALSE),0) -> 0 | Z40: =IFERROR(VLOOKUP($A40,Filtro!$A$5:$AY$2917,24,FALSE),0) -> 0 | AA40: =IFERROR(VLOOKUP($A40,Filtro!$A$5:$AY$2917,25,FALSE),0) -> 0 | AB40: =IFERROR(VLOOKUP($A40,Filtro!$A$5:$AY$2917,26,FALSE),0) -> 0 | AC40: =IFERROR(VLOOKUP($A40,Filtro!$A$5:$AY$2917,27,FALSE),0) -> 2465 | AD40: =IFERROR(VLOOKUP($A40,Filtro!$A$5:$AY$2917,28,FALSE),0) -> 0 | AE40: =IFERROR(VLOOKUP($A40,Filtro!$A$5:$AY$2917,29,FALSE),0) -> 0 | AF40: =IFERROR(VLOOKUP($A40,Filtro!$A$5:$AY$2917,30,FALSE),0) -> 0 | AG40: =IFERROR(VLOOKUP($A40,Filtro!$A$5:$AY$2917,31,FALSE),0) -> 0 | AH40: =IFERROR(VLOOKUP($A40,Filtro!$A$5:$AY$2917,32,FALSE),0) -> 0 | AI40: =IFERROR(VLOOKUP($A40,Filtro!$A$5:$AY$2917,33,FALSE),0) -> 0 | AJ40: =IFERROR(VLOOKUP($A40,Filtro!$A$5:$AY$2917,34,FALSE),0) -> 0 | AK40: =IFERROR(VLOOKUP($A40,Filtro!$A$5:$AY$2917,35,FALSE),0) -> 0 | AL40: 9,050 | AM40: 22,308,250
A41: 01014309 | B41: 0101322 | C41: Consulta Médica de Especialidad en Enfermedades Respiratorias Pediátricas | D41: =IFERROR(VLOOKUP($A41,Filtro!$A$5:$AY$2917,2,FALSE),0) -> 2099 | E41: =IFERROR(VLOOKUP($A41,Filtro!$A$5:$AY$2917,3,FALSE),0) -> 2098 | F41: =IFERROR(VLOOKUP($A41,Filtro!$A$5:$AY$2917,4,FALSE),0) -> 2098 | G41: =IFERROR(VLOOKUP($A41,Filtro!$A$5:$AY$2917,5,FALSE),0) -> 0 | H41: =IFERROR(VLOOKUP($A41,Filtro!$A$5:$AY$2917,6,FALSE),0) -> 1 | I41: =IFERROR(VLOOKUP($A41,Filtro!$A$5:$AY$2917,7,FALSE),0) -> 0 | J41: =IFERROR(VLOOKUP($A41,Filtro!$A$5:$AY$2917,8,FALSE),0) -> 0 | K41: =IFERROR(VLOOKUP($A41,Filtro!$A$5:$AY$2917,9,FALSE),0) -> 0 | L41: =IFERROR(VLOOKUP($A41,Filtro!$A$5:$AY$2917,10,FALSE),0) -> 0 | M41: =IFERROR(VLOOKUP($A41,Filtro!$A$5:$AY$2917,11,FALSE),0) -> 0 | N41: =IFERROR(VLOOKUP($A41,Filtro!$A$5:$AY$2917,12,FALSE),0) -> 0 | O41: =IFERROR(VLOOKUP($A41,Filtro!$A$5:$AY$2917,13,FALSE),0) -> 0 | P41: =IFERROR(VLOOKUP($A41,Filtro!$A$5:$AY$2917,14,FALSE),0) -> 0 | Q41: =IFERROR(VLOOKUP($A41,Filtro!$A$5:$AY$2917,15,FALSE),0) -> 0 | R41: =IFERROR(VLOOKUP($A41,Filtro!$A$5:$AY$2917,16,FALSE),0) -> 0 | S41: =IFERROR(VLOOKUP($A41,Filtro!$A$5:$AY$2917,17,FALSE),0) -> 0 | T41: =IFERROR(VLOOKUP($A41,Filtro!$A$5:$AY$2917,18,FALSE),0) -> 0 | U41: =IFERROR(VLOOKUP($A41,Filtro!$A$5:$AY$2917,19,FALSE),0) -> 0 | V41: =IFERROR(VLOOKUP($A41,Filtro!$A$5:$AY$2917,20,FALSE),0) -> 0 | W41: =IFERROR(VLOOKUP($A41,Filtro!$A$5:$AY$2917,21,FALSE),0) -> 0 | X41: =IFERROR(VLOOKUP($A41,Filtro!$A$5:$AY$2917,22,FALSE),0) -> 0 | Y41: =IFERROR(VLOOKUP($A41,Filtro!$A$5:$AY$2917,23,FALSE),0) -> 0 | Z41: =IFERROR(VLOOKUP($A41,Filtro!$A$5:$AY$2917,24,FALSE),0) -> 0 | AA41: =IFERROR(VLOOKUP($A41,Filtro!$A$5:$AY$2917,25,FALSE),0) -> 0 | AB41: =IFERROR(VLOOKUP($A41,Filtro!$A$5:$AY$2917,26,FALSE),0) -> 0 | AC41: =IFERROR(VLOOKUP($A41,Filtro!$A$5:$AY$2917,27,FALSE),0) -> 2099 | AD41: =IFERROR(VLOOKUP($A41,Filtro!$A$5:$AY$2917,28,FALSE),0) -> 0 | AE41: =IFERROR(VLOOKUP($A41,Filtro!$A$5:$AY$2917,29,FALSE),0) -> 0 | AF41: =IFERROR(VLOOKUP($A41,Filtro!$A$5:$AY$2917,30,FALSE),0) -> 0 | AG41: =IFERROR(VLOOKUP($A41,Filtro!$A$5:$AY$2917,31,FALSE),0) -> 0 | AH41: =IFERROR(VLOOKUP($A41,Filtro!$A$5:$AY$2917,32,FALSE),0) -> 0 | AI41: =IFERROR(VLOOKUP($A41,Filtro!$A$5:$AY$2917,33,FALSE),0) -> 0 | AJ41: =IFERROR(VLOOKUP($A41,Filtro!$A$5:$AY$2917,34,FALSE),0) -> 0 | AK41: =IFERROR(VLOOKUP($A41,Filtro!$A$5:$AY$2917,35,FALSE),0) -> 0 | AL41: 9,050 | AM41: 18,986,900
A42: 01014310 | B42: 0101323 | C42: Consulta Médica de Especialidad en Gastroenterología Adulto | D42: =IFERROR(VLOOKUP($A42,Filtro!$A$5:$AY$2917,2,FALSE),0) -> 2563 | E42: =IFERROR(VLOOKUP($A42,Filtro!$A$5:$AY$2917,3,FALSE),0) -> 2563 | F42: =IFERROR(VLOOKUP($A42,Filtro!$A$5:$AY$2917,4,FALSE),0) -> 2563 | G42: =IFERROR(VLOOKUP($A42,Filtro!$A$5:$AY$2917,5,FALSE),0) -> 0 | H42: =IFERROR(VLOOKUP($A42,Filtro!$A$5:$AY$2917,6,FALSE),0) -> 0 | I42: =IFERROR(VLOOKUP($A42,Filtro!$A$5:$AY$2917,7,FALSE),0) -> 0 | J42: =IFERROR(VLOOKUP($A42,Filtro!$A$5:$AY$2917,8,FALSE),0) -> 0 | K42: =IFERROR(VLOOKUP($A42,Filtro!$A$5:$AY$2917,9,FALSE),0) -> 0 | L42: =IFERROR(VLOOKUP($A42,Filtro!$A$5:$AY$2917,10,FALSE),0) -> 0 | M42: =IFERROR(VLOOKUP($A42,Filtro!$A$5:$AY$2917,11,FALSE),0) -> 0 | N42: =IFERROR(VLOOKUP($A42,Filtro!$A$5:$AY$2917,12,FALSE),0) -> 0 | O42: =IFERROR(VLOOKUP($A42,Filtro!$A$5:$AY$2917,13,FALSE),0) -> 0 | P42: =IFERROR(VLOOKUP($A42,Filtro!$A$5:$AY$2917,14,FALSE),0) -> 0 | Q42: =IFERROR(VLOOKUP($A42,Filtro!$A$5:$AY$2917,15,FALSE),0) -> 0 | R42: =IFERROR(VLOOKUP($A42,Filtro!$A$5:$AY$2917,16,FALSE),0) -> 0 | S42: =IFERROR(VLOOKUP($A42,Filtro!$A$5:$AY$2917,17,FALSE),0) -> 0 | T42: =IFERROR(VLOOKUP($A42,Filtro!$A$5:$AY$2917,18,FALSE),0) -> 0 | U42: =IFERROR(VLOOKUP($A42,Filtro!$A$5:$AY$2917,19,FALSE),0) -> 0 | V42: =IFERROR(VLOOKUP($A42,Filtro!$A$5:$AY$2917,20,FALSE),0) -> 0 | W42: =IFERROR(VLOOKUP($A42,Filtro!$A$5:$AY$2917,21,FALSE),0) -> 0 | X42: =IFERROR(VLOOKUP($A42,Filtro!$A$5:$AY$2917,22,FALSE),0) -> 0 | Y42: =IFERROR(VLOOKUP($A42,Filtro!$A$5:$AY$2917,23,FALSE),0) -> 0 | Z42: =IFERROR(VLOOKUP($A42,Filtro!$A$5:$AY$2917,24,FALSE),0) -> 0 | AA42: =IFERROR(VLOOKUP($A42,Filtro!$A$5:$AY$2917,25,FALSE),0) -> 0 | AB42: =IFERROR(VLOOKUP($A42,Filtro!$A$5:$AY$2917,26,FALSE),0) -> 0 | AC42: =IFERROR(VLOOKUP($A42,Filtro!$A$5:$AY$2917,27,FALSE),0) -> 2563 | AD42: =IFERROR(VLOOKUP($A42,Filtro!$A$5:$AY$2917,28,FALSE),0) -> 0 | AE42: =IFERROR(VLOOKUP($A42,Filtro!$A$5:$AY$2917,29,FALSE),0) -> 0 | AF42: =IFERROR(VLOOKUP($A42,Filtro!$A$5:$AY$2917,30,FALSE),0) -> 0 | AG42: =IFERROR(VLOOKUP($A42,Filtro!$A$5:$AY$2917,31,FALSE),0) -> 0 | AH42: =IFERROR(VLOOKUP($A42,Filtro!$A$5:$AY$2917,32,FALSE),0) -> 0 | AI42: =IFERROR(VLOOKUP($A42,Filtro!$A$5:$AY$2917,33,FALSE),0) -> 0 | AJ42: =IFERROR(VLOOKUP($A42,Filtro!$A$5:$AY$2917,34,FALSE),0) -> 0 | AK42: =IFERROR(VLOOKUP($A42,Filtro!$A$5:$AY$2917,35,FALSE),0) -> 0 | AL42: 9,050 | AM42: 23,195,150
A43: 01014311 | B43: 0101324 | C43: Consulta Médica de Especialidad en Gastroenterología Pediátrico | D43: =IFERROR(VLOOKUP($A43,Filtro!$A$5:$AY$2917,2,FALSE),0) -> 1736 | E43: =IFERROR(VLOOKUP($A43,Filtro!$A$5:$AY$2917,3,FALSE),0) -> 1736 | F43: =IFERROR(VLOOKUP($A43,Filtro!$A$5:$AY$2917,4,FALSE),0) -> 1736 | G43: =IFERROR(VLOOKUP($A43,Filtro!$A$5:$AY$2917,5,FALSE),0) -> 0 | H43: =IFERROR(VLOOKUP($A43,Filtro!$A$5:$AY$2917,6,FALSE),0) -> 0 | I43: =IFERROR(VLOOKUP($A43,Filtro!$A$5:$AY$2917,7,FALSE),0) -> 0 | J43: =IFERROR(VLOOKUP($A43,Filtro!$A$5:$AY$2917,8,FALSE),0) -> 0 | K43: =IFERROR(VLOOKUP($A43,Filtro!$A$5:$AY$2917,9,FALSE),0) -> 0 | L43: =IFERROR(VLOOKUP($A43,Filtro!$A$5:$AY$2917,10,FALSE),0) -> 0 | M43: =IFERROR(VLOOKUP($A43,Filtro!$A$5:$AY$2917,11,FALSE),0) -> 0 | N43: =IFERROR(VLOOKUP($A43,Filtro!$A$5:$AY$2917,12,FALSE),0) -> 0 | O43: =IFERROR(VLOOKUP($A43,Filtro!$A$5:$AY$2917,13,FALSE),0) -> 0 | P43: =IFERROR(VLOOKUP($A43,Filtro!$A$5:$AY$2917,14,FALSE),0) -> 0 | Q43: =IFERROR(VLOOKUP($A43,Filtro!$A$5:$AY$2917,15,FALSE),0) -> 0 | R43: =IFERROR(VLOOKUP($A43,Filtro!$A$5:$AY$2917,16,FALSE),0) -> 0 | S43: =IFERROR(VLOOKUP($A43,Filtro!$A$5:$AY$2917,17,FALSE),0) -> 0 | T43: =IFERROR(VLOOKUP($A43,Filtro!$A$5:$AY$2917,18,FALSE),0) -> 0 | U43: =IFERROR(VLOOKUP($A43,Filtro!$A$5:$AY$2917,19,FALSE),0) -> 0 | V43: =IFERROR(VLOOKUP($A43,Filtro!$A$5:$AY$2917,20,FALSE),0) -> 0 | W43: =IFERROR(VLOOKUP($A43,Filtro!$A$5:$AY$2917,21,FALSE),0) -> 0 | X43: =IFERROR(VLOOKUP($A43,Filtro!$A$5:$AY$2917,22,FALSE),0) -> 0 | Y43: =IFERROR(VLOOKUP($A43,Filtro!$A$5:$AY$2917,23,FALSE),0) -> 0 | Z43: =IFERROR(VLOOKUP($A43,Filtro!$A$5:$AY$2917,24,FALSE),0) -> 0 | AA43: =IFERROR(VLOOKUP($A43,Filtro!$A$5:$AY$2917,25,FALSE),0) -> 0 | AB43: =IFERROR(VLOOKUP($A43,Filtro!$A$5:$AY$2917,26,FALSE),0) -> 0 | AC43: =IFERROR(VLOOKUP($A43,Filtro!$A$5:$AY$2917,27,FALSE),0) -> 1736 | AD43: =IFERROR(VLOOKUP($A43,Filtro!$A$5:$AY$2917,28,FALSE),0) -> 0 | AE43: =IFERROR(VLOOKUP($A43,Filtro!$A$5:$AY$2917,29,FALSE),0) -> 0 | AF43: =IFERROR(VLOOKUP($A43,Filtro!$A$5:$AY$2917,30,FALSE),0) -> 0 | AG43: =IFERROR(VLOOKUP($A43,Filtro!$A$5:$AY$2917,31,FALSE),0) -> 0 | AH43: =IFERROR(VLOOKUP($A43,Filtro!$A$5:$AY$2917,32,FALSE),0) -> 0 | AI43: =IFERROR(VLOOKUP($A43,Filtro!$A$5:$AY$2917,33,FALSE),0) -> 0 | AJ43: =IFERROR(VLOOKUP($A43,Filtro!$A$5:$AY$2917,34,FALSE),0) -> 0 | AK43: =IFERROR(VLOOKUP($A43,Filtro!$A$5:$AY$2917,35,FALSE),0) -> 0 | AL43: 9,050 | AM43: 15,710,800
A44: 01014312 | B44: 0101325 | C44: Consulta Médica de Especialidad en Genética Clínica | D44: =IFERROR(VLOOKUP($A44,Filtro!$A$5:$AY$2917,2,FALSE),0) -> 0 | E44: =IFERROR(VLOOKUP($A44,Filtro!$A$5:$AY$2917,3,FALSE),0) -> 0 | F44: =IFERROR(VLOOKUP($A44,Filtro!$A$5:$AY$2917,4,FALSE),0) -> 0 | G44: =IFERROR(VLOOKUP($A44,Filtro!$A$5:$AY$2917,5,FALSE),0) -> 0 | H44: =IFERROR(VLOOKUP($A44,Filtro!$A$5:$AY$2917,6,FALSE),0) -> 0 | I44: =IFERROR(VLOOKUP($A44,Filtro!$A$5:$AY$2917,7,FALSE),0) -> 0 | J44: =IFERROR(VLOOKUP($A44,Filtro!$A$5:$AY$2917,8,FALSE),0) -> 0 | K44: =IFERROR(VLOOKUP($A44,Filtro!$A$5:$AY$2917,9,FALSE),0) -> 0 | L44: =IFERROR(VLOOKUP($A44,Filtro!$A$5:$AY$2917,10,FALSE),0) -> 0 | M44: =IFERROR(VLOOKUP($A44,Filtro!$A$5:$AY$2917,11,FALSE),0) -> 0 | N44: =IFERROR(VLOOKUP($A44,Filtro!$A$5:$AY$2917,12,FALSE),0) -> 0 | O44: =IFERROR(VLOOKUP($A44,Filtro!$A$5:$AY$2917,13,FALSE),0) -> 0 | P44: =IFERROR(VLOOKUP($A44,Filtro!$A$5:$AY$2917,14,FALSE),0) -> 0 | Q44: =IFERROR(VLOOKUP($A44,Filtro!$A$5:$AY$2917,15,FALSE),0) -> 0 | R44: =IFERROR(VLOOKUP($A44,Filtro!$A$5:$AY$2917,16,FALSE),0) -> 0 | S44: =IFERROR(VLOOKUP($A44,Filtro!$A$5:$AY$2917,17,FALSE),0) -> 0 | T44: =IFERROR(VLOOKUP($A44,Filtro!$A$5:$AY$2917,18,FALSE),0) -> 0 | U44: =IFERROR(VLOOKUP($A44,Filtro!$A$5:$AY$2917,19,FALSE),0) -> 0 | V44: =IFERROR(VLOOKUP($A44,Filtro!$A$5:$AY$2917,20,FALSE),0) -> 0 | W44: =IFERROR(VLOOKUP($A44,Filtro!$A$5:$AY$2917,21,FALSE),0) -> 0 | X44: =IFERROR(VLOOKUP($A44,Filtro!$A$5:$AY$2917,22,FALSE),0) -> 0 | Y44: =IFERROR(VLOOKUP($A44,Filtro!$A$5:$AY$2917,23,FALSE),0) -> 0 | Z44: =IFERROR(VLOOKUP($A44,Filtro!$A$5:$AY$2917,24,FALSE),0) -> 0 | AA44: =IFERROR(VLOOKUP($A44,Filtro!$A$5:$AY$2917,25,FALSE),0) -> 0 | AB44: =IFERROR(VLOOKUP($A44,Filtro!$A$5:$AY$2917,26,FALSE),0) -> 0 | AC44: =IFERROR(VLOOKUP($A44,Filtro!$A$5:$AY$2917,27,FALSE),0) -> 0 | AD44: =IFERROR(VLOOKUP($A44,Filtro!$A$5:$AY$2917,28,FALSE),0) -> 0 | AE44: =IFERROR(VLOOKUP($A44,Filtro!$A$5:$AY$2917,29,FALSE),0) -> 0 | AF44: =IFERROR(VLOOKUP($A44,Filtro!$A$5:$AY$2917,30,FALSE),0) -> 0 | AG44: =IFERROR(VLOOKUP($A44,Filtro!$A$5:$AY$2917,31,FALSE),0) -> 0 | AH44: =IFERROR(VLOOKUP($A44,Filtro!$A$5:$AY$2917,32,FALSE),0) -> 0 | AI44: =IFERROR(VLOOKUP($A44,Filtro!$A$5:$AY$2917,33,FALSE),0) -> 0 | AJ44: =IFERROR(VLOOKUP($A44,Filtro!$A$5:$AY$2917,34,FALSE),0) -> 0 | AK44: =IFERROR(VLOOKUP($A44,Filtro!$A$5:$AY$2917,35,FALSE),0) -> 0 | AL44: 9,050 | AM44: 0
A45: 01014313 | B45: 0101326 | C45: Consulta Médica de Especialidad en Nefrología Adulto | D45: =IFERROR(VLOOKUP($A45,Filtro!$A$5:$AY$2917,2,FALSE),0) -> 4216 | E45: =IFERROR(VLOOKUP($A45,Filtro!$A$5:$AY$2917,3,FALSE),0) -> 4214 | F45: =IFERROR(VLOOKUP($A45,Filtro!$A$5:$AY$2917,4,FALSE),0) -> 4214 | G45: =IFERROR(VLOOKUP($A45,Filtro!$A$5:$AY$2917,5,FALSE),0) -> 0 | H45: =IFERROR(VLOOKUP($A45,Filtro!$A$5:$AY$2917,6,FALSE),0) -> 2 | I45: =IFERROR(VLOOKUP($A45,Filtro!$A$5:$AY$2917,7,FALSE),0) -> 0 | J45: =IFERROR(VLOOKUP($A45,Filtro!$A$5:$AY$2917,8,FALSE),0) -> 0 | K45: =IFERROR(VLOOKUP($A45,Filtro!$A$5:$AY$2917,9,FALSE),0) -> 0 | L45: =IFERROR(VLOOKUP($A45,Filtro!$A$5:$AY$2917,10,FALSE),0) -> 0 | M45: =IFERROR(VLOOKUP($A45,Filtro!$A$5:$AY$2917,11,FALSE),0) -> 0 | N45: =IFERROR(VLOOKUP($A45,Filtro!$A$5:$AY$2917,12,FALSE),0) -> 0 | O45: =IFERROR(VLOOKUP($A45,Filtro!$A$5:$AY$2917,13,FALSE),0) -> 0 | P45: =IFERROR(VLOOKUP($A45,Filtro!$A$5:$AY$2917,14,FALSE),0) -> 0 | Q45: =IFERROR(VLOOKUP($A45,Filtro!$A$5:$AY$2917,15,FALSE),0) -> 0 | R45: =IFERROR(VLOOKUP($A45,Filtro!$A$5:$AY$2917,16,FALSE),0) -> 0 | S45: =IFERROR(VLOOKUP($A45,Filtro!$A$5:$AY$2917,17,FALSE),0) -> 0 | T45: =IFERROR(VLOOKUP($A45,Filtro!$A$5:$AY$2917,18,FALSE),0) -> 0 | U45: =IFERROR(VLOOKUP($A45,Filtro!$A$5:$AY$2917,19,FALSE),0) -> 0 | V45: =IFERROR(VLOOKUP($A45,Filtro!$A$5:$AY$2917,20,FALSE),0) -> 0 | W45: =IFERROR(VLOOKUP($A45,Filtro!$A$5:$AY$2917,21,FALSE),0) -> 0 | X45: =IFERROR(VLOOKUP($A45,Filtro!$A$5:$AY$2917,22,FALSE),0) -> 0 | Y45: =IFERROR(VLOOKUP($A45,Filtro!$A$5:$AY$2917,23,FALSE),0) -> 0 | Z45: =IFERROR(VLOOKUP($A45,Filtro!$A$5:$AY$2917,24,FALSE),0) -> 0 | AA45: =IFERROR(VLOOKUP($A45,Filtro!$A$5:$AY$2917,25,FALSE),0) -> 0 | AB45: =IFERROR(VLOOKUP($A45,Filtro!$A$5:$AY$2917,26,FALSE),0) -> 0 | AC45: =IFERROR(VLOOKUP($A45,Filtro!$A$5:$AY$2917,27,FALSE),0) -> 4216 | AD45: =IFERROR(VLOOKUP($A45,Filtro!$A$5:$AY$2917,28,FALSE),0) -> 0 | AE45: =IFERROR(VLOOKUP($A45,Filtro!$A$5:$AY$2917,29,FALSE),0) -> 0 | AF45: =IFERROR(VLOOKUP($A45,Filtro!$A$5:$AY$2917,30,FALSE),0) -> 0 | AG45: =IFERROR(VLOOKUP($A45,Filtro!$A$5:$AY$2917,31,FALSE),0) -> 0 | AH45: =IFERROR(VLOOKUP($A45,Filtro!$A$5:$AY$2917,32,FALSE),0) -> 0 | AI45: =IFERROR(VLOOKUP($A45,Filtro!$A$5:$AY$2917,33,FALSE),0) -> 0 | AJ45: =IFERROR(VLOOKUP($A45,Filtro!$A$5:$AY$2917,34,FALSE),0) -> 0 | AK45: =IFERROR(VLOOKUP($A45,Filtro!$A$5:$AY$2917,35,FALSE),0) -> 0 | AL45: 9,050 | AM45: 38,136,700
A46: 01014314 | B46: 0101327 | C46: Consulta Médica de Especialidad en Nefrología Pediátrico | D46: =IFERROR(VLOOKUP($A46,Filtro!$A$5:$AY$2917,2,FALSE),0) -> 921 | E46: =IFERROR(VLOOKUP($A46,Filtro!$A$5:$AY$2917,3,FALSE),0) -> 921 | F46: =IFERROR(VLOOKUP($A46,Filtro!$A$5:$AY$2917,4,FALSE),0) -> 921 | G46: =IFERROR(VLOOKUP($A46,Filtro!$A$5:$AY$2917,5,FALSE),0) -> 0 | H46: =IFERROR(VLOOKUP($A46,Filtro!$A$5:$AY$2917,6,FALSE),0) -> 0 | I46: =IFERROR(VLOOKUP($A46,Filtro!$A$5:$AY$2917,7,FALSE),0) -> 0 | J46: =IFERROR(VLOOKUP($A46,Filtro!$A$5:$AY$2917,8,FALSE),0) -> 0 | K46: =IFERROR(VLOOKUP($A46,Filtro!$A$5:$AY$2917,9,FALSE),0) -> 0 | L46: =IFERROR(VLOOKUP($A46,Filtro!$A$5:$AY$2917,10,FALSE),0) -> 0 | M46: =IFERROR(VLOOKUP($A46,Filtro!$A$5:$AY$2917,11,FALSE),0) -> 0 | N46: =IFERROR(VLOOKUP($A46,Filtro!$A$5:$AY$2917,12,FALSE),0) -> 0 | O46: =IFERROR(VLOOKUP($A46,Filtro!$A$5:$AY$2917,13,FALSE),0) -> 0 | P46: =IFERROR(VLOOKUP($A46,Filtro!$A$5:$AY$2917,14,FALSE),0) -> 0 | Q46: =IFERROR(VLOOKUP($A46,Filtro!$A$5:$AY$2917,15,FALSE),0) -> 0 | R46: =IFERROR(VLOOKUP($A46,Filtro!$A$5:$AY$2917,16,FALSE),0) -> 0 | S46: =IFERROR(VLOOKUP($A46,Filtro!$A$5:$AY$2917,17,FALSE),0) -> 0 | T46: =IFERROR(VLOOKUP($A46,Filtro!$A$5:$AY$2917,18,FALSE),0) -> 0 | U46: =IFERROR(VLOOKUP($A46,Filtro!$A$5:$AY$2917,19,FALSE),0) -> 0 | V46: =IFERROR(VLOOKUP($A46,Filtro!$A$5:$AY$2917,20,FALSE),0) -> 0 | W46: =IFERROR(VLOOKUP($A46,Filtro!$A$5:$AY$2917,21,FALSE),0) -> 0 | X46: =IFERROR(VLOOKUP($A46,Filtro!$A$5:$AY$2917,22,FALSE),0) -> 0 | Y46: =IFERROR(VLOOKUP($A46,Filtro!$A$5:$AY$2917,23,FALSE),0) -> 0 | Z46: =IFERROR(VLOOKUP($A46,Filtro!$A$5:$AY$2917,24,FALSE),0) -> 0 | AA46: =IFERROR(VLOOKUP($A46,Filtro!$A$5:$AY$2917,25,FALSE),0) -> 0 | AB46: =IFERROR(VLOOKUP($A46,Filtro!$A$5:$AY$2917,26,FALSE),0) -> 0 | AC46: =IFERROR(VLOOKUP($A46,Filtro!$A$5:$AY$2917,27,FALSE),0) -> 921 | AD46: =IFERROR(VLOOKUP($A46,Filtro!$A$5:$AY$2917,28,FALSE),0) -> 0 | AE46: =IFERROR(VLOOKUP($A46,Filtro!$A$5:$AY$2917,29,FALSE),0) -> 0 | AF46: =IFERROR(VLOOKUP($A46,Filtro!$A$5:$AY$2917,30,FALSE),0) -> 0 | AG46: =IFERROR(VLOOKUP($A46,Filtro!$A$5:$AY$2917,31,FALSE),0) -> 0 | AH46: =IFERROR(VLOOKUP($A46,Filtro!$A$5:$AY$2917,32,FALSE),0) -> 0 | AI46: =IFERROR(VLOOKUP($A46,Filtro!$A$5:$AY$2917,33,FALSE),0) -> 0 | AJ46: =IFERROR(VLOOKUP($A46,Filtro!$A$5:$AY$2917,34,FALSE),0) -> 0 | AK46: =IFERROR(VLOOKUP($A46,Filtro!$A$5:$AY$2917,35,FALSE),0) -> 0 | AL46: 9,050 | AM46: 8,335,050
A47: 01014315 | B47: 0101328 | C47: Consulta Médica de Especialidad en Neonatología | D47: =IFERROR(VLOOKUP($A47,Filtro!$A$5:$AY$2917,2,FALSE),0) -> 1024 | E47: =IFERROR(VLOOKUP($A47,Filtro!$A$5:$AY$2917,3,FALSE),0) -> 1024 | F47: =IFERROR(VLOOKUP($A47,Filtro!$A$5:$AY$2917,4,FALSE),0) -> 1024 | G47: =IFERROR(VLOOKUP($A47,Filtro!$A$5:$AY$2917,5,FALSE),0) -> 0 | H47: =IFERROR(VLOOKUP($A47,Filtro!$A$5:$AY$2917,6,FALSE),0) -> 0 | I47: =IFERROR(VLOOKUP($A47,Filtro!$A$5:$AY$2917,7,FALSE),0) -> 0 | J47: =IFERROR(VLOOKUP($A47,Filtro!$A$5:$AY$2917,8,FALSE),0) -> 0 | K47: =IFERROR(VLOOKUP($A47,Filtro!$A$5:$AY$2917,9,FALSE),0) -> 0 | L47: =IFERROR(VLOOKUP($A47,Filtro!$A$5:$AY$2917,10,FALSE),0) -> 0 | M47: =IFERROR(VLOOKUP($A47,Filtro!$A$5:$AY$2917,11,FALSE),0) -> 0 | N47: =IFERROR(VLOOKUP($A47,Filtro!$A$5:$AY$2917,12,FALSE),0) -> 0 | O47: =IFERROR(VLOOKUP($A47,Filtro!$A$5:$AY$2917,13,FALSE),0) -> 0 | P47: =IFERROR(VLOOKUP($A47,Filtro!$A$5:$AY$2917,14,FALSE),0) -> 0 | Q47: =IFERROR(VLOOKUP($A47,Filtro!$A$5:$AY$2917,15,FALSE),0) -> 0 | R47: =IFERROR(VLOOKUP($A47,Filtro!$A$5:$AY$2917,16,FALSE),0) -> 0 | S47: =IFERROR(VLOOKUP($A47,Filtro!$A$5:$AY$2917,17,FALSE),0) -> 0 | T47: =IFERROR(VLOOKUP($A47,Filtro!$A$5:$AY$2917,18,FALSE),0) -> 0 | U47: =IFERROR(VLOOKUP($A47,Filtro!$A$5:$AY$2917,19,FALSE),0) -> 0 | V47: =IFERROR(VLOOKUP($A47,Filtro!$A$5:$AY$2917,20,FALSE),0) -> 0 | W47: =IFERROR(VLOOKUP($A47,Filtro!$A$5:$AY$2917,21,FALSE),0) -> 0 | X47: =IFERROR(VLOOKUP($A47,Filtro!$A$5:$AY$2917,22,FALSE),0) -> 0 | Y47: =IFERROR(VLOOKUP($A47,Filtro!$A$5:$AY$2917,23,FALSE),0) -> 0 | Z47: =IFERROR(VLOOKUP($A47,Filtro!$A$5:$AY$2917,24,FALSE),0) -> 0 | AA47: =IFERROR(VLOOKUP($A47,Filtro!$A$5:$AY$2917,25,FALSE),0) -> 0 | AB47: =IFERROR(VLOOKUP($A47,Filtro!$A$5:$AY$2917,26,FALSE),0) -> 0 | AC47: =IFERROR(VLOOKUP($A47,Filtro!$A$5:$AY$2917,27,FALSE),0) -> 1024 | AD47: =IFERROR(VLOOKUP($A47,Filtro!$A$5:$AY$2917,28,FALSE),0) -> 0 | AE47: =IFERROR(VLOOKUP($A47,Filtro!$A$5:$AY$2917,29,FALSE),0) -> 0 | AF47: =IFERROR(VLOOKUP($A47,Filtro!$A$5:$AY$2917,30,FALSE),0) -> 0 | AG47: =IFERROR(VLOOKUP($A47,Filtro!$A$5:$AY$2917,31,FALSE),0) -> 0 | AH47: =IFERROR(VLOOKUP($A47,Filtro!$A$5:$AY$2917,32,FALSE),0) -> 0 | AI47: =IFERROR(VLOOKUP($A47,Filtro!$A$5:$AY$2917,33,FALSE),0) -> 0 | AJ47: =IFERROR(VLOOKUP($A47,Filtro!$A$5:$AY$2917,34,FALSE),0) -> 0 | AK47: =IFERROR(VLOOKUP($A47,Filtro!$A$5:$AY$2917,35,FALSE),0) -> 0 | AL47: 9,050 | AM47: 9,267,200
A48: 01014316 | B48: 0101329 | C48: Consulta Médica de Especialidad en Anestesiología | D48: =IFERROR(VLOOKUP($A48,Filtro!$A$5:$AY$2917,2,FALSE),0) -> 3568 | E48: =IFERROR(VLOOKUP($A48,Filtro!$A$5:$AY$2917,3,FALSE),0) -> 3568 | F48: =IFERROR(VLOOKUP($A48,Filtro!$A$5:$AY$2917,4,FALSE),0) -> 3568 | G48: =IFERROR(VLOOKUP($A48,Filtro!$A$5:$AY$2917,5,FALSE),0) -> 0 | H48: =IFERROR(VLOOKUP($A48,Filtro!$A$5:$AY$2917,6,FALSE),0) -> 0 | I48: =IFERROR(VLOOKUP($A48,Filtro!$A$5:$AY$2917,7,FALSE),0) -> 0 | J48: =IFERROR(VLOOKUP($A48,Filtro!$A$5:$AY$2917,8,FALSE),0) -> 0 | K48: =IFERROR(VLOOKUP($A48,Filtro!$A$5:$AY$2917,9,FALSE),0) -> 0 | L48: =IFERROR(VLOOKUP($A48,Filtro!$A$5:$AY$2917,10,FALSE),0) -> 0 | M48: =IFERROR(VLOOKUP($A48,Filtro!$A$5:$AY$2917,11,FALSE),0) -> 0 | N48: =IFERROR(VLOOKUP($A48,Filtro!$A$5:$AY$2917,12,FALSE),0) -> 0 | O48: =IFERROR(VLOOKUP($A48,Filtro!$A$5:$AY$2917,13,FALSE),0) -> 0 | P48: =IFERROR(VLOOKUP($A48,Filtro!$A$5:$AY$2917,14,FALSE),0) -> 0 | Q48: =IFERROR(VLOOKUP($A48,Filtro!$A$5:$AY$2917,15,FALSE),0) -> 0 | R48: =IFERROR(VLOOKUP($A48,Filtro!$A$5:$AY$2917,16,FALSE),0) -> 0 | S48: =IFERROR(VLOOKUP($A48,Filtro!$A$5:$AY$2917,17,FALSE),0) -> 0 | T48: =IFERROR(VLOOKUP($A48,Filtro!$A$5:$AY$2917,18,FALSE),0) -> 0 | U48: =IFERROR(VLOOKUP($A48,Filtro!$A$5:$AY$2917,19,FALSE),0) -> 0 | V48: =IFERROR(VLOOKUP($A48,Filtro!$A$5:$AY$2917,20,FALSE),0) -> 0 | W48: =IFERROR(VLOOKUP($A48,Filtro!$A$5:$AY$2917,21,FALSE),0) -> 0 | X48: =IFERROR(VLOOKUP($A48,Filtro!$A$5:$AY$2917,22,FALSE),0) -> 0 | Y48: =IFERROR(VLOOKUP($A48,Filtro!$A$5:$AY$2917,23,FALSE),0) -> 0 | Z48: =IFERROR(VLOOKUP($A48,Filtro!$A$5:$AY$2917,24,FALSE),0) -> 0 | AA48: =IFERROR(VLOOKUP($A48,Filtro!$A$5:$AY$2917,25,FALSE),0) -> 0 | AB48: =IFERROR(VLOOKUP($A48,Filtro!$A$5:$AY$2917,26,FALSE),0) -> 0 | AC48: =IFERROR(VLOOKUP($A48,Filtro!$A$5:$AY$2917,27,FALSE),0) -> 3568 | AD48: =IFERROR(VLOOKUP($A48,Filtro!$A$5:$AY$2917,28,FALSE),0) -> 0 | AE48: =IFERROR(VLOOKUP($A48,Filtro!$A$5:$AY$2917,29,FALSE),0) -> 0 | AF48: =IFERROR(VLOOKUP($A48,Filtro!$A$5:$AY$2917,30,FALSE),0) -> 0 | AG48: =IFERROR(VLOOKUP($A48,Filtro!$A$5:$AY$2917,31,FALSE),0) -> 0 | AH48: =IFERROR(VLOOKUP($A48,Filtro!$A$5:$AY$2917,32,FALSE),0) -> 0 | AI48: =IFERROR(VLOOKUP($A48,Filtro!$A$5:$AY$2917,33,FALSE),0) -> 0 | AJ48: =IFERROR(VLOOKUP($A48,Filtro!$A$5:$AY$2917,34,FALSE),0) -> 0 | AK48: =IFERROR(VLOOKUP($A48,Filtro!$A$5:$AY$2917,35,FALSE),0) -> 0 | AL48: 9,050 | AM48: 32,290,400
A49: 01014703 | B49: 0101330 | C49: Consulta Médica de Especialidad en Medicina de Urgencia | D49: =IFERROR(VLOOKUP($A49,Filtro!$A$5:$AY$2917,2,FALSE),0) -> 0 | E49: =IFERROR(VLOOKUP($A49,Filtro!$A$5:$AY$2917,3,FALSE),0) -> 0 | F49: =IFERROR(VLOOKUP($A49,Filtro!$A$5:$AY$2917,4,FALSE),0) -> 0 | G49: =IFERROR(VLOOKUP($A49,Filtro!$A$5:$AY$2917,5,FALSE),0) -> 0 | H49: =IFERROR(VLOOKUP($A49,Filtro!$A$5:$AY$2917,6,FALSE),0) -> 0 | I49: =IFERROR(VLOOKUP($A49,Filtro!$A$5:$AY$2917,7,FALSE),0) -> 0 | J49: =IFERROR(VLOOKUP($A49,Filtro!$A$5:$AY$2917,8,FALSE),0) -> 0 | K49: =IFERROR(VLOOKUP($A49,Filtro!$A$5:$AY$2917,9,FALSE),0) -> 0 | L49: =IFERROR(VLOOKUP($A49,Filtro!$A$5:$AY$2917,10,FALSE),0) -> 0 | M49: =IFERROR(VLOOKUP($A49,Filtro!$A$5:$AY$2917,11,FALSE),0) -> 0 | N49: =IFERROR(VLOOKUP($A49,Filtro!$A$5:$AY$2917,12,FALSE),0) -> 0 | O49: =IFERROR(VLOOKUP($A49,Filtro!$A$5:$AY$2917,13,FALSE),0) -> 0 | P49: =IFERROR(VLOOKUP($A49,Filtro!$A$5:$AY$2917,14,FALSE),0) -> 0 | Q49: =IFERROR(VLOOKUP($A49,Filtro!$A$5:$AY$2917,15,FALSE),0) -> 0 | R49: =IFERROR(VLOOKUP($A49,Filtro!$A$5:$AY$2917,16,FALSE),0) -> 0 | S49: =IFERROR(VLOOKUP($A49,Filtro!$A$5:$AY$2917,17,FALSE),0) -> 0 | T49: =IFERROR(VLOOKUP($A49,Filtro!$A$5:$AY$2917,18,FALSE),0) -> 0 | U49: =IFERROR(VLOOKUP($A49,Filtro!$A$5:$AY$2917,19,FALSE),0) -> 0 | V49: =IFERROR(VLOOKUP($A49,Filtro!$A$5:$AY$2917,20,FALSE),0) -> 0 | W49: =IFERROR(VLOOKUP($A49,Filtro!$A$5:$AY$2917,21,FALSE),0) -> 0 | X49: =IFERROR(VLOOKUP($A49,Filtro!$A$5:$AY$2917,22,FALSE),0) -> 0 | Y49: =IFERROR(VLOOKUP($A49,Filtro!$A$5:$AY$2917,23,FALSE),0) -> 0 | Z49: =IFERROR(VLOOKUP($A49,Filtro!$A$5:$AY$2917,24,FALSE),0) -> 0 | AA49: =IFERROR(VLOOKUP($A49,Filtro!$A$5:$AY$2917,25,FALSE),0) -> 0 | AB49: =IFERROR(VLOOKUP($A49,Filtro!$A$5:$AY$2917,26,FALSE),0) -> 0 | AC49: =IFERROR(VLOOKUP($A49,Filtro!$A$5:$AY$2917,27,FALSE),0) -> 0 | AD49: =IFERROR(VLOOKUP($A49,Filtro!$A$5:$AY$2917,28,FALSE),0) -> 0 | AE49: =IFERROR(VLOOKUP($A49,Filtro!$A$5:$AY$2917,29,FALSE),0) -> 0 | AF49: =IFERROR(VLOOKUP($A49,Filtro!$A$5:$AY$2917,30,FALSE),0) -> 0 | AG49: =IFERROR(VLOOKUP($A49,Filtro!$A$5:$AY$2917,31,FALSE),0) -> 0 | AH49: =IFERROR(VLOOKUP($A49,Filtro!$A$5:$AY$2917,32,FALSE),0) -> 0 | AI49: =IFERROR(VLOOKUP($A49,Filtro!$A$5:$AY$2917,33,FALSE),0) -> 0 | AJ49: =IFERROR(VLOOKUP($A49,Filtro!$A$5:$AY$2917,34,FALSE),0) -> 0 | AK49: =IFERROR(VLOOKUP($A49,Filtro!$A$5:$AY$2917,35,FALSE),0) -> 0
A50: 01014317 | B50: 0101331 | C50: Consulta Médica de Especialidad en Radioterapia Oncológica | D50: =IFERROR(VLOOKUP($A50,Filtro!$A$5:$AY$2917,2,FALSE),0) -> 0 | E50: =IFERROR(VLOOKUP($A50,Filtro!$A$5:$AY$2917,3,FALSE),0) -> 0 | F50: =IFERROR(VLOOKUP($A50,Filtro!$A$5:$AY$2917,4,FALSE),0) -> 0 | G50: =IFERROR(VLOOKUP($A50,Filtro!$A$5:$AY$2917,5,FALSE),0) -> 0 | H50: =IFERROR(VLOOKUP($A50,Filtro!$A$5:$AY$2917,6,FALSE),0) -> 0 | I50: =IFERROR(VLOOKUP($A50,Filtro!$A$5:$AY$2917,7,FALSE),0) -> 0 | J50: =IFERROR(VLOOKUP($A50,Filtro!$A$5:$AY$2917,8,FALSE),0) -> 0 | K50: =IFERROR(VLOOKUP($A50,Filtro!$A$5:$AY$2917,9,FALSE),0) -> 0 | L50: =IFERROR(VLOOKUP($A50,Filtro!$A$5:$AY$2917,10,FALSE),0) -> 0 | M50: =IFERROR(VLOOKUP($A50,Filtro!$A$5:$AY$2917,11,FALSE),0) -> 0 | N50: =IFERROR(VLOOKUP($A50,Filtro!$A$5:$AY$2917,12,FALSE),0) -> 0 | O50: =IFERROR(VLOOKUP($A50,Filtro!$A$5:$AY$2917,13,FALSE),0) -> 0 | P50: =IFERROR(VLOOKUP($A50,Filtro!$A$5:$AY$2917,14,FALSE),0) -> 0 | Q50: =IFERROR(VLOOKUP($A50,Filtro!$A$5:$AY$2917,15,FALSE),0) -> 0 | R50: =IFERROR(VLOOKUP($A50,Filtro!$A$5:$AY$2917,16,FALSE),0) -> 0 | S50: =IFERROR(VLOOKUP($A50,Filtro!$A$5:$AY$2917,17,FALSE),0) -> 0 | T50: =IFERROR(VLOOKUP($A50,Filtro!$A$5:$AY$2917,18,FALSE),0) -> 0 | U50: =IFERROR(VLOOKUP($A50,Filtro!$A$5:$AY$2917,19,FALSE),0) -> 0 | V50: =IFERROR(VLOOKUP($A50,Filtro!$A$5:$AY$2917,20,FALSE),0) -> 0 | W50: =IFERROR(VLOOKUP($A50,Filtro!$A$5:$AY$2917,21,FALSE),0) -> 0 | X50: =IFERROR(VLOOKUP($A50,Filtro!$A$5:$AY$2917,22,FALSE),0) -> 0 | Y50: =IFERROR(VLOOKUP($A50,Filtro!$A$5:$AY$2917,23,FALSE),0) -> 0 | Z50: =IFERROR(VLOOKUP($A50,Filtro!$A$5:$AY$2917,24,FALSE),0) -> 0 | AA50: =IFERROR(VLOOKUP($A50,Filtro!$A$5:$AY$2917,25,FALSE),0) -> 0 | AB50: =IFERROR(VLOOKUP($A50,Filtro!$A$5:$AY$2917,26,FALSE),0) -> 0 | AC50: =IFERROR(VLOOKUP($A50,Filtro!$A$5:$AY$2917,27,FALSE),0) -> 0 | AD50: =IFERROR(VLOOKUP($A50,Filtro!$A$5:$AY$2917,28,FALSE),0) -> 0 | AE50: =IFERROR(VLOOKUP($A50,Filtro!$A$5:$AY$2917,29,FALSE),0) -> 0 | AF50: =IFERROR(VLOOKUP($A50,Filtro!$A$5:$AY$2917,30,FALSE),0) -> 0 | AG50: =IFERROR(VLOOKUP($A50,Filtro!$A$5:$AY$2917,31,FALSE),0) -> 0 | AH50: =IFERROR(VLOOKUP($A50,Filtro!$A$5:$AY$2917,32,FALSE),0) -> 0 | AI50: =IFERROR(VLOOKUP($A50,Filtro!$A$5:$AY$2917,33,FALSE),0) -> 0 | AJ50: =IFERROR(VLOOKUP($A50,Filtro!$A$5:$AY$2917,34,FALSE),0) -> 0 | AK50: =IFERROR(VLOOKUP($A50,Filtro!$A$5:$AY$2917,35,FALSE),0) -> 0 | AL50: 9,050 | AM50: 0
A51: 01014318 | B51: 0101332 | C51: Consulta Médica de Especialidad en Ginecología Pediátrica y de la Adolescencia | D51: =IFERROR(VLOOKUP($A51,Filtro!$A$5:$AY$2917,2,FALSE),0) -> 163 | E51: =IFERROR(VLOOKUP($A51,Filtro!$A$5:$AY$2917,3,FALSE),0) -> 162 | F51: =IFERROR(VLOOKUP($A51,Filtro!$A$5:$AY$2917,4,FALSE),0) -> 162 | G51: =IFERROR(VLOOKUP($A51,Filtro!$A$5:$AY$2917,5,FALSE),0) -> 0 | H51: =IFERROR(VLOOKUP($A51,Filtro!$A$5:$AY$2917,6,FALSE),0) -> 1 | I51: =IFERROR(VLOOKUP($A51,Filtro!$A$5:$AY$2917,7,FALSE),0) -> 0 | J51: =IFERROR(VLOOKUP($A51,Filtro!$A$5:$AY$2917,8,FALSE),0) -> 0 | K51: =IFERROR(VLOOKUP($A51,Filtro!$A$5:$AY$2917,9,FALSE),0) -> 0 | L51: =IFERROR(VLOOKUP($A51,Filtro!$A$5:$AY$2917,10,FALSE),0) -> 0 | M51: =IFERROR(VLOOKUP($A51,Filtro!$A$5:$AY$2917,11,FALSE),0) -> 0 | N51: =IFERROR(VLOOKUP($A51,Filtro!$A$5:$AY$2917,12,FALSE),0) -> 0 | O51: =IFERROR(VLOOKUP($A51,Filtro!$A$5:$AY$2917,13,FALSE),0) -> 0 | P51: =IFERROR(VLOOKUP($A51,Filtro!$A$5:$AY$2917,14,FALSE),0) -> 0 | Q51: =IFERROR(VLOOKUP($A51,Filtro!$A$5:$AY$2917,15,FALSE),0) -> 0 | R51: =IFERROR(VLOOKUP($A51,Filtro!$A$5:$AY$2917,16,FALSE),0) -> 0 | S51: =IFERROR(VLOOKUP($A51,Filtro!$A$5:$AY$2917,17,FALSE),0) -> 0 | T51: =IFERROR(VLOOKUP($A51,Filtro!$A$5:$AY$2917,18,FALSE),0) -> 0 | U51: =IFERROR(VLOOKUP($A51,Filtro!$A$5:$AY$2917,19,FALSE),0) -> 0 | V51: =IFERROR(VLOOKUP($A51,Filtro!$A$5:$AY$2917,20,FALSE),0) -> 0 | W51: =IFERROR(VLOOKUP($A51,Filtro!$A$5:$AY$2917,21,FALSE),0) -> 0 | X51: =IFERROR(VLOOKUP($A51,Filtro!$A$5:$AY$2917,22,FALSE),0) -> 0 | Y51: =IFERROR(VLOOKUP($A51,Filtro!$A$5:$AY$2917,23,FALSE),0) -> 0 | Z51: =IFERROR(VLOOKUP($A51,Filtro!$A$5:$AY$2917,24,FALSE),0) -> 0 | AA51: =IFERROR(VLOOKUP($A51,Filtro!$A$5:$AY$2917,25,FALSE),0) -> 0 | AB51: =IFERROR(VLOOKUP($A51,Filtro!$A$5:$AY$2917,26,FALSE),0) -> 0 | AC51: =IFERROR(VLOOKUP($A51,Filtro!$A$5:$AY$2917,27,FALSE),0) -> 163 | AD51: =IFERROR(VLOOKUP($A51,Filtro!$A$5:$AY$2917,28,FALSE),0) -> 0 | AE51: =IFERROR(VLOOKUP($A51,Filtro!$A$5:$AY$2917,29,FALSE),0) -> 0 | AF51: =IFERROR(VLOOKUP($A51,Filtro!$A$5:$AY$2917,30,FALSE),0) -> 0 | AG51: =IFERROR(VLOOKUP($A51,Filtro!$A$5:$AY$2917,31,FALSE),0) -> 0 | AH51: =IFERROR(VLOOKUP($A51,Filtro!$A$5:$AY$2917,32,FALSE),0) -> 0 | AI51: =IFERROR(VLOOKUP($A51,Filtro!$A$5:$AY$2917,33,FALSE),0) -> 0 | AJ51: =IFERROR(VLOOKUP($A51,Filtro!$A$5:$AY$2917,34,FALSE),0) -> 0 | AK51: =IFERROR(VLOOKUP($A51,Filtro!$A$5:$AY$2917,35,FALSE),0) -> 0 | AL51: 9,050 | AM51: 1,466,100
A52: 01014704 | B52: 0101333 | C52: Consulta Médica de Especialidad en Medicina Materno Fetal | D52: =IFERROR(VLOOKUP($A52,Filtro!$A$5:$AY$2917,2,FALSE),0) -> 0 | E52: =IFERROR(VLOOKUP($A52,Filtro!$A$5:$AY$2917,3,FALSE),0) -> 0 | F52: =IFERROR(VLOOKUP($A52,Filtro!$A$5:$AY$2917,4,FALSE),0) -> 0 | G52: =IFERROR(VLOOKUP($A52,Filtro!$A$5:$AY$2917,5,FALSE),0) -> 0 | H52: =IFERROR(VLOOKUP($A52,Filtro!$A$5:$AY$2917,6,FALSE),0) -> 0 | I52: =IFERROR(VLOOKUP($A52,Filtro!$A$5:$AY$2917,7,FALSE),0) -> 0 | J52: =IFERROR(VLOOKUP($A52,Filtro!$A$5:$AY$2917,8,FALSE),0) -> 0 | K52: =IFERROR(VLOOKUP($A52,Filtro!$A$5:$AY$2917,9,FALSE),0) -> 0 | L52: =IFERROR(VLOOKUP($A52,Filtro!$A$5:$AY$2917,10,FALSE),0) -> 0 | M52: =IFERROR(VLOOKUP($A52,Filtro!$A$5:$AY$2917,11,FALSE),0) -> 0 | N52: =IFERROR(VLOOKUP($A52,Filtro!$A$5:$AY$2917,12,FALSE),0) -> 0 | O52: =IFERROR(VLOOKUP($A52,Filtro!$A$5:$AY$2917,13,FALSE),0) -> 0 | P52: =IFERROR(VLOOKUP($A52,Filtro!$A$5:$AY$2917,14,FALSE),0) -> 0 | Q52: =IFERROR(VLOOKUP($A52,Filtro!$A$5:$AY$2917,15,FALSE),0) -> 0 | R52: =IFERROR(VLOOKUP($A52,Filtro!$A$5:$AY$2917,16,FALSE),0) -> 0 | S52: =IFERROR(VLOOKUP($A52,Filtro!$A$5:$AY$2917,17,FALSE),0) -> 0 | T52: =IFERROR(VLOOKUP($A52,Filtro!$A$5:$AY$2917,18,FALSE),0) -> 0 | U52: =IFERROR(VLOOKUP($A52,Filtro!$A$5:$AY$2917,19,FALSE),0) -> 0 | V52: =IFERROR(VLOOKUP($A52,Filtro!$A$5:$AY$2917,20,FALSE),0) -> 0 | W52: =IFERROR(VLOOKUP($A52,Filtro!$A$5:$AY$2917,21,FALSE),0) -> 0 | X52: =IFERROR(VLOOKUP($A52,Filtro!$A$5:$AY$2917,22,FALSE),0) -> 0 | Y52: =IFERROR(VLOOKUP($A52,Filtro!$A$5:$AY$2917,23,FALSE),0) -> 0 | Z52: =IFERROR(VLOOKUP($A52,Filtro!$A$5:$AY$2917,24,FALSE),0) -> 0 | AA52: =IFERROR(VLOOKUP($A52,Filtro!$A$5:$AY$2917,25,FALSE),0) -> 0 | AB52: =IFERROR(VLOOKUP($A52,Filtro!$A$5:$AY$2917,26,FALSE),0) -> 0 | AC52: =IFERROR(VLOOKUP($A52,Filtro!$A$5:$AY$2917,27,FALSE),0) -> 0 | AD52: =IFERROR(VLOOKUP($A52,Filtro!$A$5:$AY$2917,28,FALSE),0) -> 0 | AE52: =IFERROR(VLOOKUP($A52,Filtro!$A$5:$AY$2917,29,FALSE),0) -> 0 | AF52: =IFERROR(VLOOKUP($A52,Filtro!$A$5:$AY$2917,30,FALSE),0) -> 0 | AG52: =IFERROR(VLOOKUP($A52,Filtro!$A$5:$AY$2917,31,FALSE),0) -> 0 | AH52: =IFERROR(VLOOKUP($A52,Filtro!$A$5:$AY$2917,32,FALSE),0) -> 0 | AI52: =IFERROR(VLOOKUP($A52,Filtro!$A$5:$AY$2917,33,FALSE),0) -> 0 | AJ52: =IFERROR(VLOOKUP($A52,Filtro!$A$5:$AY$2917,34,FALSE),0) -> 0 | AK52: =IFERROR(VLOOKUP($A52,Filtro!$A$5:$AY$2917,35,FALSE),0) -> 0
A53: 01014319 | B53: 0101334 | C53: Consulta Médica de Especialidad en Medicina Nuclear | D53: =IFERROR(VLOOKUP($A53,Filtro!$A$5:$AY$2917,2,FALSE),0) -> 0 | E53: =IFERROR(VLOOKUP($A53,Filtro!$A$5:$AY$2917,3,FALSE),0) -> 0 | F53: =IFERROR(VLOOKUP($A53,Filtro!$A$5:$AY$2917,4,FALSE),0) -> 0 | G53: =IFERROR(VLOOKUP($A53,Filtro!$A$5:$AY$2917,5,FALSE),0) -> 0 | H53: =IFERROR(VLOOKUP($A53,Filtro!$A$5:$AY$2917,6,FALSE),0) -> 0 | I53: =IFERROR(VLOOKUP($A53,Filtro!$A$5:$AY$2917,7,FALSE),0) -> 0 | J53: =IFERROR(VLOOKUP($A53,Filtro!$A$5:$AY$2917,8,FALSE),0) -> 0 | K53: =IFERROR(VLOOKUP($A53,Filtro!$A$5:$AY$2917,9,FALSE),0) -> 0 | L53: =IFERROR(VLOOKUP($A53,Filtro!$A$5:$AY$2917,10,FALSE),0) -> 0 | M53: =IFERROR(VLOOKUP($A53,Filtro!$A$5:$AY$2917,11,FALSE),0) -> 0 | N53: =IFERROR(VLOOKUP($A53,Filtro!$A$5:$AY$2917,12,FALSE),0) -> 0 | O53: =IFERROR(VLOOKUP($A53,Filtro!$A$5:$AY$2917,13,FALSE),0) -> 0 | P53: =IFERROR(VLOOKUP($A53,Filtro!$A$5:$AY$2917,14,FALSE),0) -> 0 | Q53: =IFERROR(VLOOKUP($A53,Filtro!$A$5:$AY$2917,15,FALSE),0) -> 0 | R53: =IFERROR(VLOOKUP($A53,Filtro!$A$5:$AY$2917,16,FALSE),0) -> 0 | S53: =IFERROR(VLOOKUP($A53,Filtro!$A$5:$AY$2917,17,FALSE),0) -> 0 | T53: =IFERROR(VLOOKUP($A53,Filtro!$A$5:$AY$2917,18,FALSE),0) -> 0 | U53: =IFERROR(VLOOKUP($A53,Filtro!$A$5:$AY$2917,19,FALSE),0) -> 0 | V53: =IFERROR(VLOOKUP($A53,Filtro!$A$5:$AY$2917,20,FALSE),0) -> 0 | W53: =IFERROR(VLOOKUP($A53,Filtro!$A$5:$AY$2917,21,FALSE),0) -> 0 | X53: =IFERROR(VLOOKUP($A53,Filtro!$A$5:$AY$2917,22,FALSE),0) -> 0 | Y53: =IFERROR(VLOOKUP($A53,Filtro!$A$5:$AY$2917,23,FALSE),0) -> 0 | Z53: =IFERROR(VLOOKUP($A53,Filtro!$A$5:$AY$2917,24,FALSE),0) -> 0 | AA53: =IFERROR(VLOOKUP($A53,Filtro!$A$5:$AY$2917,25,FALSE),0) -> 0 | AB53: =IFERROR(VLOOKUP($A53,Filtro!$A$5:$AY$2917,26,FALSE),0) -> 0 | AC53: =IFERROR(VLOOKUP($A53,Filtro!$A$5:$AY$2917,27,FALSE),0) -> 0 | AD53: =IFERROR(VLOOKUP($A53,Filtro!$A$5:$AY$2917,28,FALSE),0) -> 0 | AE53: =IFERROR(VLOOKUP($A53,Filtro!$A$5:$AY$2917,29,FALSE),0) -> 0 | AF53: =IFERROR(VLOOKUP($A53,Filtro!$A$5:$AY$2917,30,FALSE),0) -> 0 | AG53: =IFERROR(VLOOKUP($A53,Filtro!$A$5:$AY$2917,31,FALSE),0) -> 0 | AH53: =IFERROR(VLOOKUP($A53,Filtro!$A$5:$AY$2917,32,FALSE),0) -> 0 | AI53: =IFERROR(VLOOKUP($A53,Filtro!$A$5:$AY$2917,33,FALSE),0) -> 0 | AJ53: =IFERROR(VLOOKUP($A53,Filtro!$A$5:$AY$2917,34,FALSE),0) -> 0 | AK53: =IFERROR(VLOOKUP($A53,Filtro!$A$5:$AY$2917,35,FALSE),0) -> 0 | AL53: 9,050 | AM53: 0
C54: TOTAL ARANCEL MAI | D54: =SUM(D6:D53) -> 200035 | E54: =SUM(E6:E53) -> 199709 | F54: =SUM(F6:F53) -> 199706 | G54: =SUM(G6:G53) -> 3 | H54: =SUM(H6:H53) -> 326 | AB54: =SUM(AB6:AB53) -> 208 | AC54: 198939 | AD54: 888 | AE54: 5294 | AF54: 0 | AG54: 0 | AH54: 0 | AI54: 0 | AJ54: 0 | AK54: 0 | AM54: =SUM(AM6:AM53) -> 1,807,339,300
C55: OTRAS CONSULTAS MEDICAS
A56: 01010014 | B56: 0101001 | C56: Consulta Medicina General | D56: =IFERROR(VLOOKUP($A56,Filtro!$A$5:$AY$2917,2,FALSE),0) -> 37384 | E56: =IFERROR(VLOOKUP($A56,Filtro!$A$5:$AY$2917,3,FALSE),0) -> 37384 | F56: =IFERROR(VLOOKUP($A56,Filtro!$A$5:$AY$2917,4,FALSE),0) -> 37384 | G56: =IFERROR(VLOOKUP($A56,Filtro!$A$5:$AY$2917,5,FALSE),0) -> 0 | H56: =IFERROR(VLOOKUP($A56,Filtro!$A$5:$AY$2917,6,FALSE),0) -> 0 | I56: =IFERROR(VLOOKUP($A56,Filtro!$A$5:$AY$2917,7,FALSE),0) -> 0 | J56: =IFERROR(VLOOKUP($A56,Filtro!$A$5:$AY$2917,8,FALSE),0) -> 0 | K56: =IFERROR(VLOOKUP($A56,Filtro!$A$5:$AY$2917,9,FALSE),0) -> 0 | L56: =IFERROR(VLOOKUP($A56,Filtro!$A$5:$AY$2917,10,FALSE),0) -> 0 | M56: =IFERROR(VLOOKUP($A56,Filtro!$A$5:$AY$2917,11,FALSE),0) -> 0 | N56: =IFERROR(VLOOKUP($A56,Filtro!$A$5:$AY$2917,12,FALSE),0) -> 0 | O56: =IFERROR(VLOOKUP($A56,Filtro!$A$5:$AY$2917,13,FALSE),0) -> 0 | P56: =IFERROR(VLOOKUP($A56,Filtro!$A$5:$AY$2917,14,FALSE),0) -> 0 | Q56: =IFERROR(VLOOKUP($A56,Filtro!$A$5:$AY$2917,15,FALSE),0) -> 0 | R56: =IFERROR(VLOOKUP($A56,Filtro!$A$5:$AY$2917,16,FALSE),0) -> 0 | S56: =IFERROR(VLOOKUP($A56,Filtro!$A$5:$AY$2917,17,FALSE),0) -> 0 | T56: =IFERROR(VLOOKUP($A56,Filtro!$A$5:$AY$2917,18,FALSE),0) -> 0 | U56: =IFERROR(VLOOKUP($A56,Filtro!$A$5:$AY$2917,19,FALSE),0) -> 0 | V56: =IFERROR(VLOOKUP($A56,Filtro!$A$5:$AY$2917,20,FALSE),0) -> 0 | W56: =IFERROR(VLOOKUP($A56,Filtro!$A$5:$AY$2917,21,FALSE),0) -> 0 | X56: =IFERROR(VLOOKUP($A56,Filtro!$A$5:$AY$2917,22,FALSE),0) -> 0 | Y56: =IFERROR(VLOOKUP($A56,Filtro!$A$5:$AY$2917,23,FALSE),0) -> 0 | Z56: =IFERROR(VLOOKUP($A56,Filtro!$A$5:$AY$2917,24,FALSE),0) -> 0 | AA56: =IFERROR(VLOOKUP($A56,Filtro!$A$5:$AY$2917,25,FALSE),0) -> 0 | AB56: =IFERROR(VLOOKUP($A56,Filtro!$A$5:$AY$2917,26,FALSE),0) -> 0 | AC56: =IFERROR(VLOOKUP($A56,Filtro!$A$5:$AY$2917,27,FALSE),0) -> 37384 | AD56: =IFERROR(VLOOKUP($A56,Filtro!$A$5:$AY$2917,28,FALSE),0) -> 0 | AE56: =IFERROR(VLOOKUP($A56,Filtro!$A$5:$AY$2917,29,FALSE),0) -> 0 | AF56: =IFERROR(VLOOKUP($A56,Filtro!$A$5:$AY$2917,30,FALSE),0) -> 0 | AG56: =IFERROR(VLOOKUP($A56,Filtro!$A$5:$AY$2917,31,FALSE),0) -> 0 | AH56: =IFERROR(VLOOKUP($A56,Filtro!$A$5:$AY$2917,32,FALSE),0) -> 0 | AI56: =IFERROR(VLOOKUP($A56,Filtro!$A$5:$AY$2917,33,FALSE),0) -> 0 | AJ56: =IFERROR(VLOOKUP($A56,Filtro!$A$5:$AY$2917,34,FALSE),0) -> 0 | AK56: =IFERROR(VLOOKUP($A56,Filtro!$A$5:$AY$2917,35,FALSE),0) -> 0 | AL56: 6,360 | AM56: =AL56*F56 -> 237,762,240
A57: 01014320 | B57: 0101007 | C57: Atención médica del recién nacido en sala de parto o pabellón quirúrgico c/s reanimación cardio-respiratoria | D57: =IFERROR(VLOOKUP($A57,Filtro!$A$5:$AY$2917,2,FALSE),0) -> 2053 | E57: =IFERROR(VLOOKUP($A57,Filtro!$A$5:$AY$2917,3,FALSE),0) -> 2006 | F57: =IFERROR(VLOOKUP($A57,Filtro!$A$5:$AY$2917,4,FALSE),0) -> 1808 | G57: =IFERROR(VLOOKUP($A57,Filtro!$A$5:$AY$2917,5,FALSE),0) -> 198 | H57: =IFERROR(VLOOKUP($A57,Filtro!$A$5:$AY$2917,6,FALSE),0) -> 47 | I57: =IFERROR(VLOOKUP($A57,Filtro!$A$5:$AY$2917,7,FALSE),0) -> 0 | J57: =IFERROR(VLOOKUP($A57,Filtro!$A$5:$AY$2917,8,FALSE),0) -> 0 | K57: =IFERROR(VLOOKUP($A57,Filtro!$A$5:$AY$2917,9,FALSE),0) -> 0 | L57: =IFERROR(VLOOKUP($A57,Filtro!$A$5:$AY$2917,10,FALSE),0) -> 0 | M57: =IFERROR(VLOOKUP($A57,Filtro!$A$5:$AY$2917,11,FALSE),0) -> 0 | N57: =IFERROR(VLOOKUP($A57,Filtro!$A$5:$AY$2917,12,FALSE),0) -> 0 | O57: =IFERROR(VLOOKUP($A57,Filtro!$A$5:$AY$2917,13,FALSE),0) -> 0 | P57: =IFERROR(VLOOKUP($A57,Filtro!$A$5:$AY$2917,14,FALSE),0) -> 0 | Q57: =IFERROR(VLOOKUP($A57,Filtro!$A$5:$AY$2917,15,FALSE),0) -> 0 | R57: =IFERROR(VLOOKUP($A57,Filtro!$A$5:$AY$2917,16,FALSE),0) -> 0 | S57: =IFERROR(VLOOKUP($A57,Filtro!$A$5:$AY$2917,17,FALSE),0) -> 0 | T57: =IFERROR(VLOOKUP($A57,Filtro!$A$5:$AY$2917,18,FALSE),0) -> 0 | U57: =IFERROR(VLOOKUP($A57,Filtro!$A$5:$AY$2917,19,FALSE),0) -> 0 | V57: =IFERROR(VLOOKUP($A57,Filtro!$A$5:$AY$2917,20,FALSE),0) -> 0 | W57: =IFERROR(VLOOKUP($A57,Filtro!$A$5:$AY$2917,21,FALSE),0) -> 0 | X57: =IFERROR(VLOOKUP($A57,Filtro!$A$5:$AY$2917,22,FALSE),0) -> 0 | Y57: =IFERROR(VLOOKUP($A57,Filtro!$A$5:$AY$2917,23,FALSE),0) -> 0 | Z57: =IFERROR(VLOOKUP($A57,Filtro!$A$5:$AY$2917,24,FALSE),0) -> 0 | AA57: =IFERROR(VLOOKUP($A57,Filtro!$A$5:$AY$2917,25,FALSE),0) -> 0 | AB57: =IFERROR(VLOOKUP($A57,Filtro!$A$5:$AY$2917,26,FALSE),0) -> 910 | AC57: =IFERROR(VLOOKUP($A57,Filtro!$A$5:$AY$2917,27,FALSE),0) -> 622 | AD57: =IFERROR(VLOOKUP($A57,Filtro!$A$5:$AY$2917,28,FALSE),0) -> 521 | AE57: =IFERROR(VLOOKUP($A57,Filtro!$A$5:$AY$2917,29,FALSE),0) -> 0 | AF57: =IFERROR(VLOOKUP($A57,Filtro!$A$5:$AY$2917,30,FALSE),0) -> 0 | AG57: =IFERROR(VLOOKUP($A57,Filtro!$A$5:$AY$2917,31,FALSE),0) -> 0 | AH57: =IFERROR(VLOOKUP($A57,Filtro!$A$5:$AY$2917,32,FALSE),0) -> 0 | AI57: =IFERROR(VLOOKUP($A57,Filtro!$A$5:$AY$2917,33,FALSE),0) -> 0 | AJ57: =IFERROR(VLOOKUP($A57,Filtro!$A$5:$AY$2917,34,FALSE),0) -> 0 | AK57: =IFERROR(VLOOKUP($A57,Filtro!$A$5:$AY$2917,35,FALSE),0) -> 0 | AL57: 16,790 | AM57: 30,356,320
A58: 01014321 | B58: 0101103 | C58: Consulta en Unidades de Urgencia Hospitalaria | D58: =IFERROR(VLOOKUP($A58,Filtro!$A$5:$AY$2917,2,FALSE),0) -> 153733 | E58: =IFERROR(VLOOKUP($A58,Filtro!$A$5:$AY$2917,3,FALSE),0) -> 143985 | F58: =IFERROR(VLOOKUP($A58,Filtro!$A$5:$AY$2917,4,FALSE),0) -> 143985 | G58: =IFERROR(VLOOKUP($A58,Filtro!$A$5:$AY$2917,5,FALSE),0) -> 0 | H58: =IFERROR(VLOOKUP($A58,Filtro!$A$5:$AY$2917,6,FALSE),0) -> 9748 | I58: =IFERROR(VLOOKUP($A58,Filtro!$A$5:$AY$2917,7,FALSE),0) -> 0 | J58: =IFERROR(VLOOKUP($A58,Filtro!$A$5:$AY$2917,8,FALSE),0) -> 0 | K58: =IFERROR(VLOOKUP($A58,Filtro!$A$5:$AY$2917,9,FALSE),0) -> 0 | L58: =IFERROR(VLOOKUP($A58,Filtro!$A$5:$AY$2917,10,FALSE),0) -> 0 | M58: =IFERROR(VLOOKUP($A58,Filtro!$A$5:$AY$2917,11,FALSE),0) -> 0 | N58: =IFERROR(VLOOKUP($A58,Filtro!$A$5:$AY$2917,12,FALSE),0) -> 0 | O58: =IFERROR(VLOOKUP($A58,Filtro!$A$5:$AY$2917,13,FALSE),0) -> 0 | P58: =IFERROR(VLOOKUP($A58,Filtro!$A$5:$AY$2917,14,FALSE),0) -> 0 | Q58: =IFERROR(VLOOKUP($A58,Filtro!$A$5:$AY$2917,15,FALSE),0) -> 0 | R58: =IFERROR(VLOOKUP($A58,Filtro!$A$5:$AY$2917,16,FALSE),0) -> 0 | S58: =IFERROR(VLOOKUP($A58,Filtro!$A$5:$AY$2917,17,FALSE),0) -> 0 | T58: =IFERROR(VLOOKUP($A58,Filtro!$A$5:$AY$2917,18,FALSE),0) -> 0 | U58: =IFERROR(VLOOKUP($A58,Filtro!$A$5:$AY$2917,19,FALSE),0) -> 0 | V58: =IFERROR(VLOOKUP($A58,Filtro!$A$5:$AY$2917,20,FALSE),0) -> 0 | W58: =IFERROR(VLOOKUP($A58,Filtro!$A$5:$AY$2917,21,FALSE),0) -> 0 | X58: =IFERROR(VLOOKUP($A58,Filtro!$A$5:$AY$2917,22,FALSE),0) -> 0 | Y58: =IFERROR(VLOOKUP($A58,Filtro!$A$5:$AY$2917,23,FALSE),0) -> 0 | Z58: =IFERROR(VLOOKUP($A58,Filtro!$A$5:$AY$2917,24,FALSE),0) -> 0 | AA58: =IFERROR(VLOOKUP($A58,Filtro!$A$5:$AY$2917,25,FALSE),0) -> 0 | AB58: =IFERROR(VLOOKUP($A58,Filtro!$A$5:$AY$2917,26,FALSE),0) -> 0 | AC58: =IFERROR(VLOOKUP($A58,Filtro!$A$5:$AY$2917,27,FALSE),0) -> 4487 | AD58: =IFERROR(VLOOKUP($A58,Filtro!$A$5:$AY$2917,28,FALSE),0) -> 142786 | AE58: =IFERROR(VLOOKUP($A58,Filtro!$A$5:$AY$2917,29,FALSE),0) -> 0 | AF58: =IFERROR(VLOOKUP($A58,Filtro!$A$5:$AY$2917,30,FALSE),0) -> 0 | AG58: =IFERROR(VLOOKUP($A58,Filtro!$A$5:$AY$2917,31,FALSE),0) -> 0 | AH58: =IFERROR(VLOOKUP($A58,Filtro!$A$5:$AY$2917,32,FALSE),0) -> 0 | AI58: =IFERROR(VLOOKUP($A58,Filtro!$A$5:$AY$2917,33,FALSE),0) -> 0 | AJ58: =IFERROR(VLOOKUP($A58,Filtro!$A$5:$AY$2917,34,FALSE),0) -> 0 | AK58: =IFERROR(VLOOKUP($A58,Filtro!$A$5:$AY$2917,35,FALSE),0) -> 0 | AL58: 9,050 | AM58: 1,303,064,250
C59: TOTAL OTRAS CONSULTAS MÉDICAS | D59: =SUM(D56:D58) -> 193170 | E59: =SUM(E56:E58) -> 183375 | F59: 183177 | G59: 198 | H59: 9795 | AB59: =SUM(AB56:AB58) -> 910 | AC59: =SUM(AC56:AC58) -> 42493 | AD59: 143307 | AE59: 0 | AF59: 0 | AG59: 0 | AH59: 0 | AI59: 0 | AJ59: 0 | AK59: 0 | AM59: 1571182810
C60: TOTAL PRODUCCION | D60: =SUM(D54+D59) -> 393205 | E60: =SUM(E54+E59) -> 383084 | F60: =SUM(F54+F59) -> 382883 | G60: =SUM(G54+G59) -> 201 | H60: =SUM(H54+H59) -> 10121 | AB60: =SUM(AB54+AB59) -> 1118 | AC60: =SUM(AC54+AC59) -> 241432 | AD60: 144195 | AE60: 5294 | AF60: 0 | AG60: 0 | AH60: 0 | AI60: 0 | AJ60: 0 | AK60: 0 | AM60: =SUM(AM54+AM59) -> 3378522110
C61: CONSULTAS POR OTROS PROFESIONALES DE LA SALUD
A62: 01010020 | B62: 0102002 | C62: Control de salud niño con EDP por enfermera | D62: =IFERROR(VLOOKUP($A62,Filtro!$A$5:$AY$2917,2,FALSE),0) -> 1157 | E62: =IFERROR(VLOOKUP($A62,Filtro!$A$5:$AY$2917,3,FALSE),0) -> 1157 | F62: =IFERROR(VLOOKUP($A62,Filtro!$A$5:$AY$2917,4,FALSE),0) -> 1157 | G62: =IFERROR(VLOOKUP($A62,Filtro!$A$5:$AY$2917,5,FALSE),0) -> 0 | H62: =IFERROR(VLOOKUP($A62,Filtro!$A$5:$AY$2917,6,FALSE),0) -> 0 | I62: =IFERROR(VLOOKUP($A62,Filtro!$A$5:$AY$2917,7,FALSE),0) -> 0 | J62: =IFERROR(VLOOKUP($A62,Filtro!$A$5:$AY$2917,8,FALSE),0) -> 0 | K62: =IFERROR(VLOOKUP($A62,Filtro!$A$5:$AY$2917,9,FALSE),0) -> 0 | L62: =IFERROR(VLOOKUP($A62,Filtro!$A$5:$AY$2917,10,FALSE),0) -> 0 | M62: =IFERROR(VLOOKUP($A62,Filtro!$A$5:$AY$2917,11,FALSE),0) -> 0 | N62: =IFERROR(VLOOKUP($A62,Filtro!$A$5:$AY$2917,12,FALSE),0) -> 0 | O62: =IFERROR(VLOOKUP($A62,Filtro!$A$5:$AY$2917,13,FALSE),0) -> 0 | P62: =IFERROR(VLOOKUP($A62,Filtro!$A$5:$AY$2917,14,FALSE),0) -> 0 | Q62: =IFERROR(VLOOKUP($A62,Filtro!$A$5:$AY$2917,15,FALSE),0) -> 0 | R62: =IFERROR(VLOOKUP($A62,Filtro!$A$5:$AY$2917,16,FALSE),0) -> 0 | S62: =IFERROR(VLOOKUP($A62,Filtro!$A$5:$AY$2917,17,FALSE),0) -> 0 | T62: =IFERROR(VLOOKUP($A62,Filtro!$A$5:$AY$2917,18,FALSE),0) -> 0 | U62: =IFERROR(VLOOKUP($A62,Filtro!$A$5:$AY$2917,19,FALSE),0) -> 0 | V62: =IFERROR(VLOOKUP($A62,Filtro!$A$5:$AY$2917,20,FALSE),0) -> 0 | W62: =IFERROR(VLOOKUP($A62,Filtro!$A$5:$AY$2917,21,FALSE),0) -> 0 | X62: =IFERROR(VLOOKUP($A62,Filtro!$A$5:$AY$2917,22,FALSE),0) -> 0 | Y62: =IFERROR(VLOOKUP($A62,Filtro!$A$5:$AY$2917,23,FALSE),0) -> 0 | Z62: =IFERROR(VLOOKUP($A62,Filtro!$A$5:$AY$2917,24,FALSE),0) -> 0 | AA62: =IFERROR(VLOOKUP($A62,Filtro!$A$5:$AY$2917,25,FALSE),0) -> 0 | AB62: =IFERROR(VLOOKUP($A62,Filtro!$A$5:$AY$2917,26,FALSE),0) -> 0 | AC62: =IFERROR(VLOOKUP($A62,Filtro!$A$5:$AY$2917,27,FALSE),0) -> 1157 | AD62: =IFERROR(VLOOKUP($A62,Filtro!$A$5:$AY$2917,28,FALSE),0) -> 0 | AE62: =IFERROR(VLOOKUP($A62,Filtro!$A$5:$AY$2917,29,FALSE),0) -> 0 | AF62: =IFERROR(VLOOKUP($A62,Filtro!$A$5:$AY$2917,30,FALSE),0) -> 0 | AG62: =IFERROR(VLOOKUP($A62,Filtro!$A$5:$AY$2917,31,FALSE),0) -> 0 | AH62: =IFERROR(VLOOKUP($A62,Filtro!$A$5:$AY$2917,32,FALSE),0) -> 0 | AI62: =IFERROR(VLOOKUP($A62,Filtro!$A$5:$AY$2917,33,FALSE),0) -> 0 | AJ62: =IFERROR(VLOOKUP($A62,Filtro!$A$5:$AY$2917,34,FALSE),0) -> 0 | AK62: =IFERROR(VLOOKUP($A62,Filtro!$A$5:$AY$2917,35,FALSE),0) -> 0 | AL62: 2,410 | AM62: =AL62*F62 -> 2,788,370
A63: 01010021 | B63: 0102003 | C63: Consulta o control por auxiliar de enfermería | D63: =IFERROR(VLOOKUP($A63,Filtro!$A$5:$AY$2917,2,FALSE),0) -> 15924 | E63: =IFERROR(VLOOKUP($A63,Filtro!$A$5:$AY$2917,3,FALSE),0) -> 15924 | F63: =IFERROR(VLOOKUP($A63,Filtro!$A$5:$AY$2917,4,FALSE),0) -> 15924 | G63: =IFERROR(VLOOKUP($A63,Filtro!$A$5:$AY$2917,5,FALSE),0) -> 0 | H63: =IFERROR(VLOOKUP($A63,Filtro!$A$5:$AY$2917,6,FALSE),0) -> 0 | I63: =IFERROR(VLOOKUP($A63,Filtro!$A$5:$AY$2917,7,FALSE),0) -> 0 | J63: =IFERROR(VLOOKUP($A63,Filtro!$A$5:$AY$2917,8,FALSE),0) -> 0 | K63: =IFERROR(VLOOKUP($A63,Filtro!$A$5:$AY$2917,9,FALSE),0) -> 0 | L63: =IFERROR(VLOOKUP($A63,Filtro!$A$5:$AY$2917,10,FALSE),0) -> 0 | M63: =IFERROR(VLOOKUP($A63,Filtro!$A$5:$AY$2917,11,FALSE),0) -> 0 | N63: =IFERROR(VLOOKUP($A63,Filtro!$A$5:$AY$2917,12,FALSE),0) -> 0 | O63: =IFERROR(VLOOKUP($A63,Filtro!$A$5:$AY$2917,13,FALSE),0) -> 0 | P63: =IFERROR(VLOOKUP($A63,Filtro!$A$5:$AY$2917,14,FALSE),0) -> 0 | Q63: =IFERROR(VLOOKUP($A63,Filtro!$A$5:$AY$2917,15,FALSE),0) -> 0 | R63: =IFERROR(VLOOKUP($A63,Filtro!$A$5:$AY$2917,16,FALSE),0) -> 0 | S63: =IFERROR(VLOOKUP($A63,Filtro!$A$5:$AY$2917,17,FALSE),0) -> 0 | T63: =IFERROR(VLOOKUP($A63,Filtro!$A$5:$AY$2917,18,FALSE),0) -> 0 | U63: =IFERROR(VLOOKUP($A63,Filtro!$A$5:$AY$2917,19,FALSE),0) -> 0 | V63: =IFERROR(VLOOKUP($A63,Filtro!$A$5:$AY$2917,20,FALSE),0) -> 0 | W63: =IFERROR(VLOOKUP($A63,Filtro!$A$5:$AY$2917,21,FALSE),0) -> 0 | X63: =IFERROR(VLOOKUP($A63,Filtro!$A$5:$AY$2917,22,FALSE),0) -> 0 | Y63: =IFERROR(VLOOKUP($A63,Filtro!$A$5:$AY$2917,23,FALSE),0) -> 0 | Z63: =IFERROR(VLOOKUP($A63,Filtro!$A$5:$AY$2917,24,FALSE),0) -> 0 | AA63: =IFERROR(VLOOKUP($A63,Filtro!$A$5:$AY$2917,25,FALSE),0) -> 0 | AB63: =IFERROR(VLOOKUP($A63,Filtro!$A$5:$AY$2917,26,FALSE),0) -> 0 | AC63: =IFERROR(VLOOKUP($A63,Filtro!$A$5:$AY$2917,27,FALSE),0) -> 1924 | AD63: =IFERROR(VLOOKUP($A63,Filtro!$A$5:$AY$2917,28,FALSE),0) -> 14000 | AE63: =IFERROR(VLOOKUP($A63,Filtro!$A$5:$AY$2917,29,FALSE),0) -> 0 | AF63: =IFERROR(VLOOKUP($A63,Filtro!$A$5:$AY$2917,30,FALSE),0) -> 0 | AG63: =IFERROR(VLOOKUP($A63,Filtro!$A$5:$AY$2917,31,FALSE),0) -> 0 | AH63: =IFERROR(VLOOKUP($A63,Filtro!$A$5:$AY$2917,32,FALSE),0) -> 0 | AI63: =IFERROR(VLOOKUP($A63,Filtro!$A$5:$AY$2917,33,FALSE),0) -> 0 | AJ63: =IFERROR(VLOOKUP($A63,Filtro!$A$5:$AY$2917,34,FALSE),0) -> 0 | AK63: =IFERROR(VLOOKUP($A63,Filtro!$A$5:$AY$2917,35,FALSE),0) -> 0 | AL63: 780 | AM63: 12,420,720
A64: 01010022 | B64: 0102005 | C64: Consulta por fonoaudiólogo | D64: =IFERROR(VLOOKUP($A64,Filtro!$A$5:$AY$2917,2,FALSE),0) -> 11718 | E64: =IFERROR(VLOOKUP($A64,Filtro!$A$5:$AY$2917,3,FALSE),0) -> 11696 | F64: =IFERROR(VLOOKUP($A64,Filtro!$A$5:$AY$2917,4,FALSE),0) -> 11696 | G64: =IFERROR(VLOOKUP($A64,Filtro!$A$5:$AY$2917,5,FALSE),0) -> 0 | H64: =IFERROR(VLOOKUP($A64,Filtro!$A$5:$AY$2917,6,FALSE),0) -> 22 | I64: =IFERROR(VLOOKUP($A64,Filtro!$A$5:$AY$2917,7,FALSE),0) -> 0 | J64: =IFERROR(VLOOKUP($A64,Filtro!$A$5:$AY$2917,8,FALSE),0) -> 0 | K64: =IFERROR(VLOOKUP($A64,Filtro!$A$5:$AY$2917,9,FALSE),0) -> 0 | L64: =IFERROR(VLOOKUP($A64,Filtro!$A$5:$AY$2917,10,FALSE),0) -> 0 | M64: =IFERROR(VLOOKUP($A64,Filtro!$A$5:$AY$2917,11,FALSE),0) -> 0 | N64: =IFERROR(VLOOKUP($A64,Filtro!$A$5:$AY$2917,12,FALSE),0) -> 0 | O64: =IFERROR(VLOOKUP($A64,Filtro!$A$5:$AY$2917,13,FALSE),0) -> 0 | P64: =IFERROR(VLOOKUP($A64,Filtro!$A$5:$AY$2917,14,FALSE),0) -> 0 | Q64: =IFERROR(VLOOKUP($A64,Filtro!$A$5:$AY$2917,15,FALSE),0) -> 0 | R64: =IFERROR(VLOOKUP($A64,Filtro!$A$5:$AY$2917,16,FALSE),0) -> 0 | S64: =IFERROR(VLOOKUP($A64,Filtro!$A$5:$AY$2917,17,FALSE),0) -> 0 | T64: =IFERROR(VLOOKUP($A64,Filtro!$A$5:$AY$2917,18,FALSE),0) -> 0 | U64: =IFERROR(VLOOKUP($A64,Filtro!$A$5:$AY$2917,19,FALSE),0) -> 0 | V64: =IFERROR(VLOOKUP($A64,Filtro!$A$5:$AY$2917,20,FALSE),0) -> 0 | W64: =IFERROR(VLOOKUP($A64,Filtro!$A$5:$AY$2917,21,FALSE),0) -> 0 | X64: =IFERROR(VLOOKUP($A64,Filtro!$A$5:$AY$2917,22,FALSE),0) -> 0 | Y64: =IFERROR(VLOOKUP($A64,Filtro!$A$5:$AY$2917,23,FALSE),0) -> 0 | Z64: =IFERROR(VLOOKUP($A64,Filtro!$A$5:$AY$2917,24,FALSE),0) -> 0 | AA64: =IFERROR(VLOOKUP($A64,Filtro!$A$5:$AY$2917,25,FALSE),0) -> 0 | AB64: =IFERROR(VLOOKUP($A64,Filtro!$A$5:$AY$2917,26,FALSE),0) -> 5084 | AC64: =IFERROR(VLOOKUP($A64,Filtro!$A$5:$AY$2917,27,FALSE),0) -> 6258 | AD64: =IFERROR(VLOOKUP($A64,Filtro!$A$5:$AY$2917,28,FALSE),0) -> 376 | AE64: =IFERROR(VLOOKUP($A64,Filtro!$A$5:$AY$2917,29,FALSE),0) -> 0 | AF64: =IFERROR(VLOOKUP($A64,Filtro!$A$5:$AY$2917,30,FALSE),0) -> 0 | AG64: =IFERROR(VLOOKUP($A64,Filtro!$A$5:$AY$2917,31,FALSE),0) -> 0 | AH64: =IFERROR(VLOOKUP($A64,Filtro!$A$5:$AY$2917,32,FALSE),0) -> 0 | AI64: =IFERROR(VLOOKUP($A64,Filtro!$A$5:$AY$2917,33,FALSE),0) -> 0 | AJ64: =IFERROR(VLOOKUP($A64,Filtro!$A$5:$AY$2917,34,FALSE),0) -> 0 | AK64: =IFERROR(VLOOKUP($A64,Filtro!$A$5:$AY$2917,35,FALSE),0) -> 0 | AL64: 1,920 | AM64: 22,456,320
A65: 01014322 | B65: 0102008 | C65: Consulta o control por enfermera | D65: =IFERROR(VLOOKUP($A65,Filtro!$A$5:$AY$2917,2,FALSE),0) -> 64562 | E65: =IFERROR(VLOOKUP($A65,Filtro!$A$5:$AY$2917,3,FALSE),0) -> 64400 | F65: =IFERROR(VLOOKUP($A65,Filtro!$A$5:$AY$2917,4,FALSE),0) -> 64400 | G65: =IFERROR(VLOOKUP($A65,Filtro!$A$5:$AY$2917,5,FALSE),0) -> 0 | H65: =IFERROR(VLOOKUP($A65,Filtro!$A$5:$AY$2917,6,FALSE),0) -> 162 | I65: =IFERROR(VLOOKUP($A65,Filtro!$A$5:$AY$2917,7,FALSE),0) -> 0 | J65: =IFERROR(VLOOKUP($A65,Filtro!$A$5:$AY$2917,8,FALSE),0) -> 0 | K65: =IFERROR(VLOOKUP($A65,Filtro!$A$5:$AY$2917,9,FALSE),0) -> 0 | L65: =IFERROR(VLOOKUP($A65,Filtro!$A$5:$AY$2917,10,FALSE),0) -> 0 | M65: =IFERROR(VLOOKUP($A65,Filtro!$A$5:$AY$2917,11,FALSE),0) -> 0 | N65: =IFERROR(VLOOKUP($A65,Filtro!$A$5:$AY$2917,12,FALSE),0) -> 0 | O65: =IFERROR(VLOOKUP($A65,Filtro!$A$5:$AY$2917,13,FALSE),0) -> 0 | P65: =IFERROR(VLOOKUP($A65,Filtro!$A$5:$AY$2917,14,FALSE),0) -> 0 | Q65: =IFERROR(VLOOKUP($A65,Filtro!$A$5:$AY$2917,15,FALSE),0) -> 0 | R65: =IFERROR(VLOOKUP($A65,Filtro!$A$5:$AY$2917,16,FALSE),0) -> 0 | S65: =IFERROR(VLOOKUP($A65,Filtro!$A$5:$AY$2917,17,FALSE),0) -> 0 | T65: =IFERROR(VLOOKUP($A65,Filtro!$A$5:$AY$2917,18,FALSE),0) -> 0 | U65: =IFERROR(VLOOKUP($A65,Filtro!$A$5:$AY$2917,19,FALSE),0) -> 0 | V65: =IFERROR(VLOOKUP($A65,Filtro!$A$5:$AY$2917,20,FALSE),0) -> 0 | W65: =IFERROR(VLOOKUP($A65,Filtro!$A$5:$AY$2917,21,FALSE),0) -> 0 | X65: =IFERROR(VLOOKUP($A65,Filtro!$A$5:$AY$2917,22,FALSE),0) -> 0 | Y65: =IFERROR(VLOOKUP($A65,Filtro!$A$5:$AY$2917,23,FALSE),0) -> 0 | Z65: =IFERROR(VLOOKUP($A65,Filtro!$A$5:$AY$2917,24,FALSE),0) -> 0 | AA65: =IFERROR(VLOOKUP($A65,Filtro!$A$5:$AY$2917,25,FALSE),0) -> 0 | AB65: =IFERROR(VLOOKUP($A65,Filtro!$A$5:$AY$2917,26,FALSE),0) -> 0 | AC65: =IFERROR(VLOOKUP($A65,Filtro!$A$5:$AY$2917,27,FALSE),0) -> 48421 | AD65: =IFERROR(VLOOKUP($A65,Filtro!$A$5:$AY$2917,28,FALSE),0) -> 16141 | AE65: =IFERROR(VLOOKUP($A65,Filtro!$A$5:$AY$2917,29,FALSE),0) -> 0 | AF65: =IFERROR(VLOOKUP($A65,Filtro!$A$5:$AY$2917,30,FALSE),0) -> 0 | AG65: =IFERROR(VLOOKUP($A65,Filtro!$A$5:$AY$2917,31,FALSE),0) -> 0 | AH65: =IFERROR(VLOOKUP($A65,Filtro!$A$5:$AY$2917,32,FALSE),0) -> 0 | AI65: =IFERROR(VLOOKUP($A65,Filtro!$A$5:$AY$2917,33,FALSE),0) -> 0 | AJ65: =IFERROR(VLOOKUP($A65,Filtro!$A$5:$AY$2917,34,FALSE),0) -> 0 | AK65: =IFERROR(VLOOKUP($A65,Filtro!$A$5:$AY$2917,35,FALSE),0) -> 0 | AL65: 1,410 | AM65: 90,804,000
A66: 01014323 | B66: 0102009 | C66: Consulta o control por matrona | D66: =IFERROR(VLOOKUP($A66,Filtro!$A$5:$AY$2917,2,FALSE),0) -> 27321 | E66: =IFERROR(VLOOKUP($A66,Filtro!$A$5:$AY$2917,3,FALSE),0) -> 27214 | F66: =IFERROR(VLOOKUP($A66,Filtro!$A$5:$AY$2917,4,FALSE),0) -> 27214 | G66: =IFERROR(VLOOKUP($A66,Filtro!$A$5:$AY$2917,5,FALSE),0) -> 0 | H66: =IFERROR(VLOOKUP($A66,Filtro!$A$5:$AY$2917,6,FALSE),0) -> 107 | I66: =IFERROR(VLOOKUP($A66,Filtro!$A$5:$AY$2917,7,FALSE),0) -> 0 | J66: =IFERROR(VLOOKUP($A66,Filtro!$A$5:$AY$2917,8,FALSE),0) -> 0 | K66: =IFERROR(VLOOKUP($A66,Filtro!$A$5:$AY$2917,9,FALSE),0) -> 0 | L66: =IFERROR(VLOOKUP($A66,Filtro!$A$5:$AY$2917,10,FALSE),0) -> 0 | M66: =IFERROR(VLOOKUP($A66,Filtro!$A$5:$AY$2917,11,FALSE),0) -> 0 | N66: =IFERROR(VLOOKUP($A66,Filtro!$A$5:$AY$2917,12,FALSE),0) -> 0 | O66: =IFERROR(VLOOKUP($A66,Filtro!$A$5:$AY$2917,13,FALSE),0) -> 0 | P66: =IFERROR(VLOOKUP($A66,Filtro!$A$5:$AY$2917,14,FALSE),0) -> 0 | Q66: =IFERROR(VLOOKUP($A66,Filtro!$A$5:$AY$2917,15,FALSE),0) -> 0 | R66: =IFERROR(VLOOKUP($A66,Filtro!$A$5:$AY$2917,16,FALSE),0) -> 0 | S66: =IFERROR(VLOOKUP($A66,Filtro!$A$5:$AY$2917,17,FALSE),0) -> 0 | T66: =IFERROR(VLOOKUP($A66,Filtro!$A$5:$AY$2917,18,FALSE),0) -> 0 | U66: =IFERROR(VLOOKUP($A66,Filtro!$A$5:$AY$2917,19,FALSE),0) -> 0 | V66: =IFERROR(VLOOKUP($A66,Filtro!$A$5:$AY$2917,20,FALSE),0) -> 0 | W66: =IFERROR(VLOOKUP($A66,Filtro!$A$5:$AY$2917,21,FALSE),0) -> 0 | X66: =IFERROR(VLOOKUP($A66,Filtro!$A$5:$AY$2917,22,FALSE),0) -> 0 | Y66: =IFERROR(VLOOKUP($A66,Filtro!$A$5:$AY$2917,23,FALSE),0) -> 0 | Z66: =IFERROR(VLOOKUP($A66,Filtro!$A$5:$AY$2917,24,FALSE),0) -> 0 | AA66: =IFERROR(VLOOKUP($A66,Filtro!$A$5:$AY$2917,25,FALSE),0) -> 0 | AB66: =IFERROR(VLOOKUP($A66,Filtro!$A$5:$AY$2917,26,FALSE),0) -> 0 | AC66: =IFERROR(VLOOKUP($A66,Filtro!$A$5:$AY$2917,27,FALSE),0) -> 24289 | AD66: =IFERROR(VLOOKUP($A66,Filtro!$A$5:$AY$2917,28,FALSE),0) -> 3032 | AE66: =IFERROR(VLOOKUP($A66,Filtro!$A$5:$AY$2917,29,FALSE),0) -> 0 | AF66: =IFERROR(VLOOKUP($A66,Filtro!$A$5:$AY$2917,30,FALSE),0) -> 0 | AG66: =IFERROR(VLOOKUP($A66,Filtro!$A$5:$AY$2917,31,FALSE),0) -> 0 | AH66: =IFERROR(VLOOKUP($A66,Filtro!$A$5:$AY$2917,32,FALSE),0) -> 0 | AI66: =IFERROR(VLOOKUP($A66,Filtro!$A$5:$AY$2917,33,FALSE),0) -> 0 | AJ66: =IFERROR(VLOOKUP($A66,Filtro!$A$5:$AY$2917,34,FALSE),0) -> 0 | AK66: =IFERROR(VLOOKUP($A66,Filtro!$A$5:$AY$2917,35,FALSE),0) -> 0 | AL66: 1,410 | AM66: 38,371,740
A67: 01014324 | B67: 0102010 | C67: Consulta o control por nutricionista | D67: =IFERROR(VLOOKUP($A67,Filtro!$A$5:$AY$2917,2,FALSE),0) -> 13547 | E67: =IFERROR(VLOOKUP($A67,Filtro!$A$5:$AY$2917,3,FALSE),0) -> 13528 | F67: =IFERROR(VLOOKUP($A67,Filtro!$A$5:$AY$2917,4,FALSE),0) -> 13528 | G67: =IFERROR(VLOOKUP($A67,Filtro!$A$5:$AY$2917,5,FALSE),0) -> 0 | H67: =IFERROR(VLOOKUP($A67,Filtro!$A$5:$AY$2917,6,FALSE),0) -> 19 | I67: =IFERROR(VLOOKUP($A67,Filtro!$A$5:$AY$2917,7,FALSE),0) -> 0 | J67: =IFERROR(VLOOKUP($A67,Filtro!$A$5:$AY$2917,8,FALSE),0) -> 0 | K67: =IFERROR(VLOOKUP($A67,Filtro!$A$5:$AY$2917,9,FALSE),0) -> 0 | L67: =IFERROR(VLOOKUP($A67,Filtro!$A$5:$AY$2917,10,FALSE),0) -> 0 | M67: =IFERROR(VLOOKUP($A67,Filtro!$A$5:$AY$2917,11,FALSE),0) -> 0 | N67: =IFERROR(VLOOKUP($A67,Filtro!$A$5:$AY$2917,12,FALSE),0) -> 0 | O67: =IFERROR(VLOOKUP($A67,Filtro!$A$5:$AY$2917,13,FALSE),0) -> 0 | P67: =IFERROR(VLOOKUP($A67,Filtro!$A$5:$AY$2917,14,FALSE),0) -> 0 | Q67: =IFERROR(VLOOKUP($A67,Filtro!$A$5:$AY$2917,15,FALSE),0) -> 0 | R67: =IFERROR(VLOOKUP($A67,Filtro!$A$5:$AY$2917,16,FALSE),0) -> 0 | S67: =IFERROR(VLOOKUP($A67,Filtro!$A$5:$AY$2917,17,FALSE),0) -> 0 | T67: =IFERROR(VLOOKUP($A67,Filtro!$A$5:$AY$2917,18,FALSE),0) -> 0 | U67: =IFERROR(VLOOKUP($A67,Filtro!$A$5:$AY$2917,19,FALSE),0) -> 0 | V67: =IFERROR(VLOOKUP($A67,Filtro!$A$5:$AY$2917,20,FALSE),0) -> 0 | W67: =IFERROR(VLOOKUP($A67,Filtro!$A$5:$AY$2917,21,FALSE),0) -> 0 | X67: =IFERROR(VLOOKUP($A67,Filtro!$A$5:$AY$2917,22,FALSE),0) -> 0 | Y67: =IFERROR(VLOOKUP($A67,Filtro!$A$5:$AY$2917,23,FALSE),0) -> 0 | Z67: =IFERROR(VLOOKUP($A67,Filtro!$A$5:$AY$2917,24,FALSE),0) -> 0 | AA67: =IFERROR(VLOOKUP($A67,Filtro!$A$5:$AY$2917,25,FALSE),0) -> 0 | AB67: =IFERROR(VLOOKUP($A67,Filtro!$A$5:$AY$2917,26,FALSE),0) -> 0 | AC67: =IFERROR(VLOOKUP($A67,Filtro!$A$5:$AY$2917,27,FALSE),0) -> 13295 | AD67: =IFERROR(VLOOKUP($A67,Filtro!$A$5:$AY$2917,28,FALSE),0) -> 252 | AE67: =IFERROR(VLOOKUP($A67,Filtro!$A$5:$AY$2917,29,FALSE),0) -> 0 | AF67: =IFERROR(VLOOKUP($A67,Filtro!$A$5:$AY$2917,30,FALSE),0) -> 0 | AG67: =IFERROR(VLOOKUP($A67,Filtro!$A$5:$AY$2917,31,FALSE),0) -> 0 | AH67: =IFERROR(VLOOKUP($A67,Filtro!$A$5:$AY$2917,32,FALSE),0) -> 0 | AI67: =IFERROR(VLOOKUP($A67,Filtro!$A$5:$AY$2917,33,FALSE),0) -> 0 | AJ67: =IFERROR(VLOOKUP($A67,Filtro!$A$5:$AY$2917,34,FALSE),0) -> 0 | AK67: =IFERROR(VLOOKUP($A67,Filtro!$A$5:$AY$2917,35,FALSE),0) -> 0 | AL67: 1,410 | AM67: 19,074,480
C68: TOTAL ARANCEL MAI | D68: =SUM(D62:D67) -> 134229 | E68: =SUM(E62:E67) -> 133919 | F68: =SUM(F62:F67) -> 133919 | G68: =SUM(G62:G67) -> 0 | H68: =SUM(H62:H67) -> 310 | AB68: =SUM(AB62:AB67) -> 5084 | AC68: 95344 | AD68: 33801 | AE68: 0 | AF68: 0 | AG68: 0 | AH68: 0 | AI68: 0 | AJ68: 0 | AK68: 0 | AM68: =SUM(AM62:AM67) -> 185,915,630
A69: 01010025 | B69: 01010025 | C69: Consulta por otros profesionales | D69: =IFERROR(VLOOKUP($A69,Filtro!$A$5:$AY$2917,2,FALSE),0) -> 13299 | E69: =IFERROR(VLOOKUP($A69,Filtro!$A$5:$AY$2917,3,FALSE),0) -> 13239 | F69: =IFERROR(VLOOKUP($A69,Filtro!$A$5:$AY$2917,4,FALSE),0) -> 13239 | G69: =IFERROR(VLOOKUP($A69,Filtro!$A$5:$AY$2917,5,FALSE),0) -> 0 | H69: =IFERROR(VLOOKUP($A69,Filtro!$A$5:$AY$2917,6,FALSE),0) -> 60 | I69: =IFERROR(VLOOKUP($A69,Filtro!$A$5:$AY$2917,7,FALSE),0) -> 0 | J69: =IFERROR(VLOOKUP($A69,Filtro!$A$5:$AY$2917,8,FALSE),0) -> 0 | K69: =IFERROR(VLOOKUP($A69,Filtro!$A$5:$AY$2917,9,FALSE),0) -> 0 | L69: =IFERROR(VLOOKUP($A69,Filtro!$A$5:$AY$2917,10,FALSE),0) -> 0 | M69: =IFERROR(VLOOKUP($A69,Filtro!$A$5:$AY$2917,11,FALSE),0) -> 0 | N69: =IFERROR(VLOOKUP($A69,Filtro!$A$5:$AY$2917,12,FALSE),0) -> 0 | O69: =IFERROR(VLOOKUP($A69,Filtro!$A$5:$AY$2917,13,FALSE),0) -> 0 | P69: =IFERROR(VLOOKUP($A69,Filtro!$A$5:$AY$2917,14,FALSE),0) -> 0 | Q69: =IFERROR(VLOOKUP($A69,Filtro!$A$5:$AY$2917,15,FALSE),0) -> 0 | R69: =IFERROR(VLOOKUP($A69,Filtro!$A$5:$AY$2917,16,FALSE),0) -> 0 | S69: =IFERROR(VLOOKUP($A69,Filtro!$A$5:$AY$2917,17,FALSE),0) -> 0 | T69: =IFERROR(VLOOKUP($A69,Filtro!$A$5:$AY$2917,18,FALSE),0) -> 0 | U69: =IFERROR(VLOOKUP($A69,Filtro!$A$5:$AY$2917,19,FALSE),0) -> 0 | V69: =IFERROR(VLOOKUP($A69,Filtro!$A$5:$AY$2917,20,FALSE),0) -> 0 | W69: =IFERROR(VLOOKUP($A69,Filtro!$A$5:$AY$2917,21,FALSE),0) -> 0 | X69: =IFERROR(VLOOKUP($A69,Filtro!$A$5:$AY$2917,22,FALSE),0) -> 0 | Y69: =IFERROR(VLOOKUP($A69,Filtro!$A$5:$AY$2917,23,FALSE),0) -> 0 | Z69: =IFERROR(VLOOKUP($A69,Filtro!$A$5:$AY$2917,24,FALSE),0) -> 0 | AA69: =IFERROR(VLOOKUP($A69,Filtro!$A$5:$AY$2917,25,FALSE),0) -> 0 | AB69: =IFERROR(VLOOKUP($A69,Filtro!$A$5:$AY$2917,26,FALSE),0) -> 0 | AC69: =IFERROR(VLOOKUP($A69,Filtro!$A$5:$AY$2917,27,FALSE),0) -> 13045 | AD69: =IFERROR(VLOOKUP($A69,Filtro!$A$5:$AY$2917,28,FALSE),0) -> 254 | AE69: =IFERROR(VLOOKUP($A69,Filtro!$A$5:$AY$2917,29,FALSE),0) -> 374 | AF69: =IFERROR(VLOOKUP($A69,Filtro!$A$5:$AY$2917,30,FALSE),0) -> 0 | AG69: =IFERROR(VLOOKUP($A69,Filtro!$A$5:$AY$2917,31,FALSE),0) -> 0 | AH69: =IFERROR(VLOOKUP($A69,Filtro!$A$5:$AY$2917,32,FALSE),0) -> 0 | AI69: =IFERROR(VLOOKUP($A69,Filtro!$A$5:$AY$2917,33,FALSE),0) -> 0 | AJ69: =IFERROR(VLOOKUP($A69,Filtro!$A$5:$AY$2917,34,FALSE),0) -> 0 | AK69: =IFERROR(VLOOKUP($A69,Filtro!$A$5:$AY$2917,35,FALSE),0) -> 0
A70: 01012817 | B70: 01012817 | C70: Consulta por Trabajador(a) Social | D70: =IFERROR(VLOOKUP($A70,Filtro!$A$5:$AY$2917,2,FALSE),0) -> 7546 | E70: =IFERROR(VLOOKUP($A70,Filtro!$A$5:$AY$2917,3,FALSE),0) -> 7309 | F70: =IFERROR(VLOOKUP($A70,Filtro!$A$5:$AY$2917,4,FALSE),0) -> 7309 | G70: =IFERROR(VLOOKUP($A70,Filtro!$A$5:$AY$2917,5,FALSE),0) -> 0 | H70: =IFERROR(VLOOKUP($A70,Filtro!$A$5:$AY$2917,6,FALSE),0) -> 237 | I70: =IFERROR(VLOOKUP($A70,Filtro!$A$5:$AY$2917,7,FALSE),0) -> 0 | J70: =IFERROR(VLOOKUP($A70,Filtro!$A$5:$AY$2917,8,FALSE),0) -> 0 | K70: =IFERROR(VLOOKUP($A70,Filtro!$A$5:$AY$2917,9,FALSE),0) -> 0 | L70: =IFERROR(VLOOKUP($A70,Filtro!$A$5:$AY$2917,10,FALSE),0) -> 0 | M70: =IFERROR(VLOOKUP($A70,Filtro!$A$5:$AY$2917,11,FALSE),0) -> 0 | N70: =IFERROR(VLOOKUP($A70,Filtro!$A$5:$AY$2917,12,FALSE),0) -> 0 | O70: =IFERROR(VLOOKUP($A70,Filtro!$A$5:$AY$2917,13,FALSE),0) -> 0 | P70: =IFERROR(VLOOKUP($A70,Filtro!$A$5:$AY$2917,14,FALSE),0) -> 0 | Q70: =IFERROR(VLOOKUP($A70,Filtro!$A$5:$AY$2917,15,FALSE),0) -> 0 | R70: =IFERROR(VLOOKUP($A70,Filtro!$A$5:$AY$2917,16,FALSE),0) -> 0 | S70: =IFERROR(VLOOKUP($A70,Filtro!$A$5:$AY$2917,17,FALSE),0) -> 0 | T70: =IFERROR(VLOOKUP($A70,Filtro!$A$5:$AY$2917,18,FALSE),0) -> 0 | U70: =IFERROR(VLOOKUP($A70,Filtro!$A$5:$AY$2917,19,FALSE),0) -> 0 | V70: =IFERROR(VLOOKUP($A70,Filtro!$A$5:$AY$2917,20,FALSE),0) -> 0 | W70: =IFERROR(VLOOKUP($A70,Filtro!$A$5:$AY$2917,21,FALSE),0) -> 0 | X70: =IFERROR(VLOOKUP($A70,Filtro!$A$5:$AY$2917,22,FALSE),0) -> 0 | Y70: =IFERROR(VLOOKUP($A70,Filtro!$A$5:$AY$2917,23,FALSE),0) -> 0 | Z70: =IFERROR(VLOOKUP($A70,Filtro!$A$5:$AY$2917,24,FALSE),0) -> 0 | AA70: =IFERROR(VLOOKUP($A70,Filtro!$A$5:$AY$2917,25,FALSE),0) -> 0 | AB70: =IFERROR(VLOOKUP($A70,Filtro!$A$5:$AY$2917,26,FALSE),0) -> 34 | AC70: =IFERROR(VLOOKUP($A70,Filtro!$A$5:$AY$2917,27,FALSE),0) -> 7425 | AD70: =IFERROR(VLOOKUP($A70,Filtro!$A$5:$AY$2917,28,FALSE),0) -> 87 | AE70: =IFERROR(VLOOKUP($A70,Filtro!$A$5:$AY$2917,29,FALSE),0) -> 0 | AF70: =IFERROR(VLOOKUP($A70,Filtro!$A$5:$AY$2917,30,FALSE),0) -> 0 | AG70: =IFERROR(VLOOKUP($A70,Filtro!$A$5:$AY$2917,31,FALSE),0) -> 0 | AH70: =IFERROR(VLOOKUP($A70,Filtro!$A$5:$AY$2917,32,FALSE),0) -> 0 | AI70: =IFERROR(VLOOKUP($A70,Filtro!$A$5:$AY$2917,33,FALSE),0) -> 0 | AJ70: =IFERROR(VLOOKUP($A70,Filtro!$A$5:$AY$2917,34,FALSE),0) -> 0 | AK70: =IFERROR(VLOOKUP($A70,Filtro!$A$5:$AY$2917,35,FALSE),0) -> 0
C71: TOTAL ARANCEL MLE Y NO ARANCELADO | D71: =SUM(D69:D70) -> 20845 | E71: =SUM(E69:E70) -> 20548 | F71: =SUM(F69:F70) -> 20548 | G71: =SUM(G69:G70) -> 0 | H71: =SUM(H69:H70) -> 297 | AB71: =SUM(AB69:AB70) -> 34 | AC71: 20470 | AD71: 341 | AE71: 374 | AF71: 0 | AG71: 0 | AH71: 0 | AI71: 0 | AJ71: 0 | AK71: =SUM(AK69:AK70) -> 0
C72: TOTAL PRODUCCION | D72: =SUM(D68+D71) -> 155074 | E72: =SUM(E68+E71) -> 154467 | F72: =SUM(F68+F71) -> 154467 | G72: =SUM(G68+G71) -> 0 | H72: =SUM(H68+H71) -> 607 | AB72: =SUM(AB68+AB71) -> 5118 | AC72: 115814 | AD72: 34142 | AE72: 374 | AF72: 0 | AG72: 0 | AH72: 0 | AI72: 0 | AJ72: 0 | AK72: 0 | AM72: =SUM(AM68+AM71) -> 185,915,630
C73: TELEMEDICINA POR PROFESIONALES MÉDICOS
C74: TELECONSULTAS
A75: 01013100 | B75: 0108001 | C75: Teleconsulta Medicina General | D75: =IFERROR(VLOOKUP($A75,Filtro!$A$5:$AY$2917,2,FALSE),0) -> 0 | E75: =IFERROR(VLOOKUP($A75,Filtro!$A$5:$AY$2917,3,FALSE),0) -> 0 | F75: =IFERROR(VLOOKUP($A75,Filtro!$A$5:$AY$2917,4,FALSE),0) -> 0 | G75: =IFERROR(VLOOKUP($A75,Filtro!$A$5:$AY$2917,5,FALSE),0) -> 0 | H75: =IFERROR(VLOOKUP($A75,Filtro!$A$5:$AY$2917,6,FALSE),0) -> 0 | I75: =IFERROR(VLOOKUP($A75,Filtro!$A$5:$AY$2917,7,FALSE),0) -> 0 | J75: =IFERROR(VLOOKUP($A75,Filtro!$A$5:$AY$2917,8,FALSE),0) -> 0 | K75: =IFERROR(VLOOKUP($A75,Filtro!$A$5:$AY$2917,9,FALSE),0) -> 0 | L75: =IFERROR(VLOOKUP($A75,Filtro!$A$5:$AY$2917,10,FALSE),0) -> 0 | M75: =IFERROR(VLOOKUP($A75,Filtro!$A$5:$AY$2917,11,FALSE),0) -> 0 | N75: =IFERROR(VLOOKUP($A75,Filtro!$A$5:$AY$2917,12,FALSE),0) -> 0 | O75: =IFERROR(VLOOKUP($A75,Filtro!$A$5:$AY$2917,13,FALSE),0) -> 0 | P75: =IFERROR(VLOOKUP($A75,Filtro!$A$5:$AY$2917,14,FALSE),0) -> 0 | Q75: =IFERROR(VLOOKUP($A75,Filtro!$A$5:$AY$2917,15,FALSE),0) -> 0 | R75: =IFERROR(VLOOKUP($A75,Filtro!$A$5:$AY$2917,16,FALSE),0) -> 0 | S75: =IFERROR(VLOOKUP($A75,Filtro!$A$5:$AY$2917,17,FALSE),0) -> 0 | T75: =IFERROR(VLOOKUP($A75,Filtro!$A$5:$AY$2917,18,FALSE),0) -> 0 | U75: =IFERROR(VLOOKUP($A75,Filtro!$A$5:$AY$2917,19,FALSE),0) -> 0 | V75: =IFERROR(VLOOKUP($A75,Filtro!$A$5:$AY$2917,20,FALSE),0) -> 0 | W75: =IFERROR(VLOOKUP($A75,Filtro!$A$5:$AY$2917,21,FALSE),0) -> 0 | X75: =IFERROR(VLOOKUP($A75,Filtro!$A$5:$AY$2917,22,FALSE),0) -> 0 | Y75: =IFERROR(VLOOKUP($A75,Filtro!$A$5:$AY$2917,23,FALSE),0) -> 0 | Z75: =IFERROR(VLOOKUP($A75,Filtro!$A$5:$AY$2917,24,FALSE),0) -> 0 | AA75: =IFERROR(VLOOKUP($A75,Filtro!$A$5:$AY$2917,25,FALSE),0) -> 0 | AB75: =IFERROR(VLOOKUP($A75,Filtro!$A$5:$AY$2917,26,FALSE),0) -> 0 | AC75: =IFERROR(VLOOKUP($A75,Filtro!$A$5:$AY$2917,27,FALSE),0) -> 0 | AD75: =IFERROR(VLOOKUP($A75,Filtro!$A$5:$AY$2917,28,FALSE),0) -> 0 | AE75: =IFERROR(VLOOKUP($A75,Filtro!$A$5:$AY$2917,29,FALSE),0) -> 0 | AF75: =IFERROR(VLOOKUP($A75,Filtro!$A$5:$AY$2917,30,FALSE),0) -> 0 | AG75: =IFERROR(VLOOKUP($A75,Filtro!$A$5:$AY$2917,31,FALSE),0) -> 0 | AH75: =IFERROR(VLOOKUP($A75,Filtro!$A$5:$AY$2917,32,FALSE),0) -> 0 | AI75: =IFERROR(VLOOKUP($A75,Filtro!$A$5:$AY$2917,33,FALSE),0) -> 0 | AJ75: =IFERROR(VLOOKUP($A75,Filtro!$A$5:$AY$2917,34,FALSE),0) -> 0 | AK75: =IFERROR(VLOOKUP($A75,Filtro!$A$5:$AY$2917,35,FALSE),0) -> 0 | AL75: 5,290 | AM75: =AL75*F75 -> 0
A76: 01014325 | B76: 0108201 | C76: Teleconsulta Médica de Especialidad en Dermatología | D76: =IFERROR(VLOOKUP($A76,Filtro!$A$5:$AY$2917,2,FALSE),0) -> 50 | E76: =IFERROR(VLOOKUP($A76,Filtro!$A$5:$AY$2917,3,FALSE),0) -> 50 | F76: =IFERROR(VLOOKUP($A76,Filtro!$A$5:$AY$2917,4,FALSE),0) -> 50 | G76: =IFERROR(VLOOKUP($A76,Filtro!$A$5:$AY$2917,5,FALSE),0) -> 0 | H76: =IFERROR(VLOOKUP($A76,Filtro!$A$5:$AY$2917,6,FALSE),0) -> 0 | I76: =IFERROR(VLOOKUP($A76,Filtro!$A$5:$AY$2917,7,FALSE),0) -> 0 | J76: =IFERROR(VLOOKUP($A76,Filtro!$A$5:$AY$2917,8,FALSE),0) -> 0 | K76: =IFERROR(VLOOKUP($A76,Filtro!$A$5:$AY$2917,9,FALSE),0) -> 0 | L76: =IFERROR(VLOOKUP($A76,Filtro!$A$5:$AY$2917,10,FALSE),0) -> 0 | M76: =IFERROR(VLOOKUP($A76,Filtro!$A$5:$AY$2917,11,FALSE),0) -> 0 | N76: =IFERROR(VLOOKUP($A76,Filtro!$A$5:$AY$2917,12,FALSE),0) -> 0 | O76: =IFERROR(VLOOKUP($A76,Filtro!$A$5:$AY$2917,13,FALSE),0) -> 0 | P76: =IFERROR(VLOOKUP($A76,Filtro!$A$5:$AY$2917,14,FALSE),0) -> 0 | Q76: =IFERROR(VLOOKUP($A76,Filtro!$A$5:$AY$2917,15,FALSE),0) -> 0 | R76: =IFERROR(VLOOKUP($A76,Filtro!$A$5:$AY$2917,16,FALSE),0) -> 0 | S76: =IFERROR(VLOOKUP($A76,Filtro!$A$5:$AY$2917,17,FALSE),0) -> 0 | T76: =IFERROR(VLOOKUP($A76,Filtro!$A$5:$AY$2917,18,FALSE),0) -> 0 | U76: =IFERROR(VLOOKUP($A76,Filtro!$A$5:$AY$2917,19,FALSE),0) -> 0 | V76: =IFERROR(VLOOKUP($A76,Filtro!$A$5:$AY$2917,20,FALSE),0) -> 0 | W76: =IFERROR(VLOOKUP($A76,Filtro!$A$5:$AY$2917,21,FALSE),0) -> 0 | X76: =IFERROR(VLOOKUP($A76,Filtro!$A$5:$AY$2917,22,FALSE),0) -> 0 | Y76: =IFERROR(VLOOKUP($A76,Filtro!$A$5:$AY$2917,23,FALSE),0) -> 0 | Z76: =IFERROR(VLOOKUP($A76,Filtro!$A$5:$AY$2917,24,FALSE),0) -> 0 | AA76: =IFERROR(VLOOKUP($A76,Filtro!$A$5:$AY$2917,25,FALSE),0) -> 0 | AB76: =IFERROR(VLOOKUP($A76,Filtro!$A$5:$AY$2917,26,FALSE),0) -> 0 | AC76: =IFERROR(VLOOKUP($A76,Filtro!$A$5:$AY$2917,27,FALSE),0) -> 50 | AD76: =IFERROR(VLOOKUP($A76,Filtro!$A$5:$AY$2917,28,FALSE),0) -> 0 | AE76: =IFERROR(VLOOKUP($A76,Filtro!$A$5:$AY$2917,29,FALSE),0) -> 0 | AF76: =IFERROR(VLOOKUP($A76,Filtro!$A$5:$AY$2917,30,FALSE),0) -> 0 | AG76: =IFERROR(VLOOKUP($A76,Filtro!$A$5:$AY$2917,31,FALSE),0) -> 0 | AH76: =IFERROR(VLOOKUP($A76,Filtro!$A$5:$AY$2917,32,FALSE),0) -> 0 | AI76: =IFERROR(VLOOKUP($A76,Filtro!$A$5:$AY$2917,33,FALSE),0) -> 0 | AJ76: =IFERROR(VLOOKUP($A76,Filtro!$A$5:$AY$2917,34,FALSE),0) -> 0 | AK76: =IFERROR(VLOOKUP($A76,Filtro!$A$5:$AY$2917,35,FALSE),0) -> 0 | AL76: 7,530 | AM76: 376,500
A77: 01014326 | B77: 0108202 | C77: Teleconsulta Médica de Especialidad en Geriatría | D77: =IFERROR(VLOOKUP($A77,Filtro!$A$5:$AY$2917,2,FALSE),0) -> 1 | E77: =IFERROR(VLOOKUP($A77,Filtro!$A$5:$AY$2917,3,FALSE),0) -> 1 | F77: =IFERROR(VLOOKUP($A77,Filtro!$A$5:$AY$2917,4,FALSE),0) -> 1 | G77: =IFERROR(VLOOKUP($A77,Filtro!$A$5:$AY$2917,5,FALSE),0) -> 0 | H77: =IFERROR(VLOOKUP($A77,Filtro!$A$5:$AY$2917,6,FALSE),0) -> 0 | I77: =IFERROR(VLOOKUP($A77,Filtro!$A$5:$AY$2917,7,FALSE),0) -> 0 | J77: =IFERROR(VLOOKUP($A77,Filtro!$A$5:$AY$2917,8,FALSE),0) -> 0 | K77: =IFERROR(VLOOKUP($A77,Filtro!$A$5:$AY$2917,9,FALSE),0) -> 0 | L77: =IFERROR(VLOOKUP($A77,Filtro!$A$5:$AY$2917,10,FALSE),0) -> 0 | M77: =IFERROR(VLOOKUP($A77,Filtro!$A$5:$AY$2917,11,FALSE),0) -> 0 | N77: =IFERROR(VLOOKUP($A77,Filtro!$A$5:$AY$2917,12,FALSE),0) -> 0 | O77: =IFERROR(VLOOKUP($A77,Filtro!$A$5:$AY$2917,13,FALSE),0) -> 0 | P77: =IFERROR(VLOOKUP($A77,Filtro!$A$5:$AY$2917,14,FALSE),0) -> 0 | Q77: =IFERROR(VLOOKUP($A77,Filtro!$A$5:$AY$2917,15,FALSE),0) -> 0 | R77: =IFERROR(VLOOKUP($A77,Filtro!$A$5:$AY$2917,16,FALSE),0) -> 0 | S77: =IFERROR(VLOOKUP($A77,Filtro!$A$5:$AY$2917,17,FALSE),0) -> 0 | T77: =IFERROR(VLOOKUP($A77,Filtro!$A$5:$AY$2917,18,FALSE),0) -> 0 | U77: =IFERROR(VLOOKUP($A77,Filtro!$A$5:$AY$2917,19,FALSE),0) -> 0 | V77: =IFERROR(VLOOKUP($A77,Filtro!$A$5:$AY$2917,20,FALSE),0) -> 0 | W77: =IFERROR(VLOOKUP($A77,Filtro!$A$5:$AY$2917,21,FALSE),0) -> 0 | X77: =IFERROR(VLOOKUP($A77,Filtro!$A$5:$AY$2917,22,FALSE),0) -> 0 | Y77: =IFERROR(VLOOKUP($A77,Filtro!$A$5:$AY$2917,23,FALSE),0) -> 0 | Z77: =IFERROR(VLOOKUP($A77,Filtro!$A$5:$AY$2917,24,FALSE),0) -> 0 | AA77: =IFERROR(VLOOKUP($A77,Filtro!$A$5:$AY$2917,25,FALSE),0) -> 0 | AB77: =IFERROR(VLOOKUP($A77,Filtro!$A$5:$AY$2917,26,FALSE),0) -> 0 | AC77: =IFERROR(VLOOKUP($A77,Filtro!$A$5:$AY$2917,27,FALSE),0) -> 1 | AD77: =IFERROR(VLOOKUP($A77,Filtro!$A$5:$AY$2917,28,FALSE),0) -> 0 | AE77: =IFERROR(VLOOKUP($A77,Filtro!$A$5:$AY$2917,29,FALSE),0) -> 0 | AF77: =IFERROR(VLOOKUP($A77,Filtro!$A$5:$AY$2917,30,FALSE),0) -> 0 | AG77: =IFERROR(VLOOKUP($A77,Filtro!$A$5:$AY$2917,31,FALSE),0) -> 0 | AH77: =IFERROR(VLOOKUP($A77,Filtro!$A$5:$AY$2917,32,FALSE),0) -> 0 | AI77: =IFERROR(VLOOKUP($A77,Filtro!$A$5:$AY$2917,33,FALSE),0) -> 0 | AJ77: =IFERROR(VLOOKUP($A77,Filtro!$A$5:$AY$2917,34,FALSE),0) -> 0 | AK77: =IFERROR(VLOOKUP($A77,Filtro!$A$5:$AY$2917,35,FALSE),0) -> 0 | AL77: 7,530 | AM77: 7,530
A78: 01014327 | B78: 0108206 | C78: Teleconsulta Médica de Especialidad en Reumatología | D78: =IFERROR(VLOOKUP($A78,Filtro!$A$5:$AY$2917,2,FALSE),0) -> 49 | E78: =IFERROR(VLOOKUP($A78,Filtro!$A$5:$AY$2917,3,FALSE),0) -> 49 | F78: =IFERROR(VLOOKUP($A78,Filtro!$A$5:$AY$2917,4,FALSE),0) -> 49 | G78: =IFERROR(VLOOKUP($A78,Filtro!$A$5:$AY$2917,5,FALSE),0) -> 0 | H78: =IFERROR(VLOOKUP($A78,Filtro!$A$5:$AY$2917,6,FALSE),0) -> 0 | I78: =IFERROR(VLOOKUP($A78,Filtro!$A$5:$AY$2917,7,FALSE),0) -> 0 | J78: =IFERROR(VLOOKUP($A78,Filtro!$A$5:$AY$2917,8,FALSE),0) -> 0 | K78: =IFERROR(VLOOKUP($A78,Filtro!$A$5:$AY$2917,9,FALSE),0) -> 0 | L78: =IFERROR(VLOOKUP($A78,Filtro!$A$5:$AY$2917,10,FALSE),0) -> 0 | M78: =IFERROR(VLOOKUP($A78,Filtro!$A$5:$AY$2917,11,FALSE),0) -> 0 | N78: =IFERROR(VLOOKUP($A78,Filtro!$A$5:$AY$2917,12,FALSE),0) -> 0 | O78: =IFERROR(VLOOKUP($A78,Filtro!$A$5:$AY$2917,13,FALSE),0) -> 0 | P78: =IFERROR(VLOOKUP($A78,Filtro!$A$5:$AY$2917,14,FALSE),0) -> 0 | Q78: =IFERROR(VLOOKUP($A78,Filtro!$A$5:$AY$2917,15,FALSE),0) -> 0 | R78: =IFERROR(VLOOKUP($A78,Filtro!$A$5:$AY$2917,16,FALSE),0) -> 0 | S78: =IFERROR(VLOOKUP($A78,Filtro!$A$5:$AY$2917,17,FALSE),0) -> 0 | T78: =IFERROR(VLOOKUP($A78,Filtro!$A$5:$AY$2917,18,FALSE),0) -> 0 | U78: =IFERROR(VLOOKUP($A78,Filtro!$A$5:$AY$2917,19,FALSE),0) -> 0 | V78: =IFERROR(VLOOKUP($A78,Filtro!$A$5:$AY$2917,20,FALSE),0) -> 0 | W78: =IFERROR(VLOOKUP($A78,Filtro!$A$5:$AY$2917,21,FALSE),0) -> 0 | X78: =IFERROR(VLOOKUP($A78,Filtro!$A$5:$AY$2917,22,FALSE),0) -> 0 | Y78: =IFERROR(VLOOKUP($A78,Filtro!$A$5:$AY$2917,23,FALSE),0) -> 0 | Z78: =IFERROR(VLOOKUP($A78,Filtro!$A$5:$AY$2917,24,FALSE),0) -> 0 | AA78: =IFERROR(VLOOKUP($A78,Filtro!$A$5:$AY$2917,25,FALSE),0) -> 0 | AB78: =IFERROR(VLOOKUP($A78,Filtro!$A$5:$AY$2917,26,FALSE),0) -> 0 | AC78: =IFERROR(VLOOKUP($A78,Filtro!$A$5:$AY$2917,27,FALSE),0) -> 49 | AD78: =IFERROR(VLOOKUP($A78,Filtro!$A$5:$AY$2917,28,FALSE),0) -> 0 | AE78: =IFERROR(VLOOKUP($A78,Filtro!$A$5:$AY$2917,29,FALSE),0) -> 0 | AF78: =IFERROR(VLOOKUP($A78,Filtro!$A$5:$AY$2917,30,FALSE),0) -> 0 | AG78: =IFERROR(VLOOKUP($A78,Filtro!$A$5:$AY$2917,31,FALSE),0) -> 0 | AH78: =IFERROR(VLOOKUP($A78,Filtro!$A$5:$AY$2917,32,FALSE),0) -> 0 | AI78: =IFERROR(VLOOKUP($A78,Filtro!$A$5:$AY$2917,33,FALSE),0) -> 0 | AJ78: =IFERROR(VLOOKUP($A78,Filtro!$A$5:$AY$2917,34,FALSE),0) -> 0 | AK78: =IFERROR(VLOOKUP($A78,Filtro!$A$5:$AY$2917,35,FALSE),0) -> 0 | AL78: 7,530 | AM78: 368,970
A79: 01014328 | B79: 0108207 | C79: Teleconsulta Médica de Especialidad en Endocrinología Adulto | D79: =IFERROR(VLOOKUP($A79,Filtro!$A$5:$AY$2917,2,FALSE),0) -> 159 | E79: =IFERROR(VLOOKUP($A79,Filtro!$A$5:$AY$2917,3,FALSE),0) -> 159 | F79: =IFERROR(VLOOKUP($A79,Filtro!$A$5:$AY$2917,4,FALSE),0) -> 159 | G79: =IFERROR(VLOOKUP($A79,Filtro!$A$5:$AY$2917,5,FALSE),0) -> 0 | H79: =IFERROR(VLOOKUP($A79,Filtro!$A$5:$AY$2917,6,FALSE),0) -> 0 | I79: =IFERROR(VLOOKUP($A79,Filtro!$A$5:$AY$2917,7,FALSE),0) -> 0 | J79: =IFERROR(VLOOKUP($A79,Filtro!$A$5:$AY$2917,8,FALSE),0) -> 0 | K79: =IFERROR(VLOOKUP($A79,Filtro!$A$5:$AY$2917,9,FALSE),0) -> 0 | L79: =IFERROR(VLOOKUP($A79,Filtro!$A$5:$AY$2917,10,FALSE),0) -> 0 | M79: =IFERROR(VLOOKUP($A79,Filtro!$A$5:$AY$2917,11,FALSE),0) -> 0 | N79: =IFERROR(VLOOKUP($A79,Filtro!$A$5:$AY$2917,12,FALSE),0) -> 0 | O79: =IFERROR(VLOOKUP($A79,Filtro!$A$5:$AY$2917,13,FALSE),0) -> 0 | P79: =IFERROR(VLOOKUP($A79,Filtro!$A$5:$AY$2917,14,FALSE),0) -> 0 | Q79: =IFERROR(VLOOKUP($A79,Filtro!$A$5:$AY$2917,15,FALSE),0) -> 0 | R79: =IFERROR(VLOOKUP($A79,Filtro!$A$5:$AY$2917,16,FALSE),0) -> 0 | S79: =IFERROR(VLOOKUP($A79,Filtro!$A$5:$AY$2917,17,FALSE),0) -> 0 | T79: =IFERROR(VLOOKUP($A79,Filtro!$A$5:$AY$2917,18,FALSE),0) -> 0 | U79: =IFERROR(VLOOKUP($A79,Filtro!$A$5:$AY$2917,19,FALSE),0) -> 0 | V79: =IFERROR(VLOOKUP($A79,Filtro!$A$5:$AY$2917,20,FALSE),0) -> 0 | W79: =IFERROR(VLOOKUP($A79,Filtro!$A$5:$AY$2917,21,FALSE),0) -> 0 | X79: =IFERROR(VLOOKUP($A79,Filtro!$A$5:$AY$2917,22,FALSE),0) -> 0 | Y79: =IFERROR(VLOOKUP($A79,Filtro!$A$5:$AY$2917,23,FALSE),0) -> 0 | Z79: =IFERROR(VLOOKUP($A79,Filtro!$A$5:$AY$2917,24,FALSE),0) -> 0 | AA79: =IFERROR(VLOOKUP($A79,Filtro!$A$5:$AY$2917,25,FALSE),0) -> 0 | AB79: =IFERROR(VLOOKUP($A79,Filtro!$A$5:$AY$2917,26,FALSE),0) -> 0 | AC79: =IFERROR(VLOOKUP($A79,Filtro!$A$5:$AY$2917,27,FALSE),0) -> 159 | AD79: =IFERROR(VLOOKUP($A79,Filtro!$A$5:$AY$2917,28,FALSE),0) -> 0 | AE79: =IFERROR(VLOOKUP($A79,Filtro!$A$5:$AY$2917,29,FALSE),0) -> 0 | AF79: =IFERROR(VLOOKUP($A79,Filtro!$A$5:$AY$2917,30,FALSE),0) -> 0 | AG79: =IFERROR(VLOOKUP($A79,Filtro!$A$5:$AY$2917,31,FALSE),0) -> 0 | AH79: =IFERROR(VLOOKUP($A79,Filtro!$A$5:$AY$2917,32,FALSE),0) -> 0 | AI79: =IFERROR(VLOOKUP($A79,Filtro!$A$5:$AY$2917,33,FALSE),0) -> 0 | AJ79: =IFERROR(VLOOKUP($A79,Filtro!$A$5:$AY$2917,34,FALSE),0) -> 0 | AK79: =IFERROR(VLOOKUP($A79,Filtro!$A$5:$AY$2917,35,FALSE),0) -> 0 | AL79: 7,530 | AM79: 1,197,270
A80: 01014329 | B80: 0108208 | C80: Teleconsulta Médica de Especialidad en Endocrinología Pediátrica | D80: =IFERROR(VLOOKUP($A80,Filtro!$A$5:$AY$2917,2,FALSE),0) -> 55 | E80: =IFERROR(VLOOKUP($A80,Filtro!$A$5:$AY$2917,3,FALSE),0) -> 55 | F80: =IFERROR(VLOOKUP($A80,Filtro!$A$5:$AY$2917,4,FALSE),0) -> 55 | G80: =IFERROR(VLOOKUP($A80,Filtro!$A$5:$AY$2917,5,FALSE),0) -> 0 | H80: =IFERROR(VLOOKUP($A80,Filtro!$A$5:$AY$2917,6,FALSE),0) -> 0 | I80: =IFERROR(VLOOKUP($A80,Filtro!$A$5:$AY$2917,7,FALSE),0) -> 0 | J80: =IFERROR(VLOOKUP($A80,Filtro!$A$5:$AY$2917,8,FALSE),0) -> 0 | K80: =IFERROR(VLOOKUP($A80,Filtro!$A$5:$AY$2917,9,FALSE),0) -> 0 | L80: =IFERROR(VLOOKUP($A80,Filtro!$A$5:$AY$2917,10,FALSE),0) -> 0 | M80: =IFERROR(VLOOKUP($A80,Filtro!$A$5:$AY$2917,11,FALSE),0) -> 0 | N80: =IFERROR(VLOOKUP($A80,Filtro!$A$5:$AY$2917,12,FALSE),0) -> 0 | O80: =IFERROR(VLOOKUP($A80,Filtro!$A$5:$AY$2917,13,FALSE),0) -> 0 | P80: =IFERROR(VLOOKUP($A80,Filtro!$A$5:$AY$2917,14,FALSE),0) -> 0 | Q80: =IFERROR(VLOOKUP($A80,Filtro!$A$5:$AY$2917,15,FALSE),0) -> 0 | R80: =IFERROR(VLOOKUP($A80,Filtro!$A$5:$AY$2917,16,FALSE),0) -> 0 | S80: =IFERROR(VLOOKUP($A80,Filtro!$A$5:$AY$2917,17,FALSE),0) -> 0 | T80: =IFERROR(VLOOKUP($A80,Filtro!$A$5:$AY$2917,18,FALSE),0) -> 0 | U80: =IFERROR(VLOOKUP($A80,Filtro!$A$5:$AY$2917,19,FALSE),0) -> 0 | V80: =IFERROR(VLOOKUP($A80,Filtro!$A$5:$AY$2917,20,FALSE),0) -> 0 | W80: =IFERROR(VLOOKUP($A80,Filtro!$A$5:$AY$2917,21,FALSE),0) -> 0 | X80: =IFERROR(VLOOKUP($A80,Filtro!$A$5:$AY$2917,22,FALSE),0) -> 0 | Y80: =IFERROR(VLOOKUP($A80,Filtro!$A$5:$AY$2917,23,FALSE),0) -> 0 | Z80: =IFERROR(VLOOKUP($A80,Filtro!$A$5:$AY$2917,24,FALSE),0) -> 0 | AA80: =IFERROR(VLOOKUP($A80,Filtro!$A$5:$AY$2917,25,FALSE),0) -> 0 | AB80: =IFERROR(VLOOKUP($A80,Filtro!$A$5:$AY$2917,26,FALSE),0) -> 0 | AC80: =IFERROR(VLOOKUP($A80,Filtro!$A$5:$AY$2917,27,FALSE),0) -> 55 | AD80: =IFERROR(VLOOKUP($A80,Filtro!$A$5:$AY$2917,28,FALSE),0) -> 0 | AE80: =IFERROR(VLOOKUP($A80,Filtro!$A$5:$AY$2917,29,FALSE),0) -> 0 | AF80: =IFERROR(VLOOKUP($A80,Filtro!$A$5:$AY$2917,30,FALSE),0) -> 0 | AG80: =IFERROR(VLOOKUP($A80,Filtro!$A$5:$AY$2917,31,FALSE),0) -> 0 | AH80: =IFERROR(VLOOKUP($A80,Filtro!$A$5:$AY$2917,32,FALSE),0) -> 0 | AI80: =IFERROR(VLOOKUP($A80,Filtro!$A$5:$AY$2917,33,FALSE),0) -> 0 | AJ80: =IFERROR(VLOOKUP($A80,Filtro!$A$5:$AY$2917,34,FALSE),0) -> 0 | AK80: =IFERROR(VLOOKUP($A80,Filtro!$A$5:$AY$2917,35,FALSE),0) -> 0 | AL80: 7,530 | AM80: 414,150
A81: 01014330 | B81: 0108209 | C81: Teleconsulta Médica de Especialidad en Neurología Adultos | D81: =IFERROR(VLOOKUP($A81,Filtro!$A$5:$AY$2917,2,FALSE),0) -> 152 | E81: =IFERROR(VLOOKUP($A81,Filtro!$A$5:$AY$2917,3,FALSE),0) -> 152 | F81: =IFERROR(VLOOKUP($A81,Filtro!$A$5:$AY$2917,4,FALSE),0) -> 152 | G81: =IFERROR(VLOOKUP($A81,Filtro!$A$5:$AY$2917,5,FALSE),0) -> 0 | H81: =IFERROR(VLOOKUP($A81,Filtro!$A$5:$AY$2917,6,FALSE),0) -> 0 | I81: =IFERROR(VLOOKUP($A81,Filtro!$A$5:$AY$2917,7,FALSE),0) -> 0 | J81: =IFERROR(VLOOKUP($A81,Filtro!$A$5:$AY$2917,8,FALSE),0) -> 0 | K81: =IFERROR(VLOOKUP($A81,Filtro!$A$5:$AY$2917,9,FALSE),0) -> 0 | L81: =IFERROR(VLOOKUP($A81,Filtro!$A$5:$AY$2917,10,FALSE),0) -> 0 | M81: =IFERROR(VLOOKUP($A81,Filtro!$A$5:$AY$2917,11,FALSE),0) -> 0 | N81: =IFERROR(VLOOKUP($A81,Filtro!$A$5:$AY$2917,12,FALSE),0) -> 0 | O81: =IFERROR(VLOOKUP($A81,Filtro!$A$5:$AY$2917,13,FALSE),0) -> 0 | P81: =IFERROR(VLOOKUP($A81,Filtro!$A$5:$AY$2917,14,FALSE),0) -> 0 | Q81: =IFERROR(VLOOKUP($A81,Filtro!$A$5:$AY$2917,15,FALSE),0) -> 0 | R81: =IFERROR(VLOOKUP($A81,Filtro!$A$5:$AY$2917,16,FALSE),0) -> 0 | S81: =IFERROR(VLOOKUP($A81,Filtro!$A$5:$AY$2917,17,FALSE),0) -> 0 | T81: =IFERROR(VLOOKUP($A81,Filtro!$A$5:$AY$2917,18,FALSE),0) -> 0 | U81: =IFERROR(VLOOKUP($A81,Filtro!$A$5:$AY$2917,19,FALSE),0) -> 0 | V81: =IFERROR(VLOOKUP($A81,Filtro!$A$5:$AY$2917,20,FALSE),0) -> 0 | W81: =IFERROR(VLOOKUP($A81,Filtro!$A$5:$AY$2917,21,FALSE),0) -> 0 | X81: =IFERROR(VLOOKUP($A81,Filtro!$A$5:$AY$2917,22,FALSE),0) -> 0 | Y81: =IFERROR(VLOOKUP($A81,Filtro!$A$5:$AY$2917,23,FALSE),0) -> 0 | Z81: =IFERROR(VLOOKUP($A81,Filtro!$A$5:$AY$2917,24,FALSE),0) -> 0 | AA81: =IFERROR(VLOOKUP($A81,Filtro!$A$5:$AY$2917,25,FALSE),0) -> 0 | AB81: =IFERROR(VLOOKUP($A81,Filtro!$A$5:$AY$2917,26,FALSE),0) -> 26 | AC81: =IFERROR(VLOOKUP($A81,Filtro!$A$5:$AY$2917,27,FALSE),0) -> 126 | AD81: =IFERROR(VLOOKUP($A81,Filtro!$A$5:$AY$2917,28,FALSE),0) -> 0 | AE81: =IFERROR(VLOOKUP($A81,Filtro!$A$5:$AY$2917,29,FALSE),0) -> 0 | AF81: =IFERROR(VLOOKUP($A81,Filtro!$A$5:$AY$2917,30,FALSE),0) -> 0 | AG81: =IFERROR(VLOOKUP($A81,Filtro!$A$5:$AY$2917,31,FALSE),0) -> 0 | AH81: =IFERROR(VLOOKUP($A81,Filtro!$A$5:$AY$2917,32,FALSE),0) -> 0 | AI81: =IFERROR(VLOOKUP($A81,Filtro!$A$5:$AY$2917,33,FALSE),0) -> 0 | AJ81: =IFERROR(VLOOKUP($A81,Filtro!$A$5:$AY$2917,34,FALSE),0) -> 0 | AK81: =IFERROR(VLOOKUP($A81,Filtro!$A$5:$AY$2917,35,FALSE),0) -> 0 | AL81: 7,530 | AM81: 1,144,560
A82: 01014331 | B82: 0108210 | C82: Teleconsulta Médica de Especialidad en Neurología Pediátrica | D82: =IFERROR(VLOOKUP($A82,Filtro!$A$5:$AY$2917,2,FALSE),0) -> 75 | E82: =IFERROR(VLOOKUP($A82,Filtro!$A$5:$AY$2917,3,FALSE),0) -> 75 | F82: =IFERROR(VLOOKUP($A82,Filtro!$A$5:$AY$2917,4,FALSE),0) -> 75 | G82: =IFERROR(VLOOKUP($A82,Filtro!$A$5:$AY$2917,5,FALSE),0) -> 0 | H82: =IFERROR(VLOOKUP($A82,Filtro!$A$5:$AY$2917,6,FALSE),0) -> 0 | I82: =IFERROR(VLOOKUP($A82,Filtro!$A$5:$AY$2917,7,FALSE),0) -> 0 | J82: =IFERROR(VLOOKUP($A82,Filtro!$A$5:$AY$2917,8,FALSE),0) -> 0 | K82: =IFERROR(VLOOKUP($A82,Filtro!$A$5:$AY$2917,9,FALSE),0) -> 0 | L82: =IFERROR(VLOOKUP($A82,Filtro!$A$5:$AY$2917,10,FALSE),0) -> 0 | M82: =IFERROR(VLOOKUP($A82,Filtro!$A$5:$AY$2917,11,FALSE),0) -> 0 | N82: =IFERROR(VLOOKUP($A82,Filtro!$A$5:$AY$2917,12,FALSE),0) -> 0 | O82: =IFERROR(VLOOKUP($A82,Filtro!$A$5:$AY$2917,13,FALSE),0) -> 0 | P82: =IFERROR(VLOOKUP($A82,Filtro!$A$5:$AY$2917,14,FALSE),0) -> 0 | Q82: =IFERROR(VLOOKUP($A82,Filtro!$A$5:$AY$2917,15,FALSE),0) -> 0 | R82: =IFERROR(VLOOKUP($A82,Filtro!$A$5:$AY$2917,16,FALSE),0) -> 0 | S82: =IFERROR(VLOOKUP($A82,Filtro!$A$5:$AY$2917,17,FALSE),0) -> 0 | T82: =IFERROR(VLOOKUP($A82,Filtro!$A$5:$AY$2917,18,FALSE),0) -> 0 | U82: =IFERROR(VLOOKUP($A82,Filtro!$A$5:$AY$2917,19,FALSE),0) -> 0 | V82: =IFERROR(VLOOKUP($A82,Filtro!$A$5:$AY$2917,20,FALSE),0) -> 0 | W82: =IFERROR(VLOOKUP($A82,Filtro!$A$5:$AY$2917,21,FALSE),0) -> 0 | X82: =IFERROR(VLOOKUP($A82,Filtro!$A$5:$AY$2917,22,FALSE),0) -> 0 | Y82: =IFERROR(VLOOKUP($A82,Filtro!$A$5:$AY$2917,23,FALSE),0) -> 0 | Z82: =IFERROR(VLOOKUP($A82,Filtro!$A$5:$AY$2917,24,FALSE),0) -> 0 | AA82: =IFERROR(VLOOKUP($A82,Filtro!$A$5:$AY$2917,25,FALSE),0) -> 0 | AB82: =IFERROR(VLOOKUP($A82,Filtro!$A$5:$AY$2917,26,FALSE),0) -> 16 | AC82: =IFERROR(VLOOKUP($A82,Filtro!$A$5:$AY$2917,27,FALSE),0) -> 59 | AD82: =IFERROR(VLOOKUP($A82,Filtro!$A$5:$AY$2917,28,FALSE),0) -> 0 | AE82: =IFERROR(VLOOKUP($A82,Filtro!$A$5:$AY$2917,29,FALSE),0) -> 0 | AF82: =IFERROR(VLOOKUP($A82,Filtro!$A$5:$AY$2917,30,FALSE),0) -> 0 | AG82: =IFERROR(VLOOKUP($A82,Filtro!$A$5:$AY$2917,31,FALSE),0) -> 0 | AH82: =IFERROR(VLOOKUP($A82,Filtro!$A$5:$AY$2917,32,FALSE),0) -> 0 | AI82: =IFERROR(VLOOKUP($A82,Filtro!$A$5:$AY$2917,33,FALSE),0) -> 0 | AJ82: =IFERROR(VLOOKUP($A82,Filtro!$A$5:$AY$2917,34,FALSE),0) -> 0 | AK82: =IFERROR(VLOOKUP($A82,Filtro!$A$5:$AY$2917,35,FALSE),0) -> 0 | AL82: 7,530 | AM82: 564,750
A83: 01014332 | B83: 0108211 | C83: Teleconsulta Médica de Especialidad en Oncología Médica | D83: =IFERROR(VLOOKUP($A83,Filtro!$A$5:$AY$2917,2,FALSE),0) -> 4080 | E83: =IFERROR(VLOOKUP($A83,Filtro!$A$5:$AY$2917,3,FALSE),0) -> 4080 | F83: =IFERROR(VLOOKUP($A83,Filtro!$A$5:$AY$2917,4,FALSE),0) -> 4080 | G83: =IFERROR(VLOOKUP($A83,Filtro!$A$5:$AY$2917,5,FALSE),0) -> 0 | H83: =IFERROR(VLOOKUP($A83,Filtro!$A$5:$AY$2917,6,FALSE),0) -> 0 | I83: =IFERROR(VLOOKUP($A83,Filtro!$A$5:$AY$2917,7,FALSE),0) -> 0 | J83: =IFERROR(VLOOKUP($A83,Filtro!$A$5:$AY$2917,8,FALSE),0) -> 0 | K83: =IFERROR(VLOOKUP($A83,Filtro!$A$5:$AY$2917,9,FALSE),0) -> 0 | L83: =IFERROR(VLOOKUP($A83,Filtro!$A$5:$AY$2917,10,FALSE),0) -> 0 | M83: =IFERROR(VLOOKUP($A83,Filtro!$A$5:$AY$2917,11,FALSE),0) -> 0 | N83: =IFERROR(VLOOKUP($A83,Filtro!$A$5:$AY$2917,12,FALSE),0) -> 0 | O83: =IFERROR(VLOOKUP($A83,Filtro!$A$5:$AY$2917,13,FALSE),0) -> 0 | P83: =IFERROR(VLOOKUP($A83,Filtro!$A$5:$AY$2917,14,FALSE),0) -> 0 | Q83: =IFERROR(VLOOKUP($A83,Filtro!$A$5:$AY$2917,15,FALSE),0) -> 0 | R83: =IFERROR(VLOOKUP($A83,Filtro!$A$5:$AY$2917,16,FALSE),0) -> 0 | S83: =IFERROR(VLOOKUP($A83,Filtro!$A$5:$AY$2917,17,FALSE),0) -> 0 | T83: =IFERROR(VLOOKUP($A83,Filtro!$A$5:$AY$2917,18,FALSE),0) -> 0 | U83: =IFERROR(VLOOKUP($A83,Filtro!$A$5:$AY$2917,19,FALSE),0) -> 0 | V83: =IFERROR(VLOOKUP($A83,Filtro!$A$5:$AY$2917,20,FALSE),0) -> 0 | W83: =IFERROR(VLOOKUP($A83,Filtro!$A$5:$AY$2917,21,FALSE),0) -> 0 | X83: =IFERROR(VLOOKUP($A83,Filtro!$A$5:$AY$2917,22,FALSE),0) -> 0 | Y83: =IFERROR(VLOOKUP($A83,Filtro!$A$5:$AY$2917,23,FALSE),0) -> 0 | Z83: =IFERROR(VLOOKUP($A83,Filtro!$A$5:$AY$2917,24,FALSE),0) -> 0 | AA83: =IFERROR(VLOOKUP($A83,Filtro!$A$5:$AY$2917,25,FALSE),0) -> 0 | AB83: =IFERROR(VLOOKUP($A83,Filtro!$A$5:$AY$2917,26,FALSE),0) -> 0 | AC83: =IFERROR(VLOOKUP($A83,Filtro!$A$5:$AY$2917,27,FALSE),0) -> 4080 | AD83: =IFERROR(VLOOKUP($A83,Filtro!$A$5:$AY$2917,28,FALSE),0) -> 0 | AE83: =IFERROR(VLOOKUP($A83,Filtro!$A$5:$AY$2917,29,FALSE),0) -> 0 | AF83: =IFERROR(VLOOKUP($A83,Filtro!$A$5:$AY$2917,30,FALSE),0) -> 0 | AG83: =IFERROR(VLOOKUP($A83,Filtro!$A$5:$AY$2917,31,FALSE),0) -> 0 | AH83: =IFERROR(VLOOKUP($A83,Filtro!$A$5:$AY$2917,32,FALSE),0) -> 0 | AI83: =IFERROR(VLOOKUP($A83,Filtro!$A$5:$AY$2917,33,FALSE),0) -> 0 | AJ83: =IFERROR(VLOOKUP($A83,Filtro!$A$5:$AY$2917,34,FALSE),0) -> 0 | AK83: =IFERROR(VLOOKUP($A83,Filtro!$A$5:$AY$2917,35,FALSE),0) -> 0 | AL83: 7,530 | AM83: 30,722,400
A84: 01014333 | B84: 0108212 | C84: Teleconsulta Médica de Especialidad en Psiquiatría adultos | D84: =IFERROR(VLOOKUP($A84,Filtro!$A$5:$AY$2917,2,FALSE),0) -> 327 | E84: =IFERROR(VLOOKUP($A84,Filtro!$A$5:$AY$2917,3,FALSE),0) -> 327 | F84: =IFERROR(VLOOKUP($A84,Filtro!$A$5:$AY$2917,4,FALSE),0) -> 327 | G84: =IFERROR(VLOOKUP($A84,Filtro!$A$5:$AY$2917,5,FALSE),0) -> 0 | H84: =IFERROR(VLOOKUP($A84,Filtro!$A$5:$AY$2917,6,FALSE),0) -> 0 | I84: =IFERROR(VLOOKUP($A84,Filtro!$A$5:$AY$2917,7,FALSE),0) -> 0 | J84: =IFERROR(VLOOKUP($A84,Filtro!$A$5:$AY$2917,8,FALSE),0) -> 0 | K84: =IFERROR(VLOOKUP($A84,Filtro!$A$5:$AY$2917,9,FALSE),0) -> 0 | L84: =IFERROR(VLOOKUP($A84,Filtro!$A$5:$AY$2917,10,FALSE),0) -> 0 | M84: =IFERROR(VLOOKUP($A84,Filtro!$A$5:$AY$2917,11,FALSE),0) -> 0 | N84: =IFERROR(VLOOKUP($A84,Filtro!$A$5:$AY$2917,12,FALSE),0) -> 0 | O84: =IFERROR(VLOOKUP($A84,Filtro!$A$5:$AY$2917,13,FALSE),0) -> 0 | P84: =IFERROR(VLOOKUP($A84,Filtro!$A$5:$AY$2917,14,FALSE),0) -> 0 | Q84: =IFERROR(VLOOKUP($A84,Filtro!$A$5:$AY$2917,15,FALSE),0) -> 0 | R84: =IFERROR(VLOOKUP($A84,Filtro!$A$5:$AY$2917,16,FALSE),0) -> 0 | S84: =IFERROR(VLOOKUP($A84,Filtro!$A$5:$AY$2917,17,FALSE),0) -> 0 | T84: =IFERROR(VLOOKUP($A84,Filtro!$A$5:$AY$2917,18,FALSE),0) -> 0 | U84: =IFERROR(VLOOKUP($A84,Filtro!$A$5:$AY$2917,19,FALSE),0) -> 0 | V84: =IFERROR(VLOOKUP($A84,Filtro!$A$5:$AY$2917,20,FALSE),0) -> 0 | W84: =IFERROR(VLOOKUP($A84,Filtro!$A$5:$AY$2917,21,FALSE),0) -> 0 | X84: =IFERROR(VLOOKUP($A84,Filtro!$A$5:$AY$2917,22,FALSE),0) -> 0 | Y84: =IFERROR(VLOOKUP($A84,Filtro!$A$5:$AY$2917,23,FALSE),0) -> 0 | Z84: =IFERROR(VLOOKUP($A84,Filtro!$A$5:$AY$2917,24,FALSE),0) -> 0 | AA84: =IFERROR(VLOOKUP($A84,Filtro!$A$5:$AY$2917,25,FALSE),0) -> 0 | AB84: =IFERROR(VLOOKUP($A84,Filtro!$A$5:$AY$2917,26,FALSE),0) -> 0 | AC84: =IFERROR(VLOOKUP($A84,Filtro!$A$5:$AY$2917,27,FALSE),0) -> 327 | AD84: =IFERROR(VLOOKUP($A84,Filtro!$A$5:$AY$2917,28,FALSE),0) -> 0 | AE84: =IFERROR(VLOOKUP($A84,Filtro!$A$5:$AY$2917,29,FALSE),0) -> 0 | AF84: =IFERROR(VLOOKUP($A84,Filtro!$A$5:$AY$2917,30,FALSE),0) -> 0 | AG84: =IFERROR(VLOOKUP($A84,Filtro!$A$5:$AY$2917,31,FALSE),0) -> 0 | AH84: =IFERROR(VLOOKUP($A84,Filtro!$A$5:$AY$2917,32,FALSE),0) -> 0 | AI84: =IFERROR(VLOOKUP($A84,Filtro!$A$5:$AY$2917,33,FALSE),0) -> 0 | AJ84: =IFERROR(VLOOKUP($A84,Filtro!$A$5:$AY$2917,34,FALSE),0) -> 0 | AK84: =IFERROR(VLOOKUP($A84,Filtro!$A$5:$AY$2917,35,FALSE),0) -> 0 | AL84: 7,530 | AM84: 2,462,310
A85: 01014334 | B85: 0108213 | C85: Teleconsulta Médica de Especialidad en Psiquiatría pediátrica y de la adolescencia | D85: =IFERROR(VLOOKUP($A85,Filtro!$A$5:$AY$2917,2,FALSE),0) -> 123 | E85: =IFERROR(VLOOKUP($A85,Filtro!$A$5:$AY$2917,3,FALSE),0) -> 123 | F85: =IFERROR(VLOOKUP($A85,Filtro!$A$5:$AY$2917,4,FALSE),0) -> 123 | G85: =IFERROR(VLOOKUP($A85,Filtro!$A$5:$AY$2917,5,FALSE),0) -> 0 | H85: =IFERROR(VLOOKUP($A85,Filtro!$A$5:$AY$2917,6,FALSE),0) -> 0 | I85: =IFERROR(VLOOKUP($A85,Filtro!$A$5:$AY$2917,7,FALSE),0) -> 0 | J85: =IFERROR(VLOOKUP($A85,Filtro!$A$5:$AY$2917,8,FALSE),0) -> 0 | K85: =IFERROR(VLOOKUP($A85,Filtro!$A$5:$AY$2917,9,FALSE),0) -> 0 | L85: =IFERROR(VLOOKUP($A85,Filtro!$A$5:$AY$2917,10,FALSE),0) -> 0 | M85: =IFERROR(VLOOKUP($A85,Filtro!$A$5:$AY$2917,11,FALSE),0) -> 0 | N85: =IFERROR(VLOOKUP($A85,Filtro!$A$5:$AY$2917,12,FALSE),0) -> 0 | O85: =IFERROR(VLOOKUP($A85,Filtro!$A$5:$AY$2917,13,FALSE),0) -> 0 | P85: =IFERROR(VLOOKUP($A85,Filtro!$A$5:$AY$2917,14,FALSE),0) -> 0 | Q85: =IFERROR(VLOOKUP($A85,Filtro!$A$5:$AY$2917,15,FALSE),0) -> 0 | R85: =IFERROR(VLOOKUP($A85,Filtro!$A$5:$AY$2917,16,FALSE),0) -> 0 | S85: =IFERROR(VLOOKUP($A85,Filtro!$A$5:$AY$2917,17,FALSE),0) -> 0 | T85: =IFERROR(VLOOKUP($A85,Filtro!$A$5:$AY$2917,18,FALSE),0) -> 0 | U85: =IFERROR(VLOOKUP($A85,Filtro!$A$5:$AY$2917,19,FALSE),0) -> 0 | V85: =IFERROR(VLOOKUP($A85,Filtro!$A$5:$AY$2917,20,FALSE),0) -> 0 | W85: =IFERROR(VLOOKUP($A85,Filtro!$A$5:$AY$2917,21,FALSE),0) -> 0 | X85: =IFERROR(VLOOKUP($A85,Filtro!$A$5:$AY$2917,22,FALSE),0) -> 0 | Y85: =IFERROR(VLOOKUP($A85,Filtro!$A$5:$AY$2917,23,FALSE),0) -> 0 | Z85: =IFERROR(VLOOKUP($A85,Filtro!$A$5:$AY$2917,24,FALSE),0) -> 0 | AA85: =IFERROR(VLOOKUP($A85,Filtro!$A$5:$AY$2917,25,FALSE),0) -> 0 | AB85: =IFERROR(VLOOKUP($A85,Filtro!$A$5:$AY$2917,26,FALSE),0) -> 0 | AC85: =IFERROR(VLOOKUP($A85,Filtro!$A$5:$AY$2917,27,FALSE),0) -> 123 | AD85: =IFERROR(VLOOKUP($A85,Filtro!$A$5:$AY$2917,28,FALSE),0) -> 0 | AE85: =IFERROR(VLOOKUP($A85,Filtro!$A$5:$AY$2917,29,FALSE),0) -> 0 | AF85: =IFERROR(VLOOKUP($A85,Filtro!$A$5:$AY$2917,30,FALSE),0) -> 0 | AG85: =IFERROR(VLOOKUP($A85,Filtro!$A$5:$AY$2917,31,FALSE),0) -> 0 | AH85: =IFERROR(VLOOKUP($A85,Filtro!$A$5:$AY$2917,32,FALSE),0) -> 0 | AI85: =IFERROR(VLOOKUP($A85,Filtro!$A$5:$AY$2917,33,FALSE),0) -> 0 | AJ85: =IFERROR(VLOOKUP($A85,Filtro!$A$5:$AY$2917,34,FALSE),0) -> 0 | AK85: =IFERROR(VLOOKUP($A85,Filtro!$A$5:$AY$2917,35,FALSE),0) -> 0 | AL85: 7,530 | AM85: 926,190
A86: 01014335 | B86: 0108301 | C86: Teleconsulta Médica de Especialidad en Cardiología | D86: =IFERROR(VLOOKUP($A86,Filtro!$A$5:$AY$2917,2,FALSE),0) -> 7 | E86: =IFERROR(VLOOKUP($A86,Filtro!$A$5:$AY$2917,3,FALSE),0) -> 7 | F86: =IFERROR(VLOOKUP($A86,Filtro!$A$5:$AY$2917,4,FALSE),0) -> 7 | G86: =IFERROR(VLOOKUP($A86,Filtro!$A$5:$AY$2917,5,FALSE),0) -> 0 | H86: =IFERROR(VLOOKUP($A86,Filtro!$A$5:$AY$2917,6,FALSE),0) -> 0 | I86: =IFERROR(VLOOKUP($A86,Filtro!$A$5:$AY$2917,7,FALSE),0) -> 0 | J86: =IFERROR(VLOOKUP($A86,Filtro!$A$5:$AY$2917,8,FALSE),0) -> 0 | K86: =IFERROR(VLOOKUP($A86,Filtro!$A$5:$AY$2917,9,FALSE),0) -> 0 | L86: =IFERROR(VLOOKUP($A86,Filtro!$A$5:$AY$2917,10,FALSE),0) -> 0 | M86: =IFERROR(VLOOKUP($A86,Filtro!$A$5:$AY$2917,11,FALSE),0) -> 0 | N86: =IFERROR(VLOOKUP($A86,Filtro!$A$5:$AY$2917,12,FALSE),0) -> 0 | O86: =IFERROR(VLOOKUP($A86,Filtro!$A$5:$AY$2917,13,FALSE),0) -> 0 | P86: =IFERROR(VLOOKUP($A86,Filtro!$A$5:$AY$2917,14,FALSE),0) -> 0 | Q86: =IFERROR(VLOOKUP($A86,Filtro!$A$5:$AY$2917,15,FALSE),0) -> 0 | R86: =IFERROR(VLOOKUP($A86,Filtro!$A$5:$AY$2917,16,FALSE),0) -> 0 | S86: =IFERROR(VLOOKUP($A86,Filtro!$A$5:$AY$2917,17,FALSE),0) -> 0 | T86: =IFERROR(VLOOKUP($A86,Filtro!$A$5:$AY$2917,18,FALSE),0) -> 0 | U86: =IFERROR(VLOOKUP($A86,Filtro!$A$5:$AY$2917,19,FALSE),0) -> 0 | V86: =IFERROR(VLOOKUP($A86,Filtro!$A$5:$AY$2917,20,FALSE),0) -> 0 | W86: =IFERROR(VLOOKUP($A86,Filtro!$A$5:$AY$2917,21,FALSE),0) -> 0 | X86: =IFERROR(VLOOKUP($A86,Filtro!$A$5:$AY$2917,22,FALSE),0) -> 0 | Y86: =IFERROR(VLOOKUP($A86,Filtro!$A$5:$AY$2917,23,FALSE),0) -> 0 | Z86: =IFERROR(VLOOKUP($A86,Filtro!$A$5:$AY$2917,24,FALSE),0) -> 0 | AA86: =IFERROR(VLOOKUP($A86,Filtro!$A$5:$AY$2917,25,FALSE),0) -> 0 | AB86: =IFERROR(VLOOKUP($A86,Filtro!$A$5:$AY$2917,26,FALSE),0) -> 0 | AC86: =IFERROR(VLOOKUP($A86,Filtro!$A$5:$AY$2917,27,FALSE),0) -> 7 | AD86: =IFERROR(VLOOKUP($A86,Filtro!$A$5:$AY$2917,28,FALSE),0) -> 0 | AE86: =IFERROR(VLOOKUP($A86,Filtro!$A$5:$AY$2917,29,FALSE),0) -> 0 | AF86: =IFERROR(VLOOKUP($A86,Filtro!$A$5:$AY$2917,30,FALSE),0) -> 0 | AG86: =IFERROR(VLOOKUP($A86,Filtro!$A$5:$AY$2917,31,FALSE),0) -> 0 | AH86: =IFERROR(VLOOKUP($A86,Filtro!$A$5:$AY$2917,32,FALSE),0) -> 0 | AI86: =IFERROR(VLOOKUP($A86,Filtro!$A$5:$AY$2917,33,FALSE),0) -> 0 | AJ86: =IFERROR(VLOOKUP($A86,Filtro!$A$5:$AY$2917,34,FALSE),0) -> 0 | AK86: =IFERROR(VLOOKUP($A86,Filtro!$A$5:$AY$2917,35,FALSE),0) -> 0 | AL86: 7,530 | AM86: 52,710
A87: 01014336 | B87: 0108302 | C87: Teleconsulta Médica de Especialidad en Hematología | D87: =IFERROR(VLOOKUP($A87,Filtro!$A$5:$AY$2917,2,FALSE),0) -> 1244 | E87: =IFERROR(VLOOKUP($A87,Filtro!$A$5:$AY$2917,3,FALSE),0) -> 1244 | F87: =IFERROR(VLOOKUP($A87,Filtro!$A$5:$AY$2917,4,FALSE),0) -> 1244 | G87: =IFERROR(VLOOKUP($A87,Filtro!$A$5:$AY$2917,5,FALSE),0) -> 0 | H87: =IFERROR(VLOOKUP($A87,Filtro!$A$5:$AY$2917,6,FALSE),0) -> 0 | I87: =IFERROR(VLOOKUP($A87,Filtro!$A$5:$AY$2917,7,FALSE),0) -> 0 | J87: =IFERROR(VLOOKUP($A87,Filtro!$A$5:$AY$2917,8,FALSE),0) -> 0 | K87: =IFERROR(VLOOKUP($A87,Filtro!$A$5:$AY$2917,9,FALSE),0) -> 0 | L87: =IFERROR(VLOOKUP($A87,Filtro!$A$5:$AY$2917,10,FALSE),0) -> 0 | M87: =IFERROR(VLOOKUP($A87,Filtro!$A$5:$AY$2917,11,FALSE),0) -> 0 | N87: =IFERROR(VLOOKUP($A87,Filtro!$A$5:$AY$2917,12,FALSE),0) -> 0 | O87: =IFERROR(VLOOKUP($A87,Filtro!$A$5:$AY$2917,13,FALSE),0) -> 0 | P87: =IFERROR(VLOOKUP($A87,Filtro!$A$5:$AY$2917,14,FALSE),0) -> 0 | Q87: =IFERROR(VLOOKUP($A87,Filtro!$A$5:$AY$2917,15,FALSE),0) -> 0 | R87: =IFERROR(VLOOKUP($A87,Filtro!$A$5:$AY$2917,16,FALSE),0) -> 0 | S87: =IFERROR(VLOOKUP($A87,Filtro!$A$5:$AY$2917,17,FALSE),0) -> 0 | T87: =IFERROR(VLOOKUP($A87,Filtro!$A$5:$AY$2917,18,FALSE),0) -> 0 | U87: =IFERROR(VLOOKUP($A87,Filtro!$A$5:$AY$2917,19,FALSE),0) -> 0 | V87: =IFERROR(VLOOKUP($A87,Filtro!$A$5:$AY$2917,20,FALSE),0) -> 0 | W87: =IFERROR(VLOOKUP($A87,Filtro!$A$5:$AY$2917,21,FALSE),0) -> 0 | X87: =IFERROR(VLOOKUP($A87,Filtro!$A$5:$AY$2917,22,FALSE),0) -> 0 | Y87: =IFERROR(VLOOKUP($A87,Filtro!$A$5:$AY$2917,23,FALSE),0) -> 0 | Z87: =IFERROR(VLOOKUP($A87,Filtro!$A$5:$AY$2917,24,FALSE),0) -> 0 | AA87: =IFERROR(VLOOKUP($A87,Filtro!$A$5:$AY$2917,25,FALSE),0) -> 0 | AB87: =IFERROR(VLOOKUP($A87,Filtro!$A$5:$AY$2917,26,FALSE),0) -> 0 | AC87: =IFERROR(VLOOKUP($A87,Filtro!$A$5:$AY$2917,27,FALSE),0) -> 1244 | AD87: =IFERROR(VLOOKUP($A87,Filtro!$A$5:$AY$2917,28,FALSE),0) -> 0 | AE87: =IFERROR(VLOOKUP($A87,Filtro!$A$5:$AY$2917,29,FALSE),0) -> 0 | AF87: =IFERROR(VLOOKUP($A87,Filtro!$A$5:$AY$2917,30,FALSE),0) -> 0 | AG87: =IFERROR(VLOOKUP($A87,Filtro!$A$5:$AY$2917,31,FALSE),0) -> 0 | AH87: =IFERROR(VLOOKUP($A87,Filtro!$A$5:$AY$2917,32,FALSE),0) -> 0 | AI87: =IFERROR(VLOOKUP($A87,Filtro!$A$5:$AY$2917,33,FALSE),0) -> 0 | AJ87: =IFERROR(VLOOKUP($A87,Filtro!$A$5:$AY$2917,34,FALSE),0) -> 0 | AK87: =IFERROR(VLOOKUP($A87,Filtro!$A$5:$AY$2917,35,FALSE),0) -> 0 | AL87: 7,530 | AM87: 9,367,320
A88: 01014337 | B88: 0108303 | C88: Teleconsulta Médica de Especialidad en Infectología | D88: =IFERROR(VLOOKUP($A88,Filtro!$A$5:$AY$2917,2,FALSE),0) -> 2 | E88: =IFERROR(VLOOKUP($A88,Filtro!$A$5:$AY$2917,3,FALSE),0) -> 2 | F88: =IFERROR(VLOOKUP($A88,Filtro!$A$5:$AY$2917,4,FALSE),0) -> 2 | G88: =IFERROR(VLOOKUP($A88,Filtro!$A$5:$AY$2917,5,FALSE),0) -> 0 | H88: =IFERROR(VLOOKUP($A88,Filtro!$A$5:$AY$2917,6,FALSE),0) -> 0 | I88: =IFERROR(VLOOKUP($A88,Filtro!$A$5:$AY$2917,7,FALSE),0) -> 0 | J88: =IFERROR(VLOOKUP($A88,Filtro!$A$5:$AY$2917,8,FALSE),0) -> 0 | K88: =IFERROR(VLOOKUP($A88,Filtro!$A$5:$AY$2917,9,FALSE),0) -> 0 | L88: =IFERROR(VLOOKUP($A88,Filtro!$A$5:$AY$2917,10,FALSE),0) -> 0 | M88: =IFERROR(VLOOKUP($A88,Filtro!$A$5:$AY$2917,11,FALSE),0) -> 0 | N88: =IFERROR(VLOOKUP($A88,Filtro!$A$5:$AY$2917,12,FALSE),0) -> 0 | O88: =IFERROR(VLOOKUP($A88,Filtro!$A$5:$AY$2917,13,FALSE),0) -> 0 | P88: =IFERROR(VLOOKUP($A88,Filtro!$A$5:$AY$2917,14,FALSE),0) -> 0 | Q88: =IFERROR(VLOOKUP($A88,Filtro!$A$5:$AY$2917,15,FALSE),0) -> 0 | R88: =IFERROR(VLOOKUP($A88,Filtro!$A$5:$AY$2917,16,FALSE),0) -> 0 | S88: =IFERROR(VLOOKUP($A88,Filtro!$A$5:$AY$2917,17,FALSE),0) -> 0 | T88: =IFERROR(VLOOKUP($A88,Filtro!$A$5:$AY$2917,18,FALSE),0) -> 0 | U88: =IFERROR(VLOOKUP($A88,Filtro!$A$5:$AY$2917,19,FALSE),0) -> 0 | V88: =IFERROR(VLOOKUP($A88,Filtro!$A$5:$AY$2917,20,FALSE),0) -> 0 | W88: =IFERROR(VLOOKUP($A88,Filtro!$A$5:$AY$2917,21,FALSE),0) -> 0 | X88: =IFERROR(VLOOKUP($A88,Filtro!$A$5:$AY$2917,22,FALSE),0) -> 0 | Y88: =IFERROR(VLOOKUP($A88,Filtro!$A$5:$AY$2917,23,FALSE),0) -> 0 | Z88: =IFERROR(VLOOKUP($A88,Filtro!$A$5:$AY$2917,24,FALSE),0) -> 0 | AA88: =IFERROR(VLOOKUP($A88,Filtro!$A$5:$AY$2917,25,FALSE),0) -> 0 | AB88: =IFERROR(VLOOKUP($A88,Filtro!$A$5:$AY$2917,26,FALSE),0) -> 0 | AC88: =IFERROR(VLOOKUP($A88,Filtro!$A$5:$AY$2917,27,FALSE),0) -> 2 | AD88: =IFERROR(VLOOKUP($A88,Filtro!$A$5:$AY$2917,28,FALSE),0) -> 0 | AE88: =IFERROR(VLOOKUP($A88,Filtro!$A$5:$AY$2917,29,FALSE),0) -> 0 | AF88: =IFERROR(VLOOKUP($A88,Filtro!$A$5:$AY$2917,30,FALSE),0) -> 0 | AG88: =IFERROR(VLOOKUP($A88,Filtro!$A$5:$AY$2917,31,FALSE),0) -> 0 | AH88: =IFERROR(VLOOKUP($A88,Filtro!$A$5:$AY$2917,32,FALSE),0) -> 0 | AI88: =IFERROR(VLOOKUP($A88,Filtro!$A$5:$AY$2917,33,FALSE),0) -> 0 | AJ88: =IFERROR(VLOOKUP($A88,Filtro!$A$5:$AY$2917,34,FALSE),0) -> 0 | AK88: =IFERROR(VLOOKUP($A88,Filtro!$A$5:$AY$2917,35,FALSE),0) -> 0 | AL88: 7,530 | AM88: 15,060
A89: 01014338 | B89: 0108304 | C89: Teleconsulta Médica de Especialidad en Inmunología | D89: =IFERROR(VLOOKUP($A89,Filtro!$A$5:$AY$2917,2,FALSE),0) -> 182 | E89: =IFERROR(VLOOKUP($A89,Filtro!$A$5:$AY$2917,3,FALSE),0) -> 182 | F89: =IFERROR(VLOOKUP($A89,Filtro!$A$5:$AY$2917,4,FALSE),0) -> 182 | G89: =IFERROR(VLOOKUP($A89,Filtro!$A$5:$AY$2917,5,FALSE),0) -> 0 | H89: =IFERROR(VLOOKUP($A89,Filtro!$A$5:$AY$2917,6,FALSE),0) -> 0 | I89: =IFERROR(VLOOKUP($A89,Filtro!$A$5:$AY$2917,7,FALSE),0) -> 0 | J89: =IFERROR(VLOOKUP($A89,Filtro!$A$5:$AY$2917,8,FALSE),0) -> 0 | K89: =IFERROR(VLOOKUP($A89,Filtro!$A$5:$AY$2917,9,FALSE),0) -> 0 | L89: =IFERROR(VLOOKUP($A89,Filtro!$A$5:$AY$2917,10,FALSE),0) -> 0 | M89: =IFERROR(VLOOKUP($A89,Filtro!$A$5:$AY$2917,11,FALSE),0) -> 0 | N89: =IFERROR(VLOOKUP($A89,Filtro!$A$5:$AY$2917,12,FALSE),0) -> 0 | O89: =IFERROR(VLOOKUP($A89,Filtro!$A$5:$AY$2917,13,FALSE),0) -> 0 | P89: =IFERROR(VLOOKUP($A89,Filtro!$A$5:$AY$2917,14,FALSE),0) -> 0 | Q89: =IFERROR(VLOOKUP($A89,Filtro!$A$5:$AY$2917,15,FALSE),0) -> 0 | R89: =IFERROR(VLOOKUP($A89,Filtro!$A$5:$AY$2917,16,FALSE),0) -> 0 | S89: =IFERROR(VLOOKUP($A89,Filtro!$A$5:$AY$2917,17,FALSE),0) -> 0 | T89: =IFERROR(VLOOKUP($A89,Filtro!$A$5:$AY$2917,18,FALSE),0) -> 0 | U89: =IFERROR(VLOOKUP($A89,Filtro!$A$5:$AY$2917,19,FALSE),0) -> 0 | V89: =IFERROR(VLOOKUP($A89,Filtro!$A$5:$AY$2917,20,FALSE),0) -> 0 | W89: =IFERROR(VLOOKUP($A89,Filtro!$A$5:$AY$2917,21,FALSE),0) -> 0 | X89: =IFERROR(VLOOKUP($A89,Filtro!$A$5:$AY$2917,22,FALSE),0) -> 0 | Y89: =IFERROR(VLOOKUP($A89,Filtro!$A$5:$AY$2917,23,FALSE),0) -> 0 | Z89: =IFERROR(VLOOKUP($A89,Filtro!$A$5:$AY$2917,24,FALSE),0) -> 0 | AA89: =IFERROR(VLOOKUP($A89,Filtro!$A$5:$AY$2917,25,FALSE),0) -> 0 | AB89: =IFERROR(VLOOKUP($A89,Filtro!$A$5:$AY$2917,26,FALSE),0) -> 0 | AC89: =IFERROR(VLOOKUP($A89,Filtro!$A$5:$AY$2917,27,FALSE),0) -> 182 | AD89: =IFERROR(VLOOKUP($A89,Filtro!$A$5:$AY$2917,28,FALSE),0) -> 0 | AE89: =IFERROR(VLOOKUP($A89,Filtro!$A$5:$AY$2917,29,FALSE),0) -> 0 | AF89: =IFERROR(VLOOKUP($A89,Filtro!$A$5:$AY$2917,30,FALSE),0) -> 0 | AG89: =IFERROR(VLOOKUP($A89,Filtro!$A$5:$AY$2917,31,FALSE),0) -> 0 | AH89: =IFERROR(VLOOKUP($A89,Filtro!$A$5:$AY$2917,32,FALSE),0) -> 0 | AI89: =IFERROR(VLOOKUP($A89,Filtro!$A$5:$AY$2917,33,FALSE),0) -> 0 | AJ89: =IFERROR(VLOOKUP($A89,Filtro!$A$5:$AY$2917,34,FALSE),0) -> 0 | AK89: =IFERROR(VLOOKUP($A89,Filtro!$A$5:$AY$2917,35,FALSE),0) -> 0 | AL89: 7,530 | AM89: 1,370,460
A90: 01014339 | B90: 0108305 | C90: Teleconsulta Médica de Especialidad en Medicina Familiar | D90: =IFERROR(VLOOKUP($A90,Filtro!$A$5:$AY$2917,2,FALSE),0) -> 0 | E90: =IFERROR(VLOOKUP($A90,Filtro!$A$5:$AY$2917,3,FALSE),0) -> 0 | F90: =IFERROR(VLOOKUP($A90,Filtro!$A$5:$AY$2917,4,FALSE),0) -> 0 | G90: =IFERROR(VLOOKUP($A90,Filtro!$A$5:$AY$2917,5,FALSE),0) -> 0 | H90: =IFERROR(VLOOKUP($A90,Filtro!$A$5:$AY$2917,6,FALSE),0) -> 0 | I90: =IFERROR(VLOOKUP($A90,Filtro!$A$5:$AY$2917,7,FALSE),0) -> 0 | J90: =IFERROR(VLOOKUP($A90,Filtro!$A$5:$AY$2917,8,FALSE),0) -> 0 | K90: =IFERROR(VLOOKUP($A90,Filtro!$A$5:$AY$2917,9,FALSE),0) -> 0 | L90: =IFERROR(VLOOKUP($A90,Filtro!$A$5:$AY$2917,10,FALSE),0) -> 0 | M90: =IFERROR(VLOOKUP($A90,Filtro!$A$5:$AY$2917,11,FALSE),0) -> 0 | N90: =IFERROR(VLOOKUP($A90,Filtro!$A$5:$AY$2917,12,FALSE),0) -> 0 | O90: =IFERROR(VLOOKUP($A90,Filtro!$A$5:$AY$2917,13,FALSE),0) -> 0 | P90: =IFERROR(VLOOKUP($A90,Filtro!$A$5:$AY$2917,14,FALSE),0) -> 0 | Q90: =IFERROR(VLOOKUP($A90,Filtro!$A$5:$AY$2917,15,FALSE),0) -> 0 | R90: =IFERROR(VLOOKUP($A90,Filtro!$A$5:$AY$2917,16,FALSE),0) -> 0 | S90: =IFERROR(VLOOKUP($A90,Filtro!$A$5:$AY$2917,17,FALSE),0) -> 0 | T90: =IFERROR(VLOOKUP($A90,Filtro!$A$5:$AY$2917,18,FALSE),0) -> 0 | U90: =IFERROR(VLOOKUP($A90,Filtro!$A$5:$AY$2917,19,FALSE),0) -> 0 | V90: =IFERROR(VLOOKUP($A90,Filtro!$A$5:$AY$2917,20,FALSE),0) -> 0 | W90: =IFERROR(VLOOKUP($A90,Filtro!$A$5:$AY$2917,21,FALSE),0) -> 0 | X90: =IFERROR(VLOOKUP($A90,Filtro!$A$5:$AY$2917,22,FALSE),0) -> 0 | Y90: =IFERROR(VLOOKUP($A90,Filtro!$A$5:$AY$2917,23,FALSE),0) -> 0 | Z90: =IFERROR(VLOOKUP($A90,Filtro!$A$5:$AY$2917,24,FALSE),0) -> 0 | AA90: =IFERROR(VLOOKUP($A90,Filtro!$A$5:$AY$2917,25,FALSE),0) -> 0 | AB90: =IFERROR(VLOOKUP($A90,Filtro!$A$5:$AY$2917,26,FALSE),0) -> 0 | AC90: =IFERROR(VLOOKUP($A90,Filtro!$A$5:$AY$2917,27,FALSE),0) -> 0 | AD90: =IFERROR(VLOOKUP($A90,Filtro!$A$5:$AY$2917,28,FALSE),0) -> 0 | AE90: =IFERROR(VLOOKUP($A90,Filtro!$A$5:$AY$2917,29,FALSE),0) -> 0 | AF90: =IFERROR(VLOOKUP($A90,Filtro!$A$5:$AY$2917,30,FALSE),0) -> 0 | AG90: =IFERROR(VLOOKUP($A90,Filtro!$A$5:$AY$2917,31,FALSE),0) -> 0 | AH90: =IFERROR(VLOOKUP($A90,Filtro!$A$5:$AY$2917,32,FALSE),0) -> 0 | AI90: =IFERROR(VLOOKUP($A90,Filtro!$A$5:$AY$2917,33,FALSE),0) -> 0 | AJ90: =IFERROR(VLOOKUP($A90,Filtro!$A$5:$AY$2917,34,FALSE),0) -> 0 | AK90: =IFERROR(VLOOKUP($A90,Filtro!$A$5:$AY$2917,35,FALSE),0) -> 0 | AL90: 7,530 | AM90: 0
A91: 01014340 | B91: 0108306 | C91: Teleconsulta Médica de Especialidad en Medicina Física y Rehabilitación | D91: =IFERROR(VLOOKUP($A91,Filtro!$A$5:$AY$2917,2,FALSE),0) -> 19 | E91: =IFERROR(VLOOKUP($A91,Filtro!$A$5:$AY$2917,3,FALSE),0) -> 19 | F91: =IFERROR(VLOOKUP($A91,Filtro!$A$5:$AY$2917,4,FALSE),0) -> 19 | G91: =IFERROR(VLOOKUP($A91,Filtro!$A$5:$AY$2917,5,FALSE),0) -> 0 | H91: =IFERROR(VLOOKUP($A91,Filtro!$A$5:$AY$2917,6,FALSE),0) -> 0 | I91: =IFERROR(VLOOKUP($A91,Filtro!$A$5:$AY$2917,7,FALSE),0) -> 0 | J91: =IFERROR(VLOOKUP($A91,Filtro!$A$5:$AY$2917,8,FALSE),0) -> 0 | K91: =IFERROR(VLOOKUP($A91,Filtro!$A$5:$AY$2917,9,FALSE),0) -> 0 | L91: =IFERROR(VLOOKUP($A91,Filtro!$A$5:$AY$2917,10,FALSE),0) -> 0 | M91: =IFERROR(VLOOKUP($A91,Filtro!$A$5:$AY$2917,11,FALSE),0) -> 0 | N91: =IFERROR(VLOOKUP($A91,Filtro!$A$5:$AY$2917,12,FALSE),0) -> 0 | O91: =IFERROR(VLOOKUP($A91,Filtro!$A$5:$AY$2917,13,FALSE),0) -> 0 | P91: =IFERROR(VLOOKUP($A91,Filtro!$A$5:$AY$2917,14,FALSE),0) -> 0 | Q91: =IFERROR(VLOOKUP($A91,Filtro!$A$5:$AY$2917,15,FALSE),0) -> 0 | R91: =IFERROR(VLOOKUP($A91,Filtro!$A$5:$AY$2917,16,FALSE),0) -> 0 | S91: =IFERROR(VLOOKUP($A91,Filtro!$A$5:$AY$2917,17,FALSE),0) -> 0 | T91: =IFERROR(VLOOKUP($A91,Filtro!$A$5:$AY$2917,18,FALSE),0) -> 0 | U91: =IFERROR(VLOOKUP($A91,Filtro!$A$5:$AY$2917,19,FALSE),0) -> 0 | V91: =IFERROR(VLOOKUP($A91,Filtro!$A$5:$AY$2917,20,FALSE),0) -> 0 | W91: =IFERROR(VLOOKUP($A91,Filtro!$A$5:$AY$2917,21,FALSE),0) -> 0 | X91: =IFERROR(VLOOKUP($A91,Filtro!$A$5:$AY$2917,22,FALSE),0) -> 0 | Y91: =IFERROR(VLOOKUP($A91,Filtro!$A$5:$AY$2917,23,FALSE),0) -> 0 | Z91: =IFERROR(VLOOKUP($A91,Filtro!$A$5:$AY$2917,24,FALSE),0) -> 0 | AA91: =IFERROR(VLOOKUP($A91,Filtro!$A$5:$AY$2917,25,FALSE),0) -> 0 | AB91: =IFERROR(VLOOKUP($A91,Filtro!$A$5:$AY$2917,26,FALSE),0) -> 0 | AC91: =IFERROR(VLOOKUP($A91,Filtro!$A$5:$AY$2917,27,FALSE),0) -> 19 | AD91: =IFERROR(VLOOKUP($A91,Filtro!$A$5:$AY$2917,28,FALSE),0) -> 0 | AE91: =IFERROR(VLOOKUP($A91,Filtro!$A$5:$AY$2917,29,FALSE),0) -> 0 | AF91: =IFERROR(VLOOKUP($A91,Filtro!$A$5:$AY$2917,30,FALSE),0) -> 0 | AG91: =IFERROR(VLOOKUP($A91,Filtro!$A$5:$AY$2917,31,FALSE),0) -> 0 | AH91: =IFERROR(VLOOKUP($A91,Filtro!$A$5:$AY$2917,32,FALSE),0) -> 0 | AI91: =IFERROR(VLOOKUP($A91,Filtro!$A$5:$AY$2917,33,FALSE),0) -> 0 | AJ91: =IFERROR(VLOOKUP($A91,Filtro!$A$5:$AY$2917,34,FALSE),0) -> 0 | AK91: =IFERROR(VLOOKUP($A91,Filtro!$A$5:$AY$2917,35,FALSE),0) -> 0 | AL91: 7,530 | AM91: 143,070
A92: 01014341 | B92: 0108307 | C92: Teleconsulta Médica de Especialidad en Medicina Interna | D92: =IFERROR(VLOOKUP($A92,Filtro!$A$5:$AY$2917,2,FALSE),0) -> 1635 | E92: =IFERROR(VLOOKUP($A92,Filtro!$A$5:$AY$2917,3,FALSE),0) -> 1622 | F92: =IFERROR(VLOOKUP($A92,Filtro!$A$5:$AY$2917,4,FALSE),0) -> 1622 | G92: =IFERROR(VLOOKUP($A92,Filtro!$A$5:$AY$2917,5,FALSE),0) -> 0 | H92: =IFERROR(VLOOKUP($A92,Filtro!$A$5:$AY$2917,6,FALSE),0) -> 13 | I92: =IFERROR(VLOOKUP($A92,Filtro!$A$5:$AY$2917,7,FALSE),0) -> 0 | J92: =IFERROR(VLOOKUP($A92,Filtro!$A$5:$AY$2917,8,FALSE),0) -> 0 | K92: =IFERROR(VLOOKUP($A92,Filtro!$A$5:$AY$2917,9,FALSE),0) -> 0 | L92: =IFERROR(VLOOKUP($A92,Filtro!$A$5:$AY$2917,10,FALSE),0) -> 0 | M92: =IFERROR(VLOOKUP($A92,Filtro!$A$5:$AY$2917,11,FALSE),0) -> 0 | N92: =IFERROR(VLOOKUP($A92,Filtro!$A$5:$AY$2917,12,FALSE),0) -> 0 | O92: =IFERROR(VLOOKUP($A92,Filtro!$A$5:$AY$2917,13,FALSE),0) -> 0 | P92: =IFERROR(VLOOKUP($A92,Filtro!$A$5:$AY$2917,14,FALSE),0) -> 0 | Q92: =IFERROR(VLOOKUP($A92,Filtro!$A$5:$AY$2917,15,FALSE),0) -> 0 | R92: =IFERROR(VLOOKUP($A92,Filtro!$A$5:$AY$2917,16,FALSE),0) -> 0 | S92: =IFERROR(VLOOKUP($A92,Filtro!$A$5:$AY$2917,17,FALSE),0) -> 0 | T92: =IFERROR(VLOOKUP($A92,Filtro!$A$5:$AY$2917,18,FALSE),0) -> 0 | U92: =IFERROR(VLOOKUP($A92,Filtro!$A$5:$AY$2917,19,FALSE),0) -> 0 | V92: =IFERROR(VLOOKUP($A92,Filtro!$A$5:$AY$2917,20,FALSE),0) -> 0 | W92: =IFERROR(VLOOKUP($A92,Filtro!$A$5:$AY$2917,21,FALSE),0) -> 0 | X92: =IFERROR(VLOOKUP($A92,Filtro!$A$5:$AY$2917,22,FALSE),0) -> 0 | Y92: =IFERROR(VLOOKUP($A92,Filtro!$A$5:$AY$2917,23,FALSE),0) -> 0 | Z92: =IFERROR(VLOOKUP($A92,Filtro!$A$5:$AY$2917,24,FALSE),0) -> 0 | AA92: =IFERROR(VLOOKUP($A92,Filtro!$A$5:$AY$2917,25,FALSE),0) -> 0 | AB92: =IFERROR(VLOOKUP($A92,Filtro!$A$5:$AY$2917,26,FALSE),0) -> 0 | AC92: =IFERROR(VLOOKUP($A92,Filtro!$A$5:$AY$2917,27,FALSE),0) -> 1635 | AD92: =IFERROR(VLOOKUP($A92,Filtro!$A$5:$AY$2917,28,FALSE),0) -> 0 | AE92: =IFERROR(VLOOKUP($A92,Filtro!$A$5:$AY$2917,29,FALSE),0) -> 0 | AF92: =IFERROR(VLOOKUP($A92,Filtro!$A$5:$AY$2917,30,FALSE),0) -> 0 | AG92: =IFERROR(VLOOKUP($A92,Filtro!$A$5:$AY$2917,31,FALSE),0) -> 0 | AH92: =IFERROR(VLOOKUP($A92,Filtro!$A$5:$AY$2917,32,FALSE),0) -> 0 | AI92: =IFERROR(VLOOKUP($A92,Filtro!$A$5:$AY$2917,33,FALSE),0) -> 0 | AJ92: =IFERROR(VLOOKUP($A92,Filtro!$A$5:$AY$2917,34,FALSE),0) -> 0 | AK92: =IFERROR(VLOOKUP($A92,Filtro!$A$5:$AY$2917,35,FALSE),0) -> 0 | AL92: 7,530 | AM92: 12,213,660
A93: 01014342 | B93: 0108308 | C93: Teleconsulta Médica de Especialidad en Obstetricia y Ginecología | D93: =IFERROR(VLOOKUP($A93,Filtro!$A$5:$AY$2917,2,FALSE),0) -> 6 | E93: =IFERROR(VLOOKUP($A93,Filtro!$A$5:$AY$2917,3,FALSE),0) -> 6 | F93: =IFERROR(VLOOKUP($A93,Filtro!$A$5:$AY$2917,4,FALSE),0) -> 6 | G93: =IFERROR(VLOOKUP($A93,Filtro!$A$5:$AY$2917,5,FALSE),0) -> 0 | H93: =IFERROR(VLOOKUP($A93,Filtro!$A$5:$AY$2917,6,FALSE),0) -> 0 | I93: =IFERROR(VLOOKUP($A93,Filtro!$A$5:$AY$2917,7,FALSE),0) -> 0 | J93: =IFERROR(VLOOKUP($A93,Filtro!$A$5:$AY$2917,8,FALSE),0) -> 0 | K93: =IFERROR(VLOOKUP($A93,Filtro!$A$5:$AY$2917,9,FALSE),0) -> 0 | L93: =IFERROR(VLOOKUP($A93,Filtro!$A$5:$AY$2917,10,FALSE),0) -> 0 | M93: =IFERROR(VLOOKUP($A93,Filtro!$A$5:$AY$2917,11,FALSE),0) -> 0 | N93: =IFERROR(VLOOKUP($A93,Filtro!$A$5:$AY$2917,12,FALSE),0) -> 0 | O93: =IFERROR(VLOOKUP($A93,Filtro!$A$5:$AY$2917,13,FALSE),0) -> 0 | P93: =IFERROR(VLOOKUP($A93,Filtro!$A$5:$AY$2917,14,FALSE),0) -> 0 | Q93: =IFERROR(VLOOKUP($A93,Filtro!$A$5:$AY$2917,15,FALSE),0) -> 0 | R93: =IFERROR(VLOOKUP($A93,Filtro!$A$5:$AY$2917,16,FALSE),0) -> 0 | S93: =IFERROR(VLOOKUP($A93,Filtro!$A$5:$AY$2917,17,FALSE),0) -> 0 | T93: =IFERROR(VLOOKUP($A93,Filtro!$A$5:$AY$2917,18,FALSE),0) -> 0 | U93: =IFERROR(VLOOKUP($A93,Filtro!$A$5:$AY$2917,19,FALSE),0) -> 0 | V93: =IFERROR(VLOOKUP($A93,Filtro!$A$5:$AY$2917,20,FALSE),0) -> 0 | W93: =IFERROR(VLOOKUP($A93,Filtro!$A$5:$AY$2917,21,FALSE),0) -> 0 | X93: =IFERROR(VLOOKUP($A93,Filtro!$A$5:$AY$2917,22,FALSE),0) -> 0 | Y93: =IFERROR(VLOOKUP($A93,Filtro!$A$5:$AY$2917,23,FALSE),0) -> 0 | Z93: =IFERROR(VLOOKUP($A93,Filtro!$A$5:$AY$2917,24,FALSE),0) -> 0 | AA93: =IFERROR(VLOOKUP($A93,Filtro!$A$5:$AY$2917,25,FALSE),0) -> 0 | AB93: =IFERROR(VLOOKUP($A93,Filtro!$A$5:$AY$2917,26,FALSE),0) -> 0 | AC93: =IFERROR(VLOOKUP($A93,Filtro!$A$5:$AY$2917,27,FALSE),0) -> 6 | AD93: =IFERROR(VLOOKUP($A93,Filtro!$A$5:$AY$2917,28,FALSE),0) -> 0 | AE93: =IFERROR(VLOOKUP($A93,Filtro!$A$5:$AY$2917,29,FALSE),0) -> 0 | AF93: =IFERROR(VLOOKUP($A93,Filtro!$A$5:$AY$2917,30,FALSE),0) -> 0 | AG93: =IFERROR(VLOOKUP($A93,Filtro!$A$5:$AY$2917,31,FALSE),0) -> 0 | AH93: =IFERROR(VLOOKUP($A93,Filtro!$A$5:$AY$2917,32,FALSE),0) -> 0 | AI93: =IFERROR(VLOOKUP($A93,Filtro!$A$5:$AY$2917,33,FALSE),0) -> 0 | AJ93: =IFERROR(VLOOKUP($A93,Filtro!$A$5:$AY$2917,34,FALSE),0) -> 0 | AK93: =IFERROR(VLOOKUP($A93,Filtro!$A$5:$AY$2917,35,FALSE),0) -> 0 | AL93: 7,530 | AM93: 45,180
A94: 01014343 | B94: 0108309 | C94: Teleconsulta Médica de Especialidad en Pediatría | D94: =IFERROR(VLOOKUP($A94,Filtro!$A$5:$AY$2917,2,FALSE),0) -> 302 | E94: =IFERROR(VLOOKUP($A94,Filtro!$A$5:$AY$2917,3,FALSE),0) -> 298 | F94: =IFERROR(VLOOKUP($A94,Filtro!$A$5:$AY$2917,4,FALSE),0) -> 298 | G94: =IFERROR(VLOOKUP($A94,Filtro!$A$5:$AY$2917,5,FALSE),0) -> 0 | H94: =IFERROR(VLOOKUP($A94,Filtro!$A$5:$AY$2917,6,FALSE),0) -> 4 | I94: =IFERROR(VLOOKUP($A94,Filtro!$A$5:$AY$2917,7,FALSE),0) -> 0 | J94: =IFERROR(VLOOKUP($A94,Filtro!$A$5:$AY$2917,8,FALSE),0) -> 0 | K94: =IFERROR(VLOOKUP($A94,Filtro!$A$5:$AY$2917,9,FALSE),0) -> 0 | L94: =IFERROR(VLOOKUP($A94,Filtro!$A$5:$AY$2917,10,FALSE),0) -> 0 | M94: =IFERROR(VLOOKUP($A94,Filtro!$A$5:$AY$2917,11,FALSE),0) -> 0 | N94: =IFERROR(VLOOKUP($A94,Filtro!$A$5:$AY$2917,12,FALSE),0) -> 0 | O94: =IFERROR(VLOOKUP($A94,Filtro!$A$5:$AY$2917,13,FALSE),0) -> 0 | P94: =IFERROR(VLOOKUP($A94,Filtro!$A$5:$AY$2917,14,FALSE),0) -> 0 | Q94: =IFERROR(VLOOKUP($A94,Filtro!$A$5:$AY$2917,15,FALSE),0) -> 0 | R94: =IFERROR(VLOOKUP($A94,Filtro!$A$5:$AY$2917,16,FALSE),0) -> 0 | S94: =IFERROR(VLOOKUP($A94,Filtro!$A$5:$AY$2917,17,FALSE),0) -> 0 | T94: =IFERROR(VLOOKUP($A94,Filtro!$A$5:$AY$2917,18,FALSE),0) -> 0 | U94: =IFERROR(VLOOKUP($A94,Filtro!$A$5:$AY$2917,19,FALSE),0) -> 0 | V94: =IFERROR(VLOOKUP($A94,Filtro!$A$5:$AY$2917,20,FALSE),0) -> 0 | W94: =IFERROR(VLOOKUP($A94,Filtro!$A$5:$AY$2917,21,FALSE),0) -> 0 | X94: =IFERROR(VLOOKUP($A94,Filtro!$A$5:$AY$2917,22,FALSE),0) -> 0 | Y94: =IFERROR(VLOOKUP($A94,Filtro!$A$5:$AY$2917,23,FALSE),0) -> 0 | Z94: =IFERROR(VLOOKUP($A94,Filtro!$A$5:$AY$2917,24,FALSE),0) -> 0 | AA94: =IFERROR(VLOOKUP($A94,Filtro!$A$5:$AY$2917,25,FALSE),0) -> 0 | AB94: =IFERROR(VLOOKUP($A94,Filtro!$A$5:$AY$2917,26,FALSE),0) -> 0 | AC94: =IFERROR(VLOOKUP($A94,Filtro!$A$5:$AY$2917,27,FALSE),0) -> 302 | AD94: =IFERROR(VLOOKUP($A94,Filtro!$A$5:$AY$2917,28,FALSE),0) -> 0 | AE94: =IFERROR(VLOOKUP($A94,Filtro!$A$5:$AY$2917,29,FALSE),0) -> 0 | AF94: =IFERROR(VLOOKUP($A94,Filtro!$A$5:$AY$2917,30,FALSE),0) -> 0 | AG94: =IFERROR(VLOOKUP($A94,Filtro!$A$5:$AY$2917,31,FALSE),0) -> 0 | AH94: =IFERROR(VLOOKUP($A94,Filtro!$A$5:$AY$2917,32,FALSE),0) -> 0 | AI94: =IFERROR(VLOOKUP($A94,Filtro!$A$5:$AY$2917,33,FALSE),0) -> 0 | AJ94: =IFERROR(VLOOKUP($A94,Filtro!$A$5:$AY$2917,34,FALSE),0) -> 0 | AK94: =IFERROR(VLOOKUP($A94,Filtro!$A$5:$AY$2917,35,FALSE),0) -> 0 | AL94: 7,530 | AM94: 2,243,940
A95: 01014344 | B95: 0108310 | C95: Teleconsulta Médica de Especialidad en Traumatología y Ortopedia | D95: =IFERROR(VLOOKUP($A95,Filtro!$A$5:$AY$2917,2,FALSE),0) -> 0 | E95: =IFERROR(VLOOKUP($A95,Filtro!$A$5:$AY$2917,3,FALSE),0) -> 0 | F95: =IFERROR(VLOOKUP($A95,Filtro!$A$5:$AY$2917,4,FALSE),0) -> 0 | G95: =IFERROR(VLOOKUP($A95,Filtro!$A$5:$AY$2917,5,FALSE),0) -> 0 | H95: =IFERROR(VLOOKUP($A95,Filtro!$A$5:$AY$2917,6,FALSE),0) -> 0 | I95: =IFERROR(VLOOKUP($A95,Filtro!$A$5:$AY$2917,7,FALSE),0) -> 0 | J95: =IFERROR(VLOOKUP($A95,Filtro!$A$5:$AY$2917,8,FALSE),0) -> 0 | K95: =IFERROR(VLOOKUP($A95,Filtro!$A$5:$AY$2917,9,FALSE),0) -> 0 | L95: =IFERROR(VLOOKUP($A95,Filtro!$A$5:$AY$2917,10,FALSE),0) -> 0 | M95: =IFERROR(VLOOKUP($A95,Filtro!$A$5:$AY$2917,11,FALSE),0) -> 0 | N95: =IFERROR(VLOOKUP($A95,Filtro!$A$5:$AY$2917,12,FALSE),0) -> 0 | O95: =IFERROR(VLOOKUP($A95,Filtro!$A$5:$AY$2917,13,FALSE),0) -> 0 | P95: =IFERROR(VLOOKUP($A95,Filtro!$A$5:$AY$2917,14,FALSE),0) -> 0 | Q95: =IFERROR(VLOOKUP($A95,Filtro!$A$5:$AY$2917,15,FALSE),0) -> 0 | R95: =IFERROR(VLOOKUP($A95,Filtro!$A$5:$AY$2917,16,FALSE),0) -> 0 | S95: =IFERROR(VLOOKUP($A95,Filtro!$A$5:$AY$2917,17,FALSE),0) -> 0 | T95: =IFERROR(VLOOKUP($A95,Filtro!$A$5:$AY$2917,18,FALSE),0) -> 0 | U95: =IFERROR(VLOOKUP($A95,Filtro!$A$5:$AY$2917,19,FALSE),0) -> 0 | V95: =IFERROR(VLOOKUP($A95,Filtro!$A$5:$AY$2917,20,FALSE),0) -> 0 | W95: =IFERROR(VLOOKUP($A95,Filtro!$A$5:$AY$2917,21,FALSE),0) -> 0 | X95: =IFERROR(VLOOKUP($A95,Filtro!$A$5:$AY$2917,22,FALSE),0) -> 0 | Y95: =IFERROR(VLOOKUP($A95,Filtro!$A$5:$AY$2917,23,FALSE),0) -> 0 | Z95: =IFERROR(VLOOKUP($A95,Filtro!$A$5:$AY$2917,24,FALSE),0) -> 0 | AA95: =IFERROR(VLOOKUP($A95,Filtro!$A$5:$AY$2917,25,FALSE),0) -> 0 | AB95: =IFERROR(VLOOKUP($A95,Filtro!$A$5:$AY$2917,26,FALSE),0) -> 0 | AC95: =IFERROR(VLOOKUP($A95,Filtro!$A$5:$AY$2917,27,FALSE),0) -> 0 | AD95: =IFERROR(VLOOKUP($A95,Filtro!$A$5:$AY$2917,28,FALSE),0) -> 0 | AE95: =IFERROR(VLOOKUP($A95,Filtro!$A$5:$AY$2917,29,FALSE),0) -> 0 | AF95: =IFERROR(VLOOKUP($A95,Filtro!$A$5:$AY$2917,30,FALSE),0) -> 0 | AG95: =IFERROR(VLOOKUP($A95,Filtro!$A$5:$AY$2917,31,FALSE),0) -> 0 | AH95: =IFERROR(VLOOKUP($A95,Filtro!$A$5:$AY$2917,32,FALSE),0) -> 0 | AI95: =IFERROR(VLOOKUP($A95,Filtro!$A$5:$AY$2917,33,FALSE),0) -> 0 | AJ95: =IFERROR(VLOOKUP($A95,Filtro!$A$5:$AY$2917,34,FALSE),0) -> 0 | AK95: =IFERROR(VLOOKUP($A95,Filtro!$A$5:$AY$2917,35,FALSE),0) -> 0 | AL95: 7,530 | AM95: 0
A96: 01014345 | B96: 0108311 | C96: Teleconsulta Médica de Especialidad en Urología | D96: =IFERROR(VLOOKUP($A96,Filtro!$A$5:$AY$2917,2,FALSE),0) -> 1 | E96: =IFERROR(VLOOKUP($A96,Filtro!$A$5:$AY$2917,3,FALSE),0) -> 1 | F96: =IFERROR(VLOOKUP($A96,Filtro!$A$5:$AY$2917,4,FALSE),0) -> 1 | G96: =IFERROR(VLOOKUP($A96,Filtro!$A$5:$AY$2917,5,FALSE),0) -> 0 | H96: =IFERROR(VLOOKUP($A96,Filtro!$A$5:$AY$2917,6,FALSE),0) -> 0 | I96: =IFERROR(VLOOKUP($A96,Filtro!$A$5:$AY$2917,7,FALSE),0) -> 0 | J96: =IFERROR(VLOOKUP($A96,Filtro!$A$5:$AY$2917,8,FALSE),0) -> 0 | K96: =IFERROR(VLOOKUP($A96,Filtro!$A$5:$AY$2917,9,FALSE),0) -> 0 | L96: =IFERROR(VLOOKUP($A96,Filtro!$A$5:$AY$2917,10,FALSE),0) -> 0 | M96: =IFERROR(VLOOKUP($A96,Filtro!$A$5:$AY$2917,11,FALSE),0) -> 0 | N96: =IFERROR(VLOOKUP($A96,Filtro!$A$5:$AY$2917,12,FALSE),0) -> 0 | O96: =IFERROR(VLOOKUP($A96,Filtro!$A$5:$AY$2917,13,FALSE),0) -> 0 | P96: =IFERROR(VLOOKUP($A96,Filtro!$A$5:$AY$2917,14,FALSE),0) -> 0 | Q96: =IFERROR(VLOOKUP($A96,Filtro!$A$5:$AY$2917,15,FALSE),0) -> 0 | R96: =IFERROR(VLOOKUP($A96,Filtro!$A$5:$AY$2917,16,FALSE),0) -> 0 | S96: =IFERROR(VLOOKUP($A96,Filtro!$A$5:$AY$2917,17,FALSE),0) -> 0 | T96: =IFERROR(VLOOKUP($A96,Filtro!$A$5:$AY$2917,18,FALSE),0) -> 0 | U96: =IFERROR(VLOOKUP($A96,Filtro!$A$5:$AY$2917,19,FALSE),0) -> 0 | V96: =IFERROR(VLOOKUP($A96,Filtro!$A$5:$AY$2917,20,FALSE),0) -> 0 | W96: =IFERROR(VLOOKUP($A96,Filtro!$A$5:$AY$2917,21,FALSE),0) -> 0 | X96: =IFERROR(VLOOKUP($A96,Filtro!$A$5:$AY$2917,22,FALSE),0) -> 0 | Y96: =IFERROR(VLOOKUP($A96,Filtro!$A$5:$AY$2917,23,FALSE),0) -> 0 | Z96: =IFERROR(VLOOKUP($A96,Filtro!$A$5:$AY$2917,24,FALSE),0) -> 0 | AA96: =IFERROR(VLOOKUP($A96,Filtro!$A$5:$AY$2917,25,FALSE),0) -> 0 | AB96: =IFERROR(VLOOKUP($A96,Filtro!$A$5:$AY$2917,26,FALSE),0) -> 0 | AC96: =IFERROR(VLOOKUP($A96,Filtro!$A$5:$AY$2917,27,FALSE),0) -> 1 | AD96: =IFERROR(VLOOKUP($A96,Filtro!$A$5:$AY$2917,28,FALSE),0) -> 0 | AE96: =IFERROR(VLOOKUP($A96,Filtro!$A$5:$AY$2917,29,FALSE),0) -> 0 | AF96: =IFERROR(VLOOKUP($A96,Filtro!$A$5:$AY$2917,30,FALSE),0) -> 0 | AG96: =IFERROR(VLOOKUP($A96,Filtro!$A$5:$AY$2917,31,FALSE),0) -> 0 | AH96: =IFERROR(VLOOKUP($A96,Filtro!$A$5:$AY$2917,32,FALSE),0) -> 0 | AI96: =IFERROR(VLOOKUP($A96,Filtro!$A$5:$AY$2917,33,FALSE),0) -> 0 | AJ96: =IFERROR(VLOOKUP($A96,Filtro!$A$5:$AY$2917,34,FALSE),0) -> 0 | AK96: =IFERROR(VLOOKUP($A96,Filtro!$A$5:$AY$2917,35,FALSE),0) -> 0 | AL96: 7,530 | AM96: 7,530
A97: 01014346 | B97: 0108319 | C97: Teleconsulta Médica de Especialidad en Coloproctología | D97: =IFERROR(VLOOKUP($A97,Filtro!$A$5:$AY$2917,2,FALSE),0) -> 0 | E97: =IFERROR(VLOOKUP($A97,Filtro!$A$5:$AY$2917,3,FALSE),0) -> 0 | F97: =IFERROR(VLOOKUP($A97,Filtro!$A$5:$AY$2917,4,FALSE),0) -> 0 | G97: =IFERROR(VLOOKUP($A97,Filtro!$A$5:$AY$2917,5,FALSE),0) -> 0 | H97: =IFERROR(VLOOKUP($A97,Filtro!$A$5:$AY$2917,6,FALSE),0) -> 0 | I97: =IFERROR(VLOOKUP($A97,Filtro!$A$5:$AY$2917,7,FALSE),0) -> 0 | J97: =IFERROR(VLOOKUP($A97,Filtro!$A$5:$AY$2917,8,FALSE),0) -> 0 | K97: =IFERROR(VLOOKUP($A97,Filtro!$A$5:$AY$2917,9,FALSE),0) -> 0 | L97: =IFERROR(VLOOKUP($A97,Filtro!$A$5:$AY$2917,10,FALSE),0) -> 0 | M97: =IFERROR(VLOOKUP($A97,Filtro!$A$5:$AY$2917,11,FALSE),0) -> 0 | N97: =IFERROR(VLOOKUP($A97,Filtro!$A$5:$AY$2917,12,FALSE),0) -> 0 | O97: =IFERROR(VLOOKUP($A97,Filtro!$A$5:$AY$2917,13,FALSE),0) -> 0 | P97: =IFERROR(VLOOKUP($A97,Filtro!$A$5:$AY$2917,14,FALSE),0) -> 0 | Q97: =IFERROR(VLOOKUP($A97,Filtro!$A$5:$AY$2917,15,FALSE),0) -> 0 | R97: =IFERROR(VLOOKUP($A97,Filtro!$A$5:$AY$2917,16,FALSE),0) -> 0 | S97: =IFERROR(VLOOKUP($A97,Filtro!$A$5:$AY$2917,17,FALSE),0) -> 0 | T97: =IFERROR(VLOOKUP($A97,Filtro!$A$5:$AY$2917,18,FALSE),0) -> 0 | U97: =IFERROR(VLOOKUP($A97,Filtro!$A$5:$AY$2917,19,FALSE),0) -> 0 | V97: =IFERROR(VLOOKUP($A97,Filtro!$A$5:$AY$2917,20,FALSE),0) -> 0 | W97: =IFERROR(VLOOKUP($A97,Filtro!$A$5:$AY$2917,21,FALSE),0) -> 0 | X97: =IFERROR(VLOOKUP($A97,Filtro!$A$5:$AY$2917,22,FALSE),0) -> 0 | Y97: =IFERROR(VLOOKUP($A97,Filtro!$A$5:$AY$2917,23,FALSE),0) -> 0 | Z97: =IFERROR(VLOOKUP($A97,Filtro!$A$5:$AY$2917,24,FALSE),0) -> 0 | AA97: =IFERROR(VLOOKUP($A97,Filtro!$A$5:$AY$2917,25,FALSE),0) -> 0 | AB97: =IFERROR(VLOOKUP($A97,Filtro!$A$5:$AY$2917,26,FALSE),0) -> 0 | AC97: =IFERROR(VLOOKUP($A97,Filtro!$A$5:$AY$2917,27,FALSE),0) -> 0 | AD97: =IFERROR(VLOOKUP($A97,Filtro!$A$5:$AY$2917,28,FALSE),0) -> 0 | AE97: =IFERROR(VLOOKUP($A97,Filtro!$A$5:$AY$2917,29,FALSE),0) -> 0 | AF97: =IFERROR(VLOOKUP($A97,Filtro!$A$5:$AY$2917,30,FALSE),0) -> 0 | AG97: =IFERROR(VLOOKUP($A97,Filtro!$A$5:$AY$2917,31,FALSE),0) -> 0 | AH97: =IFERROR(VLOOKUP($A97,Filtro!$A$5:$AY$2917,32,FALSE),0) -> 0 | AI97: =IFERROR(VLOOKUP($A97,Filtro!$A$5:$AY$2917,33,FALSE),0) -> 0 | AJ97: =IFERROR(VLOOKUP($A97,Filtro!$A$5:$AY$2917,34,FALSE),0) -> 0 | AK97: =IFERROR(VLOOKUP($A97,Filtro!$A$5:$AY$2917,35,FALSE),0) -> 0 | AL97: 7,530 | AM97: 0
A98: 01014347 | B98: 0108320 | C98: Teleconsulta Médica de Especialidad en Diabetología | D98: =IFERROR(VLOOKUP($A98,Filtro!$A$5:$AY$2917,2,FALSE),0) -> 3 | E98: =IFERROR(VLOOKUP($A98,Filtro!$A$5:$AY$2917,3,FALSE),0) -> 3 | F98: =IFERROR(VLOOKUP($A98,Filtro!$A$5:$AY$2917,4,FALSE),0) -> 3 | G98: =IFERROR(VLOOKUP($A98,Filtro!$A$5:$AY$2917,5,FALSE),0) -> 0 | H98: =IFERROR(VLOOKUP($A98,Filtro!$A$5:$AY$2917,6,FALSE),0) -> 0 | I98: =IFERROR(VLOOKUP($A98,Filtro!$A$5:$AY$2917,7,FALSE),0) -> 0 | J98: =IFERROR(VLOOKUP($A98,Filtro!$A$5:$AY$2917,8,FALSE),0) -> 0 | K98: =IFERROR(VLOOKUP($A98,Filtro!$A$5:$AY$2917,9,FALSE),0) -> 0 | L98: =IFERROR(VLOOKUP($A98,Filtro!$A$5:$AY$2917,10,FALSE),0) -> 0 | M98: =IFERROR(VLOOKUP($A98,Filtro!$A$5:$AY$2917,11,FALSE),0) -> 0 | N98: =IFERROR(VLOOKUP($A98,Filtro!$A$5:$AY$2917,12,FALSE),0) -> 0 | O98: =IFERROR(VLOOKUP($A98,Filtro!$A$5:$AY$2917,13,FALSE),0) -> 0 | P98: =IFERROR(VLOOKUP($A98,Filtro!$A$5:$AY$2917,14,FALSE),0) -> 0 | Q98: =IFERROR(VLOOKUP($A98,Filtro!$A$5:$AY$2917,15,FALSE),0) -> 0 | R98: =IFERROR(VLOOKUP($A98,Filtro!$A$5:$AY$2917,16,FALSE),0) -> 0 | S98: =IFERROR(VLOOKUP($A98,Filtro!$A$5:$AY$2917,17,FALSE),0) -> 0 | T98: =IFERROR(VLOOKUP($A98,Filtro!$A$5:$AY$2917,18,FALSE),0) -> 0 | U98: =IFERROR(VLOOKUP($A98,Filtro!$A$5:$AY$2917,19,FALSE),0) -> 0 | V98: =IFERROR(VLOOKUP($A98,Filtro!$A$5:$AY$2917,20,FALSE),0) -> 0 | W98: =IFERROR(VLOOKUP($A98,Filtro!$A$5:$AY$2917,21,FALSE),0) -> 0 | X98: =IFERROR(VLOOKUP($A98,Filtro!$A$5:$AY$2917,22,FALSE),0) -> 0 | Y98: =IFERROR(VLOOKUP($A98,Filtro!$A$5:$AY$2917,23,FALSE),0) -> 0 | Z98: =IFERROR(VLOOKUP($A98,Filtro!$A$5:$AY$2917,24,FALSE),0) -> 0 | AA98: =IFERROR(VLOOKUP($A98,Filtro!$A$5:$AY$2917,25,FALSE),0) -> 0 | AB98: =IFERROR(VLOOKUP($A98,Filtro!$A$5:$AY$2917,26,FALSE),0) -> 0 | AC98: =IFERROR(VLOOKUP($A98,Filtro!$A$5:$AY$2917,27,FALSE),0) -> 3 | AD98: =IFERROR(VLOOKUP($A98,Filtro!$A$5:$AY$2917,28,FALSE),0) -> 0 | AE98: =IFERROR(VLOOKUP($A98,Filtro!$A$5:$AY$2917,29,FALSE),0) -> 0 | AF98: =IFERROR(VLOOKUP($A98,Filtro!$A$5:$AY$2917,30,FALSE),0) -> 0 | AG98: =IFERROR(VLOOKUP($A98,Filtro!$A$5:$AY$2917,31,FALSE),0) -> 0 | AH98: =IFERROR(VLOOKUP($A98,Filtro!$A$5:$AY$2917,32,FALSE),0) -> 0 | AI98: =IFERROR(VLOOKUP($A98,Filtro!$A$5:$AY$2917,33,FALSE),0) -> 0 | AJ98: =IFERROR(VLOOKUP($A98,Filtro!$A$5:$AY$2917,34,FALSE),0) -> 0 | AK98: =IFERROR(VLOOKUP($A98,Filtro!$A$5:$AY$2917,35,FALSE),0) -> 0 | AL98: 7,530 | AM98: 22,590
A99: 01014348 | B99: 0108321 | C99: Teleconsulta Médica de Especialidad en Enfermedades Respiratorias Adulto | D99: =IFERROR(VLOOKUP($A99,Filtro!$A$5:$AY$2917,2,FALSE),0) -> 36 | E99: =IFERROR(VLOOKUP($A99,Filtro!$A$5:$AY$2917,3,FALSE),0) -> 36 | F99: =IFERROR(VLOOKUP($A99,Filtro!$A$5:$AY$2917,4,FALSE),0) -> 36 | G99: =IFERROR(VLOOKUP($A99,Filtro!$A$5:$AY$2917,5,FALSE),0) -> 0 | H99: =IFERROR(VLOOKUP($A99,Filtro!$A$5:$AY$2917,6,FALSE),0) -> 0 | I99: =IFERROR(VLOOKUP($A99,Filtro!$A$5:$AY$2917,7,FALSE),0) -> 0 | J99: =IFERROR(VLOOKUP($A99,Filtro!$A$5:$AY$2917,8,FALSE),0) -> 0 | K99: =IFERROR(VLOOKUP($A99,Filtro!$A$5:$AY$2917,9,FALSE),0) -> 0 | L99: =IFERROR(VLOOKUP($A99,Filtro!$A$5:$AY$2917,10,FALSE),0) -> 0 | M99: =IFERROR(VLOOKUP($A99,Filtro!$A$5:$AY$2917,11,FALSE),0) -> 0 | N99: =IFERROR(VLOOKUP($A99,Filtro!$A$5:$AY$2917,12,FALSE),0) -> 0 | O99: =IFERROR(VLOOKUP($A99,Filtro!$A$5:$AY$2917,13,FALSE),0) -> 0 | P99: =IFERROR(VLOOKUP($A99,Filtro!$A$5:$AY$2917,14,FALSE),0) -> 0 | Q99: =IFERROR(VLOOKUP($A99,Filtro!$A$5:$AY$2917,15,FALSE),0) -> 0 | R99: =IFERROR(VLOOKUP($A99,Filtro!$A$5:$AY$2917,16,FALSE),0) -> 0 | S99: =IFERROR(VLOOKUP($A99,Filtro!$A$5:$AY$2917,17,FALSE),0) -> 0 | T99: =IFERROR(VLOOKUP($A99,Filtro!$A$5:$AY$2917,18,FALSE),0) -> 0 | U99: =IFERROR(VLOOKUP($A99,Filtro!$A$5:$AY$2917,19,FALSE),0) -> 0 | V99: =IFERROR(VLOOKUP($A99,Filtro!$A$5:$AY$2917,20,FALSE),0) -> 0 | W99: =IFERROR(VLOOKUP($A99,Filtro!$A$5:$AY$2917,21,FALSE),0) -> 0 | X99: =IFERROR(VLOOKUP($A99,Filtro!$A$5:$AY$2917,22,FALSE),0) -> 0 | Y99: =IFERROR(VLOOKUP($A99,Filtro!$A$5:$AY$2917,23,FALSE),0) -> 0 | Z99: =IFERROR(VLOOKUP($A99,Filtro!$A$5:$AY$2917,24,FALSE),0) -> 0 | AA99: =IFERROR(VLOOKUP($A99,Filtro!$A$5:$AY$2917,25,FALSE),0) -> 0 | AB99: =IFERROR(VLOOKUP($A99,Filtro!$A$5:$AY$2917,26,FALSE),0) -> 0 | AC99: =IFERROR(VLOOKUP($A99,Filtro!$A$5:$AY$2917,27,FALSE),0) -> 36 | AD99: =IFERROR(VLOOKUP($A99,Filtro!$A$5:$AY$2917,28,FALSE),0) -> 0 | AE99: =IFERROR(VLOOKUP($A99,Filtro!$A$5:$AY$2917,29,FALSE),0) -> 0 | AF99: =IFERROR(VLOOKUP($A99,Filtro!$A$5:$AY$2917,30,FALSE),0) -> 0 | AG99: =IFERROR(VLOOKUP($A99,Filtro!$A$5:$AY$2917,31,FALSE),0) -> 0 | AH99: =IFERROR(VLOOKUP($A99,Filtro!$A$5:$AY$2917,32,FALSE),0) -> 0 | AI99: =IFERROR(VLOOKUP($A99,Filtro!$A$5:$AY$2917,33,FALSE),0) -> 0 | AJ99: =IFERROR(VLOOKUP($A99,Filtro!$A$5:$AY$2917,34,FALSE),0) -> 0 | AK99: =IFERROR(VLOOKUP($A99,Filtro!$A$5:$AY$2917,35,FALSE),0) -> 0 | AL99: 7,530 | AM99: 271,080
A100: 01014349 | B100: 0108322 | C100: Teleconsulta Médica de Especialidad en Enfermedades Respiratorias Pediátricas | D100: =IFERROR(VLOOKUP($A100,Filtro!$A$5:$AY$2917,2,FALSE),0) -> 101 | E100: =IFERROR(VLOOKUP($A100,Filtro!$A$5:$AY$2917,3,FALSE),0) -> 101 | F100: =IFERROR(VLOOKUP($A100,Filtro!$A$5:$AY$2917,4,FALSE),0) -> 101 | G100: =IFERROR(VLOOKUP($A100,Filtro!$A$5:$AY$2917,5,FALSE),0) -> 0 | H100: =IFERROR(VLOOKUP($A100,Filtro!$A$5:$AY$2917,6,FALSE),0) -> 0 | I100: =IFERROR(VLOOKUP($A100,Filtro!$A$5:$AY$2917,7,FALSE),0) -> 0 | J100: =IFERROR(VLOOKUP($A100,Filtro!$A$5:$AY$2917,8,FALSE),0) -> 0 | K100: =IFERROR(VLOOKUP($A100,Filtro!$A$5:$AY$2917,9,FALSE),0) -> 0 | L100: =IFERROR(VLOOKUP($A100,Filtro!$A$5:$AY$2917,10,FALSE),0) -> 0 | M100: =IFERROR(VLOOKUP($A100,Filtro!$A$5:$AY$2917,11,FALSE),0) -> 0 | N100: =IFERROR(VLOOKUP($A100,Filtro!$A$5:$AY$2917,12,FALSE),0) -> 0 | O100: =IFERROR(VLOOKUP($A100,Filtro!$A$5:$AY$2917,13,FALSE),0) -> 0 | P100: =IFERROR(VLOOKUP($A100,Filtro!$A$5:$AY$2917,14,FALSE),0) -> 0 | Q100: =IFERROR(VLOOKUP($A100,Filtro!$A$5:$AY$2917,15,FALSE),0) -> 0 | R100: =IFERROR(VLOOKUP($A100,Filtro!$A$5:$AY$2917,16,FALSE),0) -> 0 | S100: =IFERROR(VLOOKUP($A100,Filtro!$A$5:$AY$2917,17,FALSE),0) -> 0 | T100: =IFERROR(VLOOKUP($A100,Filtro!$A$5:$AY$2917,18,FALSE),0) -> 0 | U100: =IFERROR(VLOOKUP($A100,Filtro!$A$5:$AY$2917,19,FALSE),0) -> 0 | V100: =IFERROR(VLOOKUP($A100,Filtro!$A$5:$AY$2917,20,FALSE),0) -> 0 | W100: =IFERROR(VLOOKUP($A100,Filtro!$A$5:$AY$2917,21,FALSE),0) -> 0 | X100: =IFERROR(VLOOKUP($A100,Filtro!$A$5:$AY$2917,22,FALSE),0) -> 0 | Y100: =IFERROR(VLOOKUP($A100,Filtro!$A$5:$AY$2917,23,FALSE),0) -> 0 | Z100: =IFERROR(VLOOKUP($A100,Filtro!$A$5:$AY$2917,24,FALSE),0) -> 0 | AA100: =IFERROR(VLOOKUP($A100,Filtro!$A$5:$AY$2917,25,FALSE),0) -> 0 | AB100: =IFERROR(VLOOKUP($A100,Filtro!$A$5:$AY$2917,26,FALSE),0) -> 0 | AC100: =IFERROR(VLOOKUP($A100,Filtro!$A$5:$AY$2917,27,FALSE),0) -> 101 | AD100: =IFERROR(VLOOKUP($A100,Filtro!$A$5:$AY$2917,28,FALSE),0) -> 0 | AE100: =IFERROR(VLOOKUP($A100,Filtro!$A$5:$AY$2917,29,FALSE),0) -> 0 | AF100: =IFERROR(VLOOKUP($A100,Filtro!$A$5:$AY$2917,30,FALSE),0) -> 0 | AG100: =IFERROR(VLOOKUP($A100,Filtro!$A$5:$AY$2917,31,FALSE),0) -> 0 | AH100: =IFERROR(VLOOKUP($A100,Filtro!$A$5:$AY$2917,32,FALSE),0) -> 0 | AI100: =IFERROR(VLOOKUP($A100,Filtro!$A$5:$AY$2917,33,FALSE),0) -> 0 | AJ100: =IFERROR(VLOOKUP($A100,Filtro!$A$5:$AY$2917,34,FALSE),0) -> 0 | AK100: =IFERROR(VLOOKUP($A100,Filtro!$A$5:$AY$2917,35,FALSE),0) -> 0 | AL100: 7,530 | AM100: 760,530
A101: 01014350 | B101: 0108323 | C101: Teleconsulta Médica de Especialidad en Gastroenterología Adulto | D101: =IFERROR(VLOOKUP($A101,Filtro!$A$5:$AY$2917,2,FALSE),0) -> 5 | E101: =IFERROR(VLOOKUP($A101,Filtro!$A$5:$AY$2917,3,FALSE),0) -> 5 | F101: =IFERROR(VLOOKUP($A101,Filtro!$A$5:$AY$2917,4,FALSE),0) -> 5 | G101: =IFERROR(VLOOKUP($A101,Filtro!$A$5:$AY$2917,5,FALSE),0) -> 0 | H101: =IFERROR(VLOOKUP($A101,Filtro!$A$5:$AY$2917,6,FALSE),0) -> 0 | I101: =IFERROR(VLOOKUP($A101,Filtro!$A$5:$AY$2917,7,FALSE),0) -> 0 | J101: =IFERROR(VLOOKUP($A101,Filtro!$A$5:$AY$2917,8,FALSE),0) -> 0 | K101: =IFERROR(VLOOKUP($A101,Filtro!$A$5:$AY$2917,9,FALSE),0) -> 0 | L101: =IFERROR(VLOOKUP($A101,Filtro!$A$5:$AY$2917,10,FALSE),0) -> 0 | M101: =IFERROR(VLOOKUP($A101,Filtro!$A$5:$AY$2917,11,FALSE),0) -> 0 | N101: =IFERROR(VLOOKUP($A101,Filtro!$A$5:$AY$2917,12,FALSE),0) -> 0 | O101: =IFERROR(VLOOKUP($A101,Filtro!$A$5:$AY$2917,13,FALSE),0) -> 0 | P101: =IFERROR(VLOOKUP($A101,Filtro!$A$5:$AY$2917,14,FALSE),0) -> 0 | Q101: =IFERROR(VLOOKUP($A101,Filtro!$A$5:$AY$2917,15,FALSE),0) -> 0 | R101: =IFERROR(VLOOKUP($A101,Filtro!$A$5:$AY$2917,16,FALSE),0) -> 0 | S101: =IFERROR(VLOOKUP($A101,Filtro!$A$5:$AY$2917,17,FALSE),0) -> 0 | T101: =IFERROR(VLOOKUP($A101,Filtro!$A$5:$AY$2917,18,FALSE),0) -> 0 | U101: =IFERROR(VLOOKUP($A101,Filtro!$A$5:$AY$2917,19,FALSE),0) -> 0 | V101: =IFERROR(VLOOKUP($A101,Filtro!$A$5:$AY$2917,20,FALSE),0) -> 0 | W101: =IFERROR(VLOOKUP($A101,Filtro!$A$5:$AY$2917,21,FALSE),0) -> 0 | X101: =IFERROR(VLOOKUP($A101,Filtro!$A$5:$AY$2917,22,FALSE),0) -> 0 | Y101: =IFERROR(VLOOKUP($A101,Filtro!$A$5:$AY$2917,23,FALSE),0) -> 0 | Z101: =IFERROR(VLOOKUP($A101,Filtro!$A$5:$AY$2917,24,FALSE),0) -> 0 | AA101: =IFERROR(VLOOKUP($A101,Filtro!$A$5:$AY$2917,25,FALSE),0) -> 0 | AB101: =IFERROR(VLOOKUP($A101,Filtro!$A$5:$AY$2917,26,FALSE),0) -> 0 | AC101: =IFERROR(VLOOKUP($A101,Filtro!$A$5:$AY$2917,27,FALSE),0) -> 5 | AD101: =IFERROR(VLOOKUP($A101,Filtro!$A$5:$AY$2917,28,FALSE),0) -> 0 | AE101: =IFERROR(VLOOKUP($A101,Filtro!$A$5:$AY$2917,29,FALSE),0) -> 0 | AF101: =IFERROR(VLOOKUP($A101,Filtro!$A$5:$AY$2917,30,FALSE),0) -> 0 | AG101: =IFERROR(VLOOKUP($A101,Filtro!$A$5:$AY$2917,31,FALSE),0) -> 0 | AH101: =IFERROR(VLOOKUP($A101,Filtro!$A$5:$AY$2917,32,FALSE),0) -> 0 | AI101: =IFERROR(VLOOKUP($A101,Filtro!$A$5:$AY$2917,33,FALSE),0) -> 0 | AJ101: =IFERROR(VLOOKUP($A101,Filtro!$A$5:$AY$2917,34,FALSE),0) -> 0 | AK101: =IFERROR(VLOOKUP($A101,Filtro!$A$5:$AY$2917,35,FALSE),0) -> 0 | AL101: 7,530 | AM101: 37,650
A102: 01014351 | B102: 0108324 | C102: Teleconsulta Médica de Especialidad en Gastroenterología Pediátrico | D102: =IFERROR(VLOOKUP($A102,Filtro!$A$5:$AY$2917,2,FALSE),0) -> 34 | E102: =IFERROR(VLOOKUP($A102,Filtro!$A$5:$AY$2917,3,FALSE),0) -> 34 | F102: =IFERROR(VLOOKUP($A102,Filtro!$A$5:$AY$2917,4,FALSE),0) -> 34 | G102: =IFERROR(VLOOKUP($A102,Filtro!$A$5:$AY$2917,5,FALSE),0) -> 0 | H102: =IFERROR(VLOOKUP($A102,Filtro!$A$5:$AY$2917,6,FALSE),0) -> 0 | I102: =IFERROR(VLOOKUP($A102,Filtro!$A$5:$AY$2917,7,FALSE),0) -> 0 | J102: =IFERROR(VLOOKUP($A102,Filtro!$A$5:$AY$2917,8,FALSE),0) -> 0 | K102: =IFERROR(VLOOKUP($A102,Filtro!$A$5:$AY$2917,9,FALSE),0) -> 0 | L102: =IFERROR(VLOOKUP($A102,Filtro!$A$5:$AY$2917,10,FALSE),0) -> 0 | M102: =IFERROR(VLOOKUP($A102,Filtro!$A$5:$AY$2917,11,FALSE),0) -> 0 | N102: =IFERROR(VLOOKUP($A102,Filtro!$A$5:$AY$2917,12,FALSE),0) -> 0 | O102: =IFERROR(VLOOKUP($A102,Filtro!$A$5:$AY$2917,13,FALSE),0) -> 0 | P102: =IFERROR(VLOOKUP($A102,Filtro!$A$5:$AY$2917,14,FALSE),0) -> 0 | Q102: =IFERROR(VLOOKUP($A102,Filtro!$A$5:$AY$2917,15,FALSE),0) -> 0 | R102: =IFERROR(VLOOKUP($A102,Filtro!$A$5:$AY$2917,16,FALSE),0) -> 0 | S102: =IFERROR(VLOOKUP($A102,Filtro!$A$5:$AY$2917,17,FALSE),0) -> 0 | T102: =IFERROR(VLOOKUP($A102,Filtro!$A$5:$AY$2917,18,FALSE),0) -> 0 | U102: =IFERROR(VLOOKUP($A102,Filtro!$A$5:$AY$2917,19,FALSE),0) -> 0 | V102: =IFERROR(VLOOKUP($A102,Filtro!$A$5:$AY$2917,20,FALSE),0) -> 0 | W102: =IFERROR(VLOOKUP($A102,Filtro!$A$5:$AY$2917,21,FALSE),0) -> 0 | X102: =IFERROR(VLOOKUP($A102,Filtro!$A$5:$AY$2917,22,FALSE),0) -> 0 | Y102: =IFERROR(VLOOKUP($A102,Filtro!$A$5:$AY$2917,23,FALSE),0) -> 0 | Z102: =IFERROR(VLOOKUP($A102,Filtro!$A$5:$AY$2917,24,FALSE),0) -> 0 | AA102: =IFERROR(VLOOKUP($A102,Filtro!$A$5:$AY$2917,25,FALSE),0) -> 0 | AB102: =IFERROR(VLOOKUP($A102,Filtro!$A$5:$AY$2917,26,FALSE),0) -> 0 | AC102: =IFERROR(VLOOKUP($A102,Filtro!$A$5:$AY$2917,27,FALSE),0) -> 34 | AD102: =IFERROR(VLOOKUP($A102,Filtro!$A$5:$AY$2917,28,FALSE),0) -> 0 | AE102: =IFERROR(VLOOKUP($A102,Filtro!$A$5:$AY$2917,29,FALSE),0) -> 0 | AF102: =IFERROR(VLOOKUP($A102,Filtro!$A$5:$AY$2917,30,FALSE),0) -> 0 | AG102: =IFERROR(VLOOKUP($A102,Filtro!$A$5:$AY$2917,31,FALSE),0) -> 0 | AH102: =IFERROR(VLOOKUP($A102,Filtro!$A$5:$AY$2917,32,FALSE),0) -> 0 | AI102: =IFERROR(VLOOKUP($A102,Filtro!$A$5:$AY$2917,33,FALSE),0) -> 0 | AJ102: =IFERROR(VLOOKUP($A102,Filtro!$A$5:$AY$2917,34,FALSE),0) -> 0 | AK102: =IFERROR(VLOOKUP($A102,Filtro!$A$5:$AY$2917,35,FALSE),0) -> 0 | AL102: 7,530 | AM102: 256,020
A103: 01014352 | B103: 0108325 | C103: Teleconsulta Médica de Especialidad en Genética Clínica | D103: =IFERROR(VLOOKUP($A103,Filtro!$A$5:$AY$2917,2,FALSE),0) -> 0 | E103: =IFERROR(VLOOKUP($A103,Filtro!$A$5:$AY$2917,3,FALSE),0) -> 0 | F103: =IFERROR(VLOOKUP($A103,Filtro!$A$5:$AY$2917,4,FALSE),0) -> 0 | G103: =IFERROR(VLOOKUP($A103,Filtro!$A$5:$AY$2917,5,FALSE),0) -> 0 | H103: =IFERROR(VLOOKUP($A103,Filtro!$A$5:$AY$2917,6,FALSE),0) -> 0 | I103: =IFERROR(VLOOKUP($A103,Filtro!$A$5:$AY$2917,7,FALSE),0) -> 0 | J103: =IFERROR(VLOOKUP($A103,Filtro!$A$5:$AY$2917,8,FALSE),0) -> 0 | K103: =IFERROR(VLOOKUP($A103,Filtro!$A$5:$AY$2917,9,FALSE),0) -> 0 | L103: =IFERROR(VLOOKUP($A103,Filtro!$A$5:$AY$2917,10,FALSE),0) -> 0 | M103: =IFERROR(VLOOKUP($A103,Filtro!$A$5:$AY$2917,11,FALSE),0) -> 0 | N103: =IFERROR(VLOOKUP($A103,Filtro!$A$5:$AY$2917,12,FALSE),0) -> 0 | O103: =IFERROR(VLOOKUP($A103,Filtro!$A$5:$AY$2917,13,FALSE),0) -> 0 | P103: =IFERROR(VLOOKUP($A103,Filtro!$A$5:$AY$2917,14,FALSE),0) -> 0 | Q103: =IFERROR(VLOOKUP($A103,Filtro!$A$5:$AY$2917,15,FALSE),0) -> 0 | R103: =IFERROR(VLOOKUP($A103,Filtro!$A$5:$AY$2917,16,FALSE),0) -> 0 | S103: =IFERROR(VLOOKUP($A103,Filtro!$A$5:$AY$2917,17,FALSE),0) -> 0 | T103: =IFERROR(VLOOKUP($A103,Filtro!$A$5:$AY$2917,18,FALSE),0) -> 0 | U103: =IFERROR(VLOOKUP($A103,Filtro!$A$5:$AY$2917,19,FALSE),0) -> 0 | V103: =IFERROR(VLOOKUP($A103,Filtro!$A$5:$AY$2917,20,FALSE),0) -> 0 | W103: =IFERROR(VLOOKUP($A103,Filtro!$A$5:$AY$2917,21,FALSE),0) -> 0 | X103: =IFERROR(VLOOKUP($A103,Filtro!$A$5:$AY$2917,22,FALSE),0) -> 0 | Y103: =IFERROR(VLOOKUP($A103,Filtro!$A$5:$AY$2917,23,FALSE),0) -> 0 | Z103: =IFERROR(VLOOKUP($A103,Filtro!$A$5:$AY$2917,24,FALSE),0) -> 0 | AA103: =IFERROR(VLOOKUP($A103,Filtro!$A$5:$AY$2917,25,FALSE),0) -> 0 | AB103: =IFERROR(VLOOKUP($A103,Filtro!$A$5:$AY$2917,26,FALSE),0) -> 0 | AC103: =IFERROR(VLOOKUP($A103,Filtro!$A$5:$AY$2917,27,FALSE),0) -> 0 | AD103: =IFERROR(VLOOKUP($A103,Filtro!$A$5:$AY$2917,28,FALSE),0) -> 0 | AE103: =IFERROR(VLOOKUP($A103,Filtro!$A$5:$AY$2917,29,FALSE),0) -> 0 | AF103: =IFERROR(VLOOKUP($A103,Filtro!$A$5:$AY$2917,30,FALSE),0) -> 0 | AG103: =IFERROR(VLOOKUP($A103,Filtro!$A$5:$AY$2917,31,FALSE),0) -> 0 | AH103: =IFERROR(VLOOKUP($A103,Filtro!$A$5:$AY$2917,32,FALSE),0) -> 0 | AI103: =IFERROR(VLOOKUP($A103,Filtro!$A$5:$AY$2917,33,FALSE),0) -> 0 | AJ103: =IFERROR(VLOOKUP($A103,Filtro!$A$5:$AY$2917,34,FALSE),0) -> 0 | AK103: =IFERROR(VLOOKUP($A103,Filtro!$A$5:$AY$2917,35,FALSE),0) -> 0 | AL103: 7,530 | AM103: 0
A104: 01014353 | B104: 0108326 | C104: Teleconsulta Médica de Especialidad en Nefrología Adulto | D104: =IFERROR(VLOOKUP($A104,Filtro!$A$5:$AY$2917,2,FALSE),0) -> 375 | E104: =IFERROR(VLOOKUP($A104,Filtro!$A$5:$AY$2917,3,FALSE),0) -> 372 | F104: =IFERROR(VLOOKUP($A104,Filtro!$A$5:$AY$2917,4,FALSE),0) -> 372 | G104: =IFERROR(VLOOKUP($A104,Filtro!$A$5:$AY$2917,5,FALSE),0) -> 0 | H104: =IFERROR(VLOOKUP($A104,Filtro!$A$5:$AY$2917,6,FALSE),0) -> 3 | I104: =IFERROR(VLOOKUP($A104,Filtro!$A$5:$AY$2917,7,FALSE),0) -> 0 | J104: =IFERROR(VLOOKUP($A104,Filtro!$A$5:$AY$2917,8,FALSE),0) -> 0 | K104: =IFERROR(VLOOKUP($A104,Filtro!$A$5:$AY$2917,9,FALSE),0) -> 0 | L104: =IFERROR(VLOOKUP($A104,Filtro!$A$5:$AY$2917,10,FALSE),0) -> 0 | M104: =IFERROR(VLOOKUP($A104,Filtro!$A$5:$AY$2917,11,FALSE),0) -> 0 | N104: =IFERROR(VLOOKUP($A104,Filtro!$A$5:$AY$2917,12,FALSE),0) -> 0 | O104: =IFERROR(VLOOKUP($A104,Filtro!$A$5:$AY$2917,13,FALSE),0) -> 0 | P104: =IFERROR(VLOOKUP($A104,Filtro!$A$5:$AY$2917,14,FALSE),0) -> 0 | Q104: =IFERROR(VLOOKUP($A104,Filtro!$A$5:$AY$2917,15,FALSE),0) -> 0 | R104: =IFERROR(VLOOKUP($A104,Filtro!$A$5:$AY$2917,16,FALSE),0) -> 0 | S104: =IFERROR(VLOOKUP($A104,Filtro!$A$5:$AY$2917,17,FALSE),0) -> 0 | T104: =IFERROR(VLOOKUP($A104,Filtro!$A$5:$AY$2917,18,FALSE),0) -> 0 | U104: =IFERROR(VLOOKUP($A104,Filtro!$A$5:$AY$2917,19,FALSE),0) -> 0 | V104: =IFERROR(VLOOKUP($A104,Filtro!$A$5:$AY$2917,20,FALSE),0) -> 0 | W104: =IFERROR(VLOOKUP($A104,Filtro!$A$5:$AY$2917,21,FALSE),0) -> 0 | X104: =IFERROR(VLOOKUP($A104,Filtro!$A$5:$AY$2917,22,FALSE),0) -> 0 | Y104: =IFERROR(VLOOKUP($A104,Filtro!$A$5:$AY$2917,23,FALSE),0) -> 0 | Z104: =IFERROR(VLOOKUP($A104,Filtro!$A$5:$AY$2917,24,FALSE),0) -> 0 | AA104: =IFERROR(VLOOKUP($A104,Filtro!$A$5:$AY$2917,25,FALSE),0) -> 0 | AB104: =IFERROR(VLOOKUP($A104,Filtro!$A$5:$AY$2917,26,FALSE),0) -> 0 | AC104: =IFERROR(VLOOKUP($A104,Filtro!$A$5:$AY$2917,27,FALSE),0) -> 375 | AD104: =IFERROR(VLOOKUP($A104,Filtro!$A$5:$AY$2917,28,FALSE),0) -> 0 | AE104: =IFERROR(VLOOKUP($A104,Filtro!$A$5:$AY$2917,29,FALSE),0) -> 0 | AF104: =IFERROR(VLOOKUP($A104,Filtro!$A$5:$AY$2917,30,FALSE),0) -> 0 | AG104: =IFERROR(VLOOKUP($A104,Filtro!$A$5:$AY$2917,31,FALSE),0) -> 0 | AH104: =IFERROR(VLOOKUP($A104,Filtro!$A$5:$AY$2917,32,FALSE),0) -> 0 | AI104: =IFERROR(VLOOKUP($A104,Filtro!$A$5:$AY$2917,33,FALSE),0) -> 0 | AJ104: =IFERROR(VLOOKUP($A104,Filtro!$A$5:$AY$2917,34,FALSE),0) -> 0 | AK104: =IFERROR(VLOOKUP($A104,Filtro!$A$5:$AY$2917,35,FALSE),0) -> 0 | AL104: 7,530 | AM104: 2,801,160
A105: 01014354 | B105: 0108327 | C105: Teleconsulta Médica de Especialidad en Nefrología Pediátrico | D105: =IFERROR(VLOOKUP($A105,Filtro!$A$5:$AY$2917,2,FALSE),0) -> 15 | E105: =IFERROR(VLOOKUP($A105,Filtro!$A$5:$AY$2917,3,FALSE),0) -> 15 | F105: =IFERROR(VLOOKUP($A105,Filtro!$A$5:$AY$2917,4,FALSE),0) -> 15 | G105: =IFERROR(VLOOKUP($A105,Filtro!$A$5:$AY$2917,5,FALSE),0) -> 0 | H105: =IFERROR(VLOOKUP($A105,Filtro!$A$5:$AY$2917,6,FALSE),0) -> 0 | I105: =IFERROR(VLOOKUP($A105,Filtro!$A$5:$AY$2917,7,FALSE),0) -> 0 | J105: =IFERROR(VLOOKUP($A105,Filtro!$A$5:$AY$2917,8,FALSE),0) -> 0 | K105: =IFERROR(VLOOKUP($A105,Filtro!$A$5:$AY$2917,9,FALSE),0) -> 0 | L105: =IFERROR(VLOOKUP($A105,Filtro!$A$5:$AY$2917,10,FALSE),0) -> 0 | M105: =IFERROR(VLOOKUP($A105,Filtro!$A$5:$AY$2917,11,FALSE),0) -> 0 | N105: =IFERROR(VLOOKUP($A105,Filtro!$A$5:$AY$2917,12,FALSE),0) -> 0 | O105: =IFERROR(VLOOKUP($A105,Filtro!$A$5:$AY$2917,13,FALSE),0) -> 0 | P105: =IFERROR(VLOOKUP($A105,Filtro!$A$5:$AY$2917,14,FALSE),0) -> 0 | Q105: =IFERROR(VLOOKUP($A105,Filtro!$A$5:$AY$2917,15,FALSE),0) -> 0 | R105: =IFERROR(VLOOKUP($A105,Filtro!$A$5:$AY$2917,16,FALSE),0) -> 0 | S105: =IFERROR(VLOOKUP($A105,Filtro!$A$5:$AY$2917,17,FALSE),0) -> 0 | T105: =IFERROR(VLOOKUP($A105,Filtro!$A$5:$AY$2917,18,FALSE),0) -> 0 | U105: =IFERROR(VLOOKUP($A105,Filtro!$A$5:$AY$2917,19,FALSE),0) -> 0 | V105: =IFERROR(VLOOKUP($A105,Filtro!$A$5:$AY$2917,20,FALSE),0) -> 0 | W105: =IFERROR(VLOOKUP($A105,Filtro!$A$5:$AY$2917,21,FALSE),0) -> 0 | X105: =IFERROR(VLOOKUP($A105,Filtro!$A$5:$AY$2917,22,FALSE),0) -> 0 | Y105: =IFERROR(VLOOKUP($A105,Filtro!$A$5:$AY$2917,23,FALSE),0) -> 0 | Z105: =IFERROR(VLOOKUP($A105,Filtro!$A$5:$AY$2917,24,FALSE),0) -> 0 | AA105: =IFERROR(VLOOKUP($A105,Filtro!$A$5:$AY$2917,25,FALSE),0) -> 0 | AB105: =IFERROR(VLOOKUP($A105,Filtro!$A$5:$AY$2917,26,FALSE),0) -> 0 | AC105: =IFERROR(VLOOKUP($A105,Filtro!$A$5:$AY$2917,27,FALSE),0) -> 15 | AD105: =IFERROR(VLOOKUP($A105,Filtro!$A$5:$AY$2917,28,FALSE),0) -> 0 | AE105: =IFERROR(VLOOKUP($A105,Filtro!$A$5:$AY$2917,29,FALSE),0) -> 0 | AF105: =IFERROR(VLOOKUP($A105,Filtro!$A$5:$AY$2917,30,FALSE),0) -> 0 | AG105: =IFERROR(VLOOKUP($A105,Filtro!$A$5:$AY$2917,31,FALSE),0) -> 0 | AH105: =IFERROR(VLOOKUP($A105,Filtro!$A$5:$AY$2917,32,FALSE),0) -> 0 | AI105: =IFERROR(VLOOKUP($A105,Filtro!$A$5:$AY$2917,33,FALSE),0) -> 0 | AJ105: =IFERROR(VLOOKUP($A105,Filtro!$A$5:$AY$2917,34,FALSE),0) -> 0 | AK105: =IFERROR(VLOOKUP($A105,Filtro!$A$5:$AY$2917,35,FALSE),0) -> 0 | AL105: 7,530 | AM105: 112,950
A106: 01014355 | B106: 0108331 | C106: Teleconsulta Médica de Especialidad en Radioterapia Oncológica | D106: =IFERROR(VLOOKUP($A106,Filtro!$A$5:$AY$2917,2,FALSE),0) -> 0 | E106: =IFERROR(VLOOKUP($A106,Filtro!$A$5:$AY$2917,3,FALSE),0) -> 0 | F106: =IFERROR(VLOOKUP($A106,Filtro!$A$5:$AY$2917,4,FALSE),0) -> 0 | G106: =IFERROR(VLOOKUP($A106,Filtro!$A$5:$AY$2917,5,FALSE),0) -> 0 | H106: =IFERROR(VLOOKUP($A106,Filtro!$A$5:$AY$2917,6,FALSE),0) -> 0 | I106: =IFERROR(VLOOKUP($A106,Filtro!$A$5:$AY$2917,7,FALSE),0) -> 0 | J106: =IFERROR(VLOOKUP($A106,Filtro!$A$5:$AY$2917,8,FALSE),0) -> 0 | K106: =IFERROR(VLOOKUP($A106,Filtro!$A$5:$AY$2917,9,FALSE),0) -> 0 | L106: =IFERROR(VLOOKUP($A106,Filtro!$A$5:$AY$2917,10,FALSE),0) -> 0 | M106: =IFERROR(VLOOKUP($A106,Filtro!$A$5:$AY$2917,11,FALSE),0) -> 0 | N106: =IFERROR(VLOOKUP($A106,Filtro!$A$5:$AY$2917,12,FALSE),0) -> 0 | O106: =IFERROR(VLOOKUP($A106,Filtro!$A$5:$AY$2917,13,FALSE),0) -> 0 | P106: =IFERROR(VLOOKUP($A106,Filtro!$A$5:$AY$2917,14,FALSE),0) -> 0 | Q106: =IFERROR(VLOOKUP($A106,Filtro!$A$5:$AY$2917,15,FALSE),0) -> 0 | R106: =IFERROR(VLOOKUP($A106,Filtro!$A$5:$AY$2917,16,FALSE),0) -> 0 | S106: =IFERROR(VLOOKUP($A106,Filtro!$A$5:$AY$2917,17,FALSE),0) -> 0 | T106: =IFERROR(VLOOKUP($A106,Filtro!$A$5:$AY$2917,18,FALSE),0) -> 0 | U106: =IFERROR(VLOOKUP($A106,Filtro!$A$5:$AY$2917,19,FALSE),0) -> 0 | V106: =IFERROR(VLOOKUP($A106,Filtro!$A$5:$AY$2917,20,FALSE),0) -> 0 | W106: =IFERROR(VLOOKUP($A106,Filtro!$A$5:$AY$2917,21,FALSE),0) -> 0 | X106: =IFERROR(VLOOKUP($A106,Filtro!$A$5:$AY$2917,22,FALSE),0) -> 0 | Y106: =IFERROR(VLOOKUP($A106,Filtro!$A$5:$AY$2917,23,FALSE),0) -> 0 | Z106: =IFERROR(VLOOKUP($A106,Filtro!$A$5:$AY$2917,24,FALSE),0) -> 0 | AA106: =IFERROR(VLOOKUP($A106,Filtro!$A$5:$AY$2917,25,FALSE),0) -> 0 | AB106: =IFERROR(VLOOKUP($A106,Filtro!$A$5:$AY$2917,26,FALSE),0) -> 0 | AC106: =IFERROR(VLOOKUP($A106,Filtro!$A$5:$AY$2917,27,FALSE),0) -> 0 | AD106: =IFERROR(VLOOKUP($A106,Filtro!$A$5:$AY$2917,28,FALSE),0) -> 0 | AE106: =IFERROR(VLOOKUP($A106,Filtro!$A$5:$AY$2917,29,FALSE),0) -> 0 | AF106: =IFERROR(VLOOKUP($A106,Filtro!$A$5:$AY$2917,30,FALSE),0) -> 0 | AG106: =IFERROR(VLOOKUP($A106,Filtro!$A$5:$AY$2917,31,FALSE),0) -> 0 | AH106: =IFERROR(VLOOKUP($A106,Filtro!$A$5:$AY$2917,32,FALSE),0) -> 0 | AI106: =IFERROR(VLOOKUP($A106,Filtro!$A$5:$AY$2917,33,FALSE),0) -> 0 | AJ106: =IFERROR(VLOOKUP($A106,Filtro!$A$5:$AY$2917,34,FALSE),0) -> 0 | AK106: =IFERROR(VLOOKUP($A106,Filtro!$A$5:$AY$2917,35,FALSE),0) -> 0 | AL106: 7,530 | AM106: 0
A107: 01014356 | B107: 0108203 | C107: Teleconsulta Médica de Especialidad en Neurocirugía | D107: =IFERROR(VLOOKUP($A107,Filtro!$A$5:$AY$2917,2,FALSE),0) -> 0 | E107: =IFERROR(VLOOKUP($A107,Filtro!$A$5:$AY$2917,3,FALSE),0) -> 0 | F107: =IFERROR(VLOOKUP($A107,Filtro!$A$5:$AY$2917,4,FALSE),0) -> 0 | G107: =IFERROR(VLOOKUP($A107,Filtro!$A$5:$AY$2917,5,FALSE),0) -> 0 | H107: =IFERROR(VLOOKUP($A107,Filtro!$A$5:$AY$2917,6,FALSE),0) -> 0 | I107: =IFERROR(VLOOKUP($A107,Filtro!$A$5:$AY$2917,7,FALSE),0) -> 0 | J107: =IFERROR(VLOOKUP($A107,Filtro!$A$5:$AY$2917,8,FALSE),0) -> 0 | K107: =IFERROR(VLOOKUP($A107,Filtro!$A$5:$AY$2917,9,FALSE),0) -> 0 | L107: =IFERROR(VLOOKUP($A107,Filtro!$A$5:$AY$2917,10,FALSE),0) -> 0 | M107: =IFERROR(VLOOKUP($A107,Filtro!$A$5:$AY$2917,11,FALSE),0) -> 0 | N107: =IFERROR(VLOOKUP($A107,Filtro!$A$5:$AY$2917,12,FALSE),0) -> 0 | O107: =IFERROR(VLOOKUP($A107,Filtro!$A$5:$AY$2917,13,FALSE),0) -> 0 | P107: =IFERROR(VLOOKUP($A107,Filtro!$A$5:$AY$2917,14,FALSE),0) -> 0 | Q107: =IFERROR(VLOOKUP($A107,Filtro!$A$5:$AY$2917,15,FALSE),0) -> 0 | R107: =IFERROR(VLOOKUP($A107,Filtro!$A$5:$AY$2917,16,FALSE),0) -> 0 | S107: =IFERROR(VLOOKUP($A107,Filtro!$A$5:$AY$2917,17,FALSE),0) -> 0 | T107: =IFERROR(VLOOKUP($A107,Filtro!$A$5:$AY$2917,18,FALSE),0) -> 0 | U107: =IFERROR(VLOOKUP($A107,Filtro!$A$5:$AY$2917,19,FALSE),0) -> 0 | V107: =IFERROR(VLOOKUP($A107,Filtro!$A$5:$AY$2917,20,FALSE),0) -> 0 | W107: =IFERROR(VLOOKUP($A107,Filtro!$A$5:$AY$2917,21,FALSE),0) -> 0 | X107: =IFERROR(VLOOKUP($A107,Filtro!$A$5:$AY$2917,22,FALSE),0) -> 0 | Y107: =IFERROR(VLOOKUP($A107,Filtro!$A$5:$AY$2917,23,FALSE),0) -> 0 | Z107: =IFERROR(VLOOKUP($A107,Filtro!$A$5:$AY$2917,24,FALSE),0) -> 0 | AA107: =IFERROR(VLOOKUP($A107,Filtro!$A$5:$AY$2917,25,FALSE),0) -> 0 | AB107: =IFERROR(VLOOKUP($A107,Filtro!$A$5:$AY$2917,26,FALSE),0) -> 0 | AC107: =IFERROR(VLOOKUP($A107,Filtro!$A$5:$AY$2917,27,FALSE),0) -> 0 | AD107: =IFERROR(VLOOKUP($A107,Filtro!$A$5:$AY$2917,28,FALSE),0) -> 0 | AE107: =IFERROR(VLOOKUP($A107,Filtro!$A$5:$AY$2917,29,FALSE),0) -> 0 | AF107: =IFERROR(VLOOKUP($A107,Filtro!$A$5:$AY$2917,30,FALSE),0) -> 0 | AG107: =IFERROR(VLOOKUP($A107,Filtro!$A$5:$AY$2917,31,FALSE),0) -> 0 | AH107: =IFERROR(VLOOKUP($A107,Filtro!$A$5:$AY$2917,32,FALSE),0) -> 0 | AI107: =IFERROR(VLOOKUP($A107,Filtro!$A$5:$AY$2917,33,FALSE),0) -> 0 | AJ107: =IFERROR(VLOOKUP($A107,Filtro!$A$5:$AY$2917,34,FALSE),0) -> 0 | AK107: =IFERROR(VLOOKUP($A107,Filtro!$A$5:$AY$2917,35,FALSE),0) -> 0 | AL107: 7,530 | AM107: 0
A108: 01014357 | B108: 0108204 | C108: Teleconsulta Médica de Especialidad en Oftalmología | D108: =IFERROR(VLOOKUP($A108,Filtro!$A$5:$AY$2917,2,FALSE),0) -> 33 | E108: =IFERROR(VLOOKUP($A108,Filtro!$A$5:$AY$2917,3,FALSE),0) -> 33 | F108: =IFERROR(VLOOKUP($A108,Filtro!$A$5:$AY$2917,4,FALSE),0) -> 33 | G108: =IFERROR(VLOOKUP($A108,Filtro!$A$5:$AY$2917,5,FALSE),0) -> 0 | H108: =IFERROR(VLOOKUP($A108,Filtro!$A$5:$AY$2917,6,FALSE),0) -> 0 | I108: =IFERROR(VLOOKUP($A108,Filtro!$A$5:$AY$2917,7,FALSE),0) -> 0 | J108: =IFERROR(VLOOKUP($A108,Filtro!$A$5:$AY$2917,8,FALSE),0) -> 0 | K108: =IFERROR(VLOOKUP($A108,Filtro!$A$5:$AY$2917,9,FALSE),0) -> 0 | L108: =IFERROR(VLOOKUP($A108,Filtro!$A$5:$AY$2917,10,FALSE),0) -> 0 | M108: =IFERROR(VLOOKUP($A108,Filtro!$A$5:$AY$2917,11,FALSE),0) -> 0 | N108: =IFERROR(VLOOKUP($A108,Filtro!$A$5:$AY$2917,12,FALSE),0) -> 0 | O108: =IFERROR(VLOOKUP($A108,Filtro!$A$5:$AY$2917,13,FALSE),0) -> 0 | P108: =IFERROR(VLOOKUP($A108,Filtro!$A$5:$AY$2917,14,FALSE),0) -> 0 | Q108: =IFERROR(VLOOKUP($A108,Filtro!$A$5:$AY$2917,15,FALSE),0) -> 0 | R108: =IFERROR(VLOOKUP($A108,Filtro!$A$5:$AY$2917,16,FALSE),0) -> 0 | S108: =IFERROR(VLOOKUP($A108,Filtro!$A$5:$AY$2917,17,FALSE),0) -> 0 | T108: =IFERROR(VLOOKUP($A108,Filtro!$A$5:$AY$2917,18,FALSE),0) -> 0 | U108: =IFERROR(VLOOKUP($A108,Filtro!$A$5:$AY$2917,19,FALSE),0) -> 0 | V108: =IFERROR(VLOOKUP($A108,Filtro!$A$5:$AY$2917,20,FALSE),0) -> 0 | W108: =IFERROR(VLOOKUP($A108,Filtro!$A$5:$AY$2917,21,FALSE),0) -> 0 | X108: =IFERROR(VLOOKUP($A108,Filtro!$A$5:$AY$2917,22,FALSE),0) -> 0 | Y108: =IFERROR(VLOOKUP($A108,Filtro!$A$5:$AY$2917,23,FALSE),0) -> 0 | Z108: =IFERROR(VLOOKUP($A108,Filtro!$A$5:$AY$2917,24,FALSE),0) -> 0 | AA108: =IFERROR(VLOOKUP($A108,Filtro!$A$5:$AY$2917,25,FALSE),0) -> 0 | AB108: =IFERROR(VLOOKUP($A108,Filtro!$A$5:$AY$2917,26,FALSE),0) -> 0 | AC108: =IFERROR(VLOOKUP($A108,Filtro!$A$5:$AY$2917,27,FALSE),0) -> 33 | AD108: =IFERROR(VLOOKUP($A108,Filtro!$A$5:$AY$2917,28,FALSE),0) -> 0 | AE108: =IFERROR(VLOOKUP($A108,Filtro!$A$5:$AY$2917,29,FALSE),0) -> 0 | AF108: =IFERROR(VLOOKUP($A108,Filtro!$A$5:$AY$2917,30,FALSE),0) -> 0 | AG108: =IFERROR(VLOOKUP($A108,Filtro!$A$5:$AY$2917,31,FALSE),0) -> 0 | AH108: =IFERROR(VLOOKUP($A108,Filtro!$A$5:$AY$2917,32,FALSE),0) -> 0 | AI108: =IFERROR(VLOOKUP($A108,Filtro!$A$5:$AY$2917,33,FALSE),0) -> 0 | AJ108: =IFERROR(VLOOKUP($A108,Filtro!$A$5:$AY$2917,34,FALSE),0) -> 0 | AK108: =IFERROR(VLOOKUP($A108,Filtro!$A$5:$AY$2917,35,FALSE),0) -> 0 | AL108: 7,530 | AM108: 248,490
A109: 01014358 | B109: 0108205 | C109: Teleconsulta Médica de Especialidad en Otorrinolaringología | D109: =IFERROR(VLOOKUP($A109,Filtro!$A$5:$AY$2917,2,FALSE),0) -> 0 | E109: =IFERROR(VLOOKUP($A109,Filtro!$A$5:$AY$2917,3,FALSE),0) -> 0 | F109: =IFERROR(VLOOKUP($A109,Filtro!$A$5:$AY$2917,4,FALSE),0) -> 0 | G109: =IFERROR(VLOOKUP($A109,Filtro!$A$5:$AY$2917,5,FALSE),0) -> 0 | H109: =IFERROR(VLOOKUP($A109,Filtro!$A$5:$AY$2917,6,FALSE),0) -> 0 | I109: =IFERROR(VLOOKUP($A109,Filtro!$A$5:$AY$2917,7,FALSE),0) -> 0 | J109: =IFERROR(VLOOKUP($A109,Filtro!$A$5:$AY$2917,8,FALSE),0) -> 0 | K109: =IFERROR(VLOOKUP($A109,Filtro!$A$5:$AY$2917,9,FALSE),0) -> 0 | L109: =IFERROR(VLOOKUP($A109,Filtro!$A$5:$AY$2917,10,FALSE),0) -> 0 | M109: =IFERROR(VLOOKUP($A109,Filtro!$A$5:$AY$2917,11,FALSE),0) -> 0 | N109: =IFERROR(VLOOKUP($A109,Filtro!$A$5:$AY$2917,12,FALSE),0) -> 0 | O109: =IFERROR(VLOOKUP($A109,Filtro!$A$5:$AY$2917,13,FALSE),0) -> 0 | P109: =IFERROR(VLOOKUP($A109,Filtro!$A$5:$AY$2917,14,FALSE),0) -> 0 | Q109: =IFERROR(VLOOKUP($A109,Filtro!$A$5:$AY$2917,15,FALSE),0) -> 0 | R109: =IFERROR(VLOOKUP($A109,Filtro!$A$5:$AY$2917,16,FALSE),0) -> 0 | S109: =IFERROR(VLOOKUP($A109,Filtro!$A$5:$AY$2917,17,FALSE),0) -> 0 | T109: =IFERROR(VLOOKUP($A109,Filtro!$A$5:$AY$2917,18,FALSE),0) -> 0 | U109: =IFERROR(VLOOKUP($A109,Filtro!$A$5:$AY$2917,19,FALSE),0) -> 0 | V109: =IFERROR(VLOOKUP($A109,Filtro!$A$5:$AY$2917,20,FALSE),0) -> 0 | W109: =IFERROR(VLOOKUP($A109,Filtro!$A$5:$AY$2917,21,FALSE),0) -> 0 | X109: =IFERROR(VLOOKUP($A109,Filtro!$A$5:$AY$2917,22,FALSE),0) -> 0 | Y109: =IFERROR(VLOOKUP($A109,Filtro!$A$5:$AY$2917,23,FALSE),0) -> 0 | Z109: =IFERROR(VLOOKUP($A109,Filtro!$A$5:$AY$2917,24,FALSE),0) -> 0 | AA109: =IFERROR(VLOOKUP($A109,Filtro!$A$5:$AY$2917,25,FALSE),0) -> 0 | AB109: =IFERROR(VLOOKUP($A109,Filtro!$A$5:$AY$2917,26,FALSE),0) -> 0 | AC109: =IFERROR(VLOOKUP($A109,Filtro!$A$5:$AY$2917,27,FALSE),0) -> 0 | AD109: =IFERROR(VLOOKUP($A109,Filtro!$A$5:$AY$2917,28,FALSE),0) -> 0 | AE109: =IFERROR(VLOOKUP($A109,Filtro!$A$5:$AY$2917,29,FALSE),0) -> 0 | AF109: =IFERROR(VLOOKUP($A109,Filtro!$A$5:$AY$2917,30,FALSE),0) -> 0 | AG109: =IFERROR(VLOOKUP($A109,Filtro!$A$5:$AY$2917,31,FALSE),0) -> 0 | AH109: =IFERROR(VLOOKUP($A109,Filtro!$A$5:$AY$2917,32,FALSE),0) -> 0 | AI109: =IFERROR(VLOOKUP($A109,Filtro!$A$5:$AY$2917,33,FALSE),0) -> 0 | AJ109: =IFERROR(VLOOKUP($A109,Filtro!$A$5:$AY$2917,34,FALSE),0) -> 0 | AK109: =IFERROR(VLOOKUP($A109,Filtro!$A$5:$AY$2917,35,FALSE),0) -> 0 | AL109: 7,530 | AM109: 0
A110: 01014359 | B110: 0108312 | C110: Teleconsulta Médica de Especialidad en Cirugía General | D110: =IFERROR(VLOOKUP($A110,Filtro!$A$5:$AY$2917,2,FALSE),0) -> 19 | E110: =IFERROR(VLOOKUP($A110,Filtro!$A$5:$AY$2917,3,FALSE),0) -> 19 | F110: =IFERROR(VLOOKUP($A110,Filtro!$A$5:$AY$2917,4,FALSE),0) -> 19 | G110: =IFERROR(VLOOKUP($A110,Filtro!$A$5:$AY$2917,5,FALSE),0) -> 0 | H110: =IFERROR(VLOOKUP($A110,Filtro!$A$5:$AY$2917,6,FALSE),0) -> 0 | I110: =IFERROR(VLOOKUP($A110,Filtro!$A$5:$AY$2917,7,FALSE),0) -> 0 | J110: =IFERROR(VLOOKUP($A110,Filtro!$A$5:$AY$2917,8,FALSE),0) -> 0 | K110: =IFERROR(VLOOKUP($A110,Filtro!$A$5:$AY$2917,9,FALSE),0) -> 0 | L110: =IFERROR(VLOOKUP($A110,Filtro!$A$5:$AY$2917,10,FALSE),0) -> 0 | M110: =IFERROR(VLOOKUP($A110,Filtro!$A$5:$AY$2917,11,FALSE),0) -> 0 | N110: =IFERROR(VLOOKUP($A110,Filtro!$A$5:$AY$2917,12,FALSE),0) -> 0 | O110: =IFERROR(VLOOKUP($A110,Filtro!$A$5:$AY$2917,13,FALSE),0) -> 0 | P110: =IFERROR(VLOOKUP($A110,Filtro!$A$5:$AY$2917,14,FALSE),0) -> 0 | Q110: =IFERROR(VLOOKUP($A110,Filtro!$A$5:$AY$2917,15,FALSE),0) -> 0 | R110: =IFERROR(VLOOKUP($A110,Filtro!$A$5:$AY$2917,16,FALSE),0) -> 0 | S110: =IFERROR(VLOOKUP($A110,Filtro!$A$5:$AY$2917,17,FALSE),0) -> 0 | T110: =IFERROR(VLOOKUP($A110,Filtro!$A$5:$AY$2917,18,FALSE),0) -> 0 | U110: =IFERROR(VLOOKUP($A110,Filtro!$A$5:$AY$2917,19,FALSE),0) -> 0 | V110: =IFERROR(VLOOKUP($A110,Filtro!$A$5:$AY$2917,20,FALSE),0) -> 0 | W110: =IFERROR(VLOOKUP($A110,Filtro!$A$5:$AY$2917,21,FALSE),0) -> 0 | X110: =IFERROR(VLOOKUP($A110,Filtro!$A$5:$AY$2917,22,FALSE),0) -> 0 | Y110: =IFERROR(VLOOKUP($A110,Filtro!$A$5:$AY$2917,23,FALSE),0) -> 0 | Z110: =IFERROR(VLOOKUP($A110,Filtro!$A$5:$AY$2917,24,FALSE),0) -> 0 | AA110: =IFERROR(VLOOKUP($A110,Filtro!$A$5:$AY$2917,25,FALSE),0) -> 0 | AB110: =IFERROR(VLOOKUP($A110,Filtro!$A$5:$AY$2917,26,FALSE),0) -> 0 | AC110: =IFERROR(VLOOKUP($A110,Filtro!$A$5:$AY$2917,27,FALSE),0) -> 19 | AD110: =IFERROR(VLOOKUP($A110,Filtro!$A$5:$AY$2917,28,FALSE),0) -> 0 | AE110: =IFERROR(VLOOKUP($A110,Filtro!$A$5:$AY$2917,29,FALSE),0) -> 0 | AF110: =IFERROR(VLOOKUP($A110,Filtro!$A$5:$AY$2917,30,FALSE),0) -> 0 | AG110: =IFERROR(VLOOKUP($A110,Filtro!$A$5:$AY$2917,31,FALSE),0) -> 0 | AH110: =IFERROR(VLOOKUP($A110,Filtro!$A$5:$AY$2917,32,FALSE),0) -> 0 | AI110: =IFERROR(VLOOKUP($A110,Filtro!$A$5:$AY$2917,33,FALSE),0) -> 0 | AJ110: =IFERROR(VLOOKUP($A110,Filtro!$A$5:$AY$2917,34,FALSE),0) -> 0 | AK110: =IFERROR(VLOOKUP($A110,Filtro!$A$5:$AY$2917,35,FALSE),0) -> 0 | AL110: 7,530 | AM110: 143,070
A111: 01014360 | B111: 0108313 | C111: Teleconsulta Médica de Especialidad en Cirugía de Cabeza, Cuello y Maxilofacial | D111: =IFERROR(VLOOKUP($A111,Filtro!$A$5:$AY$2917,2,FALSE),0) -> 1 | E111: =IFERROR(VLOOKUP($A111,Filtro!$A$5:$AY$2917,3,FALSE),0) -> 1 | F111: =IFERROR(VLOOKUP($A111,Filtro!$A$5:$AY$2917,4,FALSE),0) -> 1 | G111: =IFERROR(VLOOKUP($A111,Filtro!$A$5:$AY$2917,5,FALSE),0) -> 0 | H111: =IFERROR(VLOOKUP($A111,Filtro!$A$5:$AY$2917,6,FALSE),0) -> 0 | I111: =IFERROR(VLOOKUP($A111,Filtro!$A$5:$AY$2917,7,FALSE),0) -> 0 | J111: =IFERROR(VLOOKUP($A111,Filtro!$A$5:$AY$2917,8,FALSE),0) -> 0 | K111: =IFERROR(VLOOKUP($A111,Filtro!$A$5:$AY$2917,9,FALSE),0) -> 0 | L111: =IFERROR(VLOOKUP($A111,Filtro!$A$5:$AY$2917,10,FALSE),0) -> 0 | M111: =IFERROR(VLOOKUP($A111,Filtro!$A$5:$AY$2917,11,FALSE),0) -> 0 | N111: =IFERROR(VLOOKUP($A111,Filtro!$A$5:$AY$2917,12,FALSE),0) -> 0 | O111: =IFERROR(VLOOKUP($A111,Filtro!$A$5:$AY$2917,13,FALSE),0) -> 0 | P111: =IFERROR(VLOOKUP($A111,Filtro!$A$5:$AY$2917,14,FALSE),0) -> 0 | Q111: =IFERROR(VLOOKUP($A111,Filtro!$A$5:$AY$2917,15,FALSE),0) -> 0 | R111: =IFERROR(VLOOKUP($A111,Filtro!$A$5:$AY$2917,16,FALSE),0) -> 0 | S111: =IFERROR(VLOOKUP($A111,Filtro!$A$5:$AY$2917,17,FALSE),0) -> 0 | T111: =IFERROR(VLOOKUP($A111,Filtro!$A$5:$AY$2917,18,FALSE),0) -> 0 | U111: =IFERROR(VLOOKUP($A111,Filtro!$A$5:$AY$2917,19,FALSE),0) -> 0 | V111: =IFERROR(VLOOKUP($A111,Filtro!$A$5:$AY$2917,20,FALSE),0) -> 0 | W111: =IFERROR(VLOOKUP($A111,Filtro!$A$5:$AY$2917,21,FALSE),0) -> 0 | X111: =IFERROR(VLOOKUP($A111,Filtro!$A$5:$AY$2917,22,FALSE),0) -> 0 | Y111: =IFERROR(VLOOKUP($A111,Filtro!$A$5:$AY$2917,23,FALSE),0) -> 0 | Z111: =IFERROR(VLOOKUP($A111,Filtro!$A$5:$AY$2917,24,FALSE),0) -> 0 | AA111: =IFERROR(VLOOKUP($A111,Filtro!$A$5:$AY$2917,25,FALSE),0) -> 0 | AB111: =IFERROR(VLOOKUP($A111,Filtro!$A$5:$AY$2917,26,FALSE),0) -> 0 | AC111: =IFERROR(VLOOKUP($A111,Filtro!$A$5:$AY$2917,27,FALSE),0) -> 1 | AD111: =IFERROR(VLOOKUP($A111,Filtro!$A$5:$AY$2917,28,FALSE),0) -> 0 | AE111: =IFERROR(VLOOKUP($A111,Filtro!$A$5:$AY$2917,29,FALSE),0) -> 0 | AF111: =IFERROR(VLOOKUP($A111,Filtro!$A$5:$AY$2917,30,FALSE),0) -> 0 | AG111: =IFERROR(VLOOKUP($A111,Filtro!$A$5:$AY$2917,31,FALSE),0) -> 0 | AH111: =IFERROR(VLOOKUP($A111,Filtro!$A$5:$AY$2917,32,FALSE),0) -> 0 | AI111: =IFERROR(VLOOKUP($A111,Filtro!$A$5:$AY$2917,33,FALSE),0) -> 0 | AJ111: =IFERROR(VLOOKUP($A111,Filtro!$A$5:$AY$2917,34,FALSE),0) -> 0 | AK111: =IFERROR(VLOOKUP($A111,Filtro!$A$5:$AY$2917,35,FALSE),0) -> 0 | AL111: 7,530 | AM111: 7,530
A112: 01014361 | B112: 0108314 | C112: Teleconsulta Médica de Especialidad en Cirugía Cardiovascular | D112: =IFERROR(VLOOKUP($A112,Filtro!$A$5:$AY$2917,2,FALSE),0) -> 0 | E112: =IFERROR(VLOOKUP($A112,Filtro!$A$5:$AY$2917,3,FALSE),0) -> 0 | F112: =IFERROR(VLOOKUP($A112,Filtro!$A$5:$AY$2917,4,FALSE),0) -> 0 | G112: =IFERROR(VLOOKUP($A112,Filtro!$A$5:$AY$2917,5,FALSE),0) -> 0 | H112: =IFERROR(VLOOKUP($A112,Filtro!$A$5:$AY$2917,6,FALSE),0) -> 0 | I112: =IFERROR(VLOOKUP($A112,Filtro!$A$5:$AY$2917,7,FALSE),0) -> 0 | J112: =IFERROR(VLOOKUP($A112,Filtro!$A$5:$AY$2917,8,FALSE),0) -> 0 | K112: =IFERROR(VLOOKUP($A112,Filtro!$A$5:$AY$2917,9,FALSE),0) -> 0 | L112: =IFERROR(VLOOKUP($A112,Filtro!$A$5:$AY$2917,10,FALSE),0) -> 0 | M112: =IFERROR(VLOOKUP($A112,Filtro!$A$5:$AY$2917,11,FALSE),0) -> 0 | N112: =IFERROR(VLOOKUP($A112,Filtro!$A$5:$AY$2917,12,FALSE),0) -> 0 | O112: =IFERROR(VLOOKUP($A112,Filtro!$A$5:$AY$2917,13,FALSE),0) -> 0 | P112: =IFERROR(VLOOKUP($A112,Filtro!$A$5:$AY$2917,14,FALSE),0) -> 0 | Q112: =IFERROR(VLOOKUP($A112,Filtro!$A$5:$AY$2917,15,FALSE),0) -> 0 | R112: =IFERROR(VLOOKUP($A112,Filtro!$A$5:$AY$2917,16,FALSE),0) -> 0 | S112: =IFERROR(VLOOKUP($A112,Filtro!$A$5:$AY$2917,17,FALSE),0) -> 0 | T112: =IFERROR(VLOOKUP($A112,Filtro!$A$5:$AY$2917,18,FALSE),0) -> 0 | U112: =IFERROR(VLOOKUP($A112,Filtro!$A$5:$AY$2917,19,FALSE),0) -> 0 | V112: =IFERROR(VLOOKUP($A112,Filtro!$A$5:$AY$2917,20,FALSE),0) -> 0 | W112: =IFERROR(VLOOKUP($A112,Filtro!$A$5:$AY$2917,21,FALSE),0) -> 0 | X112: =IFERROR(VLOOKUP($A112,Filtro!$A$5:$AY$2917,22,FALSE),0) -> 0 | Y112: =IFERROR(VLOOKUP($A112,Filtro!$A$5:$AY$2917,23,FALSE),0) -> 0 | Z112: =IFERROR(VLOOKUP($A112,Filtro!$A$5:$AY$2917,24,FALSE),0) -> 0 | AA112: =IFERROR(VLOOKUP($A112,Filtro!$A$5:$AY$2917,25,FALSE),0) -> 0 | AB112: =IFERROR(VLOOKUP($A112,Filtro!$A$5:$AY$2917,26,FALSE),0) -> 0 | AC112: =IFERROR(VLOOKUP($A112,Filtro!$A$5:$AY$2917,27,FALSE),0) -> 0 | AD112: =IFERROR(VLOOKUP($A112,Filtro!$A$5:$AY$2917,28,FALSE),0) -> 0 | AE112: =IFERROR(VLOOKUP($A112,Filtro!$A$5:$AY$2917,29,FALSE),0) -> 0 | AF112: =IFERROR(VLOOKUP($A112,Filtro!$A$5:$AY$2917,30,FALSE),0) -> 0 | AG112: =IFERROR(VLOOKUP($A112,Filtro!$A$5:$AY$2917,31,FALSE),0) -> 0 | AH112: =IFERROR(VLOOKUP($A112,Filtro!$A$5:$AY$2917,32,FALSE),0) -> 0 | AI112: =IFERROR(VLOOKUP($A112,Filtro!$A$5:$AY$2917,33,FALSE),0) -> 0 | AJ112: =IFERROR(VLOOKUP($A112,Filtro!$A$5:$AY$2917,34,FALSE),0) -> 0 | AK112: =IFERROR(VLOOKUP($A112,Filtro!$A$5:$AY$2917,35,FALSE),0) -> 0 | AL112: 7,530 | AM112: 0
A113: 01014362 | B113: 0108315 | C113: Teleconsulta Médica de Especialidad en Cirugía de Tórax | D113: =IFERROR(VLOOKUP($A113,Filtro!$A$5:$AY$2917,2,FALSE),0) -> 0 | E113: =IFERROR(VLOOKUP($A113,Filtro!$A$5:$AY$2917,3,FALSE),0) -> 0 | F113: =IFERROR(VLOOKUP($A113,Filtro!$A$5:$AY$2917,4,FALSE),0) -> 0 | G113: =IFERROR(VLOOKUP($A113,Filtro!$A$5:$AY$2917,5,FALSE),0) -> 0 | H113: =IFERROR(VLOOKUP($A113,Filtro!$A$5:$AY$2917,6,FALSE),0) -> 0 | I113: =IFERROR(VLOOKUP($A113,Filtro!$A$5:$AY$2917,7,FALSE),0) -> 0 | J113: =IFERROR(VLOOKUP($A113,Filtro!$A$5:$AY$2917,8,FALSE),0) -> 0 | K113: =IFERROR(VLOOKUP($A113,Filtro!$A$5:$AY$2917,9,FALSE),0) -> 0 | L113: =IFERROR(VLOOKUP($A113,Filtro!$A$5:$AY$2917,10,FALSE),0) -> 0 | M113: =IFERROR(VLOOKUP($A113,Filtro!$A$5:$AY$2917,11,FALSE),0) -> 0 | N113: =IFERROR(VLOOKUP($A113,Filtro!$A$5:$AY$2917,12,FALSE),0) -> 0 | O113: =IFERROR(VLOOKUP($A113,Filtro!$A$5:$AY$2917,13,FALSE),0) -> 0 | P113: =IFERROR(VLOOKUP($A113,Filtro!$A$5:$AY$2917,14,FALSE),0) -> 0 | Q113: =IFERROR(VLOOKUP($A113,Filtro!$A$5:$AY$2917,15,FALSE),0) -> 0 | R113: =IFERROR(VLOOKUP($A113,Filtro!$A$5:$AY$2917,16,FALSE),0) -> 0 | S113: =IFERROR(VLOOKUP($A113,Filtro!$A$5:$AY$2917,17,FALSE),0) -> 0 | T113: =IFERROR(VLOOKUP($A113,Filtro!$A$5:$AY$2917,18,FALSE),0) -> 0 | U113: =IFERROR(VLOOKUP($A113,Filtro!$A$5:$AY$2917,19,FALSE),0) -> 0 | V113: =IFERROR(VLOOKUP($A113,Filtro!$A$5:$AY$2917,20,FALSE),0) -> 0 | W113: =IFERROR(VLOOKUP($A113,Filtro!$A$5:$AY$2917,21,FALSE),0) -> 0 | X113: =IFERROR(VLOOKUP($A113,Filtro!$A$5:$AY$2917,22,FALSE),0) -> 0 | Y113: =IFERROR(VLOOKUP($A113,Filtro!$A$5:$AY$2917,23,FALSE),0) -> 0 | Z113: =IFERROR(VLOOKUP($A113,Filtro!$A$5:$AY$2917,24,FALSE),0) -> 0 | AA113: =IFERROR(VLOOKUP($A113,Filtro!$A$5:$AY$2917,25,FALSE),0) -> 0 | AB113: =IFERROR(VLOOKUP($A113,Filtro!$A$5:$AY$2917,26,FALSE),0) -> 0 | AC113: =IFERROR(VLOOKUP($A113,Filtro!$A$5:$AY$2917,27,FALSE),0) -> 0 | AD113: =IFERROR(VLOOKUP($A113,Filtro!$A$5:$AY$2917,28,FALSE),0) -> 0 | AE113: =IFERROR(VLOOKUP($A113,Filtro!$A$5:$AY$2917,29,FALSE),0) -> 0 | AF113: =IFERROR(VLOOKUP($A113,Filtro!$A$5:$AY$2917,30,FALSE),0) -> 0 | AG113: =IFERROR(VLOOKUP($A113,Filtro!$A$5:$AY$2917,31,FALSE),0) -> 0 | AH113: =IFERROR(VLOOKUP($A113,Filtro!$A$5:$AY$2917,32,FALSE),0) -> 0 | AI113: =IFERROR(VLOOKUP($A113,Filtro!$A$5:$AY$2917,33,FALSE),0) -> 0 | AJ113: =IFERROR(VLOOKUP($A113,Filtro!$A$5:$AY$2917,34,FALSE),0) -> 0 | AK113: =IFERROR(VLOOKUP($A113,Filtro!$A$5:$AY$2917,35,FALSE),0) -> 0 | AL113: 7,530 | AM113: 0
A114: 01014363 | B114: 0108316 | C114: Teleconsulta Médica de Especialidad en Cirugía Plástica y Reparadora | D114: =IFERROR(VLOOKUP($A114,Filtro!$A$5:$AY$2917,2,FALSE),0) -> 0 | E114: =IFERROR(VLOOKUP($A114,Filtro!$A$5:$AY$2917,3,FALSE),0) -> 0 | F114: =IFERROR(VLOOKUP($A114,Filtro!$A$5:$AY$2917,4,FALSE),0) -> 0 | G114: =IFERROR(VLOOKUP($A114,Filtro!$A$5:$AY$2917,5,FALSE),0) -> 0 | H114: =IFERROR(VLOOKUP($A114,Filtro!$A$5:$AY$2917,6,FALSE),0) -> 0 | I114: =IFERROR(VLOOKUP($A114,Filtro!$A$5:$AY$2917,7,FALSE),0) -> 0 | J114: =IFERROR(VLOOKUP($A114,Filtro!$A$5:$AY$2917,8,FALSE),0) -> 0 | K114: =IFERROR(VLOOKUP($A114,Filtro!$A$5:$AY$2917,9,FALSE),0) -> 0 | L114: =IFERROR(VLOOKUP($A114,Filtro!$A$5:$AY$2917,10,FALSE),0) -> 0 | M114: =IFERROR(VLOOKUP($A114,Filtro!$A$5:$AY$2917,11,FALSE),0) -> 0 | N114: =IFERROR(VLOOKUP($A114,Filtro!$A$5:$AY$2917,12,FALSE),0) -> 0 | O114: =IFERROR(VLOOKUP($A114,Filtro!$A$5:$AY$2917,13,FALSE),0) -> 0 | P114: =IFERROR(VLOOKUP($A114,Filtro!$A$5:$AY$2917,14,FALSE),0) -> 0 | Q114: =IFERROR(VLOOKUP($A114,Filtro!$A$5:$AY$2917,15,FALSE),0) -> 0 | R114: =IFERROR(VLOOKUP($A114,Filtro!$A$5:$AY$2917,16,FALSE),0) -> 0 | S114: =IFERROR(VLOOKUP($A114,Filtro!$A$5:$AY$2917,17,FALSE),0) -> 0 | T114: =IFERROR(VLOOKUP($A114,Filtro!$A$5:$AY$2917,18,FALSE),0) -> 0 | U114: =IFERROR(VLOOKUP($A114,Filtro!$A$5:$AY$2917,19,FALSE),0) -> 0 | V114: =IFERROR(VLOOKUP($A114,Filtro!$A$5:$AY$2917,20,FALSE),0) -> 0 | W114: =IFERROR(VLOOKUP($A114,Filtro!$A$5:$AY$2917,21,FALSE),0) -> 0 | X114: =IFERROR(VLOOKUP($A114,Filtro!$A$5:$AY$2917,22,FALSE),0) -> 0 | Y114: =IFERROR(VLOOKUP($A114,Filtro!$A$5:$AY$2917,23,FALSE),0) -> 0 | Z114: =IFERROR(VLOOKUP($A114,Filtro!$A$5:$AY$2917,24,FALSE),0) -> 0 | AA114: =IFERROR(VLOOKUP($A114,Filtro!$A$5:$AY$2917,25,FALSE),0) -> 0 | AB114: =IFERROR(VLOOKUP($A114,Filtro!$A$5:$AY$2917,26,FALSE),0) -> 0 | AC114: =IFERROR(VLOOKUP($A114,Filtro!$A$5:$AY$2917,27,FALSE),0) -> 0 | AD114: =IFERROR(VLOOKUP($A114,Filtro!$A$5:$AY$2917,28,FALSE),0) -> 0 | AE114: =IFERROR(VLOOKUP($A114,Filtro!$A$5:$AY$2917,29,FALSE),0) -> 0 | AF114: =IFERROR(VLOOKUP($A114,Filtro!$A$5:$AY$2917,30,FALSE),0) -> 0 | AG114: =IFERROR(VLOOKUP($A114,Filtro!$A$5:$AY$2917,31,FALSE),0) -> 0 | AH114: =IFERROR(VLOOKUP($A114,Filtro!$A$5:$AY$2917,32,FALSE),0) -> 0 | AI114: =IFERROR(VLOOKUP($A114,Filtro!$A$5:$AY$2917,33,FALSE),0) -> 0 | AJ114: =IFERROR(VLOOKUP($A114,Filtro!$A$5:$AY$2917,34,FALSE),0) -> 0 | AK114: =IFERROR(VLOOKUP($A114,Filtro!$A$5:$AY$2917,35,FALSE),0) -> 0 | AL114: 7,530 | AM114: 0
A115: 01014364 | B115: 0108317 | C115: Teleconsulta Médica de Especialidad en Cirugía Pediátrica | D115: =IFERROR(VLOOKUP($A115,Filtro!$A$5:$AY$2917,2,FALSE),0) -> 1 | E115: =IFERROR(VLOOKUP($A115,Filtro!$A$5:$AY$2917,3,FALSE),0) -> 1 | F115: =IFERROR(VLOOKUP($A115,Filtro!$A$5:$AY$2917,4,FALSE),0) -> 1 | G115: =IFERROR(VLOOKUP($A115,Filtro!$A$5:$AY$2917,5,FALSE),0) -> 0 | H115: =IFERROR(VLOOKUP($A115,Filtro!$A$5:$AY$2917,6,FALSE),0) -> 0 | I115: =IFERROR(VLOOKUP($A115,Filtro!$A$5:$AY$2917,7,FALSE),0) -> 0 | J115: =IFERROR(VLOOKUP($A115,Filtro!$A$5:$AY$2917,8,FALSE),0) -> 0 | K115: =IFERROR(VLOOKUP($A115,Filtro!$A$5:$AY$2917,9,FALSE),0) -> 0 | L115: =IFERROR(VLOOKUP($A115,Filtro!$A$5:$AY$2917,10,FALSE),0) -> 0 | M115: =IFERROR(VLOOKUP($A115,Filtro!$A$5:$AY$2917,11,FALSE),0) -> 0 | N115: =IFERROR(VLOOKUP($A115,Filtro!$A$5:$AY$2917,12,FALSE),0) -> 0 | O115: =IFERROR(VLOOKUP($A115,Filtro!$A$5:$AY$2917,13,FALSE),0) -> 0 | P115: =IFERROR(VLOOKUP($A115,Filtro!$A$5:$AY$2917,14,FALSE),0) -> 0 | Q115: =IFERROR(VLOOKUP($A115,Filtro!$A$5:$AY$2917,15,FALSE),0) -> 0 | R115: =IFERROR(VLOOKUP($A115,Filtro!$A$5:$AY$2917,16,FALSE),0) -> 0 | S115: =IFERROR(VLOOKUP($A115,Filtro!$A$5:$AY$2917,17,FALSE),0) -> 0 | T115: =IFERROR(VLOOKUP($A115,Filtro!$A$5:$AY$2917,18,FALSE),0) -> 0 | U115: =IFERROR(VLOOKUP($A115,Filtro!$A$5:$AY$2917,19,FALSE),0) -> 0 | V115: =IFERROR(VLOOKUP($A115,Filtro!$A$5:$AY$2917,20,FALSE),0) -> 0 | W115: =IFERROR(VLOOKUP($A115,Filtro!$A$5:$AY$2917,21,FALSE),0) -> 0 | X115: =IFERROR(VLOOKUP($A115,Filtro!$A$5:$AY$2917,22,FALSE),0) -> 0 | Y115: =IFERROR(VLOOKUP($A115,Filtro!$A$5:$AY$2917,23,FALSE),0) -> 0 | Z115: =IFERROR(VLOOKUP($A115,Filtro!$A$5:$AY$2917,24,FALSE),0) -> 0 | AA115: =IFERROR(VLOOKUP($A115,Filtro!$A$5:$AY$2917,25,FALSE),0) -> 0 | AB115: =IFERROR(VLOOKUP($A115,Filtro!$A$5:$AY$2917,26,FALSE),0) -> 0 | AC115: =IFERROR(VLOOKUP($A115,Filtro!$A$5:$AY$2917,27,FALSE),0) -> 1 | AD115: =IFERROR(VLOOKUP($A115,Filtro!$A$5:$AY$2917,28,FALSE),0) -> 0 | AE115: =IFERROR(VLOOKUP($A115,Filtro!$A$5:$AY$2917,29,FALSE),0) -> 0 | AF115: =IFERROR(VLOOKUP($A115,Filtro!$A$5:$AY$2917,30,FALSE),0) -> 0 | AG115: =IFERROR(VLOOKUP($A115,Filtro!$A$5:$AY$2917,31,FALSE),0) -> 0 | AH115: =IFERROR(VLOOKUP($A115,Filtro!$A$5:$AY$2917,32,FALSE),0) -> 0 | AI115: =IFERROR(VLOOKUP($A115,Filtro!$A$5:$AY$2917,33,FALSE),0) -> 0 | AJ115: =IFERROR(VLOOKUP($A115,Filtro!$A$5:$AY$2917,34,FALSE),0) -> 0 | AK115: =IFERROR(VLOOKUP($A115,Filtro!$A$5:$AY$2917,35,FALSE),0) -> 0 | AL115: 7,530 | AM115: 7,530
A116: 01014365 | B116: 0108318 | C116: Teleconsulta Médica de Especialidad en Cirugía Vascular Periférica | D116: =IFERROR(VLOOKUP($A116,Filtro!$A$5:$AY$2917,2,FALSE),0) -> 0 | E116: =IFERROR(VLOOKUP($A116,Filtro!$A$5:$AY$2917,3,FALSE),0) -> 0 | F116: =IFERROR(VLOOKUP($A116,Filtro!$A$5:$AY$2917,4,FALSE),0) -> 0 | G116: =IFERROR(VLOOKUP($A116,Filtro!$A$5:$AY$2917,5,FALSE),0) -> 0 | H116: =IFERROR(VLOOKUP($A116,Filtro!$A$5:$AY$2917,6,FALSE),0) -> 0 | I116: =IFERROR(VLOOKUP($A116,Filtro!$A$5:$AY$2917,7,FALSE),0) -> 0 | J116: =IFERROR(VLOOKUP($A116,Filtro!$A$5:$AY$2917,8,FALSE),0) -> 0 | K116: =IFERROR(VLOOKUP($A116,Filtro!$A$5:$AY$2917,9,FALSE),0) -> 0 | L116: =IFERROR(VLOOKUP($A116,Filtro!$A$5:$AY$2917,10,FALSE),0) -> 0 | M116: =IFERROR(VLOOKUP($A116,Filtro!$A$5:$AY$2917,11,FALSE),0) -> 0 | N116: =IFERROR(VLOOKUP($A116,Filtro!$A$5:$AY$2917,12,FALSE),0) -> 0 | O116: =IFERROR(VLOOKUP($A116,Filtro!$A$5:$AY$2917,13,FALSE),0) -> 0 | P116: =IFERROR(VLOOKUP($A116,Filtro!$A$5:$AY$2917,14,FALSE),0) -> 0 | Q116: =IFERROR(VLOOKUP($A116,Filtro!$A$5:$AY$2917,15,FALSE),0) -> 0 | R116: =IFERROR(VLOOKUP($A116,Filtro!$A$5:$AY$2917,16,FALSE),0) -> 0 | S116: =IFERROR(VLOOKUP($A116,Filtro!$A$5:$AY$2917,17,FALSE),0) -> 0 | T116: =IFERROR(VLOOKUP($A116,Filtro!$A$5:$AY$2917,18,FALSE),0) -> 0 | U116: =IFERROR(VLOOKUP($A116,Filtro!$A$5:$AY$2917,19,FALSE),0) -> 0 | V116: =IFERROR(VLOOKUP($A116,Filtro!$A$5:$AY$2917,20,FALSE),0) -> 0 | W116: =IFERROR(VLOOKUP($A116,Filtro!$A$5:$AY$2917,21,FALSE),0) -> 0 | X116: =IFERROR(VLOOKUP($A116,Filtro!$A$5:$AY$2917,22,FALSE),0) -> 0 | Y116: =IFERROR(VLOOKUP($A116,Filtro!$A$5:$AY$2917,23,FALSE),0) -> 0 | Z116: =IFERROR(VLOOKUP($A116,Filtro!$A$5:$AY$2917,24,FALSE),0) -> 0 | AA116: =IFERROR(VLOOKUP($A116,Filtro!$A$5:$AY$2917,25,FALSE),0) -> 0 | AB116: =IFERROR(VLOOKUP($A116,Filtro!$A$5:$AY$2917,26,FALSE),0) -> 0 | AC116: =IFERROR(VLOOKUP($A116,Filtro!$A$5:$AY$2917,27,FALSE),0) -> 0 | AD116: =IFERROR(VLOOKUP($A116,Filtro!$A$5:$AY$2917,28,FALSE),0) -> 0 | AE116: =IFERROR(VLOOKUP($A116,Filtro!$A$5:$AY$2917,29,FALSE),0) -> 0 | AF116: =IFERROR(VLOOKUP($A116,Filtro!$A$5:$AY$2917,30,FALSE),0) -> 0 | AG116: =IFERROR(VLOOKUP($A116,Filtro!$A$5:$AY$2917,31,FALSE),0) -> 0 | AH116: =IFERROR(VLOOKUP($A116,Filtro!$A$5:$AY$2917,32,FALSE),0) -> 0 | AI116: =IFERROR(VLOOKUP($A116,Filtro!$A$5:$AY$2917,33,FALSE),0) -> 0 | AJ116: =IFERROR(VLOOKUP($A116,Filtro!$A$5:$AY$2917,34,FALSE),0) -> 0 | AK116: =IFERROR(VLOOKUP($A116,Filtro!$A$5:$AY$2917,35,FALSE),0) -> 0 | AL116: 7,530 | AM116: 0
A117: 01014366 | B117: 0108329 | C117: Teleconsulta Médica de Especialidad en Anestesiología | D117: =IFERROR(VLOOKUP($A117,Filtro!$A$5:$AY$2917,2,FALSE),0) -> 1609 | E117: =IFERROR(VLOOKUP($A117,Filtro!$A$5:$AY$2917,3,FALSE),0) -> 1593 | F117: =IFERROR(VLOOKUP($A117,Filtro!$A$5:$AY$2917,4,FALSE),0) -> 1593 | G117: =IFERROR(VLOOKUP($A117,Filtro!$A$5:$AY$2917,5,FALSE),0) -> 0 | H117: =IFERROR(VLOOKUP($A117,Filtro!$A$5:$AY$2917,6,FALSE),0) -> 16 | I117: =IFERROR(VLOOKUP($A117,Filtro!$A$5:$AY$2917,7,FALSE),0) -> 0 | J117: =IFERROR(VLOOKUP($A117,Filtro!$A$5:$AY$2917,8,FALSE),0) -> 0 | K117: =IFERROR(VLOOKUP($A117,Filtro!$A$5:$AY$2917,9,FALSE),0) -> 0 | L117: =IFERROR(VLOOKUP($A117,Filtro!$A$5:$AY$2917,10,FALSE),0) -> 0 | M117: =IFERROR(VLOOKUP($A117,Filtro!$A$5:$AY$2917,11,FALSE),0) -> 0 | N117: =IFERROR(VLOOKUP($A117,Filtro!$A$5:$AY$2917,12,FALSE),0) -> 0 | O117: =IFERROR(VLOOKUP($A117,Filtro!$A$5:$AY$2917,13,FALSE),0) -> 0 | P117: =IFERROR(VLOOKUP($A117,Filtro!$A$5:$AY$2917,14,FALSE),0) -> 0 | Q117: =IFERROR(VLOOKUP($A117,Filtro!$A$5:$AY$2917,15,FALSE),0) -> 0 | R117: =IFERROR(VLOOKUP($A117,Filtro!$A$5:$AY$2917,16,FALSE),0) -> 0 | S117: =IFERROR(VLOOKUP($A117,Filtro!$A$5:$AY$2917,17,FALSE),0) -> 0 | T117: =IFERROR(VLOOKUP($A117,Filtro!$A$5:$AY$2917,18,FALSE),0) -> 0 | U117: =IFERROR(VLOOKUP($A117,Filtro!$A$5:$AY$2917,19,FALSE),0) -> 0 | V117: =IFERROR(VLOOKUP($A117,Filtro!$A$5:$AY$2917,20,FALSE),0) -> 0 | W117: =IFERROR(VLOOKUP($A117,Filtro!$A$5:$AY$2917,21,FALSE),0) -> 0 | X117: =IFERROR(VLOOKUP($A117,Filtro!$A$5:$AY$2917,22,FALSE),0) -> 0 | Y117: =IFERROR(VLOOKUP($A117,Filtro!$A$5:$AY$2917,23,FALSE),0) -> 0 | Z117: =IFERROR(VLOOKUP($A117,Filtro!$A$5:$AY$2917,24,FALSE),0) -> 0 | AA117: =IFERROR(VLOOKUP($A117,Filtro!$A$5:$AY$2917,25,FALSE),0) -> 0 | AB117: =IFERROR(VLOOKUP($A117,Filtro!$A$5:$AY$2917,26,FALSE),0) -> 0 | AC117: =IFERROR(VLOOKUP($A117,Filtro!$A$5:$AY$2917,27,FALSE),0) -> 1609 | AD117: =IFERROR(VLOOKUP($A117,Filtro!$A$5:$AY$2917,28,FALSE),0) -> 0 | AE117: =IFERROR(VLOOKUP($A117,Filtro!$A$5:$AY$2917,29,FALSE),0) -> 914 | AF117: =IFERROR(VLOOKUP($A117,Filtro!$A$5:$AY$2917,30,FALSE),0) -> 0 | AG117: =IFERROR(VLOOKUP($A117,Filtro!$A$5:$AY$2917,31,FALSE),0) -> 0 | AH117: =IFERROR(VLOOKUP($A117,Filtro!$A$5:$AY$2917,32,FALSE),0) -> 0 | AI117: =IFERROR(VLOOKUP($A117,Filtro!$A$5:$AY$2917,33,FALSE),0) -> 0 | AJ117: =IFERROR(VLOOKUP($A117,Filtro!$A$5:$AY$2917,34,FALSE),0) -> 0 | AK117: =IFERROR(VLOOKUP($A117,Filtro!$A$5:$AY$2917,35,FALSE),0) -> 0 | AL117: 7,530 | AM117: 11,995,290
A118: 01014367 | B118: 0108332 | C118: Teleconsulta Médica de Especialidad en Ginecología Pediátrica y de la Adolescencia | D118: =IFERROR(VLOOKUP($A118,Filtro!$A$5:$AY$2917,2,FALSE),0) -> 0 | E118: =IFERROR(VLOOKUP($A118,Filtro!$A$5:$AY$2917,3,FALSE),0) -> 0 | F118: =IFERROR(VLOOKUP($A118,Filtro!$A$5:$AY$2917,4,FALSE),0) -> 0 | G118: =IFERROR(VLOOKUP($A118,Filtro!$A$5:$AY$2917,5,FALSE),0) -> 0 | H118: =IFERROR(VLOOKUP($A118,Filtro!$A$5:$AY$2917,6,FALSE),0) -> 0 | I118: =IFERROR(VLOOKUP($A118,Filtro!$A$5:$AY$2917,7,FALSE),0) -> 0 | J118: =IFERROR(VLOOKUP($A118,Filtro!$A$5:$AY$2917,8,FALSE),0) -> 0 | K118: =IFERROR(VLOOKUP($A118,Filtro!$A$5:$AY$2917,9,FALSE),0) -> 0 | L118: =IFERROR(VLOOKUP($A118,Filtro!$A$5:$AY$2917,10,FALSE),0) -> 0 | M118: =IFERROR(VLOOKUP($A118,Filtro!$A$5:$AY$2917,11,FALSE),0) -> 0 | N118: =IFERROR(VLOOKUP($A118,Filtro!$A$5:$AY$2917,12,FALSE),0) -> 0 | O118: =IFERROR(VLOOKUP($A118,Filtro!$A$5:$AY$2917,13,FALSE),0) -> 0 | P118: =IFERROR(VLOOKUP($A118,Filtro!$A$5:$AY$2917,14,FALSE),0) -> 0 | Q118: =IFERROR(VLOOKUP($A118,Filtro!$A$5:$AY$2917,15,FALSE),0) -> 0 | R118: =IFERROR(VLOOKUP($A118,Filtro!$A$5:$AY$2917,16,FALSE),0) -> 0 | S118: =IFERROR(VLOOKUP($A118,Filtro!$A$5:$AY$2917,17,FALSE),0) -> 0 | T118: =IFERROR(VLOOKUP($A118,Filtro!$A$5:$AY$2917,18,FALSE),0) -> 0 | U118: =IFERROR(VLOOKUP($A118,Filtro!$A$5:$AY$2917,19,FALSE),0) -> 0 | V118: =IFERROR(VLOOKUP($A118,Filtro!$A$5:$AY$2917,20,FALSE),0) -> 0 | W118: =IFERROR(VLOOKUP($A118,Filtro!$A$5:$AY$2917,21,FALSE),0) -> 0 | X118: =IFERROR(VLOOKUP($A118,Filtro!$A$5:$AY$2917,22,FALSE),0) -> 0 | Y118: =IFERROR(VLOOKUP($A118,Filtro!$A$5:$AY$2917,23,FALSE),0) -> 0 | Z118: =IFERROR(VLOOKUP($A118,Filtro!$A$5:$AY$2917,24,FALSE),0) -> 0 | AA118: =IFERROR(VLOOKUP($A118,Filtro!$A$5:$AY$2917,25,FALSE),0) -> 0 | AB118: =IFERROR(VLOOKUP($A118,Filtro!$A$5:$AY$2917,26,FALSE),0) -> 0 | AC118: =IFERROR(VLOOKUP($A118,Filtro!$A$5:$AY$2917,27,FALSE),0) -> 0 | AD118: =IFERROR(VLOOKUP($A118,Filtro!$A$5:$AY$2917,28,FALSE),0) -> 0 | AE118: =IFERROR(VLOOKUP($A118,Filtro!$A$5:$AY$2917,29,FALSE),0) -> 0 | AF118: =IFERROR(VLOOKUP($A118,Filtro!$A$5:$AY$2917,30,FALSE),0) -> 0 | AG118: =IFERROR(VLOOKUP($A118,Filtro!$A$5:$AY$2917,31,FALSE),0) -> 0 | AH118: =IFERROR(VLOOKUP($A118,Filtro!$A$5:$AY$2917,32,FALSE),0) -> 0 | AI118: =IFERROR(VLOOKUP($A118,Filtro!$A$5:$AY$2917,33,FALSE),0) -> 0 | AJ118: =IFERROR(VLOOKUP($A118,Filtro!$A$5:$AY$2917,34,FALSE),0) -> 0 | AK118: =IFERROR(VLOOKUP($A118,Filtro!$A$5:$AY$2917,35,FALSE),0) -> 0 | AL118: 7,530 | AM118: 0
A119: 01014368 | B119: 0108333 | C119: Teleconsulta Médica de Especialidad en Medicina Materno Fetal | D119: =IFERROR(VLOOKUP($A119,Filtro!$A$5:$AY$2917,2,FALSE),0) -> 0 | E119: =IFERROR(VLOOKUP($A119,Filtro!$A$5:$AY$2917,3,FALSE),0) -> 0 | F119: =IFERROR(VLOOKUP($A119,Filtro!$A$5:$AY$2917,4,FALSE),0) -> 0 | G119: =IFERROR(VLOOKUP($A119,Filtro!$A$5:$AY$2917,5,FALSE),0) -> 0 | H119: =IFERROR(VLOOKUP($A119,Filtro!$A$5:$AY$2917,6,FALSE),0) -> 0 | I119: =IFERROR(VLOOKUP($A119,Filtro!$A$5:$AY$2917,7,FALSE),0) -> 0 | J119: =IFERROR(VLOOKUP($A119,Filtro!$A$5:$AY$2917,8,FALSE),0) -> 0 | K119: =IFERROR(VLOOKUP($A119,Filtro!$A$5:$AY$2917,9,FALSE),0) -> 0 | L119: =IFERROR(VLOOKUP($A119,Filtro!$A$5:$AY$2917,10,FALSE),0) -> 0 | M119: =IFERROR(VLOOKUP($A119,Filtro!$A$5:$AY$2917,11,FALSE),0) -> 0 | N119: =IFERROR(VLOOKUP($A119,Filtro!$A$5:$AY$2917,12,FALSE),0) -> 0 | O119: =IFERROR(VLOOKUP($A119,Filtro!$A$5:$AY$2917,13,FALSE),0) -> 0 | P119: =IFERROR(VLOOKUP($A119,Filtro!$A$5:$AY$2917,14,FALSE),0) -> 0 | Q119: =IFERROR(VLOOKUP($A119,Filtro!$A$5:$AY$2917,15,FALSE),0) -> 0 | R119: =IFERROR(VLOOKUP($A119,Filtro!$A$5:$AY$2917,16,FALSE),0) -> 0 | S119: =IFERROR(VLOOKUP($A119,Filtro!$A$5:$AY$2917,17,FALSE),0) -> 0 | T119: =IFERROR(VLOOKUP($A119,Filtro!$A$5:$AY$2917,18,FALSE),0) -> 0 | U119: =IFERROR(VLOOKUP($A119,Filtro!$A$5:$AY$2917,19,FALSE),0) -> 0 | V119: =IFERROR(VLOOKUP($A119,Filtro!$A$5:$AY$2917,20,FALSE),0) -> 0 | W119: =IFERROR(VLOOKUP($A119,Filtro!$A$5:$AY$2917,21,FALSE),0) -> 0 | X119: =IFERROR(VLOOKUP($A119,Filtro!$A$5:$AY$2917,22,FALSE),0) -> 0 | Y119: =IFERROR(VLOOKUP($A119,Filtro!$A$5:$AY$2917,23,FALSE),0) -> 0 | Z119: =IFERROR(VLOOKUP($A119,Filtro!$A$5:$AY$2917,24,FALSE),0) -> 0 | AA119: =IFERROR(VLOOKUP($A119,Filtro!$A$5:$AY$2917,25,FALSE),0) -> 0 | AB119: =IFERROR(VLOOKUP($A119,Filtro!$A$5:$AY$2917,26,FALSE),0) -> 0 | AC119: =IFERROR(VLOOKUP($A119,Filtro!$A$5:$AY$2917,27,FALSE),0) -> 0 | AD119: =IFERROR(VLOOKUP($A119,Filtro!$A$5:$AY$2917,28,FALSE),0) -> 0 | AE119: =IFERROR(VLOOKUP($A119,Filtro!$A$5:$AY$2917,29,FALSE),0) -> 0 | AF119: =IFERROR(VLOOKUP($A119,Filtro!$A$5:$AY$2917,30,FALSE),0) -> 0 | AG119: =IFERROR(VLOOKUP($A119,Filtro!$A$5:$AY$2917,31,FALSE),0) -> 0 | AH119: =IFERROR(VLOOKUP($A119,Filtro!$A$5:$AY$2917,32,FALSE),0) -> 0 | AI119: =IFERROR(VLOOKUP($A119,Filtro!$A$5:$AY$2917,33,FALSE),0) -> 0 | AJ119: =IFERROR(VLOOKUP($A119,Filtro!$A$5:$AY$2917,34,FALSE),0) -> 0 | AK119: =IFERROR(VLOOKUP($A119,Filtro!$A$5:$AY$2917,35,FALSE),0) -> 0 | AL119: 7,530 | AM119: 0
A120: 01014369 | B120: 0108334 | C120: Teleconsulta Médica de Especialidad en Medicina Nuclear | D120: =IFERROR(VLOOKUP($A120,Filtro!$A$5:$AY$2917,2,FALSE),0) -> 0 | E120: =IFERROR(VLOOKUP($A120,Filtro!$A$5:$AY$2917,3,FALSE),0) -> 0 | F120: =IFERROR(VLOOKUP($A120,Filtro!$A$5:$AY$2917,4,FALSE),0) -> 0 | G120: =IFERROR(VLOOKUP($A120,Filtro!$A$5:$AY$2917,5,FALSE),0) -> 0 | H120: =IFERROR(VLOOKUP($A120,Filtro!$A$5:$AY$2917,6,FALSE),0) -> 0 | I120: =IFERROR(VLOOKUP($A120,Filtro!$A$5:$AY$2917,7,FALSE),0) -> 0 | J120: =IFERROR(VLOOKUP($A120,Filtro!$A$5:$AY$2917,8,FALSE),0) -> 0 | K120: =IFERROR(VLOOKUP($A120,Filtro!$A$5:$AY$2917,9,FALSE),0) -> 0 | L120: =IFERROR(VLOOKUP($A120,Filtro!$A$5:$AY$2917,10,FALSE),0) -> 0 | M120: =IFERROR(VLOOKUP($A120,Filtro!$A$5:$AY$2917,11,FALSE),0) -> 0 | N120: =IFERROR(VLOOKUP($A120,Filtro!$A$5:$AY$2917,12,FALSE),0) -> 0 | O120: =IFERROR(VLOOKUP($A120,Filtro!$A$5:$AY$2917,13,FALSE),0) -> 0 | P120: =IFERROR(VLOOKUP($A120,Filtro!$A$5:$AY$2917,14,FALSE),0) -> 0 | Q120: =IFERROR(VLOOKUP($A120,Filtro!$A$5:$AY$2917,15,FALSE),0) -> 0 | R120: =IFERROR(VLOOKUP($A120,Filtro!$A$5:$AY$2917,16,FALSE),0) -> 0 | S120: =IFERROR(VLOOKUP($A120,Filtro!$A$5:$AY$2917,17,FALSE),0) -> 0 | T120: =IFERROR(VLOOKUP($A120,Filtro!$A$5:$AY$2917,18,FALSE),0) -> 0 | U120: =IFERROR(VLOOKUP($A120,Filtro!$A$5:$AY$2917,19,FALSE),0) -> 0 | V120: =IFERROR(VLOOKUP($A120,Filtro!$A$5:$AY$2917,20,FALSE),0) -> 0 | W120: =IFERROR(VLOOKUP($A120,Filtro!$A$5:$AY$2917,21,FALSE),0) -> 0 | X120: =IFERROR(VLOOKUP($A120,Filtro!$A$5:$AY$2917,22,FALSE),0) -> 0 | Y120: =IFERROR(VLOOKUP($A120,Filtro!$A$5:$AY$2917,23,FALSE),0) -> 0 | Z120: =IFERROR(VLOOKUP($A120,Filtro!$A$5:$AY$2917,24,FALSE),0) -> 0 | AA120: =IFERROR(VLOOKUP($A120,Filtro!$A$5:$AY$2917,25,FALSE),0) -> 0 | AB120: =IFERROR(VLOOKUP($A120,Filtro!$A$5:$AY$2917,26,FALSE),0) -> 0 | AC120: =IFERROR(VLOOKUP($A120,Filtro!$A$5:$AY$2917,27,FALSE),0) -> 0 | AD120: =IFERROR(VLOOKUP($A120,Filtro!$A$5:$AY$2917,28,FALSE),0) -> 0 | AE120: =IFERROR(VLOOKUP($A120,Filtro!$A$5:$AY$2917,29,FALSE),0) -> 0 | AF120: =IFERROR(VLOOKUP($A120,Filtro!$A$5:$AY$2917,30,FALSE),0) -> 0 | AG120: =IFERROR(VLOOKUP($A120,Filtro!$A$5:$AY$2917,31,FALSE),0) -> 0 | AH120: =IFERROR(VLOOKUP($A120,Filtro!$A$5:$AY$2917,32,FALSE),0) -> 0 | AI120: =IFERROR(VLOOKUP($A120,Filtro!$A$5:$AY$2917,33,FALSE),0) -> 0 | AJ120: =IFERROR(VLOOKUP($A120,Filtro!$A$5:$AY$2917,34,FALSE),0) -> 0 | AK120: =IFERROR(VLOOKUP($A120,Filtro!$A$5:$AY$2917,35,FALSE),0) -> 0 | AL120: 7,530 | AM120: 0
C121: TOTAL | D121: =SUM(D75:D120) -> 10701 | E121: =SUM(E75:E120) -> 10665 | F121: 10665 | G121: 0 | H121: 36 | AB121: =SUM(AB75:AB120) -> 42 | AC121: 10659 | AD121: 0 | AE121: 914 | AF121: 0 | AG121: 0 | AH121: 0 | AI121: 0 | AJ121: 0 | AK121: =SUM(AK75:AK120) -> 0 | AM121: =SUM(AM75:AM120) -> 80307450
C122: TELEMEDICINA PROFESIONALES NO MÉDICOS
A123: 01014370 | B123: 0108400 | C123: Teleconsulta: Atención Integral de Nutricionista (incluye 3 sesiones) | D123: =IFERROR(VLOOKUP($A123,Filtro!$A$5:$AY$2917,2,FALSE),0) -> 0 | E123: =IFERROR(VLOOKUP($A123,Filtro!$A$5:$AY$2917,3,FALSE),0) -> 0 | F123: =IFERROR(VLOOKUP($A123,Filtro!$A$5:$AY$2917,4,FALSE),0) -> 0 | G123: =IFERROR(VLOOKUP($A123,Filtro!$A$5:$AY$2917,5,FALSE),0) -> 0 | H123: =IFERROR(VLOOKUP($A123,Filtro!$A$5:$AY$2917,6,FALSE),0) -> 0 | I123: =IFERROR(VLOOKUP($A123,Filtro!$A$5:$AY$2917,7,FALSE),0) -> 0 | J123: =IFERROR(VLOOKUP($A123,Filtro!$A$5:$AY$2917,8,FALSE),0) -> 0 | K123: =IFERROR(VLOOKUP($A123,Filtro!$A$5:$AY$2917,9,FALSE),0) -> 0 | L123: =IFERROR(VLOOKUP($A123,Filtro!$A$5:$AY$2917,10,FALSE),0) -> 0 | M123: =IFERROR(VLOOKUP($A123,Filtro!$A$5:$AY$2917,11,FALSE),0) -> 0 | N123: =IFERROR(VLOOKUP($A123,Filtro!$A$5:$AY$2917,12,FALSE),0) -> 0 | O123: =IFERROR(VLOOKUP($A123,Filtro!$A$5:$AY$2917,13,FALSE),0) -> 0 | P123: =IFERROR(VLOOKUP($A123,Filtro!$A$5:$AY$2917,14,FALSE),0) -> 0 | Q123: =IFERROR(VLOOKUP($A123,Filtro!$A$5:$AY$2917,15,FALSE),0) -> 0 | R123: =IFERROR(VLOOKUP($A123,Filtro!$A$5:$AY$2917,16,FALSE),0) -> 0 | S123: =IFERROR(VLOOKUP($A123,Filtro!$A$5:$AY$2917,17,FALSE),0) -> 0 | T123: =IFERROR(VLOOKUP($A123,Filtro!$A$5:$AY$2917,18,FALSE),0) -> 0 | U123: =IFERROR(VLOOKUP($A123,Filtro!$A$5:$AY$2917,19,FALSE),0) -> 0 | V123: =IFERROR(VLOOKUP($A123,Filtro!$A$5:$AY$2917,20,FALSE),0) -> 0 | W123: =IFERROR(VLOOKUP($A123,Filtro!$A$5:$AY$2917,21,FALSE),0) -> 0 | X123: =IFERROR(VLOOKUP($A123,Filtro!$A$5:$AY$2917,22,FALSE),0) -> 0 | Y123: =IFERROR(VLOOKUP($A123,Filtro!$A$5:$AY$2917,23,FALSE),0) -> 0 | Z123: =IFERROR(VLOOKUP($A123,Filtro!$A$5:$AY$2917,24,FALSE),0) -> 0 | AA123: =IFERROR(VLOOKUP($A123,Filtro!$A$5:$AY$2917,25,FALSE),0) -> 0 | AB123: =IFERROR(VLOOKUP($A123,Filtro!$A$5:$AY$2917,26,FALSE),0) -> 0 | AC123: =IFERROR(VLOOKUP($A123,Filtro!$A$5:$AY$2917,27,FALSE),0) -> 0 | AD123: =IFERROR(VLOOKUP($A123,Filtro!$A$5:$AY$2917,28,FALSE),0) -> 0 | AE123: =IFERROR(VLOOKUP($A123,Filtro!$A$5:$AY$2917,29,FALSE),0) -> 0 | AF123: =IFERROR(VLOOKUP($A123,Filtro!$A$5:$AY$2917,30,FALSE),0) -> 0 | AG123: =IFERROR(VLOOKUP($A123,Filtro!$A$5:$AY$2917,31,FALSE),0) -> 0 | AH123: =IFERROR(VLOOKUP($A123,Filtro!$A$5:$AY$2917,32,FALSE),0) -> 0 | AI123: =IFERROR(VLOOKUP($A123,Filtro!$A$5:$AY$2917,33,FALSE),0) -> 0 | AJ123: =IFERROR(VLOOKUP($A123,Filtro!$A$5:$AY$2917,34,FALSE),0) -> 0 | AK123: =IFERROR(VLOOKUP($A123,Filtro!$A$5:$AY$2917,35,FALSE),0) -> 0 | AL123: 21,750 | AM123: =AL123*F123 -> 0
C124: TOTAL | D124: =SUM(D123) -> 0 | E124: =SUM(E123) -> 0 | F124: 0 | G124: 0 | H124: 0 | AB124: =SUM(AB123) -> 0 | AC124: =SUM(AC123) -> 0 | AD124: 0 | AE124: 0 | AF124: 0 | AG124: 0 | AH124: 0 | AI124: 0 | AJ124: 0 | AK124: 0 | AM124: 0
C125: TELEINTERCONSULTA (TELEMEDICINA)
